Workbook

Sheet Sheet1
A1: Month | B1: JOB_NO | C1: PROJECT_JOB_TYPE | D1: BUDGET_ORG | E1: Budget_CHK | F1: ACTUAL | G1: Commit_PO | H1: Commit_SSR | I1: Cost_To_CMPT

Sheet Sheet4 (hidden)
A1: Cost Overview for Projects
A2: B.U. | B2: Job | C2: Project Title | D2: Job Status | E2: Lead By | F2: P.M. | G2: C.M. | H2: Approval Date | I2: Hiden Information | AA2: Approved Budget 1 | AB2: Estimated Final Cost 5=2+3+4 | AC2: Devi.(%) (5-1)/1 | AD2: Actual 2 | AE2: Committed 3 | AG2: Cost to complete 4 | AH2: Devi.(%) _POPR | AI2: Devi.(%) _SSR | AJ2: Internal Engineering Cost | AL2: Internal Const.Supervsn Cost | AN2: Wrong Booking Indicator
I3: M.C.Date | J3: TCCC Date | K3: Business Closure Date | L3: Priority | M3: WBS Account | N3: Netowrk | O3: Actual Cost Migrated? | P3: Job No. | Q3: Original Budget | R3: Budget Change | S3: Final cost | T3: Actual cost | U3: Commitment | V3: Rem.M.H (Eng) | W3: Rem.M.H (Con.Sup) | X3: Budget(used to calculate C2C) | Y3: Cost to complete | Z3: Saved Cost | AE3: PR/PO | AF3: SSR | AJ3: Rem M.H. /RMB | AK3: Compl (%) | AL3: Rem M.H. /RMB | AM3: Compl (%) | AN3: Material | AO3: SSR
A4: CBP/C | B4: 15292 | C4: Modification of the Furnace Burners | D4: On Going | E4: CTE/P | F4: Ding Juntao | G4: 0 | H4: 2015-12-31 | I4: 00:00:00 | J4: 00:00:00 | K4: 00:00:00 | L4: N | M4: ZNIC.011312 | N4: NZNIC015292K | P4: 15292 | Q4: 0 | R4: 0 | S4: 0 | T4: 0 | U4: 195,340 | V4: 90,000 | W4: 0 | X4: 0 | Y4: -285,340 | Z4: 0 | AA4: 0 | AB4: -90,000 | AD4: 0 | AE4: 195,340 | AF4: 0 | AG4: -285,340 | AJ4: 90,000 | AK4: 0.00% | AL4: 0 | AN4: 0 | AO4: 0
A5: CEP/L | B5: 15278 | C5: Upgrade the HIPS Palletizer | D5: On Going | E5: CTE/P | F5: Zhou Yanduo | G5: Wu Zefei | H5: 2015-12-30 | I5: 00:00:00 | J5: 00:00:00 | K5: 00:00:00 | L5: N | M5: ZNIC.011307 | N5: NZNIC015278K | P5: 15278 | Q5: 1,826,000 | R5: 0 | S5: 0 | T5: 0 | U5: 0 | V5: 117,000 | W5: 97,000 | X5: 1,826,000 | Y5: 1,612,000 | Z5: 0 | AA5: 1,826,000 | AB5: 1,612,000 | AC5: -11.72% | AD5: 0 | AE5: 0 | AF5: 0 | AG5: 1,612,000 | AJ5: 117,000 | AK5: 0.00% | AL5: 97,000 | AM5: 0.00% | AN5: 0 | AO5: 0
A6: CTE | B6: 15277 | C6: Add New Road Lamps at 5# Gate and ChengPin Road | D6: On Going | E6: CTE/A | F6: Bian Jiacai | G6: Sun Zhongpin | H6: 2015-12-22 | I6: 00:00:00 | J6: 00:00:00 | K6: 00:00:00 | L6: N | M6: ZNIF.623100.15.01 | N6: NZNIC015277K | P6: 15277 | Q6: 538,000 | R6: 0 | S6: 16,500 | T6: 14,300 | U6: 1,110,377 | V6: 0 | W6: 0 | X6: 538,000 | Y6: -586,677 | Z6: 0 | AA6: 538,000 | AB6: 538,000 | AC6: 0.00% | AD6: 14,300 | AE6: 1,110,377 | AF6: 0 | AG6: -586,677 | AJ6: 0 | AL6: 0 | AN6: 0 | AO6: 0
A7: CBP/U | B7: 15267 | C7: Add a Pressure Control valve on CR Line | D7: On Going | E7: CTE/P | F7: Yu Xiya | G7: Jiang Haijing | H7: 2015-12-18 | I7: 00:00:00 | J7: 00:00:00 | K7: 00:00:00 | L7: N | M7: ZNIF.623350.15.01 | N7: NZNIC015267K | P7: 15267 | Q7: 676,000 | R7: 0 | S7: 0 | T7: 0 | U7: 1,454,957 | V7: 90,000 | W7: 110,000 | X7: 676,000 | Y7: -978,957 | Z7: 0 | AA7: 676,000 | AB7: 476,000 | AC7: -29.59% | AD7: 0 | AE7: 1,454,957 | AF7: 0 | AG7: -978,957 | AJ7: 90,000 | AK7: 0.00% | AL7: 110,000 | AM7: 0.00% | AN7: 0 | AO7: 0
A8: CBP/U | B8: 15263 | C8: Adding Monitoring System for YBS Utility | D8: Completed | E8: CTE/A | F8: Hu Xiao | G8: Sun Zhongpin | H8: 2015-11-20 | I8: 2015-12-31 | J8: 00:00:00 | K8: 00:00:00 | L8: H | M8: ZNIF.620051.15.01 | N8: NZNIC015263K | P8: 15263 | Q8: 478,000 | R8: 0 | S8: 770,390 | T8: 0 | U8: 746,000 | V8: 0 | W8: 0 | X8: 478,000 | Y8: -479,937 | Z8: 81,647 | AA8: 478,000 | AB8: 396,353 | AC8: -17.08% | AD8: 0 | AE8: 746,000 | AF8: 130,290 | AG8: -479,937 | AH8: -40.94% | AJ8: 0 | AL8: 0 | AN8: 0 | AO8: 0
A9: COA/A | B9: 15256 | C9: Add One Common Spare Motor for GAA Molten Salt Pumps | D9: On Going | E9: CTA/L | F9: Zhu Qiang | G9: N/A | H9: 2015-10-20 | I9: 00:00:00 | J9: 00:00:00 | K9: 00:00:00 | L9: N | M9: ZNIC.010728 | N9: NZNIC015256K | P9: 15256 | Q9: 2,750,000 | R9: 0 | S9: 2,750,000 | T9: 0 | U9: 0 | V9: 6,000 | W9: 0 | X9: 2,750,000 | Y9: 2,744,000 | Z9: 0 | AA9: 2,750,000 | AB9: 2,744,000 | AC9: -0.22% | AD9: 0 | AE9: 0 | AF9: 0 | AG9: 2,744,000 | AJ9: 6,000 | AK9: 0.00% | AL9: 0 | AN9: 0 | AO9: 0
A10: COA/A | B10: 15247 | C10: B450/B550 MCC Modification | D10: On Going | E10: CTA/L | F10: Yi Yongjun | G10: Sun Zhongpin | H10: 2015-10-08 | I10: 00:00:00 | J10: 00:00:00 | K10: 00:00:00 | L10: H | M10: ZNIC.010582 | N10: NZNIC015247K | P10: 15247 | Q10: 3,500,000 | R10: 0 | S10: 4,610,377 | T10: 0 | U10: 120,980 | V10: 109,450 | W10: 177,250 | X10: 3,500,000 | Y10: 2,565,097 | Z10: 527,223 | AA10: 3,500,000 | AB10: 2,686,077 | AC10: -23.25% | AD10: 0 | AE10: 120,980 | AF10: 0 | AG10: 2,565,097 | AH10: -32.19% | AJ10: 109,450 | AK10: 17.08% | AL10: 177,250 | AM10: 1.53% | AN10: 0 | AO10: 0
A11: COA/E | B11: 15246 | C11: C7100,C77100,C77400 Raplace the Boken Trays | D11: On Going | E11: CTM/A | F11: Ling Wenqing | G11: Shi Jinsong | H11: 2015-09-17 | I11: 00:00:00 | J11: 00:00:00 | K11: 00:00:00 | L11: N | M11: ZNIC.010345 | N11: NZNIC015246K | P11: 15246 | Q11: 2,687,000 | R11: 0 | S11: 4,141,957 | T11: 4,675 | U11: 0 | V11: 0 | W11: 0 | X11: 2,687,000 | Y11: 2,384,625 | Z11: 297,700 | AA11: 2,687,000 | AB11: 2,389,300 | AC11: -11.08% | AD11: 4,675 | AE11: 0 | AF11: 0 | AG11: 2,384,625 | AH11: -14.88% | AJ11: 0 | AL11: 0 | AN11: 0 | AO11: 0
A12: COO/A | B12: 15245 | C12: Install Filters on the Bottom Discharge Lines of C2300 and C2500 | D12: On Going | E12: CTE/P | F12: Zhang Bianlin | G12: Jiang Haijin | H12: 2015-12-01 | I12: 00:00:00 | J12: 00:00:00 | K12: 00:00:00 | L12: N | M12: ZNIC.011107 | N12: NZNIC015245K | P12: 15245 | Q12: 1,252,000 | R12: 0 | S12: 1,998,000 | T12: 26,282 | U12: 15,812 | V12: 165,600 | W12: 130,000 | X12: 1,252,000 | Y12: 831,729 | Z12: 82,577 | AA12: 1,252,000 | AB12: 873,823 | AC12: -30.21% | AD12: 26,282 | AE12: 15,812 | AF12: 0 | AG12: 831,729 | AH12: -28.67% | AJ12: 165,600 | AK12: 2.59% | AL12: 130,000 | AM12: 0.00% | AN12: 0 | AO12: 0
A13: CEP/S | B13: 15242 | C13: Relocation the Cable of PS Plant | D13: On Going | E13: CTE/A | F13: Bian Jiacai | G13: Sun Zhongpin | H13: 2015-11-26 | I13: 00:00:00 | J13: 00:00:00 | K13: 00:00:00 | L13: N | M13: ZNIC.011082 | N13: NZNIC015242K | P13: 15242 | Q13: 3,196,000 | R13: 0 | S13: 3,196,000 | T13: 0 | U13: 1,560,000 | V13: 326,670 | W13: 198,000 | X13: 3,196,000 | Y13: 1,111,330 | Z13: 0 | AA13: 3,196,000 | AB13: 2,671,330 | AC13: -16.42% | AD13: 0 | AE13: 1,560,000 | AF13: 0 | AG13: 1,111,330 | AJ13: 326,670 | AK13: 2.78% | AL13: 198,000 | AM13: 0.00% | AN13: 0 | AO13: 0
A14: CBP/B | B14: 15198 | C14: Install two CCTVs in BD Plant | D14: On Going | E14: CTE/A | F14: Hu Xiao | G14: Chen Gang | H14: 2015-10-28 | I14: 00:00:00 | J14: 00:00:00 | K14: 00:00:00 | L14: N | M14: ZNIF.104500.15.03 | N14: NZNIC015198K | P14: 15198 | Q14: 217,000 | R14: 0 | S14: 337,980 | T14: 82,419 | U14: 0 | V14: 0 | W14: 0 | X14: 217,000 | Y14: 132,211 | Z14: 2,370 | AA14: 217,000 | AB14: 214,630 | AC14: -1.09% | AD14: 82,419 | AE14: 0 | AF14: 0 | AG14: 132,211 | AH14: -1.94% | AJ14: 0 | AL14: 0 | AN14: 0 | AO14: 0
A15: COO/C | B15: 15197 | C15: Revamping of C1 Flare KO Drums | D15: On Going | E15: CTE/P | F15: Li Shouqing | G15: Jiang Haijin | H15: 2015-12-29 | I15: 00:00:00 | J15: 00:00:00 | K15: 00:00:00 | L15: N | M15: ZNIC.011291 | N15: NZNIC015197K | P15: 15197 | Q15: 1,340,000 | R15: 0 | S15: 0 | T15: 0 | U15: 4,202 | V15: 231,550 | W15: 268,125 | X15: 1,340,000 | Y15: 836,123 | Z15: 0 | AA15: 1,340,000 | AB15: 840,325 | AC15: -37.29% | AD15: 0 | AE15: 4,202 | AF15: 0 | AG15: 836,123 | AJ15: 231,550 | AK15: 0.00% | AL15: 268,125 | AM15: 0.00% | AN15: 0 | AO15: 0
A16: CBL/P | B16: 15180 | C16: Air Conditioning Replacement for Jetty1/2/3 Operation Room | D16: Completed | E16: CTE/C | F16: Wang Wei | G16: Wang Wei | H16: 2015-09-24 | I16: 2015-11-26 | J16: 00:00:00 | K16: 00:00:00 | L16: N | M16: ZNIF.604220.15.01 | N16: NZNIC015180K | P16: 15180 | Q16: 94,000 | R16: 0 | S16: 94,000 | T16: 127,976 | U16: 55,138 | V16: (4,675) | W16: 0 | X16: 94,000 | Y16: -89,398 | Z16: 284 | AA16: 94,000 | AB16: 93,716 | AC16: -0.30% | AD16: 127,976 | AE16: 55,138 | AF16: 0 | AG16: -89,398 | AI16: -4.31% | AJ16: 0 | AL16: 0 | AN16: 0 | AO16: 0
A17: CTM | B17: 15176 | C17: Add Card Reader at D700 Central Workshop | D17: On Going | E17: CTE/A | F17: Xu Zheng | G17: 0 | H17: 2015-08-31 | I17: 00:00:00 | J17: 00:00:00 | K17: 00:00:00 | L17: N | M17: ZNIF.642320.15.03 | N17: NZNIC015176K | P17: 15176 | Q17: 0 | R17: 0 | S17: 42,094 | T17: 46,929 | U17: 0 | V17: 14,090 | W17: 39,000 | X17: 0 | Y17: -99,652 | Z17: -367 | AA17: 0 | AB17: -52,723 | AD17: 46,929 | AE17: 0 | AF17: 0 | AG17: -99,652 | AH17: 1.11% | AJ17: 14,090 | AK17: 49.68% | AL17: 39,000 | AM17: 0.00% | AN17: 0 | AO17: 0
A18: CEP/S | B18: 15168 | C18: PS Chilling Unit Replacement | D18: On Going | E18: CTE/P | F18: Gu Jingfeng | G18: Wu Zefei | H18: 2015-11-20 | I18: 00:00:00 | J18: 00:00:00 | K18: 00:00:00 | L18: N | M18: ZNIC.011038 | N18: NZNIC015168K | P18: 15168 | Q18: 2,910,000 | R18: 0 | S18: 4,470,000 | T18: 21,726 | U18: 11,219 | V18: 270,050 | W18: 245,575 | X18: 2,910,000 | Y18: 2,361,430 | Z18: 0 | AA18: 2,910,000 | AB18: 2,394,375 | AC18: -17.72% | AD18: 21,726 | AE18: 11,219 | AF18: 0 | AG18: 2,361,430 | AJ18: 270,050 | AK18: 6.30% | AL18: 245,575 | AM18: 0.00% | AN18: 0 | AO18: 0
A19: CBP/C | B19: 15167 | C19: Add Adjusters for One of the Furnaces Bottom Air Registers | D19: On Going | E19: CTE/P | F19: Zhou Yanduo | G19: Ling Taizhong | H19: 2015-12-30 | I19: 00:00:00 | J19: 00:00:00 | K19: 00:00:00 | L19: N | M19: ZNIC.011308 | N19: NZNIC015167K | P19: 15167 | Q19: 1,490,000 | R19: 0 | S19: 0 | T19: 58,782 | U19: 5,420 | V19: 162,525 | W19: 145,200 | X19: 1,490,000 | Y19: 1,118,073 | Z19: 0 | AA19: 1,490,000 | AB19: 1,182,275 | AC19: -20.65% | AD19: 58,782 | AE19: 5,420 | AF19: 0 | AG19: 1,118,073 | AJ19: 162,525 | AK19: 0.00% | AL19: 145,200 | AM19: 0.00% | AN19: 0 | AO19: 0
A20: CBP/M | B20: 15149 | C20: Steel Structure Extension of Gas Cylinder Room of CTS/L | D20: On Going | E20: CTE/C | F20: Wang Shicheng | G20: Zhang Zhihe | H20: 2015-09-30 | I20: 00:00:00 | J20: 00:00:00 | K20: 00:00:00 | L20: N | M20: ZNIF.660300.15.01 | N20: NZNIC015149K | P20: 15149 | Q20: 264,000 | R20: 0 | S20: 377,771 | T20: 11,000 | U20: 140,000 | V20: (69,360) | W20: -11,000 | X20: 264,000 | Y20: -6,933 | Z20: 1,105 | AA20: 264,000 | AB20: 262,895 | AC20: -0.42% | AD20: 11,000 | AE20: 140,000 | AF20: 118,828 | AG20: -6,933 | AH20: -4.97% | AI20: -29.59% | AJ20: 0 | AL20: 0 | AN20: 0 | AO20: 1
A21: CBP/C | B21: 15143 | C21: Add Combustible Gas Detector in BCC Cylinder Room | D21: On Going | E21: CTE/A | F21: Gong Feibao | G21: Li Hong | H21: 2015-10-30 | I21: 00:00:00 | J21: 00:00:00 | K21: 00:00:00 | L21: N | M21: ZNIF.104100.15.06 | N21: NZNIC015143K | P21: 15143 | Q21: 70,000 | R21: 0 | S21: 74,202 | T21: 186,316 | U21: 53,879 | V21: 7,400 | W21: 19,000 | X21: 70,000 | Y21: -197,179 | Z21: 584 | AA21: 70,000 | AB21: 43,016 | AC21: -38.55% | AD21: 186,316 | AE21: 53,879 | AF21: 0 | AG21: -197,179 | AH21: -10.62% | AJ21: 7,400 | AK21: 47.14% | AL21: 19,000 | AM21: 0.00% | AN21: 0 | AO21: 0
A22: CBP/B | B22: 15124 | C22: Add Pump and Flow Control Valve on the Line for Sending Dimer to C-250 | D22: On Going | E22: CTE/P | F22: Chen Chen | G22: Ling Taizhong | H22: 2015-07-27 | I22: 00:00:00 | J22: 00:00:00 | K22: 00:00:00 | L22: T | M22: ZNIF.104500.15.01 | N22: NZNIC015124K | P22: 15124 | Q22: 730,000 | R22: 0 | S22: 785,138 | T22: 36,705 | U22: 25,936 | V22: 96,600 | W22: 142,450 | X22: 730,000 | Y22: 385,729 | Z22: 42,580 | AA22: 730,000 | AB22: 448,370 | AC22: -38.58% | AD22: 36,705 | AE22: 25,936 | AF22: 0 | AG22: 385,729 | AH22: -24.21% | AJ22: 96,600 | AK22: 42.16% | AL22: 142,450 | AM22: 7.50% | AN22: 0 | AO22: 0
A23: CTM | B23: 15122 | C23: D700 Garbage Disposal Field Modification | D23: On Going | E23: CTE/C | F23: Xia Qun | G23: Xu Zhaofeng | H23: 2015-07-16 | I23: 00:00:00 | J23: 00:00:00 | K23: 00:00:00 | L23: N | M23: ZNIF.642320.15.02 | N23: NZNIC015122K | P23: 15122 | Q23: 369,430 | R23: 0 | S23: 607,585 | T23: 25,300 | U23: 277,847 | V23: 37,355 | W23: 42,100 | X23: 369,430 | Y23: -254,391 | Z23: 164 | AA23: 369,430 | AB23: 289,811 | AC23: -21.55% | AD23: 25,300 | AE23: 277,847 | AF23: 241,055 | AG23: -254,391 | AI23: -8.02% | AJ23: 37,355 | AK23: 52.11% | AL23: 42,100 | AM23: 19.04% | AN23: 0 | AO23: 1
A24: CBP/C | B24: 15117 | C24: Add the Differential Pressure Signal of the Instrument Air Filter in DCS System | D24: On Going | E24: CTE/P | F24: Zhang Fanwen | G24: Li Hong | H24: 2015-09-10 | I24: 00:00:00 | J24: 00:00:00 | K24: 00:00:00 | L24: N | M24: ZNIF.104100.15.04 | N24: NZNIC015117K | P24: 15117 | Q24: 98,000 | R24: 0 | S24: 109,219 | T24: 27,300 | U24: 269,231 | V24: (20,140) | W24: -1,100 | X24: 98,000 | Y24: -213,312 | Z24: 14,781 | AA24: 98,000 | AB24: 83,219 | AC24: -15.08% | AD24: 27,300 | AE24: 269,231 | AF24: 0 | AG24: -213,312 | AH24: -56.85% | AJ24: 0 | AL24: 0 | AN24: 0 | AO24: 0
A25: CEP/E | B25: 15116 | C25: Set a Waste Storage Area beside Tank Farm | D25: On Going | E25: CTE/C | F25: Yan Jun | G25: Xu Zhaofeng | H25: 2015-08-20 | I25: 00:00:00 | J25: 00:00:00 | K25: 00:00:00 | L25: H | M25: ZNIF.105600.15.01 | N25: NZNIC015116K | P25: 15116 | Q25: 382,000 | R25: 0 | S25: 475,340 | T25: 54,160 | U25: 2,751,751 | V25: 63,030 | W25: 98,900 | X25: 382,000 | Y25: -2,670,277 | Z25: -3,484 | AA25: 382,000 | AB25: 223,554 | AC25: -41.48% | AD25: 54,160 | AE25: 2,751,751 | AF25: 87,920 | AG25: -2,670,277 | AH25: 6.87% | AJ25: 63,030 | AK25: 30.74% | AL25: 98,900 | AM25: 1.10% | AN25: 0 | AO25: 0
A26: CBL/P | B26: 15112 | C26: Add Emergency Storage Area for Jettys in CLTF Reserved Land | D26: On Going | E26: CTE/P | F26: Yu Yi | G26: Guo Yibing | H26: 2015-10-28 | I26: 00:00:00 | J26: 00:00:00 | K26: 00:00:00 | L26: N | M26: ZNIF.604110.15.01 | N26: NZNIC015112K | P26: 15112 | Q26: 970,000 | R26: 0 | S26: 1,584,746 | T26: 239,018 | U26: 1,924,799 | V26: 10,805 | W26: 47,000 | X26: 970,000 | Y26: -1,735,496 | Z26: 9,128 | AA26: 970,000 | AB26: 903,067 | AC26: -6.90% | AD26: 239,018 | AE26: 1,924,799 | AF26: 474,746 | AG26: -1,735,496 | AH26: -6.52% | AJ26: 10,805 | AK26: 56.78% | AL26: 47,000 | AM26: 0.00% | AN26: 0 | AO26: 0
A27: CTM | B27: 15102 | C27: Cleaning Room Renovation Project of Central Workshop | D27: On Going | E27: CTM/W | F27: Zhai Chunrong | G27: Lei Fucun | H27: 2015-07-16 | I27: 00:00:00 | J27: 00:00:00 | K27: 00:00:00 | L27: N | M27: ZNIF.642320.15.01 | N27: NZNIC015102K | P27: 15102 | Q27: 958,000 | R27: 0 | S27: 1,566,340 | T27: 852,243 | U27: 41,000 | V27: (11,457) | W27: 44,000 | X27: 958,000 | Y27: -608,712 | Z27: 55,009 | AA27: 958,000 | AB27: 858,991 | AC27: -10.33% | AD27: 852,243 | AE27: 41,000 | AF27: 574,461 | AG27: -608,712 | AH27: -37.36% | AI27: -14.53% | AJ27: 0 | AK27: 106.70% | AL27: 44,000 | AM27: 0.00% | AN27: 0 | AO27: 1
A28: CBP/M | B28: 15097 | C28: Improve Operation Method for Compound TBC | D28: On Going | E28: CTE/P | F28: Wang Can | G28: Ling Taizhong | H28: 2015-12-23 | I28: 00:00:00 | J28: 00:00:00 | K28: 00:00:00 | L28: N | M28: ZNIF.104400.15.01 | N28: NZNIC015097K | P28: 15097 | Q28: 598,000 | R28: 0 | S28: 0 | T28: 30,380 | U28: 587,778 | V28: 183,000 | W28: 142,000 | X28: 598,000 | Y28: -345,158 | Z28: 0 | AA28: 598,000 | AB28: 273,000 | AC28: -54.35% | AD28: 30,380 | AE28: 587,778 | AF28: 0 | AG28: -345,158 | AJ28: 183,000 | AK28: 0.00% | AL28: 142,000 | AM28: 0.00% | AN28: 0 | AO28: 0
A29: CBP/C | B29: 15091 | C29: Add a New Solid Waste Storage Area | D29: Canceled | E29: CTE/C | F29: Wang Shicheng | G29: Zhang Zhihe | H29: 2015-12-07 | I29: 00:00:00 | J29: 00:00:00 | K29: 00:00:00 | L29: N | M29: ZNIF.104100.15.08 | N29: NZNIC015091K | P29: 15091 | Q29: 257,000 | R29: 0 | S29: 0 | T29: 183,454 | U29: 0 | V29: 47,000 | W29: 56,000 | X29: 257,000 | Y29: -29,454 | Z29: 0 | AA29: 257,000 | AB29: 154,000 | AC29: -40.08% | AD29: 183,454 | AE29: 0 | AF29: 0 | AG29: -29,454 | AJ29: 47,000 | AK29: 0.00% | AL29: 56,000 | AM29: 0.00% | AN29: 0 | AO29: 0
A30: CBP/C | B30: 15089 | C30: Modify Lubrication oil Room and Spare Parts Stroge Room at West of Control Building | D30: On Going | E30: CTE/C | F30: Wang Shicheng | G30: Zhang Zhihe | H30: 2015-12-07 | I30: 00:00:00 | J30: 00:00:00 | K30: 00:00:00 | L30: N | M30: ZNIF.104100.15.07 | N30: NZNIC015089K | P30: 15089 | Q30: 752,000 | R30: 0 | S30: 0 | T30: 5,306 | U30: 23,852 | V30: 122,000 | W30: 94,000 | X30: 752,000 | Y30: 506,841 | Z30: 0 | AA30: 752,000 | AB30: 536,000 | AC30: -28.72% | AD30: 5,306 | AE30: 23,852 | AF30: 0 | AG30: 506,841 | AJ30: 122,000 | AK30: 0.00% | AL30: 94,000 | AM30: 0.00% | AN30: 0 | AO30: 0
A31: CTM | B31: 15079 | C31: Fire Alarm System Modification for #5 Warehouse in East Laydown | D31: On Going | E31: CTE/A | F31: Bian Jiacai | G31: Sun Zhongpin | H31: 2015-07-24 | I31: 00:00:00 | J31: 00:00:00 | K31: 00:00:00 | L31: N | M31: ZNIF.641330.15.01 | N31: NZNIC015079K | P31: 15079 | Q31: 220,000 | R31: 0 | S31: 262,386 | T31: 14,640 | U31: 810,000 | V31: (37,045) | W31: -2,475 | X31: 220,000 | Y31: -682,345 | Z31: 8,655 | AA31: 220,000 | AB31: 211,345 | AC31: -3.93% | AD31: 14,640 | AE31: 810,000 | AF31: 69,050 | AG31: -682,345 | AH31: -22.19% | AJ31: 0 | AL31: 0 | AN31: 0 | AO31: 0
A32: CEP/P | B32: 15071 | C32: Build a Spare Part&Tool Warehouse | D32: On Going | E32: CTE/C | F32: Gao Feng | G32: Xia Weiguang | H32: 2015-10-21 | I32: 00:00:00 | J32: 00:00:00 | K32: 00:00:00 | L32: H | M32: ZNIC.010748 | N32: NZNIC015071K | P32: 15071 | Q32: 1,222,000 | R32: 0 | S32: 1,499,847 | T32: 102,163 | U32: 787,060 | V32: 119,350 | W32: 129,250 | X32: 1,222,000 | Y32: -479,486 | Z32: 200 | AA32: 1,222,000 | AB32: 973,200 | AC32: -20.36% | AD32: 102,163 | AE32: 787,060 | AF32: 563,463 | AG32: -479,486 | AH32: -20.00% | AJ32: 119,350 | AK32: 36.55% | AL32: 129,250 | AM32: 0.00% | AN32: 0 | AO32: 0
A33: CBL/P | B33: 15066 | C33: Add On-line Water Analyzer on the NAP Unloading Piping of Jetty 4# | D33: On Going | E33: CTE/A | F33: Xu Ge | G33: Wang Xinwu | H33: 2015-08-31 | I33: 00:00:00 | J33: 00:00:00 | K33: 00:00:00 | L33: N | M33: ZNIF.651130.15.01 | N33: NZNIC015066K | P33: 15066 | Q33: 547,000 | R33: 0 | S33: 816,231 | T33: 44,429 | U33: 140,598 | V33: 39,800 | W33: 34,500 | X33: 547,000 | Y33: 296,713 | Z33: -15,040 | AA33: 547,000 | AB33: 487,740 | AC33: -10.83% | AD33: 44,429 | AE33: 140,598 | AF33: 6,000 | AG33: 296,713 | AH33: 4.97% | AJ33: 39,800 | AK33: 32.54% | AL33: 34,500 | AM33: 32.35% | AN33: 0 | AO33: 0
A34: CTS | B34: 15061 | C34: BCC Lab Modification | D34: On Going | E34: CTE/C | F34: Yu Yi | G34: Jiang Yunning | H34: 2015-06-11 | I34: 00:00:00 | J34: 00:00:00 | K34: 00:00:00 | L34: N | M34: ZNIC.009551 | N34: NZNIC015061K | P34: 15061 | Q34: 3,490,000 | R34: 290,000 | S34: 6,411,751 | T34: 928,396 | U34: 11,111 | V34: 75,640 | W34: 69,300 | X34: 3,490,000 | Y34: 2,515,802 | Z34: -292,249 | AA34: 3,780,000 | AB34: 3,637,309 | AC34: -3.77% | AD34: 928,396 | AE34: 11,111 | AF34: 182,000 | AG34: 2,515,802 | AH34: 10.03% | AJ34: 75,640 | AK34: 32.25% | AL34: 69,300 | AM34: 26.74% | AN34: 0 | AO34: 1
A35: C | B35: 15051 | C35: Set Up Intranet Portal System | D35: On Going | E35: CGA/I | F35: Tao Yang | G35: Tao Yang | H35: 2015-03-18 | I35: 00:00:00 | J35: 00:00:00 | K35: 00:00:00 | L35: N | M35: ZNIT.001180 | N35: NZNIC015051K | P35: 15051 | Q35: 2,735,000 | R35: 0 | S35: 4,659,799 | T35: 0 | U35: 4,542,735 | V35: 0 | W35: 0 | X35: 2,735,000 | Y35: -1,807,735 | Z35: 0 | AA35: 2,735,000 | AB35: 2,735,000 | AC35: 0.00% | AD35: 0 | AE35: 4,542,735 | AF35: 0 | AG35: -1,807,735 | AH35: 0.00% | AJ35: 0 | AL35: 0 | AN35: 0 | AO35: 0
A36: CBP/P | B36: 15047 | C36: Change New CEMS | D36: On Going | E36: CTA/S | F36: Tang Yiqun | G36: Tang Yiqun | H36: 2015-03-10 | I36: 00:00:00 | J36: 00:00:00 | K36: 00:00:00 | L36: N | M36: ZNIC.008734 | N36: NZNIC015047K | P36: 15047 | Q36: 1,203,000 | R36: 0 | S36: 1,344,000 | T36: 464,825 | U36: 0 | V36: 5,500 | W36: 0 | X36: 1,203,000 | Y36: 426,443 | Z36: 206,232 | AA36: 1,203,000 | AB36: 991,268 | AC36: -17.60% | AD36: 464,825 | AE36: 0 | AF36: 100,000 | AG36: 426,443 | AH36: -16.65% | AI36: -32.17% | AJ36: 5,500 | AK36: 0.00% | AL36: 0 | AN36: 0 | AO36: 0
A37: CBP/C | B37: 15042 | C37: Add On-line Analyzer on the Outlet of the Z-908 | D37: On Going | E37: CTE/A | F37: Gong Feibao | G37: Li Hong | H37: 2015-10-21 | I37: 00:00:00 | J37: 00:00:00 | K37: 00:00:00 | L37: H | M37: ZNIC.010800 | N37: NZNIC015042K | P37: 15042 | Q37: 1,145,000 | R37: 0 | S37: 1,732,778 | T37: 6,520 | U37: 242,000 | V37: 148,435 | W37: 105,300 | X37: 1,145,000 | Y37: 522,104 | Z37: 120,641 | AA37: 1,145,000 | AB37: 770,624 | AC37: -32.70% | AD37: 6,520 | AE37: 242,000 | AF37: 0 | AG37: 522,104 | AH37: -19.92% | AJ37: 148,435 | AK37: 27.19% | AL37: 105,300 | AM37: 14.04% | AN37: 0 | AO37: 0
A38: CBP/C | B38: 15036 | C38: Expand the Capacity of the Suspect Condensate Vent Condenser 390-E-920 | D38: Completed | E38: CTE/P | F38: Ding Juntao | G38: Tong Shaojian | H38: 2015-05-11 | I38: 2015-10-16 | J38: 00:00:00 | K38: 00:00:00 | L38: H | M38: ZNIF.104100.15.02 | N38: NZNIC015036K | P38: 15036 | Q38: 398,000 | R38: 0 | S38: 398,000 | T38: 38,205 | U38: 227,707 | V38: 57,450 | W38: 28,000 | X38: 398,000 | Y38: 12,692 | Z38: 33,946 | AA38: 398,000 | AB38: 278,604 | AC38: -30.00% | AD38: 38,205 | AE38: 227,707 | AF38: 0 | AG38: 12,692 | AH38: -22.32% | AI38: -7.11% | AJ38: 57,450 | AK38: 57.76% | AL38: 28,000 | AM38: 0.00% | AN38: 0 | AO38: 0
A39: CBP/C | B39: 15034 | C39: Add Pressure&Temperature Signal DCS System for Three Drums at AEU Section | D39: On Going | E39: CTE/A | F39: Gong Feibao | G39: Li Hong | H39: 2015-09-18 | I39: 00:00:00 | J39: 00:00:00 | K39: 00:00:00 | L39: N | M39: ZNIF.104100.15.05 | N39: NZNIC015034K | P39: 15034 | Q39: 170,000 | R39: 0 | S39: 193,852 | T39: 161,613 | U39: 82,139 | V39: 0 | W39: -550 | X39: 170,000 | Y39: -80,263 | Z39: 6,511 | AA39: 170,000 | AB39: 163,489 | AC39: -3.83% | AD39: 161,613 | AE39: 82,139 | AF39: 0 | AG39: -80,263 | AH39: -21.45% | AJ39: 0 | AL39: 0 | AN39: 0 | AO39: 0
A40: CEP/P | B40: 15028 | C40: Upgrade 4 sets PO Cupboard Freezer | D40: On Going | E40: CTE/P | F40: Ding Juntao | G40: Wang Yuncai | H40: 2015-10-19 | I40: 00:00:00 | J40: 00:00:00 | K40: 00:00:00 | L40: T | M40: ZNIC.010799 | N40: NZNIC015028K | P40: 15028 | Q40: 1,319,000 | R40: 0 | S40: 2,129,000 | T40: 1,000,128 | U40: 5,128 | V40: 122,310 | W40: 50,050 | X40: 1,319,000 | Y40: 119,898 | Z40: 21,486 | AA40: 1,319,000 | AB40: 1,125,154 | AC40: -14.70% | AD40: 1,000,128 | AE40: 5,128 | AF40: 0 | AG40: 119,898 | AH40: -2.65% | AJ40: 122,310 | AK40: 14.47% | AL40: 50,050 | AM40: 8.08% | AN40: 0 | AO40: 0
A41: CEP/S | B41: 15026 | C41: PS Positive Draft of Control Building Modification | D41: On Going | E41: CTE/C | F41: Gao Feng | G41: Wang Wei | H41: 2015-07-09 | I41: 00:00:00 | J41: 00:00:00 | K41: 00:00:00 | L41: H | M41: ZNIC.009794 | N41: NZNIC015026K | P41: 15026 | Q41: 1,256,000 | R41: 0 | S41: 2,062,440 | T41: 53,990 | U41: 1,072,457 | V41: 73,911 | W41: 53,350 | X41: 1,256,000 | Y41: -65,630 | Z41: -12,217 | AA41: 1,256,000 | AB41: 1,140,956 | AC41: -9.16% | AD41: 53,990 | AE41: 1,072,457 | AF41: 80,139 | AG41: -65,630 | AH41: 1.33% | AI41: -5.66% | AJ41: 73,911 | AK41: 52.68% | AL41: 53,350 | AM41: 19.17% | AN41: 0 | AO41: 1
A42: COA/S | B42: 15024 | C42: SAP Steam System Energy Saving Modification | D42: On Going | E42: CTE/P | F42: Xu Jin | G42: Wang Yuncai | H42: 2015-09-18 | I42: 00:00:00 | J42: 00:00:00 | K42: 00:00:00 | L42: N | M42: ZNIC.010440 | N42: NZNIC015024K | P42: 15024 | Q42: 1,419,000 | R42: 0 | S42: 1,559,598 | T42: 1,716,239 | U42: 0 | V42: 132,100 | W42: 196,900 | X42: 1,419,000 | Y42: -656,256 | Z42: 27,517 | AA42: 1,419,000 | AB42: 1,062,483 | AC42: -25.12% | AD42: 1,716,239 | AE42: 0 | AF42: 2,500 | AG42: -656,256 | AH42: -15.46% | AJ42: 132,100 | AK42: 12.98% | AL42: 196,900 | AM42: 5.79% | AN42: 0 | AO42: 0
A43: CEP/E | B43: 15022 | C43: Revamp HVAC System in EOEG Control Building | D43: Completed | E43: CTE/C | F43: Gao Feng | G43: Wang Wei | H43: 2015-05-07 | I43: 2015-12-04 | J43: 00:00:00 | K43: 00:00:00 | L43: H | M43: ZNIC.009264 | N43: NZNIC015022K | P43: 15022 | Q43: 1,391,000 | R43: 0 | S43: 1,473,957 | T43: 2,061,290 | U43: 0 | V43: 56,687 | W43: 4,950 | X43: 1,391,000 | Y43: -577,421 | Z43: -164,662 | AA43: 1,391,000 | AB43: 1,494,025 | AC43: 7.41% | AD43: 2,061,290 | AE43: 0 | AF43: 10,156 | AG43: -577,421 | AH43: 19.39% | AI43: 10.52% | AJ43: 56,687 | AK43: 60.96% | AL43: 4,950 | AM43: 91.96% | AN43: 0 | AO43: 4
A44: CTS | B44: 15016 | C44: Environmental Monitoring Car | D44: On Going | E44: CTS/E | F44: Fan Chenxi | G44: Fan Chenxi | H44: 2015-01-13 | I44: 00:00:00 | J44: 00:00:00 | K44: 00:00:00 | L44: N | M44: ZNIC.008204 | N44: NZNIC015016K | P44: 15016 | Q44: 4,000,000 | R44: 0 | S44: 4,542,735 | T44: 3,215,626 | U44: 22,568,214 | V44: 0 | W44: 0 | X44: 4,000,000 | Y44: -20,968,839 | Z44: -815,000 | AA44: 4,000,000 | AB44: 4,815,000 | AC44: 20.38% | AD44: 3,215,626 | AE44: 22,568,214 | AF44: 0 | AG44: -20,968,839 | AH44: 18.11% | AJ44: 0 | AL44: 0 | AN44: 0 | AO44: 0
A45: CEP/L | B45: 15014 | C45: PS A915 Emergency Lighting and Fire Alarm System Modification | D45: Completed | E45: CTE/A | F45: Xu Zheng | G45: Zhang Pu | H45: 2015-03-04 | I45: 2015-09-22 | J45: 00:00:00 | K45: 00:00:00 | L45: N | M45: ZNIF.175410.15.01 | N45: NZNIC015014K | P45: 15014 | Q45: 434,000 | R45: 0 | S45: 474,825 | T45: 738,776 | U45: 178,940 | V45: 12,220 | W45: 30,050 | X45: 434,000 | Y45: 0 | Z45: -31,729 | AA45: 434,000 | AB45: 927,716 | AC45: 113.76% | AD45: 738,776 | AE45: 178,940 | AF45: 10,000 | AG45: 0 | AH45: 28.52% | AI45: -2.23% | AJ45: 12,220 | AK45: 84.33% | AL45: 30,050 | AM45: 61.96% | AN45: 0 | AO45: 0
A46: CTM | B46: 15011 | C46: Modification for Main Door of Spare Parts Warehouse | D46: On Going | E46: CTE/C | F46: Yu Yi | G46: Xu Zhaofeng | H46: 2015-07-31 | I46: 00:00:00 | J46: 00:00:00 | K46: 00:00:00 | L46: N | M46: ZNIF.641330.15.02 | N46: NZNIC015011K | P46: 15011 | Q46: 384,000 | R46: 0 | S46: 626,000 | T46: 0 | U46: 0 | V46: 46,480 | W46: 43,000 | X46: 384,000 | Y46: 306,520 | Z46: -12,000 | AA46: 384,000 | AB46: 306,520 | AC46: -20.18% | AD46: 0 | AE46: 0 | AF46: 0 | AG46: 306,520 | AH46: 5.22% | AJ46: 46,480 | AK46: 12.30% | AL46: 43,000 | AM46: 0.00% | AN46: 0 | AO46: 0
A47: COA/E | B47: 15010 | C47: Replace the Material of P7120A/B by PFA | D47: On Going | E47: CTE/P | F47: Xu Jin | G47: Wu Zefei | H47: 2015-08-10 | I47: 00:00:00 | J47: 00:00:00 | K47: 00:00:00 | L47: T | M47: ZNIF.106200.15.01 | N47: NZNIC015010K | P47: 15010 | Q47: 495,000 | R47: 0 | S47: 722,707 | T47: 0 | U47: 0 | V47: 51,995 | W47: 54,450 | X47: 495,000 | Y47: 374,972 | Z47: 13,583 | AA47: 495,000 | AB47: 374,972 | AC47: -24.25% | AD47: 0 | AE47: 0 | AF47: 0 | AG47: 374,972 | AH47: -4.85% | AJ47: 51,995 | AK47: 47.48% | AL47: 54,450 | AM47: 1.00% | AN47: 0 | AO47: 0
A48: CEP/E | B48: 15009 | C48: Modify Suction Side of P4330 | D48: On Going | E48: CTE/P | F48: Gu Jingfeng | G48: Wu Zefei | H48: 2015-05-15 | I48: 00:00:00 | J48: 00:00:00 | K48: 00:00:00 | L48: T | M48: ZNIF.105700.15.01 | N48: NZNIC015009K | P48: 15009 | Q48: 590,000 | R48: 0 | S48: 672,139 | T48: 0 | U48: 0 | V48: 47,245 | W48: 75,600 | X48: 590,000 | Y48: 410,022 | Z48: 57,133 | AA48: 590,000 | AB48: 410,022 | AC48: -30.50% | AD48: 0 | AE48: 0 | AF48: 0 | AG48: 410,022 | AH48: -27.90% | AJ48: 47,245 | AK48: 70.47% | AL48: 75,600 | AM48: 5.50% | AN48: 0 | AO48: 0
A49: COA/A | B49: 15004 | C49: Revamp HVAC System in B550 Control Building | D49: Completed | E49: CTE/C | F49: Gao Feng | G49: Wang Wei | H49: 2015-05-07 | I49: 2015-09-06 | J49: 00:00:00 | K49: 00:00:00 | L49: H | M49: ZNIC.009265 | N49: NZNIC015004K | P49: 15004 | Q49: 1,564,000 | R49: 0 | S49: 1,577,128 | T49: 437,641 | U49: 0 | V49: 70,660 | W49: 33,550 | X49: 1,564,000 | Y49: 0 | Z49: 223,669 | AA49: 1,564,000 | AB49: 445,641 | AC49: -71.51% | AD49: 437,641 | AE49: 0 | AF49: 8,000 | AG49: 0 | AH49: -21.91% | AI49: -4.83% | AJ49: 70,660 | AK49: 56.60% | AL49: 33,550 | AM49: 52.34% | AN49: 0 | AO49: 1
A50: CBP/C | B50: 14313 | C50: Replace Existing Electrical Heater H-520 | D50: On Going | E50: CTE/A | F50: Hu Xiao | G50: Chen Gang | H50: 2015-05-15 | I50: 00:00:00 | J50: 00:00:00 | K50: 00:00:00 | L50: N | M50: ZNIC.009347 | N50: NZNIC014313K | P50: 14313 | Q50: 1,885,000 | R50: 0 | S50: 2,957,457 | T50: 2,330,342 | U50: 0 | V50: 59,860 | W50: 63,800 | X50: 1,885,000 | Y50: -620,049 | Z50: 51,047 | AA50: 1,885,000 | AB50: 1,710,293 | AC50: -9.27% | AD50: 2,330,342 | AE50: 0 | AF50: 0 | AG50: -620,049 | AH50: -4.77% | AJ50: 59,860 | AK50: 49.38% | AL50: 63,800 | AM50: 0.00% | AN50: 0 | AO50: 0
A51: CBP/M | B51: 14312 | C51: Replace Exchanger E2320 of EB/SM | D51: Completed | E51: CTM/M | F51: Chu Chao | G51: Chu Chao | H51: 2014-12-24 | I51: 2015-05-30 | J51: 00:00:00 | K51: 00:00:00 | L51: T_2015 | M51: ZNIC.008125 | N51: NZNIC014312K | P51: 14312 | Q51: 2,160,000 | R51: 0 | S51: 2,160,000 | T51: 50,805 | U51: 0 | V51: 13,750 | W51: 0 | X51: 2,160,000 | Y51: 0 | Z51: 0 | AA51: 2,160,000 | AB51: 50,805 | AC51: -97.65% | AD51: 50,805 | AE51: 0 | AF51: 0 | AG51: 0 | AJ51: 13,750 | AK51: 0.00% | AL51: 0 | AN51: 0 | AO51: 0
A52: CEP/E | B52: 14311 | C52: Change New C2450/CX2450/E1250A/E1250B/E1252 | D52: Completed | E52: CTM/E | F52: Wang Zhigao | G52: Wang Zhigao | H52: 2014-12-24 | I52: 2015-05-04 | J52: 00:00:00 | K52: 00:00:00 | L52: T_2015 | M52: ZNIC.008124 | N52: NZNIC014311K | P52: 14311 | Q52: 1,675,000 | R52: 487,000 | S52: 2,061,290 | T52: 316,000 | U52: 0 | V52: 8,000 | W52: 8,000 | X52: 1,675,000 | Y52: 0 | Z52: 0 | AA52: 2,162,000 | AB52: 316,000 | AC52: -85.38% | AD52: 316,000 | AE52: 0 | AF52: 0 | AG52: 0 | AJ52: 8,000 | AK52: 0.00% | AL52: 8,000 | AM52: 0.00% | AN52: 0 | AO52: 0
A53: COA/S | B53: 14309 | C53: Add Extrusion Step for New Product AGM7 | D53: On Going | E53: CTE/P | F53: Zhu Jianxin | G53: Cao Yongbin | H53: 2015-04-02 | I53: 00:00:00 | J53: 00:00:00 | K53: 00:00:00 | L53: H | M53: ZNIC.008120 | N53: NZNIC014309K | P53: 14309 | Q53: 27,782,000 | R53: 0 | S53: 51,729,014 | T53: 1,034,115 | U53: 9,200 | V53: 144,198 | W53: 1,280,575 | X53: 27,782,000 | Y53: 21,740,301 | Z53: 1,880,611 | AA53: 27,782,000 | AB53: 24,476,616 | AC53: -11.90% | AD53: 1,034,115 | AE53: 9,200 | AF53: 1,693,000 | AG53: 21,740,301 | AH53: -7.53% | AI53: -17.61% | AJ53: 144,198 | AK53: 86.90% | AL53: 1,280,575 | AM53: 8.94% | AN53: 0 | AO53: 3
A54: CBP/M | B54: 14308 | C54: Modification of EB/SM Cooling Water Pumps | D54: On Going | E54: CTE/P | F54: Wang Lifen | G54: Ling Taizhong | H54: 2015-04-13 | I54: 00:00:00 | J54: 00:00:00 | K54: 00:00:00 | L54: N | M54: ZNIC.009023 | N54: NZNIC014308K | P54: 14308 | Q54: 1,357,000 | R54: 0 | S54: 1,673,033 | T54: 264,528 | U54: 835,675 | V54: (1,025) | W54: 57,725 | X54: 1,357,000 | Y54: -118,350 | Z54: 79,389 | AA54: 1,357,000 | AB54: 1,219,886 | AC54: -10.10% | AD54: 264,528 | AE54: 835,675 | AF54: 238,033 | AG54: -118,350 | AH54: -7.54% | AJ54: 0 | AK54: 100.76% | AL54: 57,725 | AM54: 57.24% | AN54: 0 | AO54: 2
A55: CBP/M | B55: 14307 | C55: Replacement of F2404 | D55: Completed | E55: CTM/M | F55: Chu Chao | G55: Chu Chao | H55: 2014-12-19 | I55: 2015-05-30 | J55: 00:00:00 | K55: 00:00:00 | L55: T_2015 | M55: ZNIF.104400.14.04 | N55: NZNIC014307K | P55: 14307 | Q55: 192,000 | R55: 0 | S55: 192,000 | T55: 23,851 | U55: 0 | V55: 8,000 | W55: 0 | X55: 192,000 | Y55: 0 | Z55: 0 | AA55: 192,000 | AB55: 23,851 | AC55: -87.58% | AD55: 23,851 | AE55: 0 | AF55: 0 | AG55: 0 | AJ55: 8,000 | AK55: 0.00% | AL55: 0 | AN55: 0 | AO55: 0
A56: CBP/M | B56: 14306 | C56: Replacement of F2406 | D56: Completed | E56: CTM/M | F56: Chu Chao | G56: Chu Chao | H56: 2014-12-19 | I56: 2015-05-01 | J56: 00:00:00 | K56: 00:00:00 | L56: T_2015 | M56: ZNIF.104400.14.03 | N56: NZNIC014306K | P56: 14306 | Q56: 210,000 | R56: 0 | S56: 210,000 | T56: 1,400,892 | U56: 215,774 | V56: 8,000 | W56: 0 | X56: 210,000 | Y56: 0 | Z56: 0 | AA56: 210,000 | AB56: 1,616,666 | AC56: 669.84% | AD56: 1,400,892 | AE56: 215,774 | AF56: 0 | AG56: 0 | AJ56: 8,000 | AK56: 0.00% | AL56: 0 | AN56: 0 | AO56: 0
A57: CBP/M | B57: 14305 | C57: Replacement of E1203 | D57: Completed | E57: CTM/M | F57: Chu Chao | G57: Chu Chao | H57: 2014-12-18 | I57: 2015-05-31 | J57: 00:00:00 | K57: 00:00:00 | L57: T_2015 | M57: ZNIF.104400.14.02 | N57: NZNIC014305K | P57: 14305 | Q57: 224,000 | R57: 0 | S57: 224,000 | T57: 13,055 | U57: 31,204 | V57: 8,000 | W57: 0 | X57: 224,000 | Y57: 0 | Z57: 0 | AA57: 224,000 | AB57: 44,259 | AC57: -80.24% | AD57: 13,055 | AE57: 31,204 | AF57: 0 | AG57: 0 | AJ57: 8,000 | AK57: 0.00% | AL57: 0 | AN57: 0 | AO57: 0
A58: COA/A | B58: 14296 | C58: Install Filters at Outlet of P9326/P9526 | D58: Completed | E58: CTE/P | F58: Xu Jin | G58: Wu Zefei | H58: 2015-04-02 | I58: 2015-12-04 | J58: 00:00:00 | K58: 00:00:00 | L58: N | M58: ZNIF.106600.15.01 | N58: NZNIC014296K | P58: 14296 | Q58: 830,000 | R58: 0 | S58: 955,432 | T58: 2,906,232 | U58: 0 | V58: 25,465 | W58: -20,175 | X58: 830,000 | Y58: -2,454,155 | Z58: 255,349 | AA58: 830,000 | AB58: 549,186 | AC58: -33.83% | AD58: 2,906,232 | AE58: 0 | AF58: 97,110 | AG58: -2,454,155 | AH58: -45.68% | AI58: -15.60% | AJ58: 25,465 | AK58: 83.25% | AL58: 0 | AM58: 130.11% | AN58: 0 | AO58: 0
A59: CBP/M | B59: 14288 | C59: T2401 Replace Structure Packing of EB/SM | D59: Completed | E59: CTM/M | F59: Chu Chao | G59: Chu Chao | H59: 2014-12-01 | I59: 2015-05-31 | J59: 00:00:00 | K59: 00:00:00 | L59: T_2015 | M59: ZNIC.007947 | N59: NZNIC014288K | P59: 14288 | Q59: 2,645,000 | R59: 0 | S59: 2,645,000 | T59: 839,246 | U59: 650 | V59: 13,750 | W59: 27,500 | X59: 2,645,000 | Y59: 0 | Z59: 177,496 | AA59: 2,645,000 | AB59: 839,895 | AC59: -68.25% | AD59: 839,246 | AE59: 650 | AF59: 0 | AG59: 0 | AH59: -6.11% | AJ59: 13,750 | AK59: 0.00% | AL59: 27,500 | AM59: 0.00% | AN59: 0 | AO59: 0
A60: CEP/P | B60: 14287 | C60: Add a Differential Pressure Transmitter in Control Room | D60: Completed | E60: CTE/A | F60: Xu Ge | G60: Li Xueyong | H60: 2015-01-07 | I60: 2015-06-19 | J60: 00:00:00 | K60: 00:00:00 | L60: N | M60: ZNIF.678152.15.01 | N60: NZNIC014287K | P60: 14287 | Q60: 104,000 | R60: 0 | S60: 105,300 | T60: 0 | U60: 80,000 | V60: 2,472 | W60: 4,300 | X60: 104,000 | Y60: 0 | Z60: 2,328 | AA60: 104,000 | AB60: 80,000 | AC60: -23.08% | AD60: 0 | AE60: 80,000 | AF60: 0 | AG60: 0 | AH60: -14.29% | AI60: -24.26% | AJ60: 2,472 | AK60: 92.28% | AL60: 4,300 | AM60: 81.30% | AN60: 0 | AO60: 1
A61: CBP/M | B61: 14286 | C61: Change Gas Chromatograph A24201 to New Type | D61: On Going | E61: CTA/S | F61: Li Huaxin | G61: Li Huaxin | H61: 2014-11-27 | I61: 00:00:00 | J61: 00:00:00 | K61: 00:00:00 | L61: N | M61: ZNIF.104400.14.01 | N61: NZNIC014286K | P61: 14286 | Q61: 480,000 | R61: 0 | S61: 480,000 | T61: 0 | U61: 0 | V61: 2,000 | W61: 4,000 | X61: 480,000 | Y61: 373,720 | Z61: 100,280 | AA61: 480,000 | AB61: 373,720 | AC61: -22.14% | AD61: 0 | AE61: 0 | AF61: 0 | AG61: 373,720 | AH61: -21.34% | AJ61: 2,000 | AK61: 0.00% | AL61: 4,000 | AM61: 0.00% | AN61: 0 | AO61: 0
A62: CTS/U | B62: 14275 | C62: Add Flowmeter on Main Pipeline for HPNG | D62: Completed | E62: CTE/A | F62: Wang Zhen | G62: Wang Xinwu | H62: 2014-12-24 | I62: 2015-12-14 | J62: 00:00:00 | K62: 00:00:00 | L62: T_2015 | M62: ZNIC.008123 | N62: NZNIC014275K | P62: 14275 | Q62: 1,151,000 | R62: 0 | S62: 1,141,315 | T62: 835,842 | U62: 23,516 | V62: (41,380) | W62: -137,100 | X62: 1,151,000 | Y62: 178,984 | Z62: 32,659 | AA62: 1,151,000 | AB62: 1,118,341 | AC62: -2.84% | AD62: 835,842 | AE62: 23,516 | AF62: 80,000 | AG62: 178,984 | AH62: -4.34% | AI62: -0.60% | AJ62: 0 | AK62: 146.49% | AL62: 0 | AM62: 247.42% | AN62: 0 | AO62: 3
A63: CBP/C | B63: 14262 | C63: Revamp HVAC System in BCC Control Building | D63: Completed | E63: CTE/C | F63: Gao Feng | G63: Wang Wei | H63: 2015-05-07 | I63: 2015-09-29 | J63: 00:00:00 | K63: 00:00:00 | L63: H | M63: ZNIC.009263 | N63: NZNIC014262K | P63: 14262 | Q63: 1,216,000 | R63: 0 | S63: 2,093,170 | T63: 349,453 | U63: 0 | V63: (91,445) | W63: 35,750 | X63: 1,216,000 | Y63: 0 | Z63: -39,482 | AA63: 1,216,000 | AB63: 388,648 | AC63: -68.04% | AD63: 349,453 | AE63: 0 | AF63: 39,195 | AG63: 0 | AH63: 3.65% | AI63: -6.24% | AJ63: 0 | AK63: 413.70% | AL63: 35,750 | AM63: 29.35% | AN63: 0 | AO63: 0
A64: CGA | B64: 14255 | C64: Add a Pair of Card Reader on the West Side Door of Visitor Center for Personnel Access Control | D64: Completed | E64: CTA/S | F64: Dai Xiaolong | G64: Qiu Wei | H64: 2014-10-29 | I64: 2015-04-30 | J64: 00:00:00 | K64: 00:00:00 | L64: N | M64: ZNIF.632000.14.01 | N64: NZNIC014255K | P64: 14255 | Q64: 35,000 | R64: 0 | S64: 35,000 | T64: 16,500 | U64: 0 | V64: (7,900) | W64: 4,899 | X64: 35,000 | Y64: 0 | Z64: 4,791 | AA64: 35,000 | AB64: 16,500 | AC64: -52.86% | AD64: 16,500 | AE64: 0 | AF64: 0 | AG64: 0 | AH64: 0.50% | AI64: -40.56% | AJ64: 0 | AK64: 495.00% | AL64: 4,899 | AM64: 18.35% | AN64: 0 | AO64: 1
A65: COO/C | B65: 14252 | C65: Supply DMA from C1 Plant to BSNJ | D65: Completed | E65: CTE/P | F65: Sun Duoxun/Liu Xiaoli | G65: Xu Yefeng | H65: 2014-12-22 | I65: 2015-08-30 | J65: 00:00:00 | K65: 00:00:00 | L65: T_2015 | M65: ZNIC.008115 | N65: NZNIC014252K | P65: 14252 | Q65: 1,767,000 | R65: 0 | S65: 2,019,104 | T65: 309,795 | U65: 1,500 | V65: (16,820) | W65: -174,932 | X65: 1,767,000 | Y65: 0 | Z65: 328,005 | AA65: 1,767,000 | AB65: 321,295 | AC65: -81.82% | AD65: 309,795 | AE65: 1,500 | AF65: 10,000 | AG65: 0 | AH65: -23.62% | AI65: -22.42% | AJ65: 0 | AK65: 108.33% | AL65: 0 | AM65: 186.60% | AN65: 0 | AO65: 1
A66: CBL/O | B66: 14251 | C66: Build a Operation Rest Room for ACN Loading Station | D66: On Going | E66: CTE/C | F66: Yu Yi | G66: Xu Zhaofeng | H66: 2015-08-06 | I66: 00:00:00 | J66: 00:00:00 | K66: 00:00:00 | L66: N | M66: ZNIF.412790.15.01 | N66: NZNIC014251K | P66: 14251 | Q66: 338,000 | R66: 0 | S66: 395,234 | T66: 865,494 | U66: 0 | V66: 47,195 | W66: 44,000 | X66: 338,000 | Y66: -639,874 | Z66: -4,845 | AA66: 338,000 | AB66: 251,650 | AC66: -25.55% | AD66: 865,494 | AE66: 0 | AF66: 26,030 | AG66: -639,874 | AH66: 18.25% | AJ66: 47,195 | AK66: 25.09% | AL66: 44,000 | AM66: 0.00% | AN66: 0 | AO66: 0
A67: CBP/C | B67: 14243 | C67: Add a C5 Raffinate Pipe from YUANGANG Company to C5 Hydrogenation Reactor | D67: Completed | E67: CTE/P | F67: Cao Lin | G67: Ling Taizhong | H67: 2015-03-26 | I67: 2015-09-06 | J67: 00:00:00 | K67: 00:00:00 | L67: N | M67: ZNIC.008902 | N67: NZNIC014243K | P67: 14243 | Q67: 3,720,000 | R67: 0 | S67: 3,777,568 | T67: 1,065,642 | U67: 17 | V67: 7,345 | W67: -56,536 | X67: 3,720,000 | Y67: 0 | Z67: 1,989 | AA67: 3,720,000 | AB67: 1,123,227 | AC67: -69.81% | AD67: 1,065,642 | AE67: 17 | AF67: 57,568 | AG67: 0 | AH67: 1.56% | AI67: -14.35% | AJ67: 7,345 | AK67: 97.44% | AL67: 0 | AM67: 116.68% | AN67: 0 | AO67: 0
A68: COA/L | B68: 14240 | C68: Recover the BA Railway Loading Station | D68: Completed | E68: CTE/P | F68: Zhu Jianxin | G68: Wu Zefei | H68: 2014-12-22 | I68: 2015-11-06 | J68: 00:00:00 | K68: 00:00:00 | L68: H | M68: ZNIC.008121 | N68: NZNIC014240K | P68: 14240 | Q68: 1,907,000 | R68: 0 | S68: 2,176,992 | T68: 782,230 | U68: 8,800 | V68: 50,540 | W68: 45,656 | X68: 1,907,000 | Y68: 822,861 | Z68: -8,428 | AA68: 1,907,000 | AB68: 1,819,233 | AC68: -4.60% | AD68: 782,230 | AE68: 8,800 | AF68: 205,342 | AG68: 822,861 | AH68: 5.38% | AI68: -25.58% | AJ68: 50,540 | AK68: 84.11% | AL68: 45,656 | AM68: 77.17% | AN68: 0 | AO68: 0
A69: CEP/E | B69: 14237 | C69: LP Steam Rational Distribution and Utilization | D69: On Going | E69: CTE/P | F69: Gu Jingfeng | G69: Wu Zefei | H69: 2015-11-20 | I69: 00:00:00 | J69: 00:00:00 | K69: 00:00:00 | L69: N | M69: ZNIC.011039 | N69: NZNIC014237K | P69: 14237 | Q69: 1,763,000 | R69: 0 | S69: 1,843,000 | T69: 157,997 | U69: 794,908 | V69: 258,200 | W69: 303,050 | X69: 1,763,000 | Y69: 248,845 | Z69: 0 | AA69: 1,763,000 | AB69: 1,201,750 | AC69: -31.83% | AD69: 157,997 | AE69: 794,908 | AF69: 0 | AG69: 248,845 | AJ69: 258,200 | AK69: 0.84% | AL69: 303,050 | AM69: 2.13% | AN69: 0 | AO69: 0
A70: CEP/S | B70: 14235 | C70: Add Safety Facilities for PS Burner Unit | D70: On Going | E70: CTE/A | F70: Xiao Lixuan | G70: Li Xueyong | H70: 2015-11-18 | I70: 00:00:00 | J70: 00:00:00 | K70: 00:00:00 | L70: N | M70: ZNIF.105400.15.02 | N70: NZNIC014235K | P70: 14235 | Q70: 439,000 | R70: 0 | S70: 439,000 | T70: 102,570 | U70: 301 | V70: 87,000 | W70: 49,100 | X70: 439,000 | Y70: 200,029 | Z70: 0 | AA70: 439,000 | AB70: 302,900 | AC70: -31.00% | AD70: 102,570 | AE70: 301 | AF70: 0 | AG70: 200,029 | AJ70: 87,000 | AK70: 0.00% | AL70: 49,100 | AM70: 16.78% | AN70: 0 | AO70: 0
A71: CAP/E | B71: 14234 | C71: Add Anti-backflow facilities at LP Steam Header of MA/BA Plant | D71: Completed | E71: CTE/P | F71: Zhu Jianxin | G71: Wu Zefei | H71: 2014-12-10 | I71: 2015-04-30 | J71: 00:00:00 | K71: 00:00:00 | L71: T_2015 | M71: ZNIF.106300.14.01 | N71: NZNIC014234K | P71: 14234 | Q71: 893,000 | R71: 0 | S71: 918,516 | T71: 253,601 | U71: 24,000 | V71: (31,445) | W71: -12,263 | X71: 893,000 | Y71: 0 | Z71: 298,341 | AA71: 893,000 | AB71: 277,601 | AC71: -68.91% | AD71: 253,601 | AE71: 24,000 | AF71: 0 | AG71: 0 | AH71: -36.64% | AI71: -18.89% | AJ71: 0 | AK71: 120.03% | AL71: 0 | AM71: 110.85% | AN71: 0 | AO71: 0
A72: COA/E | B72: 14232 | C72: Change the Breath Valve and Add a PSV for T9668 | D72: Completed | E72: CTE/P | F72: Xu Jin | G72: Wang Yuncai | H72: 2014-11-20 | I72: 2015-08-19 | J72: 00:00:00 | K72: 00:00:00 | L72: N | M72: ZNIF.106700.14.01 | N72: NZNIC014232K | P72: 14232 | Q72: 320,000 | R72: 0 | S72: 349,453 | T72: 153,369 | U72: 0 | V72: (63,340) | W72: -38,225 | X72: 320,000 | Y72: 0 | Z72: -16,308 | AA72: 320,000 | AB72: 153,369 | AC72: -52.07% | AD72: 153,369 | AE72: 0 | AF72: 0 | AG72: 0 | AH72: 10.93% | AI72: -10.80% | AJ72: 0 | AL72: 0 | AN72: 0 | AO72: 0
A73: CAP/L | B73: 14230 | C73: Add a Shed for A455 Truck Parking Lot | D73: On Going | E73: CTE/C | F73: Yu Yi | G73: Lu Jie | H73: 2015-09-09 | I73: 00:00:00 | J73: 00:00:00 | K73: 00:00:00 | L73: N | M73: ZNIC.010285 | N73: NZNIC014230K | P73: 14230 | Q73: 1,410,000 | R73: 0 | S73: 1,524,250 | T73: 0 | U73: 152,808 | V73: 64,900 | W73: 71,500 | X73: 1,410,000 | Y73: 776,006 | Z73: 226,440 | AA73: 1,410,000 | AB73: 1,047,160 | AC73: -25.73% | AD73: 0 | AE73: 152,808 | AF73: 118,346 | AG73: 776,006 | AH73: -47.18% | AJ73: 64,900 | AK73: 24.12% | AL73: 71,500 | AM73: 27.78% | AN73: 0 | AO73: 2
A74: CEP/L | B74: 14227 | C74: Rebuild the Existing Holding Device in PS Packing | D74: Completed | E74: CTE/P | F74: Ding Juntao | G74: Wang Yuncai | H74: 2014-12-04 | I74: 2015-06-29 | J74: 00:00:00 | K74: 00:00:00 | L74: N | M74: ZNIF.175410.14.01 | N74: NZNIC014227K | P74: 14227 | Q74: 350,000 | R74: 0 | S74: 354,290 | T74: 4,854,303 | U74: 699,146 | V74: (4,603) | W74: 8,150 | X74: 350,000 | Y74: 0 | Z74: -20,167 | AA74: 350,000 | AB74: 5,555,048 | AC74: 1487.16% | AD74: 4,854,303 | AE74: 699,146 | AF74: 1,600 | AG74: 0 | AH74: 11.96% | AI74: -23.55% | AJ74: 0 | AK74: 106.06% | AL74: 8,150 | AM74: 81.89% | AN74: 0 | AO74: 2
A75: CBL/O | B75: 14226 | C75: Add a Unloading System for PALD in B305 Loading Station | D75: Completed | E75: CTE/P | F75: Yu Xiya | G75: Jiang Haijin | H75: 2014-12-03 | I75: 2015-07-22 | J75: 00:00:00 | K75: 00:00:00 | L75: T_2015 | M75: ZNIC.007948 | N75: NZNIC014226K | P75: 14226 | Q75: 1,270,000 | R75: 0 | S75: 1,280,313 | T75: 159,713 | U75: 0 | V75: 52,634 | W75: -36,350 | X75: 1,270,000 | Y75: 0 | Z75: 135,139 | AA75: 1,270,000 | AB75: 167,626 | AC75: -86.80% | AD75: 159,713 | AE75: 0 | AF75: 7,913 | AG75: 0 | AH75: -17.70% | AI75: -25.23% | AJ75: 52,634 | AK75: 76.80% | AL75: 0 | AM75: 121.53% | AN75: 0 | AO75: 1
A76: CBP/S | B76: 14222 | C76: Add H2 Pipeline to BSNJ from Syngas Plant | D76: Completed | E76: CTE/P | F76: Cao Lin | G76: Ling Taizhong | H76: 2015-01-07 | I76: 2015-09-30 | J76: 00:00:00 | K76: 00:00:00 | L76: N | M76: ZNIC.008171 | N76: NZNIC014222K | P76: 14222 | Q76: 1,130,000 | R76: 559,000 | S76: 2,285,508 | T76: 0 | U76: 2,293,537 | V76: (95,320) | W76: -76,294 | X76: 1,689,000 | Y76: 0 | Z76: 69,394 | AA76: 1,689,000 | AB76: 2,318,537 | AC76: 37.27% | AD76: 0 | AE76: 2,293,537 | AF76: 25,000 | AG76: 0 | AH76: -1.05% | AI76: -6.41% | AJ76: 0 | AK76: 155.19% | AL76: 0 | AM76: 125.29% | AN76: 0 | AO76: 1
A77: CBP/S | B77: 14218 | C77: Modify Antisurge Control System of K1401 | D77: Completed | E77: CTA/M | F77: Cheng Guiyou | G77: Gan Shuangfeng | H77: 2014-08-15 | I77: 2015-04-22 | J77: 2015-05-04 | K77: 00:00:00 | L77: T_2015 | M77: ZNIC.014218 | N77: NZNIC014218K | P77: 14218 | Q77: 1,000,000 | R77: 0 | S77: 1,008,800 | T77: 348,421 | U77: 0 | V77: 3,300 | W77: 0 | X77: 1,000,000 | Y77: 0 | Z77: 44,791 | AA77: 1,000,000 | AB77: 348,421 | AC77: -65.16% | AD77: 348,421 | AE77: 0 | AF77: 0 | AG77: 0 | AH77: -4.67% | AJ77: 3,300 | AK77: 0.00% | AL77: 0 | AN77: 0 | AO77: 0
A78: COA/A | B78: 14207 | C78: Let-down MP Steam to LP Steam in GAA Plant | D78: On Going | E78: CTE/P | F78: Zhu Jianxin | G78: Wu Zefei | H78: 2015-09-18 | I78: 00:00:00 | J78: 00:00:00 | K78: 00:00:00 | L78: T_2015 | M78: ZNIC.010379 | N78: NZNIC014207K | P78: 14207 | Q78: 2,362,000 | R78: 0 | S78: 3,206,055 | T78: 1,591,483 | U78: 1,500,032 | V78: (119,335) | W78: -44,890 | X78: 2,362,000 | Y78: -1,605,998 | Z78: 449,580 | AA78: 2,362,000 | AB78: 1,912,420 | AC78: -19.03% | AD78: 1,591,483 | AE78: 1,500,032 | AF78: 426,903 | AG78: -1,605,998 | AH78: -28.13% | AJ78: 0 | AL78: 0 | AN78: 0 | AO78: 0
A79: CBP/S | B79: 14200 | C79: Add Control Valve at 1st Stage Inlet Nitrogen Line of K1701 | D79: Completed | E79: CTE/P | F79: Wang Can | G79: Ling Taizhong | H79: 2015-02-13 | I79: 2014-10-20 | J79: 00:00:00 | K79: 00:00:00 | L79: N | M79: ZNIF.104300.15.01 | N79: NZNIC014200K | P79: 14200 | Q79: 155,000 | R79: 0 | S79: 174,249 | T79: 0 | U79: 0 | V79: (1,445) | W79: 11,850 | X79: 155,000 | Y79: 0 | Z79: 15,655 | AA79: 155,000 | AB79: 0 | AC79: -100.00% | AD79: 0 | AE79: 0 | AF79: 0 | AG79: 0 | AH79: -31.25% | AI79: -32.28% | AJ79: 0 | AK79: 102.83% | AL79: 11,850 | AM79: 71.10% | AN79: 0 | AO79: 0
A80: CBL/O | B80: 14198 | C80: Replace Manual Loading Arm Z2810&Z4802 with Pneumatic One | D80: On Going | E80: CTE/P | F80: Yu Xiya | G80: Xu Yefeng | H80: 2015-03-11 | I80: 00:00:00 | J80: 00:00:00 | K80: 00:00:00 | L80: T | M80: ZNIF.412740.15.01 | N80: NZNIC014198K | P80: 14198 | Q80: 440,000 | R80: 0 | S80: 466,800 | T80: 299,849 | U80: 15,941 | V80: 30,305 | W80: 32,450 | X80: 440,000 | Y80: 46,903 | Z80: 11,753 | AA80: 440,000 | AB80: 365,492 | AC80: -16.93% | AD80: 299,849 | AE80: 15,941 | AF80: 2,800 | AG80: 46,903 | AH80: -4.88% | AJ80: 30,305 | AK80: 61.15% | AL80: 32,450 | AM80: 26.25% | AN80: 0 | AO80: 0
A81: CBL/O | B81: 14197 | C81: Replace Manual Loading Arm Z2203 with Pneumatic One | D81: On Going | E81: CTE/P | F81: Yu Xiya | G81: Xu Yefeng | H81: 2015-03-11 | I81: 00:00:00 | J81: 00:00:00 | K81: 00:00:00 | L81: T | M81: ZNIF.651010.15.01 | N81: NZNIC014197K | P81: 14197 | Q81: 273,000 | R81: 0 | S81: 294,920 | T81: 7,147,717 | U81: 0 | V81: 22,215 | W81: 31,250 | X81: 273,000 | Y81: -6,959,651 | Z81: 10,269 | AA81: 273,000 | AB81: 209,266 | AC81: -23.35% | AD81: 7,147,717 | AE81: 0 | AF81: 21,200 | AG81: -6,959,651 | AH81: -8.39% | AI81: 1.88% | AJ81: 22,215 | AK81: 68.26% | AL81: 31,250 | AM81: 30.56% | AN81: 0 | AO81: 0
A82: COO/O | B82: 14194 | C82: Add a Pump and Two On/off Valves for Val Loading | D82: On Going | E82: CTE/P | F82: Liu Xiaoli | G82: Jiang Haijin | H82: 2015-11-06 | I82: 00:00:00 | J82: 00:00:00 | K82: 00:00:00 | L82: N | M82: ZNIC.010907 | N82: NZNIC014194K | P82: 14194 | Q82: 1,260,000 | R82: 0 | S82: 1,412,808 | T82: 2,649,878 | U82: 3,100,773 | V82: 302,500 | W82: 238,150 | X82: 1,260,000 | Y82: -5,051,849 | Z82: 20,548 | AA82: 1,260,000 | AB82: 698,802 | AC82: -44.54% | AD82: 2,649,878 | AE82: 3,100,773 | AF82: 0 | AG82: -5,051,849 | AH82: -12.68% | AJ82: 302,500 | AK82: 0.00% | AL82: 238,150 | AM82: 9.22% | AN82: 0 | AO82: 0
A83: CBP/C | B83: 14187 | C83: Add Pipeline to Send Light Fuel Oil to STT1310 | D83: On Going | E83: CTE/P | F83: Qiu Zhufeng | G83: Ling Taizhong | H83: 2014-08-21 | I83: 00:00:00 | J83: 00:00:00 | K83: 00:00:00 | L83: T_2015 | M83: ZNIC.014187 | N83: NZNIC014187K | P83: 14187 | Q83: 4,207,000 | R83: 2,188,000 | S83: 5,575,289 | T83: 263,560 | U83: 103,531 | V83: 20,847 | W83: -59,019 | AA83: 6,395,000 | AD83: 263,560 | AE83: 103,531 | AF83: 39,112 | AI83: -16.35% | AJ83: 20,847 | AK83: 90.02% | AL83: 0 | AM83: 115.04% | AN83: 0 | AO83: 2
A84: CEP/S | B84: 14182 | C84: Rebuilt a Waste Liquid Storage | D84: Completed | E84: CTE/C | F84: Gao Feng | G84: Xia Weiguang | H84: 2015-05-07 | I84: 2015-12-15 | J84: 00:00:00 | K84: 00:00:00 | L84: H | M84: ZNIF.105400.15.01 | N84: NZNIC014182K | P84: 14182 | Q84: 748,000 | R84: 0 | S84: 1,175,500 | T84: 165,755 | U84: 16,000 | V84: (78,033) | W84: -8,650 | X84: 748,000 | Y84: 289,046 | Z84: 50,299 | AA84: 748,000 | AB84: 697,701 | AC84: -6.72% | AD84: 165,755 | AE84: 16,000 | AF84: 226,900 | AG84: 289,046 | AI84: -21.08% | AJ84: 0 | AK84: 159.12% | AL84: 0 | AM84: 118.02% | AN84: 0 | AO84: 3
A85: CTM | B85: 14173 | C85: Technical Material Bar-code Management System | D85: On Going | E85: CFA/I | F85: Tao Yang | G85: Wang Jun | H85: 2014-06-13 | I85: 00:00:00 | J85: 00:00:00 | K85: 00:00:00 | L85: N | M85: ZNIC.014173 | N85: NZNIC014173K | P85: 14173 | Q85: 2,580,000 | R85: 0 | S85: 4,873,537 | T85: 15,484,488 | U85: 0 | V85: 0 | W85: 0 | X85: 2,580,000 | Y85: -12,904,488 | Z85: 0 | AA85: 2,580,000 | AB85: 2,580,000 | AC85: 0.00% | AD85: 15,484,488 | AE85: 0 | AF85: 0 | AG85: -12,904,488 | AJ85: 0 | AL85: 0 | AN85: 0 | AO85: 0
A86: CEP/E | B86: 14168 | C86: Change an Online TOC Analyzer | D86: On Going | E86: CTA/S | F86: Yong Jie | G86: Yong Jie | H86: 2014-08-26 | I86: 00:00:00 | J86: 00:00:00 | K86: 00:00:00 | L86: N | M86: ZNIC.014168 | N86: NZNIC014168K | P86: 14168 | Q86: 480,000 | R86: 0 | S86: 480,000 | T86: 352,862 | U86: 2,000 | V86: (550) | W86: 8,800 | X86: 480,000 | Y86: 114,338 | Z86: 2,000 | AA86: 480,000 | AB86: 469,200 | AC86: -2.25% | AD86: 352,862 | AE86: 2,000 | AF86: 0 | AG86: 114,338 | AH86: -0.50% | AJ86: 0 | AK86: 107.14% | AL86: 8,800 | AM86: 0.00% | AN86: 0 | AO86: 0
A87: CBP/C | B87: 14165 | C87: Add Pipe from BYC EBO Ship Loading Pipe to YPC G102 Tank | D87: Completed | E87: CTE/P | F87: Qiu Zhufeng | G87: Ling Taizhong | H87: 2014-07-22 | I87: 2015-05-27 | J87: 00:00:00 | K87: 00:00:00 | L87: H | M87: ZNIC.014165 | N87: NZNIC014165K | P87: 14165 | Q87: 1,143,000 | R87: 1,448,000 | S87: 4,095,032 | T87: 147,731 | U87: 0 | V87: 7,680 | W87: -217,068 | X87: 2,591,000 | Y87: 0 | Z87: 1,069,079 | AA87: 2,591,000 | AB87: 151,731 | AC87: -94.14% | AD87: 147,731 | AE87: 0 | AF87: 4,000 | AG87: 0 | AH87: -42.15% | AI87: -21.79% | AJ87: 7,680 | AK87: 82.66% | AL87: 0 | AM87: 257.55% | AN87: 0 | AO87: 5
A88: CBL/O | B88: 14163 | C88: Replacement of 3 Low Efficiency Motors in A300 & RTTF | D88: Canceled | E88: CTA/L | F88: Chen Kun | G88: Chen Kun | H88: 2014-06-13 | I88: 00:00:00 | J88: 00:00:00 | K88: 00:00:00 | L88: N | M88: ZNIC.014163 | N88: NZNIC014163K | P88: 14163 | Q88: 87,789 | R88: 0 | S88: 87,789 | T88: 180,926 | U88: 799,389 | V88: 4,400 | W88: 35,000 | X88: 87,789 | Y88: -931,926 | Z88: 0 | AA88: 87,789 | AB88: 48,389 | AC88: -44.88% | AD88: 180,926 | AE88: 799,389 | AF88: 0 | AG88: -931,926 | AJ88: 4,400 | AK88: 0.00% | AL88: 35,000 | AM88: 0.00% | AN88: 0 | AO88: 0
A89: CBP/C | B89: 14151 | C89: Add New Pan Oil Pipe from Pan oil Pump to Ethylene Bottom Oil Pipe | D89: Completed | E89: CTE/P | F89: Sun Aihong | G89: Ling Taizhong | H89: 2015-01-13 | I89: 2015-12-14 | J89: 00:00:00 | K89: 00:00:00 | L89: T_2015 | M89: ZNIF.104100.15.01 | N89: NZNIC014151K | P89: 14151 | Q89: 410,000 | R89: 0 | S89: 483,095 | T89: 1,372,805 | U89: 82,973 | V89: (1,425) | W89: -36,825 | X89: 410,000 | Y89: -1,099,331 | Z89: 51,554 | AA89: 410,000 | AB89: 358,446 | AC89: -12.57% | AD89: 1,372,805 | AE89: 82,973 | AF89: 2,000 | AG89: -1,099,331 | AH89: -11.89% | AI89: -41.12% | AJ89: 0 | AK89: 101.83% | AL89: 0 | AM89: 149.76% | AN89: 0 | AO89: 0
A90: All | B90: 14149 | C90: BYC Electrical Monitoring & Control System (EMCS) Migration | D90: Completed | E90: CTA/VO | F90: Gu Hemei | G90: Sun Zhongpin | H90: 2014-06-05 | I90: 2015-04-20 | J90: 2015-10-29 | K90: 00:00:00 | L90: T_2015 | M90: ZNIC.014149 | N90: NZNIC014149K | P90: 14149 | Q90: 9,740,000 | R90: 0 | S90: 9,742,700 | T90: 5,797,062 | U90: 0 | V90: (376,977) | W90: -47,306 | X90: 9,740,000 | Y90: 0 | Z90: 1,289,087 | AA90: 9,740,000 | AB90: 5,797,062 | AC90: -40.48% | AD90: 5,797,062 | AE90: 0 | AF90: 0 | AG90: 0 | AH90: -14.73% | AI90: -16.39% | AJ90: 0 | AK90: 267.99% | AL90: 0 | AM90: 187.77% | AN90: 0 | AO90: 3
A91: CEP/S | B91: 14144 | C91: Add PIB Tank and Feed System in HIPS Plant | D91: On Going | E91: CTE/P | F91: Gu Jingfeng | G91: Wu Zefei | H91: 2014-12-08 | I91: 00:00:00 | J91: 00:00:00 | K91: 00:00:00 | L91: H | M91: ZNIC.008007 | N91: NZNIC014144K | P91: 14144 | Q91: 6,240,000 | R91: 0 | S91: 10,167,086 | T91: 1,031,908 | U91: 9,991 | V91: (96,587) | W91: -140,435 | X91: 6,240,000 | Y91: 4,124,796 | Z91: 165,283 | AA91: 6,240,000 | AB91: 6,074,717 | AC91: -2.65% | AD91: 1,031,908 | AE91: 9,991 | AF91: 908,022 | AG91: 4,124,796 | AH91: -2.84% | AI91: -22.69% | AJ91: 0 | AK91: 118.57% | AL91: 0 | AM91: 137.94% | AN91: 1 | AO91: 8
A92: CBL/P | B92: 14141 | C92: Add a Manual Sampler on the NAP Feed Piping from YPC | D92: On Going | E92: CTE/P | F92: Li Shouqing | G92: Jiang Haijin | H92: 2015-03-20 | I92: 00:00:00 | J92: 00:00:00 | K92: 00:00:00 | L92: N | M92: ZNIF.604170.15.01 | N92: NZNIC014141K | P92: 14141 | Q92: 497,000 | R92: 0 | S92: 600,931 | T92: 1,005,818 | U92: 2,751,277 | V92: 9,805 | W92: 24,825 | X92: 497,000 | Y92: -3,225,084 | Z92: -121,441 | AA92: 497,000 | AB92: 583,811 | AC92: 17.47% | AD92: 1,005,818 | AE92: 2,751,277 | AF92: 51,800 | AG92: -3,225,084 | AH92: 68.97% | AJ92: 9,805 | AK92: 90.66% | AL92: 24,825 | AM92: 63.49% | AN92: 0 | AO92: 0
A93: CBP/A | B93: 14126 | C93: Add ESD Interlock Signal and Block Valve for 410-R101A/B | D93: Completed | E93: CTE/A | F93: Gong Feibao | G93: Li Hong | H93: 2014-08-06 | I93: 2015-04-29 | J93: 00:00:00 | K93: 00:00:00 | L93: T_2015 | M93: ZNIC.014126 | N93: NZNIC014126K | P93: 14126 | Q93: 191,000 | R93: 0 | S93: 207,000 | T93: 278,056 | U93: 158,095 | V93: (23,330) | W93: -4,403 | X93: 191,000 | Y93: 0 | Z93: 7,768 | AA93: 191,000 | AB93: 436,150 | AC93: 128.35% | AD93: 278,056 | AE93: 158,095 | AF93: 0 | AG93: 0 | AH93: -4.72% | AI93: -44.34% | AJ93: 0 | AK93: 183.17% | AL93: 0 | AM93: 114.17% | AN93: 0 | AO93: 0
A94: CBP/C | B94: 14121 | C94: H109 Convection Section Modification | D94: Completed | E94: CTE/P | F94: Zhou Yanduo | G94: Ling Taizhong | H94: 2014-07-30 | I94: 2015-05-27 | J94: 2015-07-08 | K94: 00:00:00 | L94: T_2015 | M94: ZNIC.014121 | N94: NZNIC014121K | P94: 14121 | Q94: 16,490,000 | R94: 0 | S94: 16,492,000 | T94: 633,055 | U94: 0 | V94: 18,180 | W94: -193,591 | X94: 16,490,000 | Y94: 0 | Z94: 13,222,412 | AA94: 16,490,000 | AB94: 635,055 | AC94: -96.15% | AD94: 633,055 | AE94: 0 | AF94: 2,000 | AG94: 0 | AH94: -83.16% | AI94: 1.55% | AJ94: 18,180 | AK94: 90.04% | AL94: 0 | AM94: 162.30% | AN94: 0 | AO94: 0
A95: CBP/M | B95: 14115 | C95: Replacement of 16 Low Efficiency Motors in EB/SM Plant | D95: Completed | E95: CTA/M | F95: Lv Yong | G95: Lv Yong | H95: 2014-06-18 | I95: 2015-07-14 | J95: 00:00:00 | K95: 00:00:00 | L95: N | M95: ZNIC.014115 | N95: NZNIC014115K | P95: 14115 | Q95: 873,000 | R95: 0 | S95: 875,000 | T95: 5,107,011 | U95: 601,122 | V95: 0 | W95: 138,240 | X95: 873,000 | Y95: 0 | Z95: 146,828 | AA95: 873,000 | AB95: 5,708,132 | AC95: 553.85% | AD95: 5,107,011 | AE95: 601,122 | AF95: 0 | AG95: 0 | AH95: -30.86% | AI95: 2.77% | AJ95: 0 | AL95: 138,240 | AM95: 4.00% | AN95: 0 | AO95: 0
A96: CHA | B96: 14112 | C96: EPS Replacement for Z100 1st and 2nd Floor | D96: Completed | E96: CTE/A | F96: Bian Jiacai | G96: Chen Gang | H96: 2014-06-06 | I96: 2015-03-31 | J96: 00:00:00 | K96: 00:00:00 | L96: N | M96: ZNIC.014112 | N96: NZNIC014112K | P96: 14112 | Q96: 284,000 | R96: 0 | S96: 309,000 | T96: 346,893 | U96: 95,000 | V96: 5,075 | W96: -10,725 | X96: 284,000 | Y96: 0 | Z96: 74,872 | AA96: 284,000 | AB96: 466,893 | AC96: 64.40% | AD96: 346,893 | AE96: 95,000 | AF96: 25,000 | AG96: 0 | AH96: -44.04% | AJ96: 5,075 | AK96: 83.07% | AL96: 0 | AM96: 134.82% | AN96: 0 | AO96: 0
A97: CEP/S | B97: 14107 | C97: PS/EPS Plant Emergency Lighting Modification | D97: On Going | E97: CTE/A | F97: Xu Zheng | G97: Zhang Pu | H97: 2015-07-24 | I97: 00:00:00 | J97: 00:00:00 | K97: 00:00:00 | L97: H | M97: ZNIC.009924 | N97: NZNIC014107K | P97: 14107 | Q97: 1,329,000 | R97: 0 | S97: 2,128,389 | T97: 412,981 | U97: 46,000 | V97: (2,523) | W97: 55,700 | X97: 1,329,000 | Y97: 222,304 | Z97: 83,393 | AA97: 1,329,000 | AB97: 1,189,907 | AC97: -10.47% | AD97: 412,981 | AE97: 46,000 | AF97: 508,622 | AG97: 222,304 | AH97: -11.71% | AI97: -5.66% | AJ97: 0 | AK97: 104.14% | AL97: 55,700 | AM97: 5.59% | AN97: 0 | AO97: 2
A98: COO/A | B98: 14104 | C98: Add a Pipeline of ACN Waste Liquid to U5 Incinerator | D98: On Going | E98: CTE/P | F98: Li Shouqing | G98: Jiang Haijin | H98: 2015-01-21 | I98: 00:00:00 | J98: 00:00:00 | K98: 00:00:00 | L98: N | M98: ZNIC.008275 | N98: NZNIC014104K | P98: 14104 | Q98: 2,063,000 | R98: 0 | S98: 2,151,486 | T98: 1,233,824 | U98: 266,524 | V98: (16,000) | W98: -207,204 | AA98: 2,063,000 | AD98: 1,233,824 | AE98: 266,524 | AF98: 594,078 | AI98: -19.37% | AJ98: 0 | AK98: 108.84% | AL98: 0 | AM98: 260.62% | AN98: 0 | AO98: 1
A99: CTS/U | B99: 14101 | C99: Replacement of ID Fans_Phase II CLWI Modification | D99: Completed | E99: CTE/P | F99: Zhou Yanduo | G99: Jiang Haijin | H99: 2014-04-28 | I99: 2015-05-05 | J99: 00:00:00 | K99: 00:00:00 | L99: T_2015 | M99: ZNIC.014101 | N99: NZNIC014101K | P99: 14101 | Q99: 6,213,000 | R99: 0 | S99: 6,354,998 | T99: 910,066 | U99: 64,000 | V99: (69,219) | W99: -403,842 | X99: 6,213,000 | Y99: 0 | Z99: -1,007,216 | AA99: 6,213,000 | AB99: 1,019,566 | AC99: -83.59% | AD99: 910,066 | AE99: 64,000 | AF99: 45,500 | AG99: 0 | AH99: 35.54% | AI99: -3.61% | AJ99: 0 | AK99: 113.53% | AL99: 0 | AM99: 250.16% | AN99: 0 | AO99: 9
A100: CBP/C | B100: 14097 | C100: Add Fire Water Sprinkler Facilities for Pumps | D100: Completed | E100: CTE/P | F100: Zhang Fanwen | G100: Ling Taizhong | H100: 2014-07-22 | I100: 2015-10-08 | J100: 00:00:00 | K100: 00:00:00 | L100: H | M100: ZNIC.014097 | N100: NZNIC014097K | P100: 14097 | Q100: 1,229,000 | R100: 0 | S100: 1,543,231 | T100: 2,702,155 | U100: 0 | V100: (11,319) | W100: -33,375 | X100: 1,229,000 | Y100: 0 | Z100: 20,176 | AA100: 1,229,000 | AB100: 2,798,547 | AC100: 127.71% | AD100: 2,702,155 | AE100: 0 | AF100: 96,392 | AG100: 0 | AH100: -4.31% | AI100: 2.41% | AJ100: 0 | AK100: 106.16% | AL100: 0 | AM100: 116.74% | AN100: 0 | AO100: 1
A101: CBP/C | B101: 14091 | C101: APC Implementation and Optimization of Ethylene Unit | D101: On Going | E101: CTA/S | F101: Dai Xiaolong | G101: Dai Xiaolong | H101: 2014-03-19 | I101: 00:00:00 | J101: 00:00:00 | K101: 00:00:00 | L101: N | M101: ZNIC.014091 | N101: NZNIC014091K | P101: 14091 | Q101: 11,000,000 | R101: 0 | S101: 13,751,277 | T101: 111,095 | U101: 0 | V101: (1,082,606) | W101: 165,800 | X101: 11,000,000 | Y101: 10,298,312 | Z101: 424,793 | AA101: 11,000,000 | AB101: 10,409,407 | AC101: -5.37% | AD101: 111,095 | AE101: 0 | AF101: 0 | AG101: 10,298,312 | AH101: -10.46% | AJ101: 0 | AK101: 460.87% | AL101: 165,800 | AM101: 44.73% | AN101: 3 | AO101: 0
A102: COO/A | B102: 14088 | C102: Increase the Yield of Product AEEA | D102: Completed | E102: CTE/P | F102: Li Shouqing | G102: Jiang Haijin | H102: 2014-12-22 | I102: 2015-10-09 | J102: 00:00:00 | K102: 00:00:00 | L102: T_2015 | M102: ZNIF.107830.14.01 | N102: NZNIC014088K | P102: 14088 | Q102: 494,000 | R102: 0 | S102: 665,445 | T102: 342,263 | U102: 0 | V102: (4,610) | W102: 1,925 | X102: 494,000 | Y102: 0 | Z102: 10,816 | AA102: 494,000 | AB102: 343,613 | AC102: -30.44% | AD102: 342,263 | AE102: 0 | AF102: 1,350 | AG102: 0 | AH102: 1.07% | AI102: -18.33% | AJ102: 0 | AK102: 103.75% | AL102: 1,925 | AM102: 97.81% | AN102: 0 | AO102: 1
A103: CCP/O | B103: 14087 | C103: Add On/off Valves for HV24201/HV44201 | D103: Completed | E103: CTE/A | F103: Wang Zhen | G103: Wang Xinwu | H103: 2014-06-03 | I103: 2015-05-08 | J103: 00:00:00 | K103: 00:00:00 | L103: T_2015 | M103: ZNIC.014087 | N103: NZNIC014087K | P103: 14087 | Q103: 490,000 | R103: 140,000 | S103: 634,555 | T103: 372,868 | U103: 0 | V103: (7,700) | W103: -48,813 | X103: 490,000 | Y103: 0 | Z103: -194,772 | AA103: 630,000 | AB103: 374,368 | AC103: -40.58% | AD103: 372,868 | AE103: 0 | AF103: 1,500 | AG103: 0 | AH103: 181.87% | AI103: -42.43% | AJ103: 0 | AK103: 105.58% | AL103: 0 | AM103: 196.47% | AN103: 0 | AO103: 2
A104: CEP/P | B104: 14086 | C104: Replacement of AMOT by Sentry System | D104: Completed | E104: CTE/A | F104: Wang Zhen | G104: Li Xueyong | H104: 2014-05-19 | I104: 2015-05-07 | J104: 00:00:00 | K104: 00:00:00 | L104: T_2015 | M104: ZNIC.014086 | N104: NZNIC014086K | P104: 14086 | Q104: 5,612,000 | R104: 0 | S104: 6,213,122 | T104: 538,736 | U104: 4,000 | V104: 79,750 | W104: 40,422 | X104: 5,612,000 | Y104: 0 | Z104: 210,925 | AA104: 5,612,000 | AB104: 542,736 | AC104: -90.33% | AD104: 538,736 | AE104: 4,000 | AF104: 0 | AG104: 0 | AH104: -2.97% | AI104: -26.34% | AJ104: 79,750 | AK104: 68.82% | AL104: 40,422 | AM104: 71.24% | AN104: 0 | AO104: 0
A105: CBP/C | B105: 14072 | C105: Add 7 Samplers for Quench Section of Cracker | D105: Completed | E105: CTE/P | F105: Qiu Zhufeng | G105: Ling Taizhong | H105: 2014-07-22 | I105: 2015-05-09 | J105: 00:00:00 | K105: 00:00:00 | L105: T_2015 | M105: ZNIC.014072 | N105: NZNIC014072K | P105: 14072 | Q105: 593,000 | R105: 0 | S105: 693,000 | T105: 139,342 | U105: 101,839 | V105: 7,760 | W105: 16,329 | X105: 593,000 | Y105: 0 | Z105: -42,107 | AA105: 593,000 | AB105: 241,181 | AC105: -59.33% | AD105: 139,342 | AE105: 101,839 | AF105: 0 | AG105: 0 | AH105: 16.67% | AI105: -10.27% | AJ105: 7,760 | AK105: 91.70% | AL105: 16,329 | AM105: 87.73% | AN105: 0 | AO105: 0
A106: CBP/M | B106: 14068 | C106: Replace Samplers for EB/SM | D106: Completed | E106: CTE/P | F106: Sun Aihong | G106: Wu Zefei | H106: 2014-08-11 | I106: 2015-04-30 | J106: 00:00:00 | K106: 00:00:00 | L106: T_2015 | M106: ZNIC.014068 | N106: NZNIC014068K | P106: 14068 | Q106: 485,000 | R106: 0 | S106: 532,500 | T106: 8,396,185 | U106: 18,000 | V106: 14,200 | W106: 23,065 | X106: 485,000 | Y106: 0 | Z106: 182,575 | AA106: 485,000 | AB106: 8,414,185 | AC106: 1634.88% | AD106: 8,396,185 | AE106: 18,000 | AF106: 0 | AG106: 0 | AH106: -49.56% | AI106: 12.34% | AJ106: 14,200 | AK106: 80.14% | AL106: 23,065 | AM106: 70.15% | AN106: 0 | AO106: 0
A107: CBP/M | B107: 14067 | C107: Replace Some Pumps for EB/SM | D107: On Going | E107: CTE/P | F107: Wang Lifen | G107: Ling Taizhong | H107: 2014-08-15 | I107: 00:00:00 | J107: 00:00:00 | K107: 00:00:00 | L107: N | M107: ZNIC.014067 | N107: NZNIC014067K | P107: 14067 | Q107: 1,900,000 | R107: 0 | S107: 2,603,495 | T107: 574,600 | U107: 0 | V107: (72,465) | W107: -120,389 | X107: 1,900,000 | Y107: 303,189 | Z107: 440,000 | AA107: 1,900,000 | AB107: 1,460,000 | AC107: -23.16% | AD107: 574,600 | AE107: 0 | AF107: 582,211 | AG107: 303,189 | AH107: -33.37% | AI107: -29.92% | AJ107: 0 | AK107: 135.42% | AL107: 0 | AM107: 146.67% | AN107: 9 | AO107: 8
A108: CBP/M | B108: 14066 | C108: Revamp Outlet Motor Valves of Cooling Water Pumps | D108: Completed | E108: CTE/A | F108: Gong Feibao | G108: Li Hong | H108: 2014-07-23 | I108: 2015-04-23 | J108: 00:00:00 | K108: 00:00:00 | L108: T_2015 | M108: ZNIC.014066 | N108: NZNIC014066K | P108: 14066 | Q108: 1,380,000 | R108: 0 | S108: 1,446,000 | T108: 405,016 | U108: 18,205 | V108: (21,295) | W108: -9,865 | X108: 1,380,000 | Y108: 0 | Z108: 1,291,047 | AA108: 1,380,000 | AB108: 423,221 | AC108: -69.33% | AD108: 405,016 | AE108: 18,205 | AF108: 0 | AG108: 0 | AH108: -63.15% | AI108: -14.34% | AJ108: 0 | AK108: 112.53% | AL108: 0 | AM108: 105.40% | AN108: 0 | AO108: 0
A109: CBP/B | B109: 14058 | C109: Move the BD&IB Plant DCS Control Station from BCC to EBSM | D109: Completed | E109: CTE/A | F109: Gong Feibao | G109: Li Hong | H109: 2014-08-19 | I109: 2015-04-21 | J109: 00:00:00 | K109: 00:00:00 | L109: T_2015 | M109: ZNIC.014058 | N109: NZNIC014058K | P109: 14058 | Q109: 3,400,000 | R109: 0 | S109: 3,410,505 | T109: 2,165,100 | U109: 0 | V109: (151,972) | W109: -98,116 | X109: 3,400,000 | Y109: 0 | Z109: 781,487 | AA109: 3,400,000 | AB109: 2,168,405 | AC109: -36.22% | AD109: 2,165,100 | AE109: 0 | AF109: 3,305 | AG109: 0 | AH109: -27.15% | AI109: -30.45% | AJ109: 0 | AK109: 153.45% | AL109: 0 | AM109: 123.63% | AN109: 0 | AO109: 7
A110: CEP/E | B110: 14051 | C110: Natural Gas Flowmeter Modification | D110: Completed | E110: CTE/P | F110: Gu Jingfeng | G110: Wu Zefei | H110: 2014-03-17 | I110: 2014-09-04 | J110: 00:00:00 | K110: 00:00:00 | L110: T | M110: ZNIC.014051 | N110: NZNIC014051K | P110: 14051 | Q110: 157,000 | R110: 0 | S110: 158,500 | T110: 934,930 | U110: 8,000 | V110: 4,950 | W110: 19,190 | X110: 157,000 | Y110: 0 | Z110: 321 | AA110: 157,000 | AB110: 944,430 | AC110: 501.55% | AD110: 934,930 | AE110: 8,000 | AF110: 1,500 | AG110: 0 | AH110: 11.81% | AI110: -64.12% | AJ110: 4,950 | AK110: 92.62% | AL110: 19,190 | AM110: 57.71% | AN110: 0 | AO110: 1
A111: CBP/C | B111: 14045 | C111: Add Gas Detector around Liquid Hydrocarbon Pumps | D111: Completed | E111: CTE/A | F111: Wang Zhen | G111: Li Hong | H111: 2014-07-16 | I111: 2015-07-09 | J111: 00:00:00 | K111: 00:00:00 | L111: N | M111: ZNIC.014045 | N111: NZNIC014045K | P111: 14045 | Q111: 491,000 | R111: 0 | S111: 503,000 | T111: 2,022,305 | U111: 4,498 | V111: (8,800) | W111: -6,600 | X111: 491,000 | Y111: 0 | Z111: 18,861 | AA111: 491,000 | AB111: 2,038,803 | AC111: 315.23% | AD111: 2,022,305 | AE111: 4,498 | AF111: 12,000 | AG111: 0 | AH111: 3.56% | AI111: -32.47% | AJ111: 0 | AK111: 109.14% | AL111: 0 | AM111: 109.23% | AN111: 0 | AO111: 0
A112: CBP/M | B112: 14035 | C112: Revamp H1203 Natural Gas Pipeline | D112: Completed | E112: CTE/P | F112: Sun Aihong | G112: Wu Zefei | H112: 2014-06-06 | I112: 2015-04-30 | J112: 00:00:00 | K112: 00:00:00 | L112: T_2015 | M112: ZNIC.014035 | N112: NZNIC014035K | P112: 14035 | Q112: 418,000 | R112: 0 | S112: 419,200 | T112: 235,405 | U112: 0 | V112: (5,310) | W112: 31,263 | X112: 418,000 | Y112: 0 | Z112: 32,077 | AA112: 418,000 | AB112: 235,405 | AC112: -43.68% | AD112: 235,405 | AE112: 0 | AF112: 0 | AG112: 0 | AH112: -9.67% | AI112: -28.00% | AJ112: 0 | AK112: 104.13% | AL112: 31,263 | AM112: 69.76% | AN112: 0 | AO112: 0
A113: CBP/M | B113: 14034 | C113: Add an Inhibitor Surge Drum for Each of T2401/2403 | D113: Completed | E113: CTE/P | F113: Sun Aihong | G113: Wu Zefei | H113: 2014-07-21 | I113: 2015-09-08 | J113: 00:00:00 | K113: 00:00:00 | L113: T_2015 | M113: ZNIC.014034 | N113: NZNIC014034K | P113: 14034 | Q113: 477,000 | R113: 0 | S113: 542,736 | T113: 2,301,085 | U113: 30,000 | V113: (24,420) | W113: -56,352 | X113: 477,000 | Y113: 0 | Z113: 70,421 | AA113: 477,000 | AB113: 2,331,085 | AC113: 388.70% | AD113: 2,301,085 | AE113: 30,000 | AF113: 0 | AG113: 0 | AH113: -14.46% | AI113: -38.48% | AJ113: 0 | AK113: 120.65% | AL113: 0 | AM113: 140.10% | AN113: 0 | AO113: 2
A114: CBP/M | B114: 14033 | C114: Add O2 Detector at Discharge of C2401 | D114: Completed | E114: CTE/A | F114: Gong Feibao | G114: Li Hong | H114: 2014-07-10 | I114: 2015-11-04 | J114: 00:00:00 | K114: 00:00:00 | L114: T_2015 | M114: ZNIC.014033 | N114: NZNIC014033K | P114: 14033 | Q114: 246,000 | R114: 0 | S114: 352,085 | T114: 0 | U114: 0 | V114: (9,222) | W114: -30,253 | X114: 246,000 | Y114: 258,411 | Z114: -12,411 | AA114: 246,000 | AB114: 258,411 | AC114: 5.05% | AD114: 0 | AE114: 0 | AF114: 0 | AG114: 258,411 | AH114: 12.23% | AI114: -7.61% | AJ114: 0 | AK114: 115.82% | AL114: 0 | AM114: 184.62% | AN114: 7 | AO114: 0
A115: CBP/M | B115: 14031 | C115: 380VAC LV MCC System Modification of EB/SM | D115: Completed | E115: CTE/A | F115: Zhao Wei | G115: Sun Zhongpin | H115: 2014-06-05 | I115: 2015-05-08 | J115: 2015-10-26 | K115: 00:00:00 | L115: T_2015 | M115: ZNIC.014031 | N115: NZNIC014031K | P115: 14031 | Q115: 12,200,000 | R115: 0 | S115: 12,485,476 | T115: 1,276,120 | U115: 0 | V115: 113,179 | W115: -210,621 | Y115: 0 | AA115: 12,200,000 | AB115: 1,543,596 | AC115: -87.35% | AD115: 1,276,120 | AE115: 0 | AF115: 267,476 | AG115: 0 | AI115: -31.30% | AJ115: 113,179 | AK115: 91.60% | AL115: 0 | AM115: 159.19% | AN115: 0 | AO115: 12
A116: CBP/C | B116: 14023 | C116: Expand the Capacity of 330-V-344 | D116: Completed | E116: CTE/P | F116: Qiu Zhufeng | G116: Ling Taizhong | H116: 2014-06-04 | I116: 2015-05-09 | J116: 00:00:00 | K116: 00:00:00 | L116: T_2015 | M116: ZNIC.014023 | N116: NZNIC014023K | P116: 14023 | Q116: 497,000 | R116: 100,000 | S116: 574,600 | T116: 1,838,952 | U116: 0 | V116: 12,126 | W116: -6,871 | X116: 597,000 | Y116: 0 | Z116: 147,938 | AA116: 597,000 | AB116: 1,838,952 | AC116: 208.03% | AD116: 1,838,952 | AE116: 0 | AF116: 0 | AG116: 0 | AH116: -36.36% | AI116: -22.10% | AJ116: 12,126 | AK116: 91.80% | AL116: 0 | AM116: 105.16% | AN116: 0 | AO116: 4
A117: COA/S | B117: 14015 | C117: E1210 Condensate Recycle | D117: On Going | E117: CTE/P | F117: Zhu Jianxin | G117: Wu Zefei | H117: 2015-01-15 | I117: 00:00:00 | J117: 00:00:00 | K117: 00:00:00 | L117: N | M117: ZNIF.106500.15.01 | N117: NZNIC014015K | P117: 14015 | Q117: 830,000 | R117: 290,000 | S117: 854,477 | T117: 307,413 | U117: 0 | V117: 154,110 | W117: 122,850 | X117: 1,120,000 | Y117: 517,374 | Z117: 11,981 | AA117: 1,120,000 | AB117: 831,059 | AC117: -25.80% | AD117: 307,413 | AE117: 0 | AF117: 6,272 | AG117: 517,374 | AH117: -4.23% | AI117: -17.45% | AJ117: 154,110 | AK117: 51.38% | AL117: 122,850 | AM117: 19.18% | AN117: 0 | AO117: 1
A118: CTS/U | B118: 14002 | C118: Replace Material of the Pipeline between Compressor and Dryer | D118: Completed | E118: CTE/P | F118: Li Shouqing | G118: Zhang Fanwen | H118: 2014-04-23 | I118: 2015-04-24 | J118: 00:00:00 | K118: 00:00:00 | L118: T_2015 | M118: ZNIC.014002 | N118: NZNIC014002K | P118: 14002 | Q118: 2,360,000 | R118: 0 | S118: 2,377,500 | T118: 1,317,700 | U118: 160,101 | V118: (18,560) | W118: -77,090 | X118: 2,360,000 | Y118: 0 | Z118: -448,100 | AA118: 2,360,000 | AB118: 1,495,301 | AC118: -36.64% | AD118: 1,317,700 | AE118: 160,101 | AF118: 17,500 | AG118: 0 | AH118: 54.73% | AI118: 4.62% | AJ118: 0 | AK118: 114.18% | AL118: 0 | AM118: 144.22% | AN118: 0 | AO118: 0
A119: CTS/U | B119: 14001 | C119: Add Heat Exchanger of CPS Pipeline to BCC | D119: Completed | E119: CTE/P | F119: Li Shouqing | G119: Zhang Fanwen | H119: 2014-06-03 | I119: 2015-04-30 | J119: 00:00:00 | K119: 00:00:00 | L119: T_2015 | M119: ZNIC.014001 | N119: NZNIC014001K | P119: 14001 | Q119: 1,194,000 | R119: 0 | S119: 1,344,261 | T119: 3,335,936 | U119: 431 | V119: (21,256) | W119: 2,578 | X119: 1,194,000 | Y119: 0 | Z119: 124,067 | AA119: 1,194,000 | AB119: 3,338,628 | AC119: 179.62% | AD119: 3,335,936 | AE119: 431 | AF119: 2,261 | AG119: 0 | AH119: 1.36% | AI119: -29.74% | AJ119: 0 | AK119: 112.55% | AL119: 2,578 | AM119: 98.47% | AN119: 0 | AO119: 2
A120: CBP/A | B120: 13277 | C120: D230 MCC Modification | D120: Completed | E120: CTE/A | F120: Hu Xiao | G120: Chen Gang | H120: 2014-05-05 | I120: 2015-05-08 | J120: 00:00:00 | K120: 00:00:00 | L120: T_2015 | M120: ZNIC.013277 | N120: NZNIC013277K | P120: 13277 | Q120: 3,950,000 | R120: 0 | S120: 3,964,380 | T120: 594,141 | U120: 63 | V120: (72,401) | W120: 91,817 | Y120: 0 | AA120: 3,950,000 | AB120: 596,585 | AC120: -84.90% | AD120: 594,141 | AE120: 63 | AF120: 2,382 | AG120: 0 | AI120: 3.68% | AJ120: 0 | AK120: 140.44% | AL120: 91,817 | AM120: 65.37% | AN120: 0 | AO120: 4
A121: CBP/M | B121: 13270 | C121: Gas Detector Modification for EB/SM Tank Farm | D121: Completed | E121: CTE/A | F121: Wang Zhen | G121: Li Hong | H121: 2014-03-11 | I121: 2015-09-03 | J121: 00:00:00 | K121: 00:00:00 | L121: N | M121: ZNIC.013270 | N121: NZNIC013270K | P121: 13270 | Q121: 432,000 | R121: 0 | S121: 432,000 | T121: 436,208 | U121: 0 | V121: (580) | W121: -2,475 | X121: 432,000 | Y121: 0 | Z121: 87,683 | AA121: 432,000 | AB121: 436,208 | AC121: 0.97% | AD121: 436,208 | AE121: 0 | AF121: 0 | AG121: 0 | AH121: -43.38% | AI121: -23.45% | AJ121: 0 | AK121: 100.82% | AL121: 0 | AM121: 105.36% | AN121: 0 | AO121: 0
A122: CHA | B122: 13265 | C122: Modify IET Office to Archive Centre Storeroom | D122: Completed | E122: CTE/C | F122: Yu Yi | G122: Jiang Yunning | H122: 2014-10-14 | I122: 2015-02-28 | J122: 2015-09-04 | K122: 00:00:00 | L122: N | M122: ZNIC.007512 | N122: NZNIC013265K | P122: 13265 | Q122: 1,221,000 | R122: 1,600,000 | S122: 2,851,000 | T122: 342,989 | U122: 10,345 | V122: 4,252 | W122: -380,588 | X122: 2,821,000 | Y122: 0 | Z122: 208,666 | AA122: 2,821,000 | AB122: 353,335 | AC122: -87.47% | AD122: 342,989 | AE122: 10,345 | AF122: 0 | AG122: 0 | AH122: -34.54% | AI122: -12.12% | AJ122: 4,252 | AK122: 95.38% | AL122: 0 | AM122: 417.42% | AN122: 0 | AO122: 3
A123: COA/E | B123: 13263 | C123: Add Solenoid Valve for P5845 and P6660/P6665 Diaphragm Pump Air Supply | D123: Completed | E123: CTA/A | F123: Guo Jinhua | G123: Guo Jinhua | H123: 2014-01-22 | I123: 2015-08-30 | J123: 00:00:00 | K123: 00:00:00 | L123: N | M123: ZNIC.013263 | N123: NZNIC013263K | P123: 13263 | Q123: 70,000 | R123: 0 | S123: 70,000 | T123: 494,015 | U123: 0 | V123: 0 | W123: 1,500 | X123: 70,000 | Y123: 0 | Z123: 0 | AA123: 70,000 | AB123: 494,015 | AC123: 605.74% | AD123: 494,015 | AE123: 0 | AF123: 0 | AG123: 0 | AJ123: 0 | AL123: 1,500 | AM123: 0.00% | AN123: 0 | AO123: 0
A124: CBP/C | B124: 13260 | C124: Upgrade PLC of Turbonmachinery Control System | D124: Completed | E124: CTA/B | F124: Zhao Yongming | G124: Zhao Yongming | H124: 2013-12-11 | I124: 2015-05-31 | J124: 2015-05-28 | K124: 00:00:00 | L124: T_2015 | M124: ZNIC.013260 | N124: NZNIC013260K | P124: 13260 | Q124: 2,000,000 | R124: 0 | S124: 2,000,000 | T124: 566,236 | U124: 0 | V124: 75,600 | W124: 0 | X124: 2,000,000 | Y124: 0 | Z124: 490,021 | AA124: 2,000,000 | AB124: 566,236 | AC124: -71.69% | AD124: 566,236 | AE124: 0 | AF124: 0 | AG124: 0 | AH124: -24.77% | AJ124: 75,600 | AK124: 5.50% | AL124: 0 | AN124: 0 | AO124: 0
A125: CBP/C | B125: 13259 | C125: Upgrade Speed Control System of Compressors | D125: Completed | E125: CTA/B | F125: Zhao Yongming | G125: Zhao Yongming | H125: 2013-12-11 | I125: 2015-05-31 | J125: 2015-05-28 | K125: 00:00:00 | L125: T_2015 | M125: ZNIC.013259 | N125: NZNIC013259K | P125: 13259 | Q125: 2,000,000 | R125: 0 | S125: 2,000,000 | T125: 3,953,939 | U125: 80,000 | V125: 80,000 | W125: 0 | X125: 2,000,000 | Y125: 0 | Z125: -201,573 | AA125: 2,000,000 | AB125: 4,033,939 | AC125: 101.70% | AD125: 3,953,939 | AE125: 80,000 | AF125: 0 | AG125: 0 | AH125: 10.34% | AJ125: 80,000 | AK125: 0.00% | AL125: 0 | AN125: 0 | AO125: 0
A126: CBP/M | B126: 13257 | C126: Add a Waste Water Pump in EB/SM | D126: Completed | E126: CTE/P | F126: Sun Aihong | G126: Ling Taizhong | H126: 2014-03-11 | I126: 2015-12-11 | J126: 00:00:00 | K126: 00:00:00 | L126: N | M126: ZNIC.013257 | N126: NZNIC013257K | P126: 13257 | Q126: 365,000 | R126: 0 | S126: 445,854 | T126: 15,618,578 | U126: 100,960 | V126: 11,640 | W126: -11,766 | X126: 365,000 | Y126: -15,399,602 | Z126: 26,424 | AA126: 365,000 | AB126: 326,936 | AC126: -10.43% | AD126: 15,618,578 | AE126: 100,960 | AF126: 7,000 | AG126: -15,399,602 | AH126: -7.49% | AI126: -13.52% | AJ126: 11,640 | AK126: 88.56% | AL126: 0 | AM126: 115.07% | AN126: 0 | AO126: 1
A127: CBP/C | B127: 13247 | C127: Modification of Filter System for P230 | D127: Completed | E127: CTE/P | F127: Wang Can | G127: Ling Taizhong | H127: 2014-07-10 | I127: 2015-05-09 | J127: 00:00:00 | K127: 00:00:00 | L127: T_2015 | M127: ZNIC.013247 | N127: NZNIC013247K | P127: 13247 | Q127: 1,055,000 | R127: 495,000 | S127: 1,485,801 | T127: 0 | U127: 123,215 | V127: (65,730) | W127: -9,246 | X127: 1,055,000 | Y127: 0 | Z127: -586,764 | AA127: 1,550,000 | AB127: 123,215 | AC127: -92.05% | AD127: 0 | AE127: 123,215 | AF127: 0 | AG127: 0 | AH127: 88.15% | AI127: -13.41% | AJ127: 0 | AK127: 132.66% | AL127: 0 | AM127: 105.80% | AN127: 1 | AO127: 3
A128: CBP/B | B128: 13244 | C128: Add Spare Exchangers and Filters in BEU | D128: Completed | E128: CTE/P | F128: Gu Jingfeng | G128: Ling Taizhong | H128: 2014-03-11 | I128: 2015-08-07 | J128: 00:00:00 | K128: 00:00:00 | L128: T_2015 | M128: ZNIC.013244 | N128: NZNIC013244K | P128: 13244 | Q128: 5,250,000 | R128: 0 | S128: 5,251,931 | T128: 2,179,329 | U128: 0 | V128: (325,564) | W128: -170,072 | X128: 5,250,000 | Y128: 0 | Z128: 1,619,191 | AA128: 5,250,000 | AB128: 2,180,829 | AC128: -58.46% | AD128: 2,179,329 | AE128: 0 | AF128: 1,500 | AG128: 0 | AH128: -44.80% | AI128: -18.29% | AJ128: 0 | AK128: 181.31% | AL128: 0 | AM128: 156.22% | AN128: 0 | AO128: 7
A129: CEP/S | B129: 13243 | C129: Revamp Rain Drainage System of PS Tank Farm | D129: Completed | E129: CTE/C | F129: Gao Feng | G129: Zhang Zhihe | H129: 2014-07-21 | I129: 2015-08-20 | J129: 00:00:00 | K129: 00:00:00 | L129: H | M129: ZNIC.013243 | N129: NZNIC013243K | P129: 13243 | Q129: 561,000 | R129: 0 | S129: 598,204 | T129: 2,308,011 | U129: 5,000 | V129: 32,768 | W129: -19,676 | X129: 561,000 | Y129: 0 | Z129: 49,510 | AA129: 561,000 | AB129: 2,317,011 | AC129: 313.01% | AD129: 2,308,011 | AE129: 5,000 | AF129: 4,000 | AG129: 0 | AH129: -3.77% | AI129: -18.62% | AJ129: 32,768 | AK129: 81.61% | AL129: 0 | AM129: 119.50% | AN129: 0 | AO129: 3
A130: CAP/E | B130: 13240 | C130: Add Jacket Heat Exchanger on V6700 | D130: Completed | E130: CTE/P | F130: Xie Qiang | G130: Wu Zefei | H130: 2014-01-17 | I130: 2014-09-04 | J130: 00:00:00 | K130: 00:00:00 | L130: N | M130: ZNIC.013240 | N130: NZNIC013240K | P130: 13240 | Q130: 410,000 | R130: 0 | S130: 437,708 | T130: 853,490 | U130: 81,632 | V130: (5,905) | W130: -20,524 | Y130: 0 | AA130: 410,000 | AB130: 936,622 | AC130: 128.44% | AD130: 853,490 | AE130: 81,632 | AF130: 1,500 | AG130: 0 | AI130: -27.27% | AJ130: 0 | AK130: 105.48% | AL130: 0 | AM130: 124.15% | AN130: 0 | AO130: 1
A131: CBL/O | B131: 13236 | C131: Rebuild RTTF Operation Room 1&2 | D131: Completed | E131: CTE/C | F131: Yu Yi | G131: Guo Bing | H131: 2014-09-11 | I131: 2015-10-31 | J131: 00:00:00 | K131: 00:00:00 | L131: N | M131: ZNIC.013236 | N131: NZNIC013236K | P131: 13236 | Q131: 942,000 | R131: 0 | S131: 1,383,028 | T131: 4,188,949 | U131: 0 | V131: (6,810) | W131: 33,188 | X131: 942,000 | Y131: -3,686,178 | Z131: -24,642 | AA131: 942,000 | AB131: 933,454 | AC131: -0.91% | AD131: 4,188,949 | AE131: 0 | AF131: 430,683 | AG131: -3,686,178 | AH131: 50.92% | AI131: -38.72% | AJ131: 0 | AK131: 104.84% | AL131: 33,188 | AM131: 74.65% | AN131: 0 | AO131: 3
A132: CBP/A | B132: 13234 | C132: Replacement of 800-UPS-001 | D132: Completed | E132: CTE/A | F132: Bian Jiacai | G132: Chen Gang | H132: 2014-01-27 | I132: 2015-04-16 | J132: 00:00:00 | K132: 00:00:00 | L132: T_2015 | M132: ZNIC.013234 | N132: NZNIC013234K | P132: 13234 | Q132: 774,000 | R132: 0 | S132: 774,000 | T132: 2,898,798 | U132: 20,095 | V132: 1,252 | W132: -4,677 | X132: 774,000 | Y132: 0 | Z132: 129,054 | AA132: 774,000 | AB132: 2,918,893 | AC132: 277.12% | AD132: 2,898,798 | AE132: 20,095 | AF132: 0 | AG132: 0 | AH132: -21.64% | AI132: 4.82% | AJ132: 1,252 | AK132: 97.48% | AL132: 0 | AM132: 120.74% | AN132: 0 | AO132: 3
A133: CBP/C | B133: 13233 | C133: Replacement of 300-UPS-001 | D133: Completed | E133: CTE/A | F133: Bian Jiacai | G133: Chen Gang | H133: 2014-01-27 | I133: 2015-04-23 | J133: 00:00:00 | K133: 00:00:00 | L133: T_2015 | M133: ZNIC.013233 | N133: NZNIC013233K | P133: 13233 | Q133: 881,000 | R133: 0 | S133: 881,000 | T133: 2,785,888 | U133: 80,000 | V133: 11,560 | W133: -2,796 | X133: 881,000 | Y133: 0 | Z133: 127,409 | AA133: 881,000 | AB133: 2,865,888 | AC133: 225.30% | AD133: 2,785,888 | AE133: 80,000 | AF133: 0 | AG133: 0 | AH133: -18.57% | AI133: 17.74% | AJ133: 11,560 | AK133: 76.78% | AL133: 0 | AM133: 112.40% | AN133: 0 | AO133: 2
A134: CBP/C | B134: 13229 | C134: Replace Economizer with High Efficient Type for SUB | D134: Completed | E134: CTE/P | F134: Qiu Zhufeng | G134: Ling Taizhong | H134: 2014-04-14 | I134: 2015-05-06 | J134: 00:00:00 | K134: 00:00:00 | L134: T_2015 | M134: ZNIC.013229 | N134: NZNIC013229K | P134: 13229 | Q134: 3,054,000 | R134: 1,553,000 | S134: 4,073,939 | T134: 1,404,921 | U134: 0 | V134: (21,154) | W134: -14,625 | X134: 3,054,000 | Y134: 0 | Z134: -196,769 | AA134: 4,607,000 | AB134: 1,444,921 | AC134: -68.64% | AD134: 1,404,921 | AE134: 0 | AF134: 40,000 | AG134: 0 | AH134: 4.78% | AI134: 4.67% | AJ134: 0 | AK134: 112.37% | AL134: 0 | AM134: 110.07% | AN134: 1 | AO134: 0
A135: CCP/A | B135: 13224 | C135: Add 2000m3 DEOA Tank in RTTF | D135: Completed | E135: CTE/P | F135: Jiang Hao/Liu Xiaoli | G135: Xu Yefeng/Zong Baorong | H135: 2014-02-27 | I135: 2015-05-05 | J135: 00:00:00 | K135: 00:00:00 | L135: T_2015 | M135: ZNIC.013224 | N135: NZNIC013224K | P135: 13224 | Q135: 15,880,000 | R135: 0 | S135: 16,101,960 | T135: 163,582 | U135: 44,000 | V135: 332,800 | W135: 202,300 | X135: 15,880,000 | Y135: 0 | Z135: -54,575 | AA135: 15,880,000 | AB135: 207,582 | AC135: -98.69% | AD135: 163,582 | AE135: 44,000 | AF135: 0 | AG135: 0 | AH135: 56.40% | AI135: -27.37% | AJ135: 332,800 | AK135: 0.00% | AL135: 202,300 | AM135: 18.95% | AN135: 0 | AO135: 0
A136: CTS/U | B136: 13209 | C136: Adding a New Ultrasonic Flowmeter on DM Water in CLWI | D136: Hold | E136: CTA/U | F136: Yu Yong | G136: Yu Yong | H136: 2013-10-10 | I136: 00:00:00 | J136: 00:00:00 | K136: 00:00:00 | L136: N | M136: ZNIC.013209 | N136: NZNIC013209K | P136: 13209 | Q136: 90,000 | R136: 0 | S136: 213,215 | T136: 5,873,055 | U136: 1,583,693 | V136: 0 | W136: 5,000 | X136: 90,000 | Y136: -7,371,748 | Z136: 0 | AA136: 90,000 | AB136: 85,000 | AC136: -5.56% | AD136: 5,873,055 | AE136: 1,583,693 | AF136: 0 | AG136: -7,371,748 | AJ136: 0 | AL136: 5,000 | AM136: 0.00% | AN136: 0 | AO136: 0
A137: COO/C | B137: 13198 | C137: NPG_TMA Supply from C1 Plant | D137: Completed | E137: CTE/P | F137: Sun Duoxun | G137: Jiang Haijin | H137: 2013-09-11 | I137: 2015-06-05 | J137: 00:00:00 | K137: 00:00:00 | L137: T_2015 | M137: ZNIC.131198 | N137: NZNIC013198K | P137: 13198 | Q137: 1,676,000 | R137: 0 | S137: 2,185,329 | T137: 914,799 | U137: 0 | V137: (352,510) | W137: -287,309 | X137: 1,676,000 | Y137: 0 | Z137: 129,032 | AA137: 1,676,000 | AB137: 920,799 | AC137: -45.06% | AD137: 914,799 | AE137: 0 | AF137: 6,000 | AG137: 0 | AH137: -31.39% | AI137: 0.43% | AJ137: 0 | AL137: 0 | AN137: 0 | AO137: 4
A138: COO/O | B138: 13197 | C138: NPG_IBA Supply from OXO Plant | D138: Completed | E138: CTE/P | F138: Sun Duoxun | G138: Jiang Haijin | H138: 2013-09-11 | I138: 2015-06-03 | J138: 00:00:00 | K138: 00:00:00 | L138: T_2015 | M138: ZNIC.131197 | N138: NZNIC013197K | P138: 13197 | Q138: 1,720,000 | R138: 0 | S138: 2,319,011 | T138: 952,567 | U138: 0 | V138: (345,334) | W138: -276,334 | X138: 1,720,000 | Y138: 0 | Z138: 328,807 | AA138: 1,720,000 | AB138: 958,567 | AC138: -44.27% | AD138: 952,567 | AE138: 0 | AF138: 6,000 | AG138: 0 | AH138: -39.10% | AI138: -17.22% | AJ138: 0 | AL138: 0 | AN138: 0 | AO138: 3
A139: CBP/M | B139: 13195 | C139: Replace an Air Dryer | D139: On Going | E139: CTE/P | F139: Ding Juntao | G139: Ling Taizhong | H139: 2014-12-24 | I139: 00:00:00 | J139: 00:00:00 | K139: 00:00:00 | L139: N | M139: ZNIC.008126 | N139: NZNIC013195K | P139: 13195 | Q139: 1,344,000 | R139: 0 | S139: 1,596,491 | T139: 1,128,416 | U139: 3,111 | V139: (49,443) | W139: -27,500 | X139: 1,344,000 | Y139: -215,421 | Z139: 171,915 | AA139: 1,344,000 | AB139: 1,172,085 | AC139: -12.79% | AD139: 1,128,416 | AE139: 3,111 | AF139: 255,979 | AG139: -215,421 | AH139: -19.30% | AI139: -46.85% | AJ139: 0 | AK139: 136.40% | AL139: 0 | AM139: 119.61% | AN139: 0 | AO139: 6
A140: CBP/C | B140: 13190 | C140: Add Explosion-proof Monitoring Camera in BCC&SCTF | D140: Completed | E140: CTE/A | F140: Bian Jiacai | G140: Chen Gang | H140: 2014-02-10 | I140: 2015-06-30 | J140: 00:00:00 | K140: 00:00:00 | L140: N | M140: ZNIC.013190 | N140: NZNIC013190K | P140: 13190 | Q140: 5,665,000 | R140: 0 | S140: 5,675,760 | T140: 12,384,256 | U140: 6,752 | V140: 2,820 | W140: -18,150 | X140: 5,665,000 | Y140: 0 | Z140: 1,068,608 | AA140: 5,665,000 | AB140: 12,391,008 | AC140: 118.73% | AD140: 12,384,256 | AE140: 6,752 | AF140: 0 | AG140: 0 | AH140: -23.70% | AI140: -5.86% | AJ140: 2,820 | AK140: 98.62% | AL140: 0 | AM140: 106.67% | AN140: 0 | AO140: 0
A141: CBP/M | B141: 13189 | C141: Air-conditioning System Modification in CCR of 7100 | D141: Completed | E141: CTE/C | F141: Gao Feng | G141: Wang Wei | H141: 2014-01-28 | I141: 2015-06-30 | J141: 00:00:00 | K141: 00:00:00 | L141: N | M141: ZNIC.013189 | N141: NZNIC013189K | P141: 13189 | Q141: 4,234,000 | R141: 0 | S141: 4,398,544 | T141: 1,479,893 | U141: 0 | V141: (54,198) | W141: 9,569 | Y141: 0 | AA141: 4,234,000 | AB141: 1,493,478 | AC141: -64.73% | AD141: 1,479,893 | AE141: 0 | AF141: 13,585 | AG141: 0 | AI141: -19.36% | AJ141: 0 | AK141: 123.24% | AL141: 9,569 | AM141: 94.14% | AN141: 0 | AO141: 2
A142: CBP/M | B142: 13184 | C142: Modify Waste Water System for EB/SM Tank Farm | D142: Completed | E142: CTE/P | F142: Sun Aihong | G142: Ling Taizhong | H142: 2014-04-24 | I142: 2015-11-06 | J142: 00:00:00 | K142: 00:00:00 | L142: T_2015 | M142: ZNIC.013184 | N142: NZNIC013184K | P142: 13184 | Q142: 4,080,000 | R142: 0 | S142: 4,814,735 | T142: 200,822 | U142: 0 | V142: (20,197) | W142: -169,055 | X142: 4,080,000 | Y142: 2,328,005 | Z142: 1,233,088 | AA142: 4,080,000 | AB142: 2,846,912 | AC142: -30.22% | AD142: 200,822 | AE142: 0 | AF142: 318,085 | AG142: 2,328,005 | AH142: -35.79% | AI142: -21.21% | AJ142: 0 | AK142: 107.46% | AL142: 0 | AM142: 147.73% | AN142: 0 | AO142: 5
A143: CEP/S | B143: 13165 | C143: Control System of Pelletizing Upgrading in HIPS | D143: Completed | E143: CTE/A | F143: Gong Feibao | G143: Zeng Qing | H143: 2013-11-13 | I143: 2015-05-28 | J143: 00:00:00 | K143: 00:00:00 | L143: T_2015 | M143: ZNIC.013165 | N143: NZNIC013165K | P143: 13165 | Q143: 1,139,000 | R143: 91,000 | S143: 1,404,921 | T143: 1,792,040 | U143: 8,000 | V143: 58,600 | W143: 77,500 | X143: 1,139,000 | Y143: 0 | Z143: -640,000 | AA143: 1,230,000 | AB143: 1,800,040 | AC143: 46.34% | AD143: 1,792,040 | AE143: 8,000 | AF143: 0 | AG143: 0 | AH143: 66.67% | AJ143: 58,600 | AK143: 38.96% | AL143: 77,500 | AM143: 0.00% | AN143: 0 | AO143: 0
A144: CBP/C | B144: 13156 | C144: Add a Control Valve on K650 Outlet Line to Flare | D144: Completed | E144: CTE/P | F144: Qiu Zhufeng | G144: Li Hong | H144: 2013-12-17 | I144: 2015-04-28 | J144: 00:00:00 | K144: 00:00:00 | L144: T_2015 | M144: ZNIC.013156 | N144: NZNIC013156K | P144: 13156 | Q144: 340,000 | R144: 0 | S144: 390,000 | T144: 2,569,716 | U144: 6,557 | V144: 22,600 | W144: -9,034 | X144: 340,000 | Y144: 0 | Z144: 37,188 | AA144: 340,000 | AB144: 2,576,273 | AC144: 657.73% | AD144: 2,569,716 | AE144: 6,557 | AF144: 0 | AG144: 0 | AH144: -22.75% | AI144: -42.71% | AJ144: 22,600 | AK144: 67.13% | AL144: 0 | AM144: 121.19% | AN144: 0 | AO144: 0
A145: CAP/A | B145: 13133 | C145: Add New Restab Unit System | D145: Completed | E145: CTE/P | F145: Zhu Jianxin | G145: Wu Zefei | H145: 2014-01-24 | I145: 2014-12-16 | J145: 00:00:00 | K145: 00:00:00 | L145: H | M145: ZNIC.013133 | N145: NZNIC013133K | P145: 13133 | Q145: 8,751,000 | R145: 0 | S145: 10,339,693 | T145: 987,740 | U145: 0 | V145: (619,842) | W145: -265,473 | X145: 8,751,000 | Y145: 0 | Z145: 1,411,008 | AA145: 8,751,000 | AB145: 992,740 | AC145: -88.66% | AD145: 987,740 | AE145: 0 | AF145: 5,000 | AG145: 0 | AH145: -26.34% | AI145: -33.37% | AJ145: 0 | AK145: 201.45% | AL145: 0 | AM145: 136.92% | AN145: 9 | AO145: 7
A146: CBP/M | B146: 13120 | C146: EB/SM Plant Paging System Modification | D146: Completed | E146: CTA/S | F146: Dai Xiaolong | G146: Qiu Wei | H146: 2013-07-10 | I146: 2015-06-30 | J146: 00:00:00 | K146: 00:00:00 | L146: N | M146: ZNIC.013120 | N146: NZNIC013120K | P146: 13120 | Q146: 950,000 | R146: 0 | S146: 963,899 | T146: 488,549 | U146: 35,000 | V146: (4,714) | W146: 4,951 | X146: 950,000 | Y146: 0 | Z146: -159,530 | AA146: 950,000 | AB146: 537,448 | AC146: -43.43% | AD146: 488,549 | AE146: 35,000 | AF146: 13,899 | AG146: 0 | AH146: 24.09% | AI146: -6.73% | AJ146: 0 | AK146: 147.14% | AL146: 4,951 | AM146: 83.50% | AN146: 0 | AO146: 1
A147: CEP/S | B147: 13115 | C147: PS&EPS Plant Paging System Modification | D147: Completed | E147: CTA/S | F147: Dai Xiaolong | G147: Qiu Wei | H147: 2013-07-10 | I147: 2015-06-30 | J147: 00:00:00 | K147: 00:00:00 | L147: H | M147: ZNIC.013115 | N147: NZNIC013115K | P147: 13115 | Q147: 1,050,000 | R147: 0 | S147: 1,050,000 | T147: 10,398,219 | U147: 55,160 | V147: (18,875) | W147: 30,000 | X147: 1,050,000 | Y147: 0 | Z147: -143,097 | AA147: 1,050,000 | AB147: 10,453,379 | AC147: 895.56% | AD147: 10,398,219 | AE147: 55,160 | AF147: 0 | AG147: 0 | AH147: 20.01% | AI147: -14.74% | AJ147: 0 | AK147: 288.75% | AL147: 30,000 | AM147: 0.00% | AN147: 0 | AO147: 0
A148: CEP/S | B148: 13114 | C148: Add Back Flow Protection in Utility Supply Pipes | D148: Completed | E148: CTE/P | F148: Gu Jingfeng | G148: Zhang Fanwen | H148: 2013-08-29 | I148: 2015-05-05 | J148: 00:00:00 | K148: 00:00:00 | L148: T_2015 | M148: ZNIC.013114 | N148: NZNIC013114K | P148: 13114 | Q148: 1,996,000 | R148: 0 | S148: 1,999,111 | T148: 17,404,455 | U148: 88,867 | V148: (45,661) | W148: -17,169 | X148: 1,996,000 | Y148: 0 | Z148: 618,080 | AA148: 1,996,000 | AB148: 17,493,321 | AC148: 776.42% | AD148: 17,404,455 | AE148: 88,867 | AF148: 0 | AG148: 0 | AH148: -72.48% | AI148: -20.94% | AJ148: 0 | AK148: 127.58% | AL148: 0 | AM148: 109.60% | AN148: 0 | AO148: 2
A149: CTS/U | B149: 13112 | C149: CLWI Modification | D149: Completed | E149: CTE/P | F149: Zhou Yanduo | G149: Zhang Fanwen | H149: 2013-11-04 | I149: 2015-01-13 | J149: 2015-07-10 | K149: 00:00:00 | L149: H | M149: ZNIC.013112 | N149: NZNIC013112K | P149: 13112 | Q149: 16,000,000 | R149: 0 | S149: 16,045,806 | T149: 9,200,387 | U149: 872 | V149: (7,723,527) | W149: -493,586 | X149: 16,000,000 | Y149: 0 | Z149: 1,068,188 | AA149: 16,000,000 | AB149: 9,240,313 | AC149: -42.25% | AD149: 9,200,387 | AE149: 872 | AF149: 39,054 | AG149: 0 | AH149: -5.85% | AI149: -22.81% | AJ149: 0 | AK149: 3189.41% | AL149: 0 | AM149: 335.04% | AN149: 6 | AO149: 15
A150: CCP/A | B150: 13106 | C150: Add a EDA Recycle Pump to Produce More PIP/DETA | D150: Completed | E150: CTE/P | F150: Li Shouqing | G150: Wang Wei | H150: 2013-08-07 | I150: 2014-08-31 | J150: 00:00:00 | K150: 00:00:00 | L150: T | M150: ZNIC.013106 | N150: NZNIC013106K | P150: 13106 | Q150: 1,715,000 | R150: 0 | S150: 1,715,000 | T150: 35,347,527 | U150: 0 | V150: 17,615 | W150: -115,361 | X150: 1,715,000 | Y150: 0 | Z150: 247,601 | AA150: 1,715,000 | AB150: 35,347,527 | AC150: 1961.08% | AD150: 35,347,527 | AE150: 0 | AF150: 0 | AG150: 0 | AH150: -18.84% | AI150: -26.87% | AJ150: 17,615 | AK150: 93.17% | AL150: 0 | AM150: 183.90% | AN150: 0 | AO150: 2
A151: CBP/C | B151: 13105 | C151: Add a Gasoline Reflux Pump for Quench Oil Fractionator | D151: Canceled | E151: CTE/P | F151: Sun Aihong | G151: Ling Taizhong | H151: 2014-02-08 | I151: 00:00:00 | J151: 00:00:00 | K151: 00:00:00 | L151: T_2015 | M151: ZNIC.013105 | N151: NZNIC013105K | P151: 13105 | Q151: 1,947,000 | R151: 0 | S151: 1,947,000 | T151: 1,225,101 | U151: 0 | V151: 143,495 | W151: 239,488 | X151: 1,947,000 | Y151: 267,487 | Z151: 71,429 | AA151: 1,947,000 | AB151: 1,492,588 | AC151: -23.34% | AD151: 1,225,101 | AE151: 0 | AF151: 0 | AG151: 267,487 | AH151: -3.62% | AI151: -77.76% | AJ151: 143,495 | AK151: 46.32% | AL151: 239,488 | AM151: 18.07% | AN151: 0 | AO151: 0
A152: CTA | B152: 13096 | C152: C402 HVAC Replacement and Roof Repair | D152: Completed | E152: CTE/C | F152: Yu Yi | G152: Wang Wei | H152: 2013-11-25 | I152: 2015-02-05 | J152: 00:00:00 | K152: 00:00:00 | L152: N | M152: ZNIC.013096 | N152: NZNIC013096K | P152: 13096 | Q152: 2,660,000 | R152: 0 | S152: 2,668,000 | T152: 198,962 | U152: 0 | V152: (49,810) | W152: -426,602 | X152: 2,660,000 | Y152: 0 | Z152: 678,664 | AA152: 2,660,000 | AB152: 198,962 | AC152: -92.52% | AD152: 198,962 | AE152: 0 | AF152: 0 | AG152: 0 | AH152: -42.96% | AI152: -15.33% | AJ152: 0 | AK152: 125.95% | AL152: 0 | AM152: 336.48% | AN152: 0 | AO152: 2
A153: CBP/C | B153: 13081 | C153: Replace the Electric Heat Tracing on Furnaces | D153: On Going | E153: CTE/A | F153: Wang Zhen | G153: Li Hong | H153: 2013-09-04 | I153: 00:00:00 | J153: 00:00:00 | K153: 00:00:00 | L153: T_2015 | M153: ZNIC.013081 | N153: NZNIC013081K | P153: 13081 | Q153: 3,238,000 | R153: 0 | S153: 3,564,454 | T153: 3,390,558 | U153: 0 | V153: (19,825) | W153: -314,050 | X153: 3,238,000 | Y153: -856,972 | Z153: 409,517 | AA153: 3,238,000 | AB153: 2,828,483 | AC153: -12.65% | AD153: 3,390,558 | AE153: 0 | AF153: 294,897 | AG153: -856,972 | AH153: -24.30% | AI153: -13.29% | AJ153: 0 | AK153: 104.56% | AL153: 0 | AM153: 159.48% | AN153: 0 | AO153: 0
A154: CEP/L | B154: 13064 | C154: Fire Alarm System Modification in PS/EPS Logistics | D154: Completed | E154: CTE/A | F154: Hu Xiao | G154: Zhang Pu | H154: 2013-09-02 | I154: 2014-05-27 | J154: 00:00:00 | K154: 00:00:00 | L154: H | M154: ZNIC.013064 | N154: NZNIC013064K | P154: 13064 | Q154: 977,000 | R154: 0 | S154: 987,740 | T154: 7,811,055 | U154: 202,040 | V154: (27,880) | W154: 16,225 | X154: 977,000 | Y154: 0 | Z154: 36,997 | AA154: 977,000 | AB154: 8,013,095 | AC154: 720.17% | AD154: 7,811,055 | AE154: 202,040 | AF154: 0 | AG154: 0 | AH154: -5.32% | AI154: -4.12% | AJ154: 0 | AK154: 123.25% | AL154: 16,225 | AM154: 91.18% | AN154: 0 | AO154: 2
A155: CBP/C | B155: 13060 | C155: Add Two Inhibiter Injection Pumps | D155: Completed | E155: CTE/P | F155: Sun Aihong | G155: Ling Taizhong | H155: 2014-03-26 | I155: 2015-05-09 | J155: 00:00:00 | K155: 00:00:00 | L155: T_2015 | M155: ZNIC.013060 | N155: NZNIC013060K | P155: 13060 | Q155: 650,000 | R155: 0 | S155: 685,000 | T155: 1,995,929 | U155: 0 | V155: (1,995) | W155: 36,766 | X155: 650,000 | Y155: 0 | Z155: -44,714 | AA155: 650,000 | AB155: 1,995,929 | AC155: 207.07% | AD155: 1,995,929 | AE155: 0 | AF155: 0 | AG155: 0 | AH155: 16.45% | AI155: -26.68% | AJ155: 0 | AK155: 101.49% | AL155: 36,766 | AM155: 71.06% | AN155: 0 | AO155: 1
A156: CAP/L | B156: 13058 | C156: IS/IT Project for NASA | D156: Completed | E156: CFA | F156: Liu Min | G156: Tao Yang | H156: 2013-05-13 | I156: 2014-07-01 | J156: 2014-12-22 | K156: 00:00:00 | L156: N | M156: ZNIC.013058 | N156: NZNIC013058K | P156: 13058 | Q156: 10,180,000 | R156: 2,092,000 | S156: 10,453,379 | T156: 827,631 | U156: 0 | V156: (1,839,307) | W156: 0 | X156: 10,180,000 | Y156: 0 | Z156: 0 | AA156: 12,272,000 | AB156: 827,631 | AC156: -93.26% | AD156: 827,631 | AE156: 0 | AF156: 0 | AG156: 0 | AJ156: 0 | AL156: 0 | AN156: 0 | AO156: 0
A157: CCP/A | B157: 13054 | C157: Add 2000m3 EDA Tank in RTTF | D157: Completed | E157: CTE/P | F157: Jiang Hao/Liu Xiaoli | G157: Xu Yefeng/Zong Baorong | H157: 2014-02-27 | I157: 2015-05-05 | J157: 00:00:00 | K157: 00:00:00 | L157: T_2015 | M157: ZNIC.013054 | N157: NZNIC013054K | P157: 13054 | Q157: 15,880,000 | R157: 0 | S157: 17,551,322 | T157: 991,416 | U157: 0 | V157: (517,624) | W157: -720,913 | X157: 15,880,000 | Y157: 0 | Z157: 24,293 | AA157: 15,880,000 | AB157: 1,040,416 | AC157: -93.45% | AD157: 991,416 | AE157: 0 | AF157: 49,000 | AG157: 0 | AH157: 37.81% | AI157: -30.24% | AJ157: 0 | AK157: 266.76% | AL157: 0 | AM157: 409.67% | AN157: 0 | AO157: 1
A158: CBP/P | B158: 13016 | C158: MarkV Upgrade of Gas Turbines Control System, Power Plant | D158: On Going | E158: CTA/U | F158: Lei Yufa | G158: He Zhengyu | H158: 2013-02-01 | I158: 00:00:00 | J158: 00:00:00 | K158: 00:00:00 | L158: N | M158: ZNIC.013016 | N158: NZNIC013016K | P158: 13016 | Q158: 18,000,000 | R158: 0 | S158: 18,075,872 | T158: 23,104,108 | U158: 120,000 | V158: 460,845 | W158: -267,897 | X158: 18,000,000 | Y158: -11,812,115 | Z158: 6,127,162 | AA158: 18,000,000 | AB158: 11,411,993 | AC158: -36.60% | AD158: 23,104,108 | AE158: 120,000 | AF158: 0 | AG158: -11,812,115 | AH158: -38.98% | AI158: 4.95% | AJ158: 460,845 | AK158: 29.10% | AL158: 0 | AM158: 189.30% | AN158: 0 | AO158: 0
A159: CBP/C | B159: 12137 | C159: Replace Radiant Section Tubes for 7 Liquid Furnaces | D159: Completed | E159: CTE/P | F159: Zhou Yanduo | G159: Tong Shaojian | H159: 2013-04-17 | I159: 2015-12-02 | J159: 00:00:00 | K159: 00:00:00 | L159: T | M159: ZNIC.012137 | N159: NZNIC012137K | P159: 12137 | Q159: 58,500,000 | R159: 0 | S159: 63,756,970 | T159: 359,674 | U159: 794,340 | V159: 21,414 | W159: 1,324,100 | X159: 58,500,000 | Y159: 53,732,810 | Z159: 2,051,892 | AA159: 58,500,000 | AB159: 55,102,593 | AC159: -5.81% | AD159: 359,674 | AE159: 794,340 | AF159: 215,770 | AG159: 53,732,810 | AH159: 1.45% | AI159: -16.68% | AJ159: 21,414 | AK159: 93.43% | AL159: 1,324,100 | AM159: 44.53% | AN159: 0 | AO159: 27
A160: CBP/B | B160: 12119 | C160: Add a Filter to Remove Metal Ions from IBOL | D160: Completed | E160: CTE/P | F160: Sun Aihong | G160: Ling Taizhong | H160: 2013-03-26 | I160: 2014-05-22 | J160: 2015-07-31 | K160: 00:00:00 | L160: N | M160: ZNIC.012119 | N160: NZNIC012119K | P160: 12119 | Q160: 1,570,000 | R160: 0 | S160: 1,571,500 | T160: 0 | U160: 0 | V160: (172,048) | W160: -78,711 | Y160: 0 | AA160: 1,570,000 | AB160: 1,500 | AC160: -99.90% | AD160: 0 | AE160: 0 | AF160: 1,500 | AG160: 0 | AI160: -23.81% | AJ160: 0 | AK160: 177.85% | AL160: 0 | AM160: 154.28% | AN160: 0 | AO160: 7
A161: CBP/B | B161: 12071 | C161: Add Raffinate I Washer Column System in BD Plant | D161: Completed | E161: CTE/P | F161: Cao Lin | G161: Wang Yuncai | H161: 2013-09-09 | I161: 2014-10-27 | J161: 00:00:00 | K161: 00:00:00 | L161: T_2015 | M161: ZNIC.012071 | N161: NZNIC012071K | P161: 12071 | Q161: 8,622,000 | R161: 0 | S161: 8,824,040 | T161: 0 | U161: 0 | V161: (1,043,844) | W161: -535,306 | X161: 8,622,000 | Y161: 0 | Z161: -75,000 | AA161: 8,622,000 | AB161: 0 | AC161: -100.00% | AD161: 0 | AE161: 0 | AF161: 0 | AG161: 0 | AH161: 9.06% | AI161: -10.71% | AJ161: 0 | AK161: 251.59% | AL161: 0 | AM161: 159.95% | AN161: 2 | AO161: 10
A162: CTS/P | B162: 12044 | C162: Cooling Water Expansion from PP to Syngas | D162: Completed | E162: CTE/P | F162: Sun Duoxun | G162: Wu Zefei | H162: 2014-05-05 | I162: 2015-04-27 | J162: 00:00:00 | K162: 00:00:00 | L162: T_2015 | M162: ZNIC.012044 | N162: NZNIC012044K | P162: 12044 | Q162: 3,830,000 | R162: 0 | S162: 3,834,800 | T162: 0 | U162: 0 | V162: (61,073) | W162: -40,306 | X162: 3,830,000 | Y162: 0 | Z162: 1,054,975 | AA162: 3,830,000 | AB162: 0 | AC162: -100.00% | AD162: 0 | AE162: 0 | AF162: 0 | AG162: 0 | AH162: -40.93% | AI162: -19.64% | AJ162: 0 | AK162: 128.77% | AL162: 0 | AM162: 128.91% | AN162: 0 | AO162: 1
A163: CBP/M | B163: 11229 | C163: Revamp Dosing System of Cooling System of EB/SM | D163: Completed | E163: CTE/P | F163: Zhu Jianxin | G163: Ling Taizhong | H163: 2014-03-11 | I163: 2015-05-09 | J163: 00:00:00 | K163: 00:00:00 | L163: H | M163: ZNIC.011229 | N163: NZNIC011229K | P163: 11229 | Q163: 1,099,000 | R163: 0 | S163: 1,101,000 | T163: 0 | U163: 0 | V163: (191,657) | W163: -142,194 | X163: 1,099,000 | Y163: 0 | Z163: 224,643 | AA163: 1,099,000 | AB163: 2,000 | AC163: -99.82% | AD163: 0 | AE163: 0 | AF163: 2,000 | AG163: 0 | AH163: -1.28% | AI163: -38.30% | AJ163: 0 | AK163: 185.20% | AL163: 0 | AM163: 180.79% | AN163: 2 | AO163: 6

Sheet Sheet6 (hidden)
A1: Cost Overview for Projects
A2: B.U. | B2: Job | C2: Project Title | D2: Job Status | E2: Lead By | F2: P.M. | G2: C.M. | H2: Approval Date | I2: Hiden Information | AA2: Approved Budget 1 | AB2: Estimated Final Cost 5=2+3+4 | AC2: Devi.(%) (5-1)/1 | AD2: Actual 2 | AE2: Committed 3 | AG2: Cost to complete 4 | AH2: Devi.(%) _POPR | AI2: Devi.(%) _SSR | AJ2: Internal Engineering Cost | AL2: Internal Const.Supervsn Cost | AN2: Wrong Booking Indicator
I3: M.C.Date | J3: TCCC Date | K3: Business Closure Date | L3: Priority | M3: WBS Account | N3: Netowrk | O3: Actual Cost Migrated? | P3: Job No. | Q3: Original Budget | R3: Budget Change | S3: Final cost | T3: Actual cost | U3: Commitment | V3: Rem.M.H (Eng) | W3: Rem.M.H (Con.Sup) | X3: Budget(used to calculate C2C) | Y3: Cost to complete | Z3: Saved Cost | AE3: PR/PO | AF3: SSR | AJ3: Rem M.H. /RMB | AK3: Compl (%) | AL3: Rem M.H. /RMB | AM3: Compl (%) | AN3: Material | AO3: SSR
A4: CBP/C | B4: 15292 | C4: Modification of the Furnace Burners | D4: On Going | E4: CTE/P | F4: Ding Juntao | G4: 0 | H4: 42369 | I4: 0 | J4: 0 | K4: 0 | L4: N | M4: ZNIC.011312 | N4: NZNIC015292K | P4: 15292 | Q4: 0 | R4: 0 | S4: 0 | T4: 0 | U4: 2560000 | V4: 90000 | W4: 0 | X4: 0 | Y4: -2650000 | Z4: 0 | AA4: 0 | AB4: -90000 | AD4: 0 | AE4: 2560000 | AF4: 0 | AG4: -2650000 | AJ4: 90000 | AK4: 0 | AL4: 0 | AN4: 0 | AO4: 0
A5: CEP/L | B5: 15278 | C5: Upgrade the HIPS Palletizer | D5: On Going | E5: CTE/P | F5: Zhou Yanduo | G5: Wu Zefei | H5: 42368 | I5: 0 | J5: 0 | K5: 0 | L5: N | M5: ZNIC.011307 | N5: NZNIC015278K | P5: 15278 | Q5: 1826000 | R5: 0 | S5: 0 | T5: 0 | U5: 1300000 | V5: 117000 | W5: 97000 | X5: 1826000 | Y5: 312000 | Z5: 0 | AA5: 1826000 | AB5: 1612000 | AC5: -0.117196057 | AD5: 0 | AE5: 1300000 | AF5: 0 | AG5: 312000 | AJ5: 117000 | AK5: 0 | AL5: 97000 | AM5: 0 | AN5: 0 | AO5: 0
A6: CTE | B6: 15277 | C6: Add New Road Lamps at 5# Gate and ChengPin Road | D6: On Going | E6: CTE/A | F6: Bian Jiacai | G6: Sun Zhongpin | H6: 42360 | I6: 0 | J6: 0 | K6: 0 | L6: N | M6: ZNIF.623100.15.01 | N6: NZNIC015277K | P6: 15277 | Q6: 538000 | R6: 0 | S6: 16500 | T6: 0 | U6: 0 | V6: 0 | W6: 0 | X6: 538000 | Y6: 538000 | Z6: 0 | AA6: 538000 | AB6: 538000 | AC6: 0 | AD6: 0 | AE6: 0 | AF6: 0 | AG6: 538000 | AJ6: 0 | AL6: 0 | AN6: 0 | AO6: 0
A7: CBP/U | B7: 15267 | C7: Add a Pressure Control valve on CR Line | D7: On Going | E7: CTE/P | F7: Yu Xiya | G7: Jiang Haijing | H7: 42356 | I7: 0 | J7: 0 | K7: 0 | L7: N | M7: ZNIF.623350.15.01 | N7: NZNIC015267K | P7: 15267 | Q7: 676000 | R7: 0 | S7: 0 | T7: 0 | U7: 0 | V7: 90000 | W7: 110000 | X7: 676000 | Y7: 476000 | Z7: 0 | AA7: 676000 | AB7: 476000 | AC7: -0.2958579882 | AD7: 0 | AE7: 0 | AF7: 0 | AG7: 476000 | AJ7: 90000 | AK7: 0 | AL7: 110000 | AM7: 0 | AN7: 0 | AO7: 0
A8: CBP/U | B8: 15263 | C8: Adding Monitoring System for YBS Utility | D8: Completed | E8: CTE/A | F8: Hu Xiao | G8: Sun Zhongpin | H8: 42328 | I8: 42369 | J8: 0 | K8: 0 | L8: H | M8: ZNIF.620051.15.01 | N8: NZNIC015263K | P8: 15263 | Q8: 478000 | R8: 0 | S8: 770390 | T8: 14152.7 | U8: 86534.19 | V8: 0 | W8: 0 | X8: 478000 | Y8: 165376.21 | Z8: 81646.9 | AA8: 478000 | AB8: 396353.1 | AC8: -0.1708094142 | AD8: 14152.7 | AE8: 86534.19 | AF8: 130290 | AG8: 165376.21 | AH8: -0.4093590913 | AJ8: 0 | AL8: 0 | AN8: 0 | AO8: 0
A9: COA/A | B9: 15256 | C9: Add One Common Spare Motor for GAA Molten Salt Pumps | D9: On Going | E9: CTA/L | F9: Zhu Qiang | G9: N/A | H9: 42297 | I9: 0 | J9: 0 | K9: 0 | L9: N | M9: ZNIC.010728 | N9: NZNIC015256K | P9: 15256 | Q9: 2750000 | R9: 0 | S9: 2750000 | T9: 0 | U9: 0 | V9: 6000 | W9: 0 | X9: 2750000 | Y9: 2744000 | Z9: 0 | AA9: 2750000 | AB9: 2744000 | AC9: -0.002181818182 | AD9: 0 | AE9: 0 | AF9: 0 | AG9: 2744000 | AJ9: 6000 | AK9: 0 | AL9: 0 | AN9: 0 | AO9: 0
A10: COA/A | B10: 15247 | C10: B450/B550 MCC Modification | D10: On Going | E10: CTA/L | F10: Yi Yongjun | G10: Sun Zhongpin | H10: 42285 | I10: 0 | J10: 0 | K10: 0 | L10: H | M10: ZNIC.010582 | N10: NZNIC015247K | P10: 15247 | Q10: 3500000 | R10: 0 | S10: 4610377 | T10: 25300 | U10: 1110376.9 | V10: 109450 | W10: 177250 | X10: 3500000 | Y10: 1550400 | Z10: 527223.1 | AA10: 3500000 | AB10: 2686076.9 | AC10: -0.2325494571 | AD10: 25300 | AE10: 1110376.9 | AF10: 0 | AG10: 1550400 | AH10: -0.3219486444 | AJ10: 109450 | AK10: 0.1708333333 | AL10: 177250 | AM10: 0.01527777778 | AN10: 0 | AO10: 0
A11: COA/E | B11: 15246 | C11: C7100,C77100,C77400 Raplace the Boken Trays | D11: On Going | E11: CTM/A | F11: Ling Wenqing | G11: Shi Jinsong | H11: 42264 | I11: 0 | J11: 0 | K11: 0 | L11: N | M11: ZNIC.010345 | N11: NZNIC015246K | P11: 15246 | Q11: 2687000 | R11: 0 | S11: 4141957 | T11: 0 | U11: 1454957.27 | V11: 0 | W11: 0 | X11: 2687000 | Y11: 934342.74 | Z11: 297699.99 | AA11: 2687000 | AB11: 2389300.01 | AC11: -0.1107927019 | AD11: 0 | AE11: 1454957.27 | AF11: 0 | AG11: 934342.74 | AH11: -0.148849995 | AJ11: 0 | AL11: 0 | AN11: 0 | AO11: 0
A12: COO/A | B12: 15245 | C12: Install Filters on the Bottom Discharge Lines of C2300 and C2500 | D12: On Going | E12: CTE/P | F12: Zhang Bianlin | G12: Jiang Haijin | H12: 42339 | I12: 0 | J12: 0 | K12: 0 | L12: N | M12: ZNIC.011107 | N12: NZNIC015245K | P12: 15245 | Q12: 1252000 | R12: 0 | S12: 1998000 | T12: 4400 | U12: 669959.87 | V12: 165600 | W12: 130000 | X12: 1252000 | Y12: 199463.08 | Z12: 82577.05 | AA12: 1252000 | AB12: 873822.95 | AC12: -0.3020583466 | AD12: 4400 | AE12: 669959.87 | AF12: 0 | AG12: 199463.08 | AH12: -0.2866521646 | AJ12: 165600 | AK12: 0.02588235294 | AL12: 130000 | AM12: 0 | AN12: 0 | AO12: 0
A13: CEP/S | B13: 15242 | C13: Relocation the Cable of PS Plant | D13: On Going | E13: CTE/A | F13: Bian Jiacai | G13: Sun Zhongpin | H13: 42334 | I13: 0 | J13: 0 | K13: 0 | L13: N | M13: ZNIC.011082 | N13: NZNIC015242K | P13: 15242 | Q13: 3196000 | R13: 0 | S13: 3196000 | T13: 9330 | U13: 800000 | V13: 326670 | W13: 198000 | X13: 3196000 | Y13: 1862000 | Z13: 0 | AA13: 3196000 | AB13: 2671330 | AC13: -0.1641645807 | AD13: 9330 | AE13: 800000 | AF13: 0 | AG13: 1862000 | AJ13: 326670 | AK13: 0.02776785714 | AL13: 198000 | AM13: 0 | AN13: 0 | AO13: 0
A14: CBP/B | B14: 15198 | C14: Install two CCTVs in BD Plant | D14: On Going | E14: CTE/A | F14: Hu Xiao | G14: Chen Gang | H14: 42305 | I14: 0 | J14: 0 | K14: 0 | L14: N | M14: ZNIF.104500.15.03 | N14: NZNIC015198K | P14: 15198 | Q14: 217000 | R14: 0 | S14: 337980 | T14: 762.24 | U14: 105748.42 | V14: 0 | W14: 0 | X14: 217000 | Y14: 108119.36 | Z14: 2369.98 | AA14: 217000 | AB14: 214630.02 | AC14: -0.01092156682 | AD14: 762.24 | AE14: 105748.42 | AF14: 0 | AG14: 108119.36 | AH14: -0.0193625817 | AJ14: 0 | AL14: 0 | AN14: 0 | AO14: 0
A15: COO/C | B15: 15197 | C15: Revamping of C1 Flare KO Drums | D15: On Going | E15: CTE/P | F15: Li Shouqing | G15: Jiang Haijin | H15: 42367 | I15: 0 | J15: 0 | K15: 0 | L15: N | M15: ZNIC.011291 | N15: NZNIC015197K | P15: 15197 | Q15: 1340000 | R15: 0 | S15: 0 | T15: 0 | U15: 115000 | V15: 231550 | W15: 268125 | X15: 1340000 | Y15: 725325 | Z15: 0 | AA15: 1340000 | AB15: 840325 | AC15: -0.372891791 | AD15: 0 | AE15: 115000 | AF15: 0 | AG15: 725325 | AJ15: 231550 | AK15: 0 | AL15: 268125 | AM15: 0 | AN15: 0 | AO15: 0
A16: CBL/P | B16: 15180 | C16: Air Conditioning Replacement for Jetty1/2/3 Operation Room | D16: Completed | E16: CTE/C | F16: Wang Wei | G16: Wang Wei | H16: 42271 | I16: 42334 | J16: 0 | K16: 0 | L16: N | M16: ZNIF.604220.15.01 | N16: NZNIC015180K | P16: 15180 | Q16: 94000 | R16: 0 | S16: 94000 | T16: 10990.54 | U16: 0 | V16: -4675 | W16: 0 | X16: 94000 | Y16: 82725 | Z16: 284.46 | AA16: 94000 | AB16: 93715.54 | AC16: -0.003026170213 | AD16: 10990.54 | AE16: 0 | AF16: 0 | AG16: 82725 | AI16: -0.0431 | AJ16: 0 | AL16: 0 | AN16: 0 | AO16: 0
A17: CTM | B17: 15176 | C17: Add Card Reader at D700 Central Workshop | D17: On Going | E17: CTE/A | F17: Xu Zheng | G17: 0 | H17: 42247 | I17: 0 | J17: 0 | K17: 0 | L17: N | M17: ZNIF.642320.15.03 | N17: NZNIC015176K | P17: 15176 | Q17: 0 | R17: 0 | S17: 42094 | T17: 26642.42 | U17: 15811.97 | V17: 14090 | W17: 39000 | X17: 0 | Y17: -95177.56 | Z17: -366.83 | AA17: 0 | AB17: -52723.17 | AD17: 26642.42 | AE17: 15811.97 | AF17: 0 | AG17: -95177.56 | AH17: 0.0111193425 | AJ17: 14090 | AK17: 0.4967857143 | AL17: 39000 | AM17: 0 | AN17: 0 | AO17: 0
A18: CEP/S | B18: 15168 | C18: PS Chilling Unit Replacement | D18: On Going | E18: CTE/P | F18: Gu Jingfeng | G18: Wu Zefei | H18: 42328 | I18: 0 | J18: 0 | K18: 0 | L18: N | M18: ZNIC.011038 | N18: NZNIC015168K | P18: 15168 | Q18: 2910000 | R18: 0 | S18: 4470000 | T18: 18150 | U18: 1560000 | V18: 270050 | W18: 245575 | X18: 2910000 | Y18: 816225 | Z18: 0 | AA18: 2910000 | AB18: 2394375 | AC18: -0.1771907216 | AD18: 18150 | AE18: 1560000 | AF18: 0 | AG18: 816225 | AJ18: 270050 | AK18: 0.06297709924 | AL18: 245575 | AM18: 0 | AN18: 0 | AO18: 0
A19: CBP/C | B19: 15167 | C19: Add Adjusters for One of the Furnaces Bottom Air Registers | D19: On Going | E19: CTE/P | F19: Zhou Yanduo | G19: Ling Taizhong | H19: 42368 | I19: 0 | J19: 0 | K19: 0 | L19: N | M19: ZNIC.011308 | N19: NZNIC015167K | P19: 15167 | Q19: 1490000 | R19: 0 | S19: 0 | T19: 0 | U19: 850000 | V19: 162525 | W19: 145200 | X19: 1490000 | Y19: 332275 | Z19: 0 | AA19: 1490000 | AB19: 1182275 | AC19: -0.2065268456 | AD19: 0 | AE19: 850000 | AF19: 0 | AG19: 332275 | AJ19: 162525 | AK19: 0 | AL19: 145200 | AM19: 0 | AN19: 0 | AO19: 0
A20: CBP/M | B20: 15149 | C20: Steel Structure Extension of Gas Cylinder Room of CTS/L | D20: On Going | E20: CTE/C | F20: Wang Shicheng | G20: Zhang Zhihe | H20: 42277 | I20: 0 | J20: 0 | K20: 0 | L20: N | M20: ZNIF.660300.15.01 | N20: NZNIC015149K | P20: 15149 | Q20: 264000 | R20: 0 | S20: 377771 | T20: 91219.39 | U20: 0 | V20: -69360 | W20: -11000 | X20: 264000 | Y20: 52847.78 | Z20: 1104.83 | AA20: 264000 | AB20: 262895.17 | AC20: -0.004184962121 | AD20: 91219.39 | AE20: 0 | AF20: 118828 | AG20: 52847.78 | AH20: -0.04967252555 | AI20: -0.29588 | AJ20: 0 | AL20: 0 | AN20: 0 | AO20: 1
A21: CBP/C | B21: 15143 | C21: Add Combustible Gas Detector in BCC Cylinder Room | D21: On Going | E21: CTE/A | F21: Gong Feibao | G21: Li Hong | H21: 42307 | I21: 0 | J21: 0 | K21: 0 | L21: N | M21: ZNIF.104100.15.06 | N21: NZNIC015143K | P21: 15143 | Q21: 70000 | R21: 0 | S21: 74202 | T21: 6600 | U21: 4201.71 | V21: 7400 | W21: 19000 | X21: 70000 | Y21: 32214.29 | Z21: 584 | AA21: 70000 | AB21: 43016 | AC21: -0.3854857143 | AD21: 6600 | AE21: 4201.71 | AF21: 0 | AG21: 32214.29 | AH21: -0.1061818182 | AJ21: 7400 | AK21: 0.4714285714 | AL21: 19000 | AM21: 0 | AN21: 0 | AO21: 0
A22: CBP/B | B22: 15124 | C22: Add Pump and Flow Control Valve on the Line for Sending Dimer to C-250 | D22: On Going | E22: CTE/P | F22: Chen Chen | G22: Ling Taizhong | H22: 42212 | I22: 0 | J22: 0 | K22: 0 | L22: T | M22: ZNIF.104500.15.01 | N22: NZNIC015124K | P22: 15124 | Q22: 730000 | R22: 0 | S22: 785138 | T22: 144705.94 | U22: 113946.5 | V22: 96600 | W22: 142450 | X22: 730000 | Y22: 189717.46 | Z22: 42580.1 | AA22: 730000 | AB22: 448369.9 | AC22: -0.3857946575 | AD22: 144705.94 | AE22: 113946.5 | AF22: 0 | AG22: 189717.46 | AH22: -0.2421343897 | AJ22: 96600 | AK22: 0.4215568862 | AL22: 142450 | AM22: 0.075 | AN22: 0 | AO22: 0
A23: CTM | B23: 15122 | C23: D700 Garbage Disposal Field Modification | D23: On Going | E23: CTE/C | F23: Xia Qun | G23: Xu Zhaofeng | H23: 42201 | I23: 0 | J23: 0 | K23: 0 | L23: N | M23: ZNIF.642320.15.02 | N23: NZNIC015122K | P23: 15122 | Q23: 369430 | R23: 0 | S23: 607585 | T23: 52428.77 | U23: 0 | V23: 37355 | W23: 42100 | X23: 369430 | Y23: -3673 | Z23: 164.23 | AA23: 369430 | AB23: 289810.77 | AC23: -0.2155191241 | AD23: 52428.77 | AE23: 0 | AF23: 241055 | AG23: -3673 | AI23: -0.08019042969 | AJ23: 37355 | AK23: 0.5210897436 | AL23: 42100 | AM23: 0.1903846154 | AN23: 0 | AO23: 1
A24: CBP/C | B24: 15117 | C24: Add the Differential Pressure Signal of the Instrument Air Filter in DCS System | D24: On Going | E24: CTE/P | F24: Zhang Fanwen | G24: Li Hong | H24: 42257 | I24: 0 | J24: 0 | K24: 0 | L24: N | M24: ZNIF.104100.15.04 | N24: NZNIC015117K | P24: 15117 | Q24: 98000 | R24: 0 | S24: 109219 | T24: 24266 | U24: 11218.88 | V24: -20140 | W24: -1100 | X24: 98000 | Y24: 47734 | Z24: 14781.12 | AA24: 98000 | AB24: 83218.88 | AC24: -0.1508277551 | AD24: 24266 | AE24: 11218.88 | AF24: 0 | AG24: 47734 | AH24: -0.5685046154 | AJ24: 0 | AL24: 0 | AN24: 0 | AO24: 0
A25: CEP/E | B25: 15116 | C25: Set a Waste Storage Area beside Tank Farm | D25: On Going | E25: CTE/C | F25: Yan Jun | G25: Xu Zhaofeng | H25: 42236 | I25: 0 | J25: 0 | K25: 0 | L25: H | M25: ZNIF.105600.15.01 | N25: NZNIC015116K | P25: 15116 | Q25: 382000 | R25: 0 | S25: 475340 | T25: 69271.93 | U25: 9073.97 | V25: 63030 | W25: 98900 | X25: 382000 | Y25: 57288.06 | Z25: -3483.96 | AA25: 382000 | AB25: 223553.96 | AC25: -0.4147802094 | AD25: 69271.93 | AE25: 9073.97 | AF25: 87920 | AG25: 57288.06 | AH25: 0.06873192289 | AJ25: 63030 | AK25: 0.3073626374 | AL25: 98900 | AM25: 0.011 | AN25: 0 | AO25: 0
A26: CBL/P | B26: 15112 | C26: Add Emergency Storage Area for Jettys in CLTF Reserved Land | D26: On Going | E26: CTE/P | F26: Yu Yi | G26: Guo Yibing | H26: 42305 | I26: 0 | J26: 0 | K26: 0 | L26: N | M26: ZNIF.604110.15.01 | N26: NZNIC015112K | P26: 15112 | Q26: 970000 | R26: 0 | S26: 1584746 | T26: 14195 | U26: 130872 | V26: 10805 | W26: 47000 | X26: 970000 | Y26: 283254 | Z26: 9128 | AA26: 970000 | AB26: 903067 | AC26: -0.06900309278 | AD26: 14195 | AE26: 130872 | AF26: 474746 | AG26: 283254 | AH26: -0.0652 | AJ26: 10805 | AK26: 0.5678 | AL26: 47000 | AM26: 0 | AN26: 0 | AO26: 0
A27: CTM | B27: 15102 | C27: Cleaning Room Renovation Project of Central Workshop | D27: On Going | E27: CTM/W | F27: Zhai Chunrong | G27: Lei Fucun | H27: 42201 | I27: 0 | J27: 0 | K27: 0 | L27: N | M27: ZNIF.642320.15.01 | N27: NZNIC015102K | P27: 15102 | Q27: 958000 | R27: 0 | S27: 1566340 | T27: 236387.42 | U27: 41932.48 | V27: -11457.15 | W27: 44000 | X27: 958000 | Y27: 6210.83 | Z27: 55008.77 | AA27: 958000 | AB27: 858991.23 | AC27: -0.1033494468 | AD27: 236387.42 | AE27: 41932.48 | AF27: 574460.5 | AG27: 6210.83 | AH27: -0.3736162585 | AI27: -0.1453 | AJ27: 0 | AK27: 1.067000877 | AL27: 44000 | AM27: 0 | AN27: 0 | AO27: 1
A28: CBP/M | B28: 15097 | C28: Improve Operation Method for Compound TBC | D28: On Going | E28: CTE/P | F28: Wang Can | G28: Ling Taizhong | H28: 42361 | I28: 0 | J28: 0 | K28: 0 | L28: N | M28: ZNIF.104400.15.01 | N28: NZNIC015097K | P28: 15097 | Q28: 598000 | R28: 0 | S28: 0 | T28: 0 | U28: 70000 | V28: 183000 | W28: 142000 | X28: 598000 | Y28: 203000 | Z28: 0 | AA28: 598000 | AB28: 273000 | AC28: -0.5434782609 | AD28: 0 | AE28: 70000 | AF28: 0 | AG28: 203000 | AJ28: 183000 | AK28: 0 | AL28: 142000 | AM28: 0 | AN28: 0 | AO28: 0
A29: CBP/C | B29: 15091 | C29: Add a New Solid Waste Storage Area | D29: Canceled | E29: CTE/C | F29: Wang Shicheng | G29: Zhang Zhihe | H29: 42345 | I29: 0 | J29: 0 | K29: 0 | L29: N | M29: ZNIF.104100.15.08 | N29: NZNIC015091K | P29: 15091 | Q29: 257000 | R29: 0 | S29: 0 | T29: 0 | U29: 0 | V29: 47000 | W29: 56000 | X29: 257000 | Y29: 154000 | Z29: 0 | AA29: 257000 | AB29: 154000 | AC29: -0.4007782101 | AD29: 0 | AE29: 0 | AF29: 0 | AG29: 154000 | AJ29: 47000 | AK29: 0 | AL29: 56000 | AM29: 0 | AN29: 0 | AO29: 0
A30: CBP/C | B30: 15089 | C30: Modify Lubrication oil Room and Spare Parts Stroge Room at West of Control Building | D30: On Going | E30: CTE/C | F30: Wang Shicheng | G30: Zhang Zhihe | H30: 42345 | I30: 0 | J30: 0 | K30: 0 | L30: N | M30: ZNIF.104100.15.07 | N30: NZNIC015089K | P30: 15089 | Q30: 752000 | R30: 0 | S30: 0 | T30: 0 | U30: 3000 | V30: 122000 | W30: 94000 | X30: 752000 | Y30: 533000 | Z30: 0 | AA30: 752000 | AB30: 536000 | AC30: -0.2872340426 | AD30: 0 | AE30: 3000 | AF30: 0 | AG30: 533000 | AJ30: 122000 | AK30: 0 | AL30: 94000 | AM30: 0 | AN30: 0 | AO30: 0
A31: CTM | B31: 15079 | C31: Fire Alarm System Modification for #5 Warehouse in East Laydown | D31: On Going | E31: CTE/A | F31: Bian Jiacai | G31: Sun Zhongpin | H31: 42209 | I31: 0 | J31: 0 | K31: 0 | L31: N | M31: ZNIF.641330.15.01 | N31: NZNIC015079K | P31: 15079 | Q31: 220000 | R31: 0 | S31: 262386 | T31: 56014.01 | U31: 9442.28 | V31: -37045 | W31: -2475 | X31: 220000 | Y31: 76839.18 | Z31: 8654.53 | AA31: 220000 | AB31: 211345.47 | AC31: -0.03933877273 | AD31: 56014.01 | AE31: 9442.28 | AF31: 69050 | AG31: 76839.18 | AH31: -0.2219110256 | AJ31: 0 | AL31: 0 | AN31: 0 | AO31: 0
A32: CEP/P | B32: 15071 | C32: Build a Spare Part&Tool Warehouse | D32: On Going | E32: CTE/C | F32: Gao Feng | G32: Xia Weiguang | H32: 42298 | I32: 0 | J32: 0 | K32: 0 | L32: H | M32: ZNIC.010748 | N32: NZNIC015071K | P32: 15071 | Q32: 1222000 | R32: 0 | S32: 1499847 | T32: 68750 | U32: 7683.76 | V32: 119350 | W32: 129250 | X32: 1222000 | Y32: 333303.24 | Z32: 200 | AA32: 1222000 | AB32: 973200 | AC32: -0.2036006547 | AD32: 68750 | AE32: 7683.76 | AF32: 563463 | AG32: 333303.24 | AH32: -0.2 | AJ32: 119350 | AK32: 0.365497076 | AL32: 129250 | AM32: 0 | AN32: 0 | AO32: 0
A33: CBL/P | B33: 15066 | C33: Add On-line Water Analyzer on the NAP Unloading Piping of Jetty 4# | D33: On Going | E33: CTE/A | F33: Xu Ge | G33: Wang Xinwu | H33: 42247 | I33: 0 | J33: 0 | K33: 0 | L33: N | M33: ZNIF.651130.15.01 | N33: NZNIC015066K | P33: 15066 | Q33: 547000 | R33: 0 | S33: 816231 | T33: 35790.48 | U33: 271713.5 | V33: 39800 | W33: 34500 | X33: 547000 | Y33: 174235.82 | Z33: -15039.8 | AA33: 547000 | AB33: 487739.8 | AC33: -0.1083367459 | AD33: 35790.48 | AE33: 271713.5 | AF33: 6000 | AG33: 174235.82 | AH33: 0.04965842867 | AJ33: 39800 | AK33: 0.3254237288 | AL33: 34500 | AM33: 0.3235294118 | AN33: 0 | AO33: 0
A34: CTS | B34: 15061 | C34: BCC Lab Modification | D34: On Going | E34: CTE/C | F34: Yu Yi | G34: Jiang Yunning | H34: 42166 | I34: 0 | J34: 0 | K34: 0 | L34: N | M34: ZNIC.009551 | N34: NZNIC015061K | P34: 15061 | Q34: 3490000 | R34: 290000 | S34: 6411751 | T34: 66046.96 | U34: 2751631.89 | V34: 75640 | W34: 69300 | X34: 3490000 | Y34: 637629.79 | Z34: -292248.64 | AA34: 3780000 | AB34: 3637308.64 | AC34: -0.03774903704 | AD34: 66046.96 | AE34: 2751631.89 | AF34: 182000 | AG34: 637629.79 | AH34: 0.10030692 | AJ34: 75640 | AK34: 0.3225257501 | AL34: 69300 | AM34: 0.2674418605 | AN34: 0 | AO34: 1
A35: C | B35: 15051 | C35: Set Up Intranet Portal System | D35: On Going | E35: CGA/I | F35: Tao Yang | G35: Tao Yang | H35: 42081 | I35: 0 | J35: 0 | K35: 0 | L35: N | M35: ZNIT.001180 | N35: NZNIC015051K | P35: 15051 | Q35: 2735000 | R35: 0 | S35: 4659799 | T35: 239017.94 | U35: 1919138.84 | V35: 0 | W35: 0 | X35: 2735000 | Y35: 576843.22 | Z35: 0 | AA35: 2735000 | AB35: 2735000 | AC35: 0 | AD35: 239017.94 | AE35: 1919138.84 | AF35: 0 | AG35: 576843.22 | AH35: 0 | AJ35: 0 | AL35: 0 | AN35: 0 | AO35: 0
A36: CBP/P | B36: 15047 | C36: Change New CEMS | D36: On Going | E36: CTA/S | F36: Tang Yiqun | G36: Tang Yiqun | H36: 42073 | I36: 0 | J36: 0 | K36: 0 | L36: N | M36: ZNIC.008734 | N36: NZNIC015047K | P36: 15047 | Q36: 1203000 | R36: 0 | S36: 1344000 | T36: 852242.9 | U36: 17295.75 | V36: 5500 | W36: 0 | X36: 1203000 | Y36: 21729.14 | Z36: 206232.21 | AA36: 1203000 | AB36: 991267.79 | AC36: -0.1760034996 | AD36: 852242.9 | AE36: 17295.75 | AF36: 100000 | AG36: 21729.14 | AH36: -0.1664521507 | AI36: -0.3217406667 | AJ36: 5500 | AK36: 0 | AL36: 0 | AN36: 0 | AO36: 0
A37: CBP/C | B37: 15042 | C37: Add On-line Analyzer on the Outlet of the Z-908 | D37: On Going | E37: CTE/A | F37: Gong Feibao | G37: Li Hong | H37: 42298 | I37: 0 | J37: 0 | K37: 0 | L37: H | M37: ZNIC.010800 | N37: NZNIC015042K | P37: 15042 | Q37: 1145000 | R37: 0 | S37: 1732778 | T37: 72640 | U37: 414580.35 | V37: 148435 | W37: 105300 | X37: 1145000 | Y37: 283403.65 | Z37: 120641 | AA37: 1145000 | AB37: 770624 | AC37: -0.3269659389 | AD37: 72640 | AE37: 414580.35 | AF37: 0 | AG37: 283403.65 | AH37: -0.1991761598 | AJ37: 148435 | AK37: 0.2719313305 | AL37: 105300 | AM37: 0.1404081633 | AN37: 0 | AO37: 0
A38: CBP/C | B38: 15036 | C38: Expand the Capacity of the Suspect Condensate Vent Condenser 390-E-920 | D38: Completed | E38: CTE/P | F38: Ding Juntao | G38: Tong Shaojian | H38: 42135 | I38: 42293 | J38: 0 | K38: 0 | L38: H | M38: ZNIF.104100.15.02 | N38: NZNIC015036K | P38: 15036 | Q38: 398000 | R38: 0 | S38: 398000 | T38: 184174.06 | U38: 0 | V38: 57450 | W38: 28000 | X38: 398000 | Y38: 94429.67 | Z38: 33946.27 | AA38: 398000 | AB38: 278603.73 | AC38: -0.2999906281 | AD38: 184174.06 | AE38: 0 | AF38: 0 | AG38: 94429.67 | AH38: -0.2232267333 | AI38: -0.07111692308 | AJ38: 57450 | AK38: 0.5775735294 | AL38: 28000 | AM38: 0 | AN38: 0 | AO38: 0
A39: CBP/C | B39: 15034 | C39: Add Pressure&Temperature Signal DCS System for Three Drums at AEU Section | D39: On Going | E39: CTE/A | F39: Gong Feibao | G39: Li Hong | H39: 42265 | I39: 0 | J39: 0 | K39: 0 | L39: N | M39: ZNIF.104100.15.05 | N39: NZNIC015034K | P39: 15034 | Q39: 170000 | R39: 0 | S39: 193852 | T39: 5856.45 | U39: 23578.39 | V39: 0 | W39: -550 | X39: 170000 | Y39: 134053.76 | Z39: 6511.4 | AA39: 170000 | AB39: 163488.6 | AC39: -0.03830235294 | AD39: 5856.45 | AE39: 23578.39 | AF39: 0 | AG39: 134053.76 | AH39: -0.2144776533 | AJ39: 0 | AL39: 0 | AN39: 0 | AO39: 0
A40: CEP/P | B40: 15028 | C40: Upgrade 4 sets PO Cupboard Freezer | D40: On Going | E40: CTE/P | F40: Ding Juntao | G40: Wang Yuncai | H40: 42296 | I40: 0 | J40: 0 | K40: 0 | L40: T | M40: ZNIC.010799 | N40: NZNIC015028K | P40: 15028 | Q40: 1319000 | R40: 0 | S40: 2129000 | T40: 25090 | U40: 673943.73 | V40: 122310 | W40: 50050 | X40: 1319000 | Y40: 426120.43 | Z40: 21485.84 | AA40: 1319000 | AB40: 1125154.16 | AC40: -0.1469642456 | AD40: 25090 | AE40: 673943.73 | AF40: 0 | AG40: 426120.43 | AH40: -0.0265257284 | AJ40: 122310 | AK40: 0.1446853147 | AL40: 50050 | AM40: 0.08080808081 | AN40: 0 | AO40: 0
A41: CEP/S | B41: 15026 | C41: PS Positive Draft of Control Building Modification | D41: On Going | E41: CTE/C | F41: Gao Feng | G41: Wang Wei | H41: 42194 | I41: 0 | J41: 0 | K41: 0 | L41: H | M41: ZNIC.009794 | N41: NZNIC015026K | P41: 15026 | Q41: 1256000 | R41: 0 | S41: 2062440 | T41: 121067.89 | U41: 789459.83 | V41: 73910.85 | W41: 53350 | X41: 1256000 | Y41: 150289.17 | Z41: -12216.58 | AA41: 1256000 | AB41: 1140955.73 | AC41: -0.09159575637 | AD41: 121067.89 | AE41: 789459.83 | AF41: 80138.84 | AG41: 150289.17 | AH41: 0.01332797801 | AI41: -0.05660416667 | AJ41: 73910.85 | AK41: 0.5268191421 | AL41: 53350 | AM41: 0.1916666667 | AN41: 0 | AO41: 1
A42: COA/S | B42: 15024 | C42: SAP Steam System Energy Saving Modification | D42: On Going | E42: CTE/P | F42: Xu Jin | G42: Wang Yuncai | H42: 42265 | I42: 0 | J42: 0 | K42: 0 | L42: N | M42: ZNIC.010440 | N42: NZNIC015024K | P42: 15024 | Q42: 1419000 | R42: 0 | S42: 1559598 | T42: 54300.76 | U42: 127648.57 | V42: 132100 | W42: 196900 | X42: 1419000 | Y42: 878033.75 | Z42: 27516.92 | AA42: 1419000 | AB42: 1062483.08 | AC42: -0.2512451868 | AD42: 54300.76 | AE42: 127648.57 | AF42: 2500 | AG42: 878033.75 | AH42: -0.1546370456 | AJ42: 132100 | AK42: 0.1297760211 | AL42: 196900 | AM42: 0.05789473684 | AN42: 0 | AO42: 0
A43: CEP/E | B43: 15022 | C43: Revamp HVAC System in EOEG Control Building | D43: Completed | E43: CTE/C | F43: Gao Feng | G43: Wang Wei | H43: 42131 | I43: 42342 | J43: 0 | K43: 0 | L43: H | M43: ZNIC.009264 | N43: NZNIC015022K | P43: 15022 | Q43: 1391000 | R43: 0 | S43: 1473957 | T43: 1035368.41 | U43: 13711.11 | V43: 56686.99 | W43: 4950 | X43: 1391000 | Y43: 434789.08 | Z43: -164661.59 | AA43: 1391000 | AB43: 1494024.6 | AC43: 0.074065133 | AD43: 1035368.41 | AE43: 13711.11 | AF43: 10156 | AG43: 434789.08 | AH43: 0.1938650307 | AI43: 0.1052151183 | AJ43: 56686.99 | AK43: 0.6095937328 | AL43: 4950 | AM43: 0.9196428571 | AN43: 0 | AO43: 4
A44: CTS | B44: 15016 | C44: Environmental Monitoring Car | D44: On Going | E44: CTS/E | F44: Fan Chenxi | G44: Fan Chenxi | H44: 42017 | I44: 0 | J44: 0 | K44: 0 | L44: N | M44: ZNIC.008204 | N44: NZNIC015016K | P44: 15016 | Q44: 4000000 | R44: 0 | S44: 4542735 | T44: 0 | U44: 4542735.05 | V44: 0 | W44: 0 | X44: 4000000 | Y44: 272264.96 | Z44: -815000.01 | AA44: 4000000 | AB44: 4815000.01 | AC44: 0.2037500025 | AD44: 0 | AE44: 4542735.05 | AF44: 0 | AG44: 272264.96 | AH44: 0.1811111133 | AJ44: 0 | AL44: 0 | AN44: 0 | AO44: 0
A45: CEP/L | B45: 15014 | C45: PS A915 Emergency Lighting and Fire Alarm System Modification | D45: Completed | E45: CTE/A | F45: Xu Zheng | G45: Zhang Pu | H45: 42067 | I45: 42269 | J45: 0 | K45: 0 | L45: N | M45: ZNIF.175410.15.01 | N45: NZNIC015014K | P45: 15014 | Q45: 434000 | R45: 0 | S45: 474825 | T45: 464825.16 | U45: 0 | V45: 12220 | W45: 30050 | X45: 434000 | Y45: 0 | Z45: -31728.64 | AA45: 434000 | AB45: 474825.16 | AC45: 0.09406718894 | AD45: 464825.16 | AE45: 0 | AF45: 10000 | AG45: 0 | AH45: 0.28515574 | AI45: -0.02225030474 | AJ45: 12220 | AK45: 0.8433333333 | AL45: 30050 | AM45: 0.6196202532 | AN45: 0 | AO45: 0
A46: CTM | B46: 15011 | C46: Modification for Main Door of Spare Parts Warehouse | D46: On Going | E46: CTE/C | F46: Yu Yi | G46: Xu Zhaofeng | H46: 42216 | I46: 0 | J46: 0 | K46: 0 | L46: N | M46: ZNIF.641330.15.02 | N46: NZNIC015011K | P46: 15011 | Q46: 384000 | R46: 0 | S46: 626000 | T46: 6520 | U46: 242000 | V46: 46480 | W46: 43000 | X46: 384000 | Y46: 58000 | Z46: -12000 | AA46: 384000 | AB46: 306520 | AC46: -0.2017708333 | AD46: 6520 | AE46: 242000 | AF46: 0 | AG46: 58000 | AH46: 0.05217391304 | AJ46: 46480 | AK46: 0.1230188679 | AL46: 43000 | AM46: 0 | AN46: 0 | AO46: 0
A47: COA/E | B47: 15010 | C47: Replace the Material of P7120A/B by PFA | D47: On Going | E47: CTE/P | F47: Xu Jin | G47: Wu Zefei | H47: 42226 | I47: 0 | J47: 0 | K47: 0 | L47: T | M47: ZNIF.106200.15.01 | N47: NZNIC015010K | P47: 15010 | Q47: 495000 | R47: 0 | S47: 722707 | T47: 47555 | U47: 227706.96 | V47: 51995 | W47: 54450 | X47: 495000 | Y47: 99710.18 | Z47: 13582.86 | AA47: 495000 | AB47: 374972.14 | AC47: -0.2424805253 | AD47: 47555 | AE47: 227706.96 | AF47: 0 | AG47: 99710.18 | AH47: -0.04851021429 | AJ47: 51995 | AK47: 0.4747979798 | AL47: 54450 | AM47: 0.01 | AN47: 0 | AO47: 0
A48: CEP/E | B48: 15009 | C48: Modify Suction Side of P4330 | D48: On Going | E48: CTE/P | F48: Gu Jingfeng | G48: Wu Zefei | H48: 42139 | I48: 0 | J48: 0 | K48: 0 | L48: T | M48: ZNIF.105700.15.01 | N48: NZNIC015009K | P48: 15009 | Q48: 590000 | R48: 0 | S48: 672139 | T48: 248275.91 | U48: 19205.38 | V48: 47245 | W48: 75600 | X48: 590000 | Y48: 142540.68 | Z48: 57133.03 | AA48: 590000 | AB48: 410021.97 | AC48: -0.3050475085 | AD48: 248275.91 | AE48: 19205.38 | AF48: 0 | AG48: 142540.68 | AH48: -0.2789726655 | AJ48: 47245 | AK48: 0.70471875 | AL48: 75600 | AM48: 0.055 | AN48: 0 | AO48: 0
A49: COA/A | B49: 15004 | C49: Revamp HVAC System in B550 Control Building | D49: Completed | E49: CTE/C | F49: Gao Feng | G49: Wang Wei | H49: 42131 | I49: 42253 | J49: 0 | K49: 0 | L49: H | M49: ZNIC.009265 | N49: NZNIC015004K | P49: 15004 | Q49: 1564000 | R49: 0 | S49: 1577128 | T49: 1011375.73 | U49: 0 | V49: 70660 | W49: 33550 | X49: 1564000 | Y49: 0 | Z49: 223669.2 | AA49: 1564000 | AB49: 1019375.73 | AC49: -0.3482252366 | AD49: 1011375.73 | AE49: 0 | AF49: 8000 | AG49: 0 | AH49: -0.2191479443 | AI49: -0.048290386 | AJ49: 70660 | AK49: 0.565970516 | AL49: 33550 | AM49: 0.5234375 | AN49: 0 | AO49: 1
A50: CBP/C | B50: 14313 | C50: Replace Existing Electrical Heater H-520 | D50: On Going | E50: CTE/A | F50: Hu Xiao | G50: Chen Gang | H50: 42139 | I50: 0 | J50: 0 | K50: 0 | L50: N | M50: ZNIC.009347 | N50: NZNIC014313K | P50: 14313 | Q50: 1885000 | R50: 0 | S50: 2957457 | T50: 58390 | U50: 1072456.67 | V50: 59860 | W50: 63800 | X50: 1885000 | Y50: 579446.14 | Z50: 51047.19 | AA50: 1885000 | AB50: 1710292.81 | AC50: -0.09268285942 | AD50: 58390 | AE50: 1072456.67 | AF50: 0 | AG50: 579446.14 | AH50: -0.04770765421 | AJ50: 59860 | AK50: 0.4937843552 | AL50: 63800 | AM50: 0 | AN50: 0 | AO50: 0
A51: CBP/M | B51: 14312 | C51: Replace Exchanger E2320 of EB/SM | D51: Completed | E51: CTM/M | F51: Chu Chao | G51: Chu Chao | H51: 41997 | I51: 42154 | J51: 0 | K51: 0 | L51: T_2015 | M51: ZNIC.008125 | N51: NZNIC014312K | P51: 14312 | Q51: 2160000 | R51: 0 | S51: 2160000 | T51: 1716239.32 | U51: 0 | V51: 13750 | W51: 0 | X51: 2160000 | Y51: 0 | Z51: 0 | AA51: 2160000 | AB51: 1716239.32 | AC51: -0.2054447593 | AD51: 1716239.32 | AE51: 0 | AF51: 0 | AG51: 0 | AJ51: 13750 | AK51: 0 | AL51: 0 | AN51: 0 | AO51: 0
A52: CEP/E | B52: 14311 | C52: Change New C2450/CX2450/E1250A/E1250B/E1252 | D52: Completed | E52: CTM/E | F52: Wang Zhigao | G52: Wang Zhigao | H52: 41997 | I52: 42128 | J52: 0 | K52: 0 | L52: T_2015 | M52: ZNIC.008124 | N52: NZNIC014311K | P52: 14311 | Q52: 1675000 | R52: 487000 | S52: 2061290 | T52: 2061289.79 | U52: 0 | V52: 8000 | W52: 8000 | X52: 1675000 | Y52: 0 | Z52: 0 | AA52: 2162000 | AB52: 2061289.79 | AC52: -0.04658196577 | AD52: 2061289.79 | AE52: 0 | AF52: 0 | AG52: 0 | AJ52: 8000 | AK52: 0 | AL52: 8000 | AM52: 0 | AN52: 0 | AO52: 0
A53: COA/S | B53: 14309 | C53: Add Extrusion Step for New Product AGM7 | D53: On Going | E53: CTE/P | F53: Zhu Jianxin | G53: Cao Yongbin | H53: 42096 | I53: 0 | J53: 0 | K53: 0 | L53: H | M53: ZNIC.008120 | N53: NZNIC014309K | P53: 14309 | Q53: 27782000 | R53: 0 | S53: 51729014 | T53: 4764929.34 | U53: 21832964.62 | V53: 144197.92 | W53: 1280575 | X53: 27782000 | Y53: -3814277.86 | Z53: 1880610.98 | AA53: 27782000 | AB53: 24476616.1 | AC53: -0.1189757361 | AD53: 4764929.34 | AE53: 21832964.62 | AF53: 1693000 | AG53: -3814277.86 | AH53: -0.07533359291 | AI53: -0.176106565 | AJ53: 144197.92 | AK53: 0.8690002998 | AL53: 1280575 | AM53: 0.08936888889 | AN53: 0 | AO53: 3
A54: CBP/M | B54: 14308 | C54: Modification of EB/SM Cooling Water Pumps | D54: On Going | E54: CTE/P | F54: Wang Lifen | G54: Ling Taizhong | H54: 42107 | I54: 0 | J54: 0 | K54: 0 | L54: N | M54: ZNIC.009023 | N54: NZNIC014308K | P54: 14308 | Q54: 1357000 | R54: 0 | S54: 1673033 | T54: 1044929.1 | U54: 2600 | V54: -1025 | W54: 57725 | X54: 1357000 | Y54: -65676.04 | Z54: 79388.94 | AA54: 1357000 | AB54: 1219886.06 | AC54: -0.1010419602 | AD54: 1044929.1 | AE54: 2600 | AF54: 238033 | AG54: -65676.04 | AH54: -0.07535267402 | AJ54: 0 | AK54: 1.007649254 | AL54: 57725 | AM54: 0.5724074074 | AN54: 0 | AO54: 2
A55: CBP/M | B55: 14307 | C55: Replacement of F2404 | D55: Completed | E55: CTM/M | F55: Chu Chao | G55: Chu Chao | H55: 41992 | I55: 42154 | J55: 0 | K55: 0 | L55: T_2015 | M55: ZNIF.104400.14.04 | N55: NZNIC014307K | P55: 14307 | Q55: 192000 | R55: 0 | S55: 192000 | T55: 0 | U55: 0 | V55: 8000 | W55: 0 | X55: 192000 | Y55: 0 | Z55: 0 | AA55: 192000 | AB55: 0 | AC55: -1 | AD55: 0 | AE55: 0 | AF55: 0 | AG55: 0 | AJ55: 8000 | AK55: 0 | AL55: 0 | AN55: 0 | AO55: 0
A56: CBP/M | B56: 14306 | C56: Replacement of F2406 | D56: Completed | E56: CTM/M | F56: Chu Chao | G56: Chu Chao | H56: 41992 | I56: 42125 | J56: 0 | K56: 0 | L56: T_2015 | M56: ZNIF.104400.14.03 | N56: NZNIC014306K | P56: 14306 | Q56: 210000 | R56: 0 | S56: 210000 | T56: 0 | U56: 0 | V56: 8000 | W56: 0 | X56: 210000 | Y56: 0 | Z56: 0 | AA56: 210000 | AB56: 0 | AC56: -1 | AD56: 0 | AE56: 0 | AF56: 0 | AG56: 0 | AJ56: 8000 | AK56: 0 | AL56: 0 | AN56: 0 | AO56: 0
A57: CBP/M | B57: 14305 | C57: Replacement of E1203 | D57: Completed | E57: CTM/M | F57: Chu Chao | G57: Chu Chao | H57: 41991 | I57: 42155 | J57: 0 | K57: 0 | L57: T_2015 | M57: ZNIF.104400.14.02 | N57: NZNIC014305K | P57: 14305 | Q57: 224000 | R57: 0 | S57: 224000 | T57: 0 | U57: 0 | V57: 8000 | W57: 0 | X57: 224000 | Y57: 0 | Z57: 0 | AA57: 224000 | AB57: 0 | AC57: -1 | AD57: 0 | AE57: 0 | AF57: 0 | AG57: 0 | AJ57: 8000 | AK57: 0 | AL57: 0 | AN57: 0 | AO57: 0
A58: COA/A | B58: 14296 | C58: Install Filters at Outlet of P9326/P9526 | D58: Completed | E58: CTE/P | F58: Xu Jin | G58: Wu Zefei | H58: 42096 | I58: 42342 | J58: 0 | K58: 0 | L58: N | M58: ZNIF.106600.15.01 | N58: NZNIC014296K | P58: 14296 | Q58: 830000 | R58: 0 | S58: 955432 | T58: 499820.89 | U58: 0 | V58: 25465 | W58: -20175 | X58: 830000 | Y58: -47744.53 | Z58: 255348.64 | AA58: 830000 | AB58: 549186.36 | AC58: -0.3383296867 | AD58: 499820.89 | AE58: 0 | AF58: 97110 | AG58: -47744.53 | AH58: -0.4567777448 | AI58: -0.1559677989 | AJ58: 25465 | AK58: 0.8324671053 | AL58: 0 | AM58: 1.301119403 | AN58: 0 | AO58: 0
A59: CBP/M | B59: 14288 | C59: T2401 Replace Structure Packing of EB/SM | D59: Completed | E59: CTM/M | F59: Chu Chao | G59: Chu Chao | H59: 41974 | I59: 42155 | J59: 0 | K59: 0 | L59: T_2015 | M59: ZNIC.007947 | N59: NZNIC014288K | P59: 14288 | Q59: 2645000 | R59: 0 | S59: 2645000 | T59: 2330341.89 | U59: 0 | V59: 13750 | W59: 27500 | X59: 2645000 | Y59: 0 | Z59: 177495.99 | AA59: 2645000 | AB59: 2330341.89 | AC59: -0.1189633686 | AD59: 2330341.89 | AE59: 0 | AF59: 0 | AG59: 0 | AH59: -0.06112129287 | AJ59: 13750 | AK59: 0 | AL59: 27500 | AM59: 0 | AN59: 0 | AO59: 0
A60: CEP/P | B60: 14287 | C60: Add a Differential Pressure Transmitter in Control Room | D60: Completed | E60: CTE/A | F60: Xu Ge | G60: Li Xueyong | H60: 42011 | I60: 42174 | J60: 0 | K60: 0 | L60: N | M60: ZNIF.678152.15.01 | N60: NZNIC014287K | P60: 14287 | Q60: 104000 | R60: 0 | S60: 105300 | T60: 58883.38 | U60: 0 | V60: 2471.78 | W60: 4300 | X60: 104000 | Y60: 0 | Z60: 2327.87 | AA60: 104000 | AB60: 58883.38 | AC60: -0.4338136538 | AD60: 58883.38 | AE60: 0 | AF60: 0 | AG60: 0 | AH60: -0.14294875 | AI60: -0.2425809095 | AJ60: 2471.78 | AK60: 0.922756875 | AL60: 4300 | AM60: 0.8130434783 | AN60: 0 | AO60: 1
A61: CBP/M | B61: 14286 | C61: Change Gas Chromatograph A24201 to New Type | D61: On Going | E61: CTA/S | F61: Li Huaxin | G61: Li Huaxin | H61: 41970 | I61: 0 | J61: 0 | K61: 0 | L61: N | M61: ZNIF.104400.14.01 | N61: NZNIC014286K | P61: 14286 | Q61: 480000 | R61: 0 | S61: 480000 | T61: 316000 | U61: 0 | V61: 2000 | W61: 4000 | X61: 480000 | Y61: 57720 | Z61: 100280 | AA61: 480000 | AB61: 373720 | AC61: -0.2214166667 | AD61: 316000 | AE61: 0 | AF61: 0 | AG61: 57720 | AH61: -0.2133617021 | AJ61: 2000 | AK61: 0 | AL61: 4000 | AM61: 0 | AN61: 0 | AO61: 0
A62: CTS/U | B62: 14275 | C62: Add Flowmeter on Main Pipeline for HPNG | D62: Completed | E62: CTE/A | F62: Wang Zhen | G62: Wang Xinwu | H62: 41997 | I62: 42352 | J62: 0 | K62: 0 | L62: T_2015 | M62: ZNIC.008123 | N62: NZNIC014275K | P62: 14275 | Q62: 1151000 | R62: 0 | S62: 1141315 | T62: 1115658.21 | U62: 0 | V62: -41380 | W62: -137100.49 | X62: 1151000 | Y62: -77317 | Z62: 32658.79 | AA62: 1151000 | AB62: 1118341.21 | AC62: -0.02837427454 | AD62: 1115658.21 | AE62: 0 | AF62: 80000 | AG62: -77317 | AH62: -0.04335012369 | AI62: -0.006041166601 | AJ62: 0 | AK62: 1.46494382 | AL62: 0 | AM62: 2.474198817 | AN62: 0 | AO62: 3
A63: CBP/C | B63: 14262 | C63: Revamp HVAC System in BCC Control Building | D63: Completed | E63: CTE/C | F63: Gao Feng | G63: Wang Wei | H63: 42131 | I63: 42276 | J63: 0 | K63: 0 | L63: H | M63: ZNIC.009263 | N63: NZNIC014262K | P63: 14262 | Q63: 1216000 | R63: 0 | S63: 2093170 | T63: 272607.06 | U63: 835675.21 | V63: -91445 | W63: 35750 | X63: 1216000 | Y63: 0 | Z63: -39482.04 | AA63: 1216000 | AB63: 1147477.27 | AC63: -0.05635092928 | AD63: 272607.06 | AE63: 835675.21 | AF63: 39195 | AG63: 0 | AH63: 0.03654170921 | AI63: -0.06237254902 | AJ63: 0 | AK63: 4.137049743 | AL63: 35750 | AM63: 0.2934782609 | AN63: 0 | AO63: 0
A64: CGA | B64: 14255 | C64: Add a Pair of Card Reader on the West Side Door of Visitor Center for Personnel Access Control | D64: Completed | E64: CTA/S | F64: Dai Xiaolong | G64: Qiu Wei | H64: 41941 | I64: 42124 | J64: 0 | K64: 0 | L64: N | M64: ZNIF.632000.14.01 | N64: NZNIC014255K | P64: 14255 | Q64: 35000 | R64: 0 | S64: 35000 | T64: 23850.88 | U64: 0 | V64: -7900 | W64: 4899.25 | X64: 35000 | Y64: 0 | Z64: 4790.92 | AA64: 35000 | AB64: 23850.88 | AC64: -0.3185462857 | AD64: 23850.88 | AE64: 0 | AF64: 0 | AG64: 0 | AH64: 0.00500125 | AI64: -0.4056196474 | AJ64: 0 | AK64: 4.95 | AL64: 4899.25 | AM64: 0.1834583333 | AN64: 0 | AO64: 1
A65: COO/C | B65: 14252 | C65: Supply DMA from C1 Plant to BSNJ | D65: Completed | E65: CTE/P | F65: Sun Duoxun/Liu Xiaoli | G65: Xu Yefeng | H65: 41995 | I65: 42246 | J65: 0 | K65: 0 | L65: T_2015 | M65: ZNIC.008115 | N65: NZNIC014252K | P65: 14252 | Q65: 1767000 | R65: 0 | S65: 2019104 | T65: 1429212.63 | U65: 215773.95 | V65: -16820 | W65: -174931.56 | X65: 1767000 | Y65: 0 | Z65: 328005.39 | AA65: 1767000 | AB65: 1654986.58 | AC65: -0.06339186191 | AD65: 1429212.63 | AE65: 215773.95 | AF65: 10000 | AG65: 0 | AH65: -0.2362425673 | AI65: -0.2241731878 | AJ65: 0 | AK65: 1.083267327 | AL65: 0 | AM65: 1.865997822 | AN65: 0 | AO65: 1
A66: CBL/O | B66: 14251 | C66: Build a Operation Rest Room for ACN Loading Station | D66: On Going | E66: CTE/C | F66: Yu Yi | G66: Xu Zhaofeng | H66: 42222 | I66: 0 | J66: 0 | K66: 0 | L66: N | M66: ZNIF.412790.15.01 | N66: NZNIC014251K | P66: 14251 | Q66: 338000 | R66: 0 | S66: 395234 | T66: 15805 | U66: 31139.76 | V66: 47195 | W66: 44000 | X66: 338000 | Y66: 178675.22 | Z66: -4844.98 | AA66: 338000 | AB66: 251649.98 | AC66: -0.255473432 | AD66: 15805 | AE66: 31139.76 | AF66: 26030 | AG66: 178675.22 | AH66: 0.1825065695 | AJ66: 47195 | AK66: 0.2508730159 | AL66: 44000 | AM66: 0 | AN66: 0 | AO66: 0
A67: CBP/C | B67: 14243 | C67: Add a C5 Raffinate Pipe from YUANGANG Company to C5 Hydrogenation Reactor | D67: Completed | E67: CTE/P | F67: Cao Lin | G67: Ling Taizhong | H67: 42089 | I67: 42253 | J67: 0 | K67: 0 | L67: N | M67: ZNIC.008902 | N67: NZNIC014243K | P67: 14243 | Q67: 3720000 | R67: 0 | S67: 3777568 | T67: 2919128.48 | U67: 0 | V67: 7345 | W67: -56535.9 | X67: 3720000 | Y67: 0 | Z67: 1988.58 | AA67: 3720000 | AB67: 2976696.48 | AC67: -0.1998127742 | AD67: 2919128.48 | AE67: 0 | AF67: 57568 | AG67: 0 | AH67: 0.0156190211 | AI67: -0.1434913509 | AJ67: 7345 | AK67: 0.9744076655 | AL67: 0 | AM67: 1.166772566 | AN67: 0 | AO67: 0
A68: COA/L | B68: 14240 | C68: Recover the BA Railway Loading Station | D68: Completed | E68: CTE/P | F68: Zhu Jianxin | G68: Wu Zefei | H68: 41995 | I68: 42314 | J68: 0 | K68: 0 | L68: H | M68: ZNIC.008121 | N68: NZNIC014240K | P68: 14240 | Q68: 1907000 | R68: 0 | S68: 2176992 | T68: 895845.41 | U68: 3600 | V68: 50540 | W68: 45655.5 | X68: 1907000 | Y68: 714445.35 | Z68: -8428.26 | AA68: 1907000 | AB68: 1819232.76 | AC68: -0.04602372313 | AD68: 895845.41 | AE68: 3600 | AF68: 205342 | AG68: 714445.35 | AH68: 0.05375047337 | AI68: -0.25576875 | AJ68: 50540 | AK68: 0.8410691824 | AL68: 45655.5 | AM68: 0.7717225 | AN68: 0 | AO68: 0
A69: CEP/E | B69: 14237 | C69: LP Steam Rational Distribution and Utilization | D69: On Going | E69: CTE/P | F69: Gu Jingfeng | G69: Wu Zefei | H69: 42328 | I69: 0 | J69: 0 | K69: 0 | L69: N | M69: ZNIC.011039 | N69: NZNIC014237K | P69: 14237 | Q69: 1763000 | R69: 0 | S69: 1843000 | T69: 8800 | U69: 401000 | V69: 258200 | W69: 303050 | X69: 1763000 | Y69: 791950 | Z69: 0 | AA69: 1763000 | AB69: 1201750 | AC69: -0.3183494044 | AD69: 8800 | AE69: 401000 | AF69: 0 | AG69: 791950 | AJ69: 258200 | AK69: 0.008448540707 | AL69: 303050 | AM69: 0.02131438721 | AN69: 0 | AO69: 0
A70: CEP/S | B70: 14235 | C70: Add Safety Facilities for PS Burner Unit | D70: On Going | E70: CTE/A | F70: Xiao Lixuan | G70: Li Xueyong | H70: 42326 | I70: 0 | J70: 0 | K70: 0 | L70: N | M70: ZNIF.105400.15.02 | N70: NZNIC014235K | P70: 14235 | Q70: 439000 | R70: 0 | S70: 439000 | T70: 9900 | U70: 180000 | V70: 87000 | W70: 49100 | X70: 439000 | Y70: 113000 | Z70: 0 | AA70: 439000 | AB70: 302900 | AC70: -0.310022779 | AD70: 9900 | AE70: 180000 | AF70: 0 | AG70: 113000 | AJ70: 87000 | AK70: 0 | AL70: 49100 | AM70: 0.1677966102 | AN70: 0 | AO70: 0
A71: CAP/E | B71: 14234 | C71: Add Anti-backflow facilities at LP Steam Header of MA/BA Plant | D71: Completed | E71: CTE/P | F71: Zhu Jianxin | G71: Wu Zefei | H71: 41983 | I71: 42124 | J71: 0 | K71: 0 | L71: T_2015 | M71: ZNIF.106300.14.01 | N71: NZNIC014234K | P71: 14234 | Q71: 893000 | R71: 0 | S71: 918516 | T71: 857151.14 | U71: 23515.86 | V71: -31445 | W71: -12263 | X71: 893000 | Y71: 0 | Z71: 298340.62 | AA71: 893000 | AB71: 880667 | AC71: -0.01381075028 | AD71: 857151.14 | AE71: 23515.86 | AF71: 0 | AG71: 0 | AH71: -0.3664186235 | AI71: -0.1889087125 | AJ71: 0 | AK71: 1.200286624 | AL71: 0 | AM71: 1.108522124 | AN71: 0 | AO71: 0
A72: COA/E | B72: 14232 | C72: Change the Breath Valve and Add a PSV for T9668 | D72: Completed | E72: CTE/P | F72: Xu Jin | G72: Wang Yuncai | H72: 41963 | I72: 42235 | J72: 0 | K72: 0 | L72: N | M72: ZNIF.106700.14.01 | N72: NZNIC014232K | P72: 14232 | Q72: 320000 | R72: 0 | S72: 349453 | T72: 349453.42 | U72: 0 | V72: -63340 | W72: -38225 | X72: 320000 | Y72: 0 | Z72: -16307.6 | AA72: 320000 | AB72: 349453.42 | AC72: 0.0920419375 | AD72: 349453.42 | AE72: 0 | AF72: 0 | AG72: 0 | AH72: 0.1092752601 | AI72: -0.1079963399 | AJ72: 0 | AL72: 0 | AN72: 0 | AO72: 0
A73: CAP/L | B73: 14230 | C73: Add a Shed for A455 Truck Parking Lot | D73: On Going | E73: CTE/C | F73: Yu Yi | G73: Lu Jie | H73: 42256 | I73: 0 | J73: 0 | K73: 0 | L73: N | M73: ZNIC.010285 | N73: NZNIC014230K | P73: 14230 | Q73: 1410000 | R73: 0 | S73: 1524250 | T73: 48125 | U73: 216717.94 | V73: 64900 | W73: 71500 | X73: 1410000 | Y73: 663971.05 | Z73: 226440.01 | AA73: 1410000 | AB73: 1047159.99 | AC73: -0.2573333404 | AD73: 48125 | AE73: 216717.94 | AF73: 118346 | AG73: 663971.05 | AH73: -0.4717500208 | AJ73: 64900 | AK73: 0.2411575563 | AL73: 71500 | AM73: 0.2777777778 | AN73: 0 | AO73: 2
A74: CEP/L | B74: 14227 | C74: Rebuild the Existing Holding Device in PS Packing | D74: Completed | E74: CTE/P | F74: Ding Juntao | G74: Wang Yuncai | H74: 41977 | I74: 42184 | J74: 0 | K74: 0 | L74: N | M74: ZNIF.175410.14.01 | N74: NZNIC014227K | P74: 14227 | Q74: 350000 | R74: 0 | S74: 354290 | T74: 316498.34 | U74: 1500 | V74: -4602.98 | W74: 8150 | X74: 350000 | Y74: 0 | Z74: -20166.78 | AA74: 350000 | AB74: 319598.34 | AC74: -0.08686188571 | AD74: 316498.34 | AE74: 1500 | AF74: 1600 | AG74: 0 | AH74: 0.1196415137 | AI74: -0.2355207624 | AJ74: 0 | AK74: 1.060565526 | AL74: 8150 | AM74: 0.8188888889 | AN74: 0 | AO74: 2
A75: CBL/O | B75: 14226 | C75: Add a Unloading System for PALD in B305 Loading Station | D75: Completed | E75: CTE/P | F75: Yu Xiya | G75: Jiang Haijin | H75: 41976 | I75: 42207 | J75: 0 | K75: 0 | L75: T_2015 | M75: ZNIC.007948 | N75: NZNIC014226K | P75: 14226 | Q75: 1270000 | R75: 0 | S75: 1280313 | T75: 885593.22 | U75: 0 | V75: 52634 | W75: -36350.12 | X75: 1270000 | Y75: 0 | Z75: 135139 | AA75: 1270000 | AB75: 893506.22 | AC75: -0.2964517953 | AD75: 885593.22 | AE75: 0 | AF75: 7913 | AG75: 0 | AH75: -0.176998794 | AI75: -0.252259802 | AJ75: 52634 | AK75: 0.7680044077 | AL75: 0 | AM75: 1.215280545 | AN75: 0 | AO75: 1
A76: CBP/S | B76: 14222 | C76: Add H2 Pipeline to BSNJ from Syngas Plant | D76: Completed | E76: CTE/P | F76: Cao Lin | G76: Ling Taizhong | H76: 42011 | I76: 42277 | J76: 0 | K76: 0 | L76: N | M76: ZNIC.008171 | N76: NZNIC014222K | P76: 14222 | Q76: 1130000 | R76: 559000 | S76: 2285508 | T76: 1715110.23 | U76: 17.09 | V76: -95320 | W76: -76293.77 | X76: 1689000 | Y76: 0 | Z76: 69393.75 | AA76: 1689000 | AB76: 1740127.32 | AC76: 0.03027076377 | AD76: 1715110.23 | AE76: 17.09 | AF76: 25000 | AG76: 0 | AH76: -0.01054485747 | AI76: -0.06410582244 | AJ76: 0 | AK76: 1.55193978 | AL76: 0 | AM76: 1.252900539 | AN76: 0 | AO76: 1
A77: CBP/S | B77: 14218 | C77: Modify Antisurge Control System of K1401 | D77: Completed | E77: CTA/M | F77: Cheng Guiyou | G77: Gan Shuangfeng | H77: 41866 | I77: 42116 | J77: 42128 | K77: 0 | L77: T_2015 | M77: ZNIC.014218 | N77: NZNIC014218K | P77: 14218 | Q77: 1000000 | R77: 0 | S77: 1008800 | T77: 782229.91 | U77: 8800 | V77: 3300 | W77: 0 | X77: 1000000 | Y77: 0 | Z77: 44791.01 | AA77: 1000000 | AB77: 791029.91 | AC77: -0.20897009 | AD77: 782229.91 | AE77: 8800 | AF77: 0 | AG77: 0 | AH77: -0.04665730208 | AJ77: 3300 | AK77: 0 | AL77: 0 | AN77: 0 | AO77: 0
A78: COA/A | B78: 14207 | C78: Let-down MP Steam to LP Steam in GAA Plant | D78: On Going | E78: CTE/P | F78: Zhu Jianxin | G78: Wu Zefei | H78: 42265 | I78: 0 | J78: 0 | K78: 0 | L78: T_2015 | M78: ZNIC.010379 | N78: NZNIC014207K | P78: 14207 | Q78: 2362000 | R78: 0 | S78: 3206055 | T78: 607640.92 | U78: 563929.76 | V78: -119335 | W78: -44890 | X78: 2362000 | Y78: 313946.31 | Z78: 449579.81 | AA78: 2362000 | AB78: 1912420.19 | AC78: -0.1903386156 | AD78: 607640.92 | AE78: 563929.76 | AF78: 426903.2 | AG78: 313946.31 | AH78: -0.2813449725 | AJ78: 0 | AL78: 0 | AN78: 0 | AO78: 0
A79: CBP/S | B79: 14200 | C79: Add Control Valve at 1st Stage Inlet Nitrogen Line of K1701 | D79: Completed | E79: CTE/P | F79: Wang Can | G79: Ling Taizhong | H79: 42048 | I79: 41932 | J79: 0 | K79: 0 | L79: N | M79: ZNIF.104300.15.01 | N79: NZNIC014200K | P79: 14200 | Q79: 155000 | R79: 0 | S79: 174249 | T79: 117753.86 | U79: 0 | V79: -1445 | W79: 11850 | X79: 155000 | Y79: 0 | Z79: 15654.94 | AA79: 155000 | AB79: 117753.86 | AC79: -0.2402976774 | AD79: 117753.86 | AE79: 0 | AF79: 0 | AG79: 0 | AH79: -0.3125387523 | AI79: -0.3228090797 | AJ79: 0 | AK79: 1.028333333 | AL79: 11850 | AM79: 0.7109756098 | AN79: 0 | AO79: 0
A80: CBL/O | B80: 14198 | C80: Replace Manual Loading Arm Z2810&Z4802 with Pneumatic One | D80: On Going | E80: CTE/P | F80: Yu Xiya | G80: Xu Yefeng | H80: 42074 | I80: 0 | J80: 0 | K80: 0 | L80: T | M80: ZNIF.412740.15.01 | N80: NZNIC014198K | P80: 14198 | Q80: 440000 | R80: 0 | S80: 466800 | T80: 254976.42 | U80: 24000 | V80: 30305 | W80: 32450 | X80: 440000 | Y80: 83715.86 | Z80: 11752.72 | AA80: 440000 | AB80: 365492.28 | AC80: -0.1693357273 | AD80: 254976.42 | AE80: 24000 | AF80: 2800 | AG80: 83715.86 | AH80: -0.04881539781 | AJ80: 30305 | AK80: 0.611474359 | AL80: 32450 | AM80: 0.2625 | AN80: 0 | AO80: 0
A81: CBL/O | B81: 14197 | C81: Replace Manual Loading Arm Z2203 with Pneumatic One | D81: On Going | E81: CTE/P | F81: Yu Xiya | G81: Xu Yefeng | H81: 42074 | I81: 0 | J81: 0 | K81: 0 | L81: T | M81: ZNIF.651010.15.01 | N81: NZNIC014197K | P81: 14197 | Q81: 273000 | R81: 0 | S81: 294920 | T81: 158227.76 | U81: 0 | V81: 22215 | W81: 31250 | X81: 273000 | Y81: 29837.86 | Z81: 10269.38 | AA81: 273000 | AB81: 209265.62 | AC81: -0.2334592674 | AD81: 158227.76 | AE81: 0 | AF81: 21200 | AG81: 29837.86 | AH81: -0.08390449102 | AI81: 0.01881944444 | AJ81: 22215 | AK81: 0.6826428571 | AL81: 31250 | AM81: 0.3055555556 | AN81: 0 | AO81: 0
A82: COO/O | B82: 14194 | C82: Add a Pump and Two On/off Valves for Val Loading | D82: On Going | E82: CTE/P | F82: Liu Xiaoli | G82: Jiang Haijin | H82: 42314 | I82: 0 | J82: 0 | K82: 0 | L82: N | M82: ZNIC.010907 | N82: NZNIC014194K | P82: 14194 | Q82: 1260000 | R82: 0 | S82: 1412808 | T82: 24200 | U82: 126687.65 | V82: 302500 | W82: 238150 | X82: 1260000 | Y82: 547914.81 | Z82: 20547.54 | AA82: 1260000 | AB82: 698802.46 | AC82: -0.445394873 | AD82: 24200 | AE82: 126687.65 | AF82: 0 | AG82: 547914.81 | AH82: -0.1268366667 | AJ82: 302500 | AK82: 0 | AL82: 238150 | AM82: 0.09224318658 | AN82: 0 | AO82: 0
A83: CBP/C | B83: 14187 | C83: Add Pipeline to Send Light Fuel Oil to STT1310 | D83: On Going | E83: CTE/P | F83: Qiu Zhufeng | G83: Ling Taizhong | H83: 41872 | I83: 0 | J83: 0 | K83: 0 | L83: T_2015 | M83: ZNIC.014187 | N83: NZNIC014187K | P83: 14187 | Q83: 4207000 | R83: 2188000 | S83: 5575289 | T83: 5037001.23 | U83: 531725.06 | V83: 20846.61 | W83: -59019.28 | AA83: 6395000 | AD83: 5037001.23 | AE83: 531725.06 | AF83: 39112 | AI83: -0.1634537107 | AJ83: 20846.61 | AK83: 0.9001599138 | AL83: 0 | AM83: 1.150396331 | AN83: 0 | AO83: 2
A84: CEP/S | B84: 14182 | C84: Rebuilt a Waste Liquid Storage | D84: Completed | E84: CTE/C | F84: Gao Feng | G84: Xia Weiguang | H84: 42131 | I84: 42353 | J84: 0 | K84: 0 | L84: H | M84: ZNIF.105400.15.01 | N84: NZNIC014182K | P84: 14182 | Q84: 748000 | R84: 0 | S84: 1175500 | T84: 308201.47 | U84: 0 | V84: -78032.96 | W84: -8650 | X84: 748000 | Y84: 162600 | Z84: 50298.53 | AA84: 748000 | AB84: 697701.47 | AC84: -0.06724402406 | AD84: 308201.47 | AE84: 0 | AF84: 226900 | AG84: 162600 | AI84: -0.2108069153 | AJ84: 0 | AK84: 1.591158788 | AL84: 0 | AM84: 1.180208333 | AN84: 0 | AO84: 3
A85: CTM | B85: 14173 | C85: Technical Material Bar-code Management System | D85: On Going | E85: CFA/I | F85: Tao Yang | G85: Wang Jun | H85: 41803 | I85: 0 | J85: 0 | K85: 0 | L85: N | M85: ZNIC.014173 | N85: NZNIC014173K | P85: 14173 | Q85: 2580000 | R85: 0 | S85: 4873537 | T85: 0 | U85: 2293536.92 | V85: 0 | W85: 0 | X85: 2580000 | Y85: 286463.08 | Z85: 0 | AA85: 2580000 | AB85: 2580000 | AC85: 0 | AD85: 0 | AE85: 2293536.92 | AF85: 0 | AG85: 286463.08 | AJ85: 0 | AL85: 0 | AN85: 0 | AO85: 0
A86: CEP/E | B86: 14168 | C86: Change an Online TOC Analyzer | D86: On Going | E86: CTA/S | F86: Yong Jie | G86: Yong Jie | H86: 41877 | I86: 0 | J86: 0 | K86: 0 | L86: N | M86: ZNIC.014168 | N86: NZNIC014168K | P86: 14168 | Q86: 480000 | R86: 0 | S86: 480000 | T86: 348420.96 | U86: 0 | V86: -550 | W86: 8800 | X86: 480000 | Y86: 120779.04 | Z86: 2000 | AA86: 480000 | AB86: 469200 | AC86: -0.0225 | AD86: 348420.96 | AE86: 0 | AF86: 0 | AG86: 120779.04 | AH86: -0.005 | AJ86: 0 | AK86: 1.071428571 | AL86: 8800 | AM86: 0 | AN86: 0 | AO86: 0
A87: CBP/C | B87: 14165 | C87: Add Pipe from BYC EBO Ship Loading Pipe to YPC G102 Tank | D87: Completed | E87: CTE/P | F87: Qiu Zhufeng | G87: Ling Taizhong | H87: 41842 | I87: 42151 | J87: 0 | K87: 0 | L87: H | M87: ZNIC.014165 | N87: NZNIC014165K | P87: 14165 | Q87: 1143000 | R87: 1448000 | S87: 4095032 | T87: 1592582.91 | U87: 1500031.67 | V87: 7680 | W87: -217067.97 | X87: 2591000 | Y87: 0 | Z87: 1069078.94 | AA87: 2591000 | AB87: 3096614.58 | AC87: 0.1951426399 | AD87: 1592582.91 | AE87: 1500031.67 | AF87: 4000 | AG87: 0 | AH87: -0.4215411662 | AI87: -0.217917842 | AJ87: 7680 | AK87: 0.8266365688 | AL87: 0 | AM87: 2.575525095 | AN87: 0 | AO87: 5
A88: CBL/O | B88: 14163 | C88: Replacement of 3 Low Efficiency Motors in A300 & RTTF | D88: Canceled | E88: CTA/L | F88: Chen Kun | G88: Chen Kun | H88: 41803 | I88: 0 | J88: 0 | K88: 0 | L88: N | M88: ZNIC.014163 | N88: NZNIC014163K | P88: 14163 | Q88: 87789 | R88: 0 | S88: 87789 | T88: 0 | U88: 0 | V88: 4400 | W88: 35000 | X88: 87789 | Y88: 48389 | Z88: 0 | AA88: 87789 | AB88: 48389 | AC88: -0.4488033808 | AD88: 0 | AE88: 0 | AF88: 0 | AG88: 48389 | AJ88: 4400 | AK88: 0 | AL88: 35000 | AM88: 0 | AN88: 0 | AO88: 0
A89: CBP/C | B89: 14151 | C89: Add New Pan Oil Pipe from Pan oil Pump to Ethylene Bottom Oil Pipe | D89: Completed | E89: CTE/P | F89: Sun Aihong | G89: Ling Taizhong | H89: 42017 | I89: 42352 | J89: 0 | K89: 0 | L89: T_2015 | M89: ZNIF.104100.15.01 | N89: NZNIC014151K | P89: 14151 | Q89: 410000 | R89: 0 | S89: 483095 | T89: 374983.24 | U89: 0 | V89: -1425 | W89: -36825 | X89: 410000 | Y89: -18537.02 | Z89: 51553.78 | AA89: 410000 | AB89: 358446.22 | AC89: -0.1257409268 | AD89: 374983.24 | AE89: 0 | AF89: 2000 | AG89: -18537.02 | AH89: -0.1189283207 | AI89: -0.4112489043 | AJ89: 0 | AK89: 1.018269231 | AL89: 0 | AM89: 1.497635135 | AN89: 0 | AO89: 0
A90: All | B90: 14149 | C90: BYC Electrical Monitoring & Control System (EMCS) Migration | D90: Completed | E90: CTA/VO | F90: Gu Hemei | G90: Sun Zhongpin | H90: 41795 | I90: 42114 | J90: 42306 | K90: 0 | L90: T_2015 | M90: ZNIC.014149 | N90: NZNIC014149K | P90: 14149 | Q90: 9740000 | R90: 0 | S90: 9742700 | T90: 7151007.15 | U90: 0 | V90: -376977.24 | W90: -47306 | X90: 9740000 | Y90: 0 | Z90: 1289086.73 | AA90: 9740000 | AB90: 7151007.15 | AC90: -0.2658103542 | AD90: 7151007.15 | AE90: 0 | AF90: 0 | AG90: 0 | AH90: -0.1472548236 | AI90: -0.1638929139 | AJ90: 0 | AK90: 2.679934225 | AL90: 0 | AM90: 1.877662338 | AN90: 0 | AO90: 3
A91: CEP/S | B91: 14144 | C91: Add PIB Tank and Feed System in HIPS Plant | D91: On Going | E91: CTE/P | F91: Gu Jingfeng | G91: Wu Zefei | H91: 41981 | I91: 0 | J91: 0 | K91: 0 | L91: H | M91: ZNIC.008007 | N91: NZNIC014144K | P91: 14144 | Q91: 6240000 | R91: 0 | S91: 10167086 | T91: 2987057.18 | U91: 2850148.21 | V91: -96586.63 | W91: -140434.6 | X91: 6240000 | Y91: -670510.33 | Z91: 165282.94 | AA91: 6240000 | AB91: 6074717.06 | AC91: -0.02648765064 | AD91: 2987057.18 | AE91: 2850148.21 | AF91: 908022 | AG91: -670510.33 | AH91: -0.02838472254 | AI91: -0.226949205 | AJ91: 0 | AK91: 1.185672107 | AL91: 0 | AM91: 1.379399163 | AN91: 1 | AO91: 8
A92: CBL/P | B92: 14141 | C92: Add a Manual Sampler on the NAP Feed Piping from YPC | D92: On Going | E92: CTE/P | F92: Li Shouqing | G92: Jiang Haijin | H92: 42083 | I92: 0 | J92: 0 | K92: 0 | L92: N | M92: ZNIF.604170.15.01 | N92: NZNIC014141K | P92: 14141 | Q92: 497000 | R92: 0 | S92: 600931 | T92: 298326.77 | U92: 95439.15 | V92: 9805 | W92: 24825 | X92: 497000 | Y92: 138245.09 | Z92: -121441.01 | AA92: 497000 | AB92: 583811.01 | AC92: 0.1746700402 | AD92: 298326.77 | AE92: 95439.15 | AF92: 51800 | AG92: 138245.09 | AH92: 0.6897067351 | AJ92: 9805 | AK92: 0.9066190476 | AL92: 24825 | AM92: 0.6349264706 | AN92: 0 | AO92: 0
A93: CBP/A | B93: 14126 | C93: Add ESD Interlock Signal and Block Valve for 410-R101A/B | D93: Completed | E93: CTE/A | F93: Gong Feibao | G93: Li Hong | H93: 41857 | I93: 42123 | J93: 0 | K93: 0 | L93: T_2015 | M93: ZNIC.014126 | N93: NZNIC014126K | P93: 14126 | Q93: 191000 | R93: 0 | S93: 207000 | T93: 194143.69 | U93: 0 | V93: -23330 | W93: -4403 | X93: 191000 | Y93: 0 | Z93: 7768.2 | AA93: 191000 | AB93: 194143.69 | AC93: 0.01645910995 | AD93: 194143.69 | AE93: 0 | AF93: 0 | AG93: 0 | AH93: -0.0471979827 | AI93: -0.4434352117 | AJ93: 0 | AK93: 1.831729055 | AL93: 0 | AM93: 1.141689461 | AN93: 0 | AO93: 0
A94: CBP/C | B94: 14121 | C94: H109 Convection Section Modification | D94: Completed | E94: CTE/P | F94: Zhou Yanduo | G94: Ling Taizhong | H94: 41850 | I94: 42151 | J94: 42193 | K94: 0 | L94: T_2015 | M94: ZNIC.014121 | N94: NZNIC014121K | P94: 14121 | Q94: 16490000 | R94: 0 | S94: 16492000 | T94: 15521887.68 | U94: 0 | V94: 18180 | W94: -193590.96 | X94: 16490000 | Y94: 0 | Z94: 13222412.33 | AA94: 16490000 | AB94: 15523887.68 | AC94: -0.05858776956 | AD94: 15521887.68 | AE94: 0 | AF94: 2000 | AG94: 0 | AH94: -0.8315529425 | AI94: 0.01552977215 | AJ94: 18180 | AK94: 0.9004381161 | AL94: 0 | AM94: 1.622979759 | AN94: 0 | AO94: 0
A95: CBP/M | B95: 14115 | C95: Replacement of 16 Low Efficiency Motors in EB/SM Plant | D95: Completed | E95: CTA/M | F95: Lv Yong | G95: Lv Yong | H95: 41808 | I95: 42199 | J95: 0 | K95: 0 | L95: N | M95: ZNIC.014115 | N95: NZNIC014115K | P95: 14115 | Q95: 873000 | R95: 0 | S95: 875000 | T95: 352861.92 | U95: 2000 | V95: 0 | W95: 138240 | X95: 873000 | Y95: 0 | Z95: 146828.34 | AA95: 873000 | AB95: 354861.92 | AC95: -0.5935144101 | AD95: 352861.92 | AE95: 2000 | AF95: 0 | AG95: 0 | AH95: -0.3085937916 | AI95: 0.02773245902 | AJ95: 0 | AL95: 138240 | AM95: 0.04 | AN95: 0 | AO95: 0
A96: CHA | B96: 14112 | C96: EPS Replacement for Z100 1st and 2nd Floor | D96: Completed | E96: CTE/A | F96: Bian Jiacai | G96: Chen Gang | H96: 41796 | I96: 42094 | J96: 0 | K96: 0 | L96: N | M96: ZNIC.014112 | N96: NZNIC014112K | P96: 14112 | Q96: 284000 | R96: 0 | S96: 309000 | T96: 147730.98 | U96: 0 | V96: 5075 | W96: -10725 | X96: 284000 | Y96: 0 | Z96: 74872 | AA96: 284000 | AB96: 172730.98 | AC96: -0.3917923239 | AD96: 147730.98 | AE96: 0 | AF96: 25000 | AG96: 0 | AH96: -0.4404235294 | AJ96: 5075 | AK96: 0.8306922435 | AL96: 0 | AM96: 1.348214286 | AN96: 0 | AO96: 0
A97: CEP/S | B97: 14107 | C97: PS/EPS Plant Emergency Lighting Modification | D97: On Going | E97: CTE/A | F97: Xu Zheng | G97: Zhang Pu | H97: 42209 | I97: 0 | J97: 0 | K97: 0 | L97: H | M97: ZNIC.009924 | N97: NZNIC014107K | P97: 14107 | Q97: 1329000 | R97: 0 | S97: 2128389 | T97: 199141.15 | U97: 631642.51 | V97: -2522.64 | W97: 55700 | X97: 1329000 | Y97: -149498.43 | Z97: 83393.27 | AA97: 1329000 | AB97: 1189906.73 | AC97: -0.1046600978 | AD97: 199141.15 | AE97: 631642.51 | AF97: 508621.5 | AG97: -149498.43 | AH97: -0.1170635489 | AI97: -0.05660392157 | AJ97: 0 | AK97: 1.041354754 | AL97: 55700 | AM97: 0.05593220339 | AN97: 0 | AO97: 2
A98: COO/A | B98: 14104 | C98: Add a Pipeline of ACN Waste Liquid to U5 Incinerator | D98: On Going | E98: CTE/P | F98: Li Shouqing | G98: Jiang Haijin | H98: 42025 | I98: 0 | J98: 0 | K98: 0 | L98: N | M98: ZNIC.008275 | N98: NZNIC014104K | P98: 14104 | Q98: 2063000 | R98: 0 | S98: 2151486 | T98: 1462802.23 | U98: 700.1 | V98: -16000 | W98: -207203.72 | AA98: 2063000 | AD98: 1462802.23 | AE98: 700.1 | AF98: 594078 | AI98: -0.1937309324 | AJ98: 0 | AK98: 1.08839779 | AL98: 0 | AM98: 2.606230388 | AN98: 0 | AO98: 1
A99: CTS/U | B99: 14101 | C99: Replacement of ID Fans_Phase II CLWI Modification | D99: Completed | E99: CTE/P | F99: Zhou Yanduo | G99: Jiang Haijin | H99: 41757 | I99: 42129 | J99: 0 | K99: 0 | L99: T_2015 | M99: ZNIC.014101 | N99: NZNIC014101K | P99: 14101 | Q99: 6213000 | R99: 0 | S99: 6354998 | T99: 5851828.53 | U99: 0 | V99: -69218.58 | W99: -403842.1 | X99: 6213000 | Y99: 0 | Z99: -1007216.21 | AA99: 6213000 | AB99: 5897328.53 | AC99: -0.05080821986 | AD99: 5851828.53 | AE99: 0 | AF99: 45500 | AG99: 0 | AH99: 0.3553655372 | AI99: -0.03612693518 | AJ99: 0 | AK99: 1.135324692 | AL99: 0 | AM99: 2.501550846 | AN99: 0 | AO99: 9
A100: CBP/C | B100: 14097 | C100: Add Fire Water Sprinkler Facilities for Pumps | D100: Completed | E100: CTE/P | F100: Zhang Fanwen | G100: Ling Taizhong | H100: 41842 | I100: 42285 | J100: 0 | K100: 0 | L100: H | M100: ZNIC.014097 | N100: NZNIC014097K | P100: 14097 | Q100: 1229000 | R100: 0 | S100: 1543231 | T100: 1245208.14 | U100: 3291.45 | V100: -11319.2 | W100: -33375.3 | X100: 1229000 | Y100: 0 | Z100: 20176.14 | AA100: 1229000 | AB100: 1344891.59 | AC100: 0.09429746949 | AD100: 1245208.14 | AE100: 3291.45 | AF100: 96392 | AG100: 0 | AH100: -0.04306995965 | AI100: 0.02406523489 | AJ100: 0 | AK100: 1.061617855 | AL100: 0 | AM100: 1.167399624 | AN100: 0 | AO100: 1
A101: CBP/C | B101: 14091 | C101: APC Implementation and Optimization of Ethylene Unit | D101: On Going | E101: CTA/S | F101: Dai Xiaolong | G101: Dai Xiaolong | H101: 41717 | I101: 0 | J101: 0 | K101: 0 | L101: N | M101: ZNIC.014091 | N101: NZNIC014091K | P101: 14091 | Q101: 11000000 | R101: 0 | S101: 13751277 | T101: 1673216.16 | U101: 2159010.01 | V101: -1082605.88 | W101: 165800 | X101: 11000000 | Y101: 6577180.36 | Z101: 424793.47 | AA101: 11000000 | AB101: 10409406.53 | AC101: -0.05369031545 | AD101: 1673216.16 | AE101: 2159010.01 | AF101: 0 | AG101: 6577180.36 | AH101: -0.1046134734 | AJ101: 0 | AK101: 4.608686267 | AL101: 165800 | AM101: 0.4473333333 | AN101: 3 | AO101: 0
A102: COO/A | B102: 14088 | C102: Increase the Yield of Product AEEA | D102: Completed | E102: CTE/P | F102: Li Shouqing | G102: Jiang Haijin | H102: 41995 | I102: 42286 | J102: 0 | K102: 0 | L102: T_2015 | M102: ZNIF.107830.14.01 | N102: NZNIC014088K | P102: 14088 | Q102: 494000 | R102: 0 | S102: 665445 | T102: 386739.66 | U102: 58119.66 | V102: -4610 | W102: 1925 | X102: 494000 | Y102: 0 | Z102: 10816.1 | AA102: 494000 | AB102: 446209.32 | AC102: -0.09674226721 | AD102: 386739.66 | AE102: 58119.66 | AF102: 1350 | AG102: 0 | AH102: 0.01074680058 | AI102: -0.1832921752 | AJ102: 0 | AK102: 1.037479675 | AL102: 1925 | AM102: 0.978125 | AN102: 0 | AO102: 1
A103: CCP/O | B103: 14087 | C103: Add On/off Valves for HV24201/HV44201 | D103: Completed | E103: CTE/A | F103: Wang Zhen | G103: Wang Xinwu | H103: 41793 | I103: 42132 | J103: 0 | K103: 0 | L103: T_2015 | M103: ZNIC.014087 | N103: NZNIC014087K | P103: 14087 | Q103: 490000 | R103: 140000 | S103: 634555 | T103: 633055.06 | U103: 0 | V103: -7700 | W103: -48813.06 | X103: 490000 | Y103: 0 | Z103: -194772.13 | AA103: 630000 | AB103: 634555.06 | AC103: 0.007230253968 | AD103: 633055.06 | AE103: 0 | AF103: 1500 | AG103: 0 | AH103: 1.818670929 | AI103: -0.4242645695 | AJ103: 0 | AK103: 1.055776892 | AL103: 0 | AM103: 1.96468498 | AN103: 0 | AO103: 2
A104: CEP/P | B104: 14086 | C104: Replacement of AMOT by Sentry System | D104: Completed | E104: CTE/A | F104: Wang Zhen | G104: Li Xueyong | H104: 41778 | I104: 42131 | J104: 0 | K104: 0 | L104: T_2015 | M104: ZNIC.014086 | N104: NZNIC014086K | P104: 14086 | Q104: 5612000 | R104: 0 | S104: 6213122 | T104: 5708132.27 | U104: 0 | V104: 79750 | W104: 40422 | X104: 5612000 | Y104: 0 | Z104: 210924.66 | AA104: 5612000 | AB104: 5708132.27 | AC104: 0.01712977014 | AD104: 5708132.27 | AE104: 0 | AF104: 0 | AG104: 0 | AH104: -0.02966122735 | AI104: -0.2634009375 | AJ104: 79750 | AK104: 0.688172043 | AL104: 40422 | AM104: 0.7123501156 | AN104: 0 | AO104: 0
A105: CBP/C | B105: 14072 | C105: Add 7 Samplers for Quench Section of Cracker | D105: Completed | E105: CTE/P | F105: Qiu Zhufeng | G105: Ling Taizhong | H105: 41842 | I105: 42133 | J105: 0 | K105: 0 | L105: T_2015 | M105: ZNIC.014072 | N105: NZNIC014072K | P105: 14072 | Q105: 593000 | R105: 0 | S105: 693000 | T105: 595389.97 | U105: 0 | V105: 7760 | W105: 16329.11 | X105: 593000 | Y105: 0 | Z105: -42106.55 | AA105: 593000 | AB105: 595389.97 | AC105: 0.004030303541 | AD105: 595389.97 | AE105: 0 | AF105: 0 | AG105: 0 | AH105: 0.1667445744 | AI105: -0.102722 | AJ105: 7760 | AK105: 0.9170053476 | AL105: 16329.11 | AM105: 0.8773169797 | AN105: 0 | AO105: 0
A106: CBP/M | B106: 14068 | C106: Replace Samplers for EB/SM | D106: Completed | E106: CTE/P | F106: Sun Aihong | G106: Wu Zefei | H106: 41862 | I106: 42124 | J106: 0 | K106: 0 | L106: T_2015 | M106: ZNIC.014068 | N106: NZNIC014068K | P106: 14068 | Q106: 485000 | R106: 0 | S106: 532500 | T106: 554464.44 | U106: 0 | V106: 14200 | W106: 23064.83 | X106: 485000 | Y106: 0 | Z106: 182574.7 | AA106: 485000 | AB106: 554464.44 | AC106: 0.1432256495 | AD106: 554464.44 | AE106: 0 | AF106: 0 | AG106: 0 | AH106: -0.4955975552 | AI106: 0.1234466667 | AJ106: 14200 | AK106: 0.8013986014 | AL106: 23064.83 | AM106: 0.7015227434 | AN106: 0 | AO106: 0
A107: CBP/M | B107: 14067 | C107: Replace Some Pumps for EB/SM | D107: On Going | E107: CTE/P | F107: Wang Lifen | G107: Ling Taizhong | H107: 41866 | I107: 0 | J107: 0 | K107: 0 | L107: N | M107: ZNIC.014067 | N107: NZNIC014067K | P107: 14067 | Q107: 1900000 | R107: 0 | S107: 2603495 | T107: 1404372.79 | U107: 2897.44 | V107: -72464.76 | W107: -120389.16 | X107: 1900000 | Y107: -529481.05 | Z107: 439999.82 | AA107: 1900000 | AB107: 1460000.18 | AC107: -0.2315788526 | AD107: 1404372.79 | AE107: 2897.44 | AF107: 582211 | AG107: -529481.05 | AH107: -0.3336675919 | AI107: -0.2991658945 | AJ107: 0 | AK107: 1.354177713 | AL107: 0 | AM107: 1.4667151 | AN107: 9 | AO107: 8
A108: CBP/M | B108: 14066 | C108: Revamp Outlet Motor Valves of Cooling Water Pumps | D108: Completed | E108: CTE/A | F108: Gong Feibao | G108: Li Hong | H108: 41843 | I108: 42117 | J108: 0 | K108: 0 | L108: T_2015 | M108: ZNIC.014066 | N108: NZNIC014066K | P108: 14066 | Q108: 1380000 | R108: 0 | S108: 1446000 | T108: 1066525.31 | U108: 0 | V108: -21295 | W108: -9865.43 | X108: 1380000 | Y108: 0 | Z108: 1291047.2 | AA108: 1380000 | AB108: 1066525.31 | AC108: -0.2271555725 | AD108: 1066525.31 | AE108: 0 | AF108: 0 | AG108: 0 | AH108: -0.6314905879 | AI108: -0.1433690397 | AJ108: 0 | AK108: 1.125301559 | AL108: 0 | AM108: 1.054027547 | AN108: 0 | AO108: 0
A109: CBP/B | B109: 14058 | C109: Move the BD&IB Plant DCS Control Station from BCC to EBSM | D109: Completed | E109: CTE/A | F109: Gong Feibao | G109: Li Hong | H109: 41870 | I109: 42115 | J109: 0 | K109: 0 | L109: T_2015 | M109: ZNIC.014058 | N109: NZNIC014058K | P109: 14058 | Q109: 3400000 | R109: 0 | S109: 3410505 | T109: 2704774.17 | U109: 0 | V109: -151971.82 | W109: -98115.5 | X109: 3400000 | Y109: 0 | Z109: 781486.66 | AA109: 3400000 | AB109: 2708079.17 | AC109: -0.2035061265 | AD109: 2704774.17 | AE109: 0 | AF109: 3305 | AG109: 0 | AH109: -0.2714975721 | AI109: -0.3044872941 | AJ109: 0 | AK109: 1.534453385 | AL109: 0 | AM109: 1.236280554 | AN109: 0 | AO109: 7
A110: CEP/E | B110: 14051 | C110: Natural Gas Flowmeter Modification | D110: Completed | E110: CTE/P | F110: Gu Jingfeng | G110: Wu Zefei | H110: 41715 | I110: 41886 | J110: 0 | K110: 0 | L110: T | M110: ZNIC.014051 | N110: NZNIC014051K | P110: 14051 | Q110: 157000 | R110: 0 | S110: 158500 | T110: 111094.64 | U110: 0 | V110: 4950 | W110: 19189.92 | X110: 157000 | Y110: 0 | Z110: 321.44 | AA110: 157000 | AB110: 112594.64 | AC110: -0.2828366879 | AD110: 111094.64 | AE110: 0 | AF110: 1500 | AG110: 0 | AH110: 0.1180778947 | AI110: -0.64123 | AJ110: 4950 | AK110: 0.9262295082 | AL110: 19189.92 | AM110: 0.5770816529 | AN110: 0 | AO110: 1
A111: CBP/C | B111: 14045 | C111: Add Gas Detector around Liquid Hydrocarbon Pumps | D111: Completed | E111: CTE/A | F111: Wang Zhen | G111: Li Hong | H111: 41836 | I111: 42194 | J111: 0 | K111: 0 | L111: N | M111: ZNIC.014045 | N111: NZNIC014045K | P111: 14045 | Q111: 491000 | R111: 0 | S111: 503000 | T111: 342262.57 | U111: 0 | V111: -8800 | W111: -6600 | X111: 491000 | Y111: 0 | Z111: 18860.84 | AA111: 491000 | AB111: 354262.57 | AC111: -0.2784876375 | AD111: 342262.57 | AE111: 0 | AF111: 12000 | AG111: 0 | AH111: 0.03563311722 | AI111: -0.3246775566 | AJ111: 0 | AK111: 1.091428571 | AL111: 0 | AM111: 1.092307692 | AN111: 0 | AO111: 0
A112: CBP/M | B112: 14035 | C112: Revamp H1203 Natural Gas Pipeline | D112: Completed | E112: CTE/P | F112: Sun Aihong | G112: Wu Zefei | H112: 41796 | I112: 42124 | J112: 0 | K112: 0 | L112: T_2015 | M112: ZNIC.014035 | N112: NZNIC014035K | P112: 14035 | Q112: 418000 | R112: 0 | S112: 419200 | T112: 372951.79 | U112: 0 | V112: -5310 | W112: 31263.4 | X112: 418000 | Y112: 0 | Z112: 32076.6 | AA112: 418000 | AB112: 372951.79 | AC112: -0.1077708373 | AD112: 372951.79 | AE112: 0 | AF112: 0 | AG112: 0 | AH112: -0.09670133018 | AI112: -0.2800227306 | AJ112: 0 | AK112: 1.041258741 | AL112: 31263.4 | AM112: 0.6976460348 | AN112: 0 | AO112: 0
A113: CBP/M | B113: 14034 | C113: Add an Inhibitor Surge Drum for Each of T2401/2403 | D113: Completed | E113: CTE/P | F113: Sun Aihong | G113: Wu Zefei | H113: 41841 | I113: 42255 | J113: 0 | K113: 0 | L113: T_2015 | M113: ZNIC.014034 | N113: NZNIC014034K | P113: 14034 | Q113: 477000 | R113: 0 | S113: 542736 | T113: 549736.16 | U113: 0 | V113: -24420 | W113: -56351.67 | X113: 477000 | Y113: 0 | Z113: 70420.5 | AA113: 477000 | AB113: 549736.16 | AC113: 0.1524867086 | AD113: 549736.16 | AE113: 0 | AF113: 0 | AG113: 0 | AH113: -0.1445973365 | AI113: -0.3848137665 | AJ113: 0 | AK113: 1.206511628 | AL113: 0 | AM113: 1.401008148 | AN113: 0 | AO113: 2
A114: CBP/M | B114: 14033 | C114: Add O2 Detector at Discharge of C2401 | D114: Completed | E114: CTE/A | F114: Gong Feibao | G114: Li Hong | H114: 41830 | I114: 42312 | J114: 0 | K114: 0 | L114: T_2015 | M114: ZNIC.014033 | N114: NZNIC014033K | P114: 14033 | Q114: 246000 | R114: 0 | S114: 352085 | T114: 245105.55 | U114: 130 | V114: -9222.07 | W114: -30253 | X114: 246000 | Y114: 13175.87 | Z114: -12411.42 | AA114: 246000 | AB114: 258411.42 | AC114: 0.05045292683 | AD114: 245105.55 | AE114: 130 | AF114: 0 | AG114: 13175.87 | AH114: 0.1223113724 | AI114: -0.07607639632 | AJ114: 0 | AK114: 1.158183019 | AL114: 0 | AM114: 1.846237762 | AN114: 7 | AO114: 0
A115: CBP/M | B115: 14031 | C115: 380VAC LV MCC System Modification of EB/SM | D115: Completed | E115: CTE/A | F115: Zhao Wei | G115: Sun Zhongpin | H115: 41795 | I115: 42132 | J115: 42303 | K115: 0 | L115: T_2015 | M115: ZNIC.014031 | N115: NZNIC014031K | P115: 14031 | Q115: 12200000 | R115: 0 | S115: 12485476 | T115: 8396184.58 | U115: 0 | V115: 113179.14 | W115: -210620.5 | Y115: 0 | AA115: 12200000 | AB115: 8663660.38 | AC115: -0.2898639033 | AD115: 8396184.58 | AE115: 0 | AF115: 267475.8 | AG115: 0 | AI115: -0.3129956166 | AJ115: 113179.14 | AK115: 0.9159737629 | AL115: 0 | AM115: 1.591880006 | AN115: 0 | AO115: 12
A116: CBP/C | B116: 14023 | C116: Expand the Capacity of 330-V-344 | D116: Completed | E116: CTE/P | F116: Qiu Zhufeng | G116: Ling Taizhong | H116: 41794 | I116: 42133 | J116: 0 | K116: 0 | L116: T_2015 | M116: ZNIC.014023 | N116: NZNIC014023K | P116: 14023 | Q116: 497000 | R116: 100000 | S116: 574600 | T116: 574600.02 | U116: 0 | V116: 12126.1 | W116: -6871.17 | X116: 597000 | Y116: 0 | Z116: 147937.95 | AA116: 597000 | AB116: 574600.02 | AC116: -0.03752090452 | AD116: 574600.02 | AE116: 0 | AF116: 0 | AG116: 0 | AH116: -0.363636782 | AI116: -0.2210180304 | AJ116: 12126.1 | AK116: 0.9179698968 | AL116: 0 | AM116: 1.05158536 | AN116: 0 | AO116: 4
A117: COA/S | B117: 14015 | C117: E1210 Condensate Recycle | D117: On Going | E117: CTE/P | F117: Zhu Jianxin | G117: Wu Zefei | H117: 42019 | I117: 0 | J117: 0 | K117: 0 | L117: N | M117: ZNIF.106500.15.01 | N117: NZNIC014015K | P117: 14015 | Q117: 830000 | R117: 290000 | S117: 854477 | T117: 425970.85 | U117: 48000 | V117: 154110 | W117: 122850 | X117: 1120000 | Y117: 350815.76 | Z117: 11981.39 | AA117: 1120000 | AB117: 831058.61 | AC117: -0.2579833839 | AD117: 425970.85 | AE117: 48000 | AF117: 6272 | AG117: 350815.76 | AH117: -0.04233311395 | AI117: -0.174525 | AJ117: 154110 | AK117: 0.5138485804 | AL117: 122850 | AM117: 0.1917763158 | AN117: 0 | AO117: 1
A118: CTS/U | B118: 14002 | C118: Replace Material of the Pipeline between Compressor and Dryer | D118: Completed | E118: CTE/P | F118: Li Shouqing | G118: Zhang Fanwen | H118: 41752 | I118: 42118 | J118: 0 | K118: 0 | L118: T_2015 | M118: ZNIC.014002 | N118: NZNIC014002K | P118: 14002 | Q118: 2360000 | R118: 0 | S118: 2377500 | T118: 2165099.84 | U118: 0 | V118: -18560 | W118: -77089.53 | X118: 2360000 | Y118: 0 | Z118: -448100.21 | AA118: 2360000 | AB118: 2182599.84 | AC118: -0.07516955932 | AD118: 2165099.84 | AE118: 0 | AF118: 17500 | AG118: 0 | AH118: 0.5472564071 | AI118: 0.04618305274 | AJ118: 0 | AK118: 1.141787624 | AL118: 0 | AM118: 1.442153886 | AN118: 0 | AO118: 0
A119: CTS/U | B119: 14001 | C119: Add Heat Exchanger of CPS Pipeline to BCC | D119: Completed | E119: CTE/P | F119: Li Shouqing | G119: Zhang Fanwen | H119: 41793 | I119: 42124 | J119: 0 | K119: 0 | L119: T_2015 | M119: ZNIC.014001 | N119: NZNIC014001K | P119: 14001 | Q119: 1194000 | R119: 0 | S119: 1344261 | T119: 1032623.23 | U119: 8000 | V119: -21256.48 | W119: 2578.3 | X119: 1194000 | Y119: 0 | Z119: 124067.15 | AA119: 1194000 | AB119: 1042884.23 | AC119: -0.1265626214 | AD119: 1032623.23 | AE119: 8000 | AF119: 2261 | AG119: 0 | AH119: 0.01364202703 | AI119: -0.2973925409 | AJ119: 0 | AK119: 1.125480992 | AL119: 2578.3 | AM119: 0.9846803327 | AN119: 0 | AO119: 2
A120: CBP/A | B120: 13277 | C120: D230 MCC Modification | D120: Completed | E120: CTE/A | F120: Hu Xiao | G120: Chen Gang | H120: 41764 | I120: 42132 | J120: 0 | K120: 0 | L120: T_2015 | M120: ZNIC.013277 | N120: NZNIC013277K | P120: 13277 | Q120: 3950000 | R120: 0 | S120: 3964380 | T120: 2035043.68 | U120: 4498 | V120: -72400.52 | W120: 91817.32 | Y120: 0 | AA120: 3950000 | AB120: 2041923.68 | AC120: -0.4830572962 | AD120: 2035043.68 | AE120: 4498 | AF120: 2382 | AG120: 0 | AI120: 0.03675722682 | AJ120: 0 | AK120: 1.404415696 | AL120: 91817.32 | AM120: 0.6536502452 | AN120: 0 | AO120: 4
A121: CBP/M | B121: 13270 | C121: Gas Detector Modification for EB/SM Tank Farm | D121: Completed | E121: CTE/A | F121: Wang Zhen | G121: Li Hong | H121: 41709 | I121: 42250 | J121: 0 | K121: 0 | L121: N | M121: ZNIC.013270 | N121: NZNIC013270K | P121: 13270 | Q121: 432000 | R121: 0 | S121: 432000 | T121: 243654.64 | U121: 0 | V121: -580 | W121: -2475 | X121: 432000 | Y121: 0 | Z121: 87683.36 | AA121: 432000 | AB121: 243654.64 | AC121: -0.4359846296 | AD121: 243654.64 | AE121: 0 | AF121: 0 | AG121: 0 | AH121: -0.4337827537 | AI121: -0.2344541158 | AJ121: 0 | AK121: 1.008238636 | AL121: 0 | AM121: 1.053571429 | AN121: 0 | AO121: 0
A122: CHA | B122: 13265 | C122: Modify IET Office to Archive Centre Storeroom | D122: Completed | E122: CTE/C | F122: Yu Yi | G122: Jiang Yunning | H122: 41926 | I122: 42063 | J122: 42251 | K122: 0 | L122: N | M122: ZNIC.007512 | N122: NZNIC013265K | P122: 13265 | Q122: 1221000 | R122: 1600000 | S122: 2851000 | T122: 2301084.59 | U122: 30000 | V122: 4252.39 | W122: -380587.92 | X122: 2821000 | Y122: 0 | Z122: 208666.37 | AA122: 2821000 | AB122: 2331084.59 | AC122: -0.1736672847 | AD122: 2301084.59 | AE122: 30000 | AF122: 0 | AG122: 0 | AH122: -0.3454073195 | AI122: -0.1211815043 | AJ122: 4252.39 | AK122: 0.9537783696 | AL122: 0 | AM122: 4.174211176 | AN122: 0 | AO122: 3
A123: COA/E | B123: 13263 | C123: Add Solenoid Valve for P5845 and P6660/P6665 Diaphragm Pump Air Supply | D123: Completed | E123: CTA/A | F123: Guo Jinhua | G123: Guo Jinhua | H123: 41661 | I123: 42246 | J123: 0 | K123: 0 | L123: N | M123: ZNIC.013263 | N123: NZNIC013263K | P123: 13263 | Q123: 70000 | R123: 0 | S123: 70000 | T123: 0 | U123: 0 | V123: 0 | W123: 1500 | X123: 70000 | Y123: 0 | Z123: 0 | AA123: 70000 | AB123: 0 | AC123: -1 | AD123: 0 | AE123: 0 | AF123: 0 | AG123: 0 | AJ123: 0 | AL123: 1500 | AM123: 0 | AN123: 0 | AO123: 0
A124: CBP/C | B124: 13260 | C124: Upgrade PLC of Turbonmachinery Control System | D124: Completed | E124: CTA/B | F124: Zhao Yongming | G124: Zhao Yongming | H124: 41619 | I124: 42155 | J124: 42152 | K124: 0 | L124: T_2015 | M124: ZNIC.013260 | N124: NZNIC013260K | P124: 13260 | Q124: 2000000 | R124: 0 | S124: 2000000 | T124: 1276119.98 | U124: 0 | V124: 75600 | W124: 0 | X124: 2000000 | Y124: 0 | Z124: 490020.62 | AA124: 2000000 | AB124: 1276119.98 | AC124: -0.36194001 | AD124: 1276119.98 | AE124: 0 | AF124: 0 | AG124: 0 | AH124: -0.2477437911 | AJ124: 75600 | AK124: 0.055 | AL124: 0 | AN124: 0 | AO124: 0
A125: CBP/C | B125: 13259 | C125: Upgrade Speed Control System of Compressors | D125: Completed | E125: CTA/B | F125: Zhao Yongming | G125: Zhao Yongming | H125: 41619 | I125: 42155 | J125: 42152 | K125: 0 | L125: T_2015 | M125: ZNIC.013259 | N125: NZNIC013259K | P125: 13259 | Q125: 2000000 | R125: 0 | S125: 2000000 | T125: 1838951.56 | U125: 0 | V125: 80000 | W125: 0 | X125: 2000000 | Y125: 0 | Z125: -201573.34 | AA125: 2000000 | AB125: 1838951.56 | AC125: -0.08052422 | AD125: 1838951.56 | AE125: 0 | AF125: 0 | AG125: 0 | AH125: 0.1033709436 | AJ125: 80000 | AK125: 0 | AL125: 0 | AN125: 0 | AO125: 0
A126: CBP/M | B126: 13257 | C126: Add a Waste Water Pump in EB/SM | D126: Completed | E126: CTE/P | F126: Sun Aihong | G126: Ling Taizhong | H126: 41709 | I126: 42349 | J126: 0 | K126: 0 | L126: N | M126: ZNIC.013257 | N126: NZNIC013257K | P126: 13257 | Q126: 365000 | R126: 0 | S126: 445854 | T126: 376522.83 | U126: 0 | V126: 11640 | W126: -11766.22 | X126: 365000 | Y126: -56587.31 | Z126: 26424.48 | AA126: 365000 | AB126: 326935.52 | AC126: -0.1042862466 | AD126: 376522.83 | AE126: 0 | AF126: 7000 | AG126: -56587.31 | AH126: -0.07490738217 | AI126: -0.1351577502 | AJ126: 11640 | AK126: 0.8856019656 | AL126: 0 | AM126: 1.150655826 | AN126: 0 | AO126: 1
A127: CBP/C | B127: 13247 | C127: Modification of Filter System for P230 | D127: Completed | E127: CTE/P | F127: Wang Can | G127: Ling Taizhong | H127: 41830 | I127: 42133 | J127: 0 | K127: 0 | L127: T_2015 | M127: ZNIC.013247 | N127: NZNIC013247K | P127: 13247 | Q127: 1055000 | R127: 495000 | S127: 1485801 | T127: 1620413.84 | U127: 101 | V127: -65730.09 | W127: -9245.61 | X127: 1055000 | Y127: 0 | Z127: -586764.33 | AA127: 1550000 | AB127: 1620514.84 | AC127: 0.04549344516 | AD127: 1620413.84 | AE127: 101 | AF127: 0 | AG127: 0 | AH127: 0.8814700631 | AI127: -0.1341281666 | AJ127: 0 | AK127: 1.326578311 | AL127: 0 | AM127: 1.057957123 | AN127: 1 | AO127: 3
A128: CBP/B | B128: 13244 | C128: Add Spare Exchangers and Filters in BEU | D128: Completed | E128: CTE/P | F128: Gu Jingfeng | G128: Ling Taizhong | H128: 41709 | I128: 42223 | J128: 0 | K128: 0 | L128: T_2015 | M128: ZNIC.013244 | N128: NZNIC013244K | P128: 13244 | Q128: 5250000 | R128: 0 | S128: 5251931 | T128: 3330289.88 | U128: 431.09 | V128: -325563.53 | W128: -170071.53 | X128: 5250000 | Y128: 0 | Z128: 1619190.82 | AA128: 5250000 | AB128: 3332220.97 | AC128: -0.3652912438 | AD128: 3330289.88 | AE128: 431.09 | AF128: 1500 | AG128: 0 | AH128: -0.4480039322 | AI128: -0.1828844552 | AJ128: 0 | AK128: 1.813095729 | AL128: 0 | AM128: 1.562219934 | AN128: 0 | AO128: 7
A129: CEP/S | B129: 13243 | C129: Revamp Rain Drainage System of PS Tank Farm | D129: Completed | E129: CTE/C | F129: Gao Feng | G129: Zhang Zhihe | H129: 41841 | I129: 42236 | J129: 0 | K129: 0 | L129: H | M129: ZNIC.013243 | N129: NZNIC013243K | P129: 13243 | Q129: 561000 | R129: 0 | S129: 598204 | T129: 594203.35 | U129: 0 | V129: 32768.2 | W129: -19676.26 | X129: 561000 | Y129: 0 | Z129: 49509.96 | AA129: 561000 | AB129: 598203.35 | AC129: 0.06631613191 | AD129: 594203.35 | AE129: 0 | AF129: 4000 | AG129: 0 | AH129: -0.03772565312 | AI129: -0.1861856843 | AJ129: 32768.2 | AK129: 0.8161156004 | AL129: 0 | AM129: 1.194959227 | AN129: 0 | AO129: 3
A130: CAP/E | B130: 13240 | C130: Add Jacket Heat Exchanger on V6700 | D130: Completed | E130: CTE/P | F130: Xie Qiang | G130: Wu Zefei | H130: 41656 | I130: 41886 | J130: 0 | K130: 0 | L130: N | M130: ZNIC.013240 | N130: NZNIC013240K | P130: 13240 | Q130: 410000 | R130: 0 | S130: 437708 | T130: 436207.83 | U130: 0 | V130: -5905 | W130: -20524.44 | Y130: 0 | AA130: 410000 | AB130: 437707.83 | AC130: 0.06758007317 | AD130: 436207.83 | AE130: 0 | AF130: 1500 | AG130: 0 | AI130: -0.2726703673 | AJ130: 0 | AK130: 1.054777365 | AL130: 0 | AM130: 1.24153504 | AN130: 0 | AO130: 1
A131: CBL/O | B131: 13236 | C131: Rebuild RTTF Operation Room 1&2 | D131: Completed | E131: CTE/C | F131: Yu Yi | G131: Guo Bing | H131: 41893 | I131: 42308 | J131: 0 | K131: 0 | L131: N | M131: ZNIC.013236 | N131: NZNIC013236K | P131: 13236 | Q131: 942000 | R131: 0 | S131: 1383028 | T131: 384367.86 | U131: 10029.9 | V131: -6810 | W131: 33188.45 | X131: 942000 | Y131: 108373.06 | Z131: -24642.27 | AA131: 942000 | AB131: 933453.82 | AC131: -0.009072377919 | AD131: 384367.86 | AE131: 10029.9 | AF131: 430683 | AG131: 108373.06 | AH131: 0.5092160197 | AI131: -0.3872042995 | AJ131: 0 | AK131: 1.048366477 | AL131: 33188.45 | AM131: 0.7464595111 | AN131: 0 | AO131: 3
A132: CBP/A | B132: 13234 | C132: Replacement of 800-UPS-001 | D132: Completed | E132: CTE/A | F132: Bian Jiacai | G132: Chen Gang | H132: 41666 | I132: 42110 | J132: 0 | K132: 0 | L132: T_2015 | M132: ZNIC.013234 | N132: NZNIC013234K | P132: 13234 | Q132: 774000 | R132: 0 | S132: 774000 | T132: 494014.8 | U132: 0 | V132: 1251.89 | W132: -4677 | X132: 774000 | Y132: 0 | Z132: 129054.19 | AA132: 774000 | AB132: 494014.8 | AC132: -0.3617379845 | AD132: 494014.8 | AE132: 0 | AF132: 0 | AG132: 0 | AH132: -0.216402566 | AI132: 0.04820710338 | AJ132: 1251.89 | AK132: 0.9748490206 | AL132: 0 | AM132: 1.207405765 | AN132: 0 | AO132: 3
A133: CBP/C | B133: 13233 | C133: Replacement of 300-UPS-001 | D133: Completed | E133: CTE/A | F133: Bian Jiacai | G133: Chen Gang | H133: 41666 | I133: 42117 | J133: 0 | K133: 0 | L133: T_2015 | M133: ZNIC.013233 | N133: NZNIC013233K | P133: 13233 | Q133: 881000 | R133: 0 | S133: 881000 | T133: 566235.58 | U133: 0 | V133: 11560 | W133: -2795.88 | X133: 881000 | Y133: 0 | Z133: 127408.53 | AA133: 881000 | AB133: 566235.58 | AC133: -0.35728084 | AD133: 566235.58 | AE133: 0 | AF133: 0 | AG133: 0 | AH133: -0.1857142857 | AI133: 0.1774250308 | AJ133: 11560 | AK133: 0.767754897 | AL133: 0 | AM133: 1.123985809 | AN133: 0 | AO133: 2
A134: CBP/C | B134: 13229 | C134: Replace Economizer with High Efficient Type for SUB | D134: Completed | E134: CTE/P | F134: Qiu Zhufeng | G134: Ling Taizhong | H134: 41743 | I134: 42130 | J134: 0 | K134: 0 | L134: T_2015 | M134: ZNIC.013229 | N134: NZNIC013229K | P134: 13229 | Q134: 3054000 | R134: 1553000 | S134: 4073939 | T134: 4279187.91 | U134: 0 | V134: -21153.97 | W134: -14625 | X134: 3054000 | Y134: 0 | Z134: -196768.88 | AA134: 4607000 | AB134: 4319187.91 | AC134: -0.06247277838 | AD134: 4279187.91 | AE134: 0 | AF134: 40000 | AG134: 0 | AH134: 0.04776466222 | AI134: 0.046675 | AJ134: 0 | AK134: 1.123671266 | AL134: 0 | AM134: 1.10072314 | AN134: 1 | AO134: 0
A135: CCP/A | B135: 13224 | C135: Add 2000m3 DEOA Tank in RTTF | D135: Completed | E135: CTE/P | F135: Jiang Hao/Liu Xiaoli | G135: Xu Yefeng/Zong Baorong | H135: 41697 | I135: 42129 | J135: 0 | K135: 0 | L135: T_2015 | M135: ZNIC.013224 | N135: NZNIC013224K | P135: 13224 | Q135: 15880000 | R135: 0 | S135: 16101960 | T135: 17613149.76 | U135: 36292.33 | V135: 332800 | W135: 202300 | X135: 15880000 | Y135: 0 | Z135: -54575.1 | AA135: 15880000 | AB135: 17649442.09 | AC135: 0.1114258243 | AD135: 17613149.76 | AE135: 36292.33 | AF135: 0 | AG135: 0 | AH135: 0.5639710571 | AI135: -0.2737253383 | AJ135: 332800 | AK135: 0 | AL135: 202300 | AM135: 0.1895032051 | AN135: 0 | AO135: 0
A136: CTS/U | B136: 13209 | C136: Adding a New Ultrasonic Flowmeter on DM Water in CLWI | D136: Hold | E136: CTA/U | F136: Yu Yong | G136: Yu Yong | H136: 41557 | I136: 0 | J136: 0 | K136: 0 | L136: N | M136: ZNIC.013209 | N136: NZNIC013209K | P136: 13209 | Q136: 90000 | R136: 0 | S136: 213215 | T136: 0 | U136: 123215.39 | V136: 0 | W136: 5000 | X136: 90000 | Y136: -38215.39 | Z136: 0 | AA136: 90000 | AB136: 85000 | AC136: -0.05555555556 | AD136: 0 | AE136: 123215.39 | AF136: 0 | AG136: -38215.39 | AJ136: 0 | AL136: 5000 | AM136: 0 | AN136: 0 | AO136: 0
A137: COO/C | B137: 13198 | C137: NPG_TMA Supply from C1 Plant | D137: Completed | E137: CTE/P | F137: Sun Duoxun | G137: Jiang Haijin | H137: 41528 | I137: 42160 | J137: 0 | K137: 0 | L137: T_2015 | M137: ZNIC.131198 | N137: NZNIC013198K | P137: 13198 | Q137: 1676000 | R137: 0 | S137: 2185329 | T137: 2195537.55 | U137: 0 | V137: -352510.27 | W137: -287309.01 | X137: 1676000 | Y137: 0 | Z137: 129032.34 | AA137: 1676000 | AB137: 2201537.55 | AC137: 0.3135665573 | AD137: 2195537.55 | AE137: 0 | AF137: 6000 | AG137: 0 | AH137: -0.3138769528 | AI137: 0.004294549258 | AJ137: 0 | AL137: 0 | AN137: 0 | AO137: 4
A138: COO/O | B138: 13197 | C138: NPG_IBA Supply from OXO Plant | D138: Completed | E138: CTE/P | F138: Sun Duoxun | G138: Jiang Haijin | H138: 41528 | I138: 42158 | J138: 0 | K138: 0 | L138: T_2015 | M138: ZNIC.131197 | N138: NZNIC013197K | P138: 13197 | Q138: 1720000 | R138: 0 | S138: 2319011 | T138: 2315658.3 | U138: 5000 | V138: -345333.97 | W138: -276334.4 | X138: 1720000 | Y138: 0 | Z138: 328807.09 | AA138: 1720000 | AB138: 2326658.3 | AC138: 0.352708314 | AD138: 2315658.3 | AE138: 5000 | AF138: 6000 | AG138: 0 | AH138: -0.3909712835 | AI138: -0.1722422199 | AJ138: 0 | AL138: 0 | AN138: 0 | AO138: 3
A139: CBP/M | B139: 13195 | C139: Replace an Air Dryer | D139: On Going | E139: CTE/P | F139: Ding Juntao | G139: Ling Taizhong | H139: 41997 | I139: 0 | J139: 0 | K139: 0 | L139: N | M139: ZNIC.008126 | N139: NZNIC013195K | P139: 13195 | Q139: 1344000 | R139: 0 | S139: 1596491 | T139: 949744.01 | U139: 462.5 | V139: -49443.02 | W139: -27500 | X139: 1344000 | Y139: -34100.24 | Z139: 171914.73 | AA139: 1344000 | AB139: 1172085.27 | AC139: -0.1279127455 | AD139: 949744.01 | AE139: 462.5 | AF139: 255979 | AG139: -34100.24 | AH139: -0.1929626527 | AI139: -0.4685241379 | AJ139: 0 | AK139: 1.363953036 | AL139: 0 | AM139: 1.196078431 | AN139: 0 | AO139: 6
A140: CBP/C | B140: 13190 | C140: Add Explosion-proof Monitoring Camera in BCC&SCTF | D140: Completed | E140: CTE/A | F140: Bian Jiacai | G140: Chen Gang | H140: 41680 | I140: 42185 | J140: 0 | K140: 0 | L140: N | M140: ZNIC.013190 | N140: NZNIC013190K | P140: 13190 | Q140: 5665000 | R140: 0 | S140: 5675760 | T140: 4203228.63 | U140: 0 | V140: 2820 | W140: -18150 | X140: 5665000 | Y140: 0 | Z140: 1068608.18 | AA140: 5665000 | AB140: 4203228.63 | AC140: -0.2580355463 | AD140: 4203228.63 | AE140: 0 | AF140: 0 | AG140: 0 | AH140: -0.2369535719 | AI140: -0.05855974151 | AJ140: 2820 | AK140: 0.9862355095 | AL140: 0 | AM140: 1.066666667 | AN140: 0 | AO140: 0
A141: CBP/M | B141: 13189 | C141: Air-conditioning System Modification in CCR of 7100 | D141: Completed | E141: CTE/C | F141: Gao Feng | G141: Wang Wei | H141: 41667 | I141: 42185 | J141: 0 | K141: 0 | L141: N | M141: ZNIC.013189 | N141: NZNIC013189K | P141: 13189 | Q141: 4234000 | R141: 0 | S141: 4398544 | T141: 3008109.75 | U141: 20095 | V141: -54198.12 | W141: 9568.87 | Y141: 0 | AA141: 4234000 | AB141: 3041789.75 | AC141: -0.2815801252 | AD141: 3008109.75 | AE141: 20095 | AF141: 13585 | AG141: 0 | AI141: -0.1935596826 | AJ141: 0 | AK141: 1.232410463 | AL141: 9568.87 | AM141: 0.9414210591 | AN141: 0 | AO141: 2
A142: CBP/M | B142: 13184 | C142: Modify Waste Water System for EB/SM Tank Farm | D142: Completed | E142: CTE/P | F142: Sun Aihong | G142: Ling Taizhong | H142: 41753 | I142: 42314 | J142: 0 | K142: 0 | L142: T_2015 | M142: ZNIC.013184 | N142: NZNIC013184K | P142: 13184 | Q142: 4080000 | R142: 0 | S142: 4814735 | T142: 3070395.75 | U142: 52079.48 | V142: -20197.27 | W142: -169055.05 | X142: 4080000 | Y142: -593648.48 | Z142: 1233088.25 | AA142: 4080000 | AB142: 2846911.75 | AC142: -0.3022275123 | AD142: 3070395.75 | AE142: 52079.48 | AF142: 318085 | AG142: -593648.48 | AH142: -0.3579345313 | AI142: -0.2121250654 | AJ142: 0 | AK142: 1.074563064 | AL142: 0 | AM142: 1.477286985 | AN142: 0 | AO142: 5
A143: CEP/S | B143: 13165 | C143: Control System of Pelletizing Upgrading in HIPS | D143: Completed | E143: CTE/A | F143: Gong Feibao | G143: Zeng Qing | H143: 41591 | I143: 42152 | J143: 0 | K143: 0 | L143: T_2015 | M143: ZNIC.013165 | N143: NZNIC013165K | P143: 13165 | Q143: 1139000 | R143: 91000 | S143: 1404921 | T143: 1404921.44 | U143: 0 | V143: 58600 | W143: 77500 | X143: 1139000 | Y143: 0 | Z143: -640000 | AA143: 1230000 | AB143: 1404921.44 | AC143: 0.1422125528 | AD143: 1404921.44 | AE143: 0 | AF143: 0 | AG143: 0 | AH143: 0.6666666667 | AJ143: 58600 | AK143: 0.3895833333 | AL143: 77500 | AM143: 0 | AN143: 0 | AO143: 0
A144: CBP/C | B144: 13156 | C144: Add a Control Valve on K650 Outlet Line to Flare | D144: Completed | E144: CTE/P | F144: Qiu Zhufeng | G144: Li Hong | H144: 41625 | I144: 42122 | J144: 0 | K144: 0 | L144: T_2015 | M144: ZNIC.013156 | N144: NZNIC013156K | P144: 13156 | Q144: 340000 | R144: 0 | S144: 390000 | T144: 204932.78 | U144: 0 | V144: 22600 | W144: -9034.34 | X144: 340000 | Y144: 0 | Z144: 37188.48 | AA144: 340000 | AB144: 204932.78 | AC144: -0.3972565294 | AD144: 204932.78 | AE144: 0 | AF144: 0 | AG144: 0 | AH144: -0.2275029403 | AI144: -0.4270674932 | AJ144: 22600 | AK144: 0.6712727273 | AL144: 0 | AM144: 1.211949326 | AN144: 0 | AO144: 0
A145: CAP/A | B145: 13133 | C145: Add New Restab Unit System | D145: Completed | E145: CTE/P | F145: Zhu Jianxin | G145: Wu Zefei | H145: 41663 | I145: 41989 | J145: 0 | K145: 0 | L145: H | M145: ZNIC.013133 | N145: NZNIC013133K | P145: 13133 | Q145: 8751000 | R145: 0 | S145: 10339693 | T145: 5873055.08 | U145: 1583692.53 | V145: -619842.02 | W145: -265472.81 | X145: 8751000 | Y145: 0 | Z145: 1411008.29 | AA145: 8751000 | AB145: 7461747.61 | AC145: -0.147326293 | AD145: 5873055.08 | AE145: 1583692.53 | AF145: 5000 | AG145: 0 | AH145: -0.2634002086 | AI145: -0.3337346288 | AJ145: 0 | AK145: 2.014471391 | AL145: 0 | AM145: 1.369225049 | AN145: 9 | AO145: 7
A146: CBP/M | B146: 13120 | C146: EB/SM Plant Paging System Modification | D146: Completed | E146: CTA/S | F146: Dai Xiaolong | G146: Qiu Wei | H146: 41465 | I146: 42185 | J146: 0 | K146: 0 | L146: N | M146: ZNIC.013120 | N146: NZNIC013120K | P146: 13120 | Q146: 950000 | R146: 0 | S146: 963899 | T146: 914799.43 | U146: 0 | V146: -4714 | W146: 4950.58 | X146: 950000 | Y146: 0 | Z146: -159529.9 | AA146: 950000 | AB146: 928698.43 | AC146: -0.02242270526 | AD146: 914799.43 | AE146: 0 | AF146: 13899 | AG146: 0 | AH146: 0.2408857143 | AI146: -0.06733407407 | AJ146: 0 | AK146: 1.4714 | AL146: 4950.58 | AM146: 0.8349806667 | AN146: 0 | AO146: 1
A147: CEP/S | B147: 13115 | C147: PS&EPS Plant Paging System Modification | D147: Completed | E147: CTA/S | F147: Dai Xiaolong | G147: Qiu Wei | H147: 41465 | I147: 42185 | J147: 0 | K147: 0 | L147: H | M147: ZNIC.013115 | N147: NZNIC013115K | P147: 13115 | Q147: 1050000 | R147: 0 | S147: 1050000 | T147: 952566.79 | U147: 0 | V147: -18875 | W147: 30000 | X147: 1050000 | Y147: 0 | Z147: -143097.13 | AA147: 1050000 | AB147: 952566.79 | AC147: -0.09279353333 | AD147: 952566.79 | AE147: 0 | AF147: 0 | AG147: 0 | AH147: 0.20006625 | AI147: -0.1474423478 | AJ147: 0 | AK147: 2.8875 | AL147: 30000 | AM147: 0 | AN147: 0 | AO147: 0
A148: CEP/S | B148: 13114 | C148: Add Back Flow Protection in Utility Supply Pipes | D148: Completed | E148: CTE/P | F148: Gu Jingfeng | G148: Zhang Fanwen | H148: 41515 | I148: 42129 | J148: 0 | K148: 0 | L148: T_2015 | M148: ZNIC.013114 | N148: NZNIC013114K | P148: 13114 | Q148: 1996000 | R148: 0 | S148: 1999111 | T148: 1128415.8 | U148: 3111.11 | V148: -45660.51 | W148: -17168.87 | X148: 1996000 | Y148: 0 | Z148: 618079.77 | AA148: 1996000 | AB148: 1131526.91 | AC148: -0.4331027505 | AD148: 1128415.8 | AE148: 3111.11 | AF148: 0 | AG148: 0 | AH148: -0.7247746876 | AI148: -0.2094478324 | AJ148: 0 | AK148: 1.275810994 | AL148: 0 | AM148: 1.096049622 | AN148: 0 | AO148: 2
A149: CTS/U | B149: 13112 | C149: CLWI Modification | D149: Completed | E149: CTE/P | F149: Zhou Yanduo | G149: Zhang Fanwen | H149: 41582 | I149: 42017 | J149: 42195 | K149: 0 | L149: H | M149: ZNIC.013112 | N149: NZNIC013112K | P149: 13112 | Q149: 16000000 | R149: 0 | S149: 16045806 | T149: 12367299.12 | U149: 0 | V149: -7723526.81 | W149: -493586.35 | X149: 16000000 | Y149: 0 | Z149: 1068187.92 | AA149: 16000000 | AB149: 12406352.62 | AC149: -0.2246029613 | AD149: 12367299.12 | AE149: 0 | AF149: 39053.5 | AG149: 0 | AH149: -0.05845784352 | AI149: -0.2280779146 | AJ149: 0 | AK149: 31.89410724 | AL149: 0 | AM149: 3.35041119 | AN149: 6 | AO149: 15
A150: CCP/A | B150: 13106 | C150: Add a EDA Recycle Pump to Produce More PIP/DETA | D150: Completed | E150: CTE/P | F150: Li Shouqing | G150: Wang Wei | H150: 41493 | I150: 41882 | J150: 0 | K150: 0 | L150: T | M150: ZNIC.013106 | N150: NZNIC013106K | P150: 13106 | Q150: 1715000 | R150: 0 | S150: 1715000 | T150: 1479893 | U150: 0 | V150: 17614.53 | W150: -115361.37 | X150: 1715000 | Y150: 0 | Z150: 247600.61 | AA150: 1715000 | AB150: 1479893 | AC150: -0.1370886297 | AD150: 1479893 | AE150: 0 | AF150: 0 | AG150: 0 | AH150: -0.1883555867 | AI150: -0.2687430769 | AJ150: 17614.53 | AK150: 0.9317133941 | AL150: 0 | AM150: 1.838991782 | AN150: 0 | AO150: 2
A151: CBP/C | B151: 13105 | C151: Add a Gasoline Reflux Pump for Quench Oil Fractionator | D151: Canceled | E151: CTE/P | F151: Sun Aihong | G151: Ling Taizhong | H151: 41678 | I151: 0 | J151: 0 | K151: 0 | L151: T_2015 | M151: ZNIC.013105 | N151: NZNIC013105K | P151: 13105 | Q151: 1947000 | R151: 0 | S151: 1947000 | T151: 203571.98 | U151: 0 | V151: 143495 | W151: 239487.52 | X151: 1947000 | Y151: 1289016.15 | Z151: 71429.35 | AA151: 1947000 | AB151: 1492588.13 | AC151: -0.233390791 | AD151: 203571.98 | AE151: 0 | AF151: 0 | AG151: 1289016.15 | AH151: -0.03622187784 | AI151: -0.7775663746 | AJ151: 143495 | AK151: 0.4631687243 | AL151: 239487.52 | AM151: 0.1807490978 | AN151: 0 | AO151: 0
A152: CTA | B152: 13096 | C152: C402 HVAC Replacement and Roof Repair | D152: Completed | E152: CTE/C | F152: Yu Yi | G152: Wang Wei | H152: 41603 | I152: 42040 | J152: 0 | K152: 0 | L152: N | M152: ZNIC.013096 | N152: NZNIC013096K | P152: 13096 | Q152: 2660000 | R152: 0 | S152: 2668000 | T152: 1792039.75 | U152: 8000 | V152: -49810 | W152: -426602.39 | X152: 2660000 | Y152: 0 | Z152: 678663.9 | AA152: 2660000 | AB152: 1800039.75 | AC152: -0.3232933271 | AD152: 1792039.75 | AE152: 8000 | AF152: 0 | AG152: 0 | AH152: -0.4295670944 | AI152: -0.1532833726 | AJ152: 0 | AK152: 1.25949466 | AL152: 0 | AM152: 3.364758259 | AN152: 0 | AO152: 2
A153: CBP/C | B153: 13081 | C153: Replace the Electric Heat Tracing on Furnaces | D153: On Going | E153: CTE/A | F153: Wang Zhen | G153: Li Hong | H153: 41521 | I153: 0 | J153: 0 | K153: 0 | L153: T_2015 | M153: ZNIC.013081 | N153: NZNIC013081K | P153: 13081 | Q153: 3238000 | R153: 0 | S153: 3564454 | T153: 2598843.26 | U153: 8477.26 | V153: -19825 | W153: -314050 | X153: 3238000 | Y153: -73734.41 | Z153: 409516.89 | AA153: 3238000 | AB153: 2828483.11 | AC153: -0.1264721711 | AD153: 2598843.26 | AE153: 8477.26 | AF153: 294897 | AG153: -73734.41 | AH153: -0.2429998619 | AI153: -0.1328543152 | AJ153: 0 | AK153: 1.045627158 | AL153: 0 | AM153: 1.594791667 | AN153: 0 | AO153: 0
A154: CEP/L | B154: 13064 | C154: Fire Alarm System Modification in PS/EPS Logistics | D154: Completed | E154: CTE/A | F154: Hu Xiao | G154: Zhang Pu | H154: 41519 | I154: 41786 | J154: 0 | K154: 0 | L154: H | M154: ZNIC.013064 | N154: NZNIC013064K | P154: 13064 | Q154: 977000 | R154: 0 | S154: 987740 | T154: 987739.89 | U154: 0 | V154: -27880.01 | W154: 16225 | X154: 977000 | Y154: 0 | Z154: 36997.21 | AA154: 977000 | AB154: 987739.89 | AC154: 0.01099272262 | AD154: 987739.89 | AE154: 0 | AF154: 0 | AG154: 0 | AH154: -0.053242976 | AI154: -0.04121423429 | AJ154: 0 | AK154: 1.232527189 | AL154: 16225 | AM154: 0.9118086697 | AN154: 0 | AO154: 2
A155: CBP/C | B155: 13060 | C155: Add Two Inhibiter Injection Pumps | D155: Completed | E155: CTE/P | F155: Sun Aihong | G155: Ling Taizhong | H155: 41724 | I155: 42133 | J155: 0 | K155: 0 | L155: T_2015 | M155: ZNIC.013060 | N155: NZNIC013060K | P155: 13060 | Q155: 650000 | R155: 0 | S155: 685000 | T155: 614689.9 | U155: 0 | V155: -1995 | W155: 36765.83 | X155: 650000 | Y155: 0 | Z155: -44714.47 | AA155: 650000 | AB155: 614689.9 | AC155: -0.05432323077 | AD155: 614689.9 | AE155: 0 | AF155: 0 | AG155: 0 | AH155: 0.1645407382 | AI155: -0.2668418824 | AJ155: 0 | AK155: 1.014865872 | AL155: 36765.83 | AM155: 0.710619205 | AN155: 0 | AO155: 1
A156: CAP/L | B156: 13058 | C156: IS/IT Project for NASA | D156: Completed | E156: CFA | F156: Liu Min | G156: Tao Yang | H156: 41407 | I156: 41821 | J156: 41995 | K156: 0 | L156: N | M156: ZNIC.013058 | N156: NZNIC013058K | P156: 13058 | Q156: 10180000 | R156: 2092000 | S156: 10453379 | T156: 10398219.24 | U156: 55160 | V156: -1839306.56 | W156: 0 | X156: 10180000 | Y156: 0 | Z156: 0 | AA156: 12272000 | AB156: 10453379.24 | AC156: -0.1481926956 | AD156: 10398219.24 | AE156: 55160 | AF156: 0 | AG156: 0 | AJ156: 0 | AL156: 0 | AN156: 0 | AO156: 0
A157: CCP/A | B157: 13054 | C157: Add 2000m3 EDA Tank in RTTF | D157: Completed | E157: CTE/P | F157: Jiang Hao/Liu Xiaoli | G157: Xu Yefeng/Zong Baorong | H157: 41697 | I157: 42129 | J157: 0 | K157: 0 | L157: T_2015 | M157: ZNIC.013054 | N157: NZNIC013054K | P157: 13054 | Q157: 15880000 | R157: 0 | S157: 17551322 | T157: 19104689.11 | U157: 88866.57 | V157: -517624.15 | W157: -720912.5 | X157: 15880000 | Y157: 0 | Z157: 24293.1 | AA157: 15880000 | AB157: 19242555.68 | AC157: 0.2117478388 | AD157: 19104689.11 | AE157: 88866.57 | AF157: 49000 | AG157: 0 | AH157: 0.3780810394 | AI157: -0.3024296174 | AJ157: 0 | AK157: 2.667603576 | AL157: 0 | AM157: 4.096703179 | AN157: 0 | AO157: 1
A158: CBP/P | B158: 13016 | C158: MarkV Upgrade of Gas Turbines Control System, Power Plant | D158: On Going | E158: CTA/U | F158: Lei Yufa | G158: He Zhengyu | H158: 41306 | I158: 0 | J158: 0 | K158: 0 | L158: N | M158: ZNIC.013016 | N158: NZNIC013016K | P158: 13016 | Q158: 18000000 | R158: 0 | S158: 18075872 | T158: 9270482.94 | U158: 871.8 | V158: 460845 | W158: -267896.5 | X158: 18000000 | Y158: 2140638.62 | Z158: 6127161.64 | AA158: 18000000 | AB158: 11411993.36 | AC158: -0.3660003689 | AD158: 9270482.94 | AE158: 871.8 | AF158: 0 | AG158: 2140638.62 | AH158: -0.3898207071 | AI158: 0.04953440458 | AJ158: 460845 | AK158: 0.2910076923 | AL158: 0 | AM158: 1.892988333 | AN158: 0 | AO158: 0
A159: CBP/C | B159: 12137 | C159: Replace Radiant Section Tubes for 7 Liquid Furnaces | D159: Completed | E159: CTE/P | F159: Zhou Yanduo | G159: Tong Shaojian | H159: 41381 | I159: 42340 | J159: 0 | K159: 0 | L159: T | M159: ZNIC.012137 | N159: NZNIC012137K | P159: 12137 | Q159: 58500000 | R159: 0 | S159: 63756970 | T159: 44906196.54 | U159: 0 | V159: 21414.34 | W159: 1324100.36 | X159: 58500000 | Y159: 9980626.85 | Z159: 2051891.91 | AA159: 58500000 | AB159: 55102593.39 | AC159: -0.05807532667 | AD159: 44906196.54 | AE159: 0 | AF159: 215770 | AG159: 9980626.85 | AH159: 0.01451176514 | AI159: -0.1667851689 | AJ159: 21414.34 | AK159: 0.9342866437 | AL159: 1324100.36 | AM159: 0.4453449115 | AN159: 0 | AO159: 27
A160: CBP/B | B160: 12119 | C160: Add a Filter to Remove Metal Ions from IBOL | D160: Completed | E160: CTE/P | F160: Sun Aihong | G160: Ling Taizhong | H160: 41359 | I160: 41781 | J160: 42216 | K160: 0 | L160: N | M160: ZNIC.012119 | N160: NZNIC012119K | P160: 12119 | Q160: 1570000 | R160: 0 | S160: 1571500 | T160: 1225101.06 | U160: 0 | V160: -172047.53 | W160: -78710.57 | Y160: 0 | AA160: 1570000 | AB160: 1226601.06 | AC160: -0.2187254395 | AD160: 1225101.06 | AE160: 0 | AF160: 1500 | AG160: 0 | AI160: -0.238128055 | AJ160: 0 | AK160: 1.778495611 | AL160: 0 | AM160: 1.542831517 | AN160: 0 | AO160: 7
A161: CBP/B | B161: 12071 | C161: Add Raffinate I Washer Column System in BD Plant | D161: Completed | E161: CTE/P | F161: Cao Lin | G161: Wang Yuncai | H161: 41526 | I161: 41939 | J161: 0 | K161: 0 | L161: T_2015 | M161: ZNIC.012071 | N161: NZNIC012071K | P161: 12071 | Q161: 8622000 | R161: 0 | S161: 8824040 | T161: 7814981.88 | U161: 198113.21 | V161: -1043844.15 | W161: -535306.12 | X161: 8622000 | Y161: 0 | Z161: -75000.21 | AA161: 8622000 | AB161: 8013095.09 | AC161: -0.07062223498 | AD161: 7814981.88 | AE161: 198113.21 | AF161: 0 | AG161: 0 | AH161: 0.09062958023 | AI161: -0.1071117703 | AJ161: 0 | AK161: 2.515893334 | AL161: 0 | AM161: 1.599497293 | AN161: 2 | AO161: 10
A162: CTS/P | B162: 12044 | C162: Cooling Water Expansion from PP to Syngas | D162: Completed | E162: CTE/P | F162: Sun Duoxun | G162: Wu Zefei | H162: 41764 | I162: 42121 | J162: 0 | K162: 0 | L162: T_2015 | M162: ZNIC.012044 | N162: NZNIC012044K | P162: 12044 | Q162: 3830000 | R162: 0 | S162: 3834800 | T162: 1998299.17 | U162: 0 | V162: -61072.5 | W162: -40305.81 | X162: 3830000 | Y162: 0 | Z162: 1054974.68 | AA162: 3830000 | AB162: 1998299.17 | AC162: -0.4782508695 | AD162: 1998299.17 | AE162: 0 | AF162: 0 | AG162: 0 | AH162: -0.4093016482 | AI162: -0.1963874833 | AJ162: 0 | AK162: 1.287670749 | AL162: 0 | AM162: 1.28908596 | AN162: 0 | AO162: 1
A163: CBP/M | B163: 11229 | C163: Revamp Dosing System of Cooling System of EB/SM | D163: Completed | E163: CTE/P | F163: Zhu Jianxin | G163: Ling Taizhong | H163: 41709 | I163: 42133 | J163: 0 | K163: 0 | L163: H | M163: ZNIC.011229 | N163: NZNIC011229K | P163: 11229 | Q163: 1099000 | R163: 0 | S163: 1101000 | T163: 996916.14 | U163: 0 | V163: -191656.98 | W163: -142193.85 | X163: 1099000 | Y163: 0 | Z163: 224642.99 | AA163: 1099000 | AB163: 998916.14 | AC163: -0.09106811647 | AD163: 996916.14 | AE163: 0 | AF163: 2000 | AG163: 0 | AH163: -0.01282258041 | AI163: -0.3830494619 | AJ163: 0 | AK163: 1.851998133 | AL163: 0 | AM163: 1.807919602 | AN163: 2 | AO163: 6

Sheet Sheet5 (hidden)
A1: Cost Report for MOC
A2: BU. | B2: Job No | C2: Job Type | D2: Job Title | E2: Account | F2: PM | G2: MC | H2: Budget | I2: Planned | J2: Actual | K2: Cost to Com | L2: Estiamted Final Cost | M2: COST_COMPLE% | N2: Remarks
A3: =VLOOKUP(B3,[1]Eproject!$A:$B,2,FALSE) -> CBP/P | B3: 15313 | C3: =VLOOKUP(B3,[1]Eproject!$A:$C,3,FALSE) -> MOC | D3: =VLOOKUP(B3,[1]Eproject!$A:$E,5,FALSE) -> Protection Relay of U4PM6101A Replacement for Updating | E3: =VLOOKUP(B3,[1]Eproject!$A:$U,21,FALSE) -> 973434426 | F3: =VLOOKUP(B3,[1]Eproject!$A:$J,10,FALSE) -> Ge Yong | G3: =VLOOKUP(B3,[1]Eproject!$A:$P,16,FALSE) -> 00:00:00 | H3: =VLOOKUP(E3,'[1]actual cost'!$F:$G,2,FALSE) ->  | I3: =VLOOKUP(E3,'[1]actual cost'!$F:$H,3,FALSE) ->  | J3: =VLOOKUP(E3,'[1]actual cost'!$F:$I,4,FALSE) ->  | K3: =IF(J3>I3,0,I3-J3) ->  | L3: =J3+K3 ->  | M3: =J3/H3 -> 
A4: =VLOOKUP(B4,[1]Eproject!$A:$B,2,FALSE) -> COA/A | B4: 15309 | C4: =VLOOKUP(B4,[1]Eproject!$A:$C,3,FALSE) -> MOC | D4: =VLOOKUP(B4,[1]Eproject!$A:$E,5,FALSE) -> Add Filter on Inlet of F430 | E4: =VLOOKUP(B4,[1]Eproject!$A:$U,21,FALSE) -> 973506548 | F4: =VLOOKUP(B4,[1]Eproject!$A:$J,10,FALSE) -> Meng Yousheng | G4: =VLOOKUP(B4,[1]Eproject!$A:$P,16,FALSE) -> 2015-12-10 | H4: =VLOOKUP(E4,'[1]actual cost'!$F:$G,2,FALSE) ->  | I4: =VLOOKUP(E4,'[1]actual cost'!$F:$H,3,FALSE) ->  | J4: =VLOOKUP(E4,'[1]actual cost'!$F:$I,4,FALSE) ->  | K4: =IF(J4>I4,0,I4-J4) ->  | L4: =J4+K4 ->  | M4: =J4/H4 -> 
A5: =VLOOKUP(B5,[1]Eproject!$A:$B,2,FALSE) -> CEP/E | B5: 15307 | C5: =VLOOKUP(B5,[1]Eproject!$A:$C,3,FALSE) -> MOC | D5: =VLOOKUP(B5,[1]Eproject!$A:$E,5,FALSE) -> Add Tie-in for Chiller U3777 | E5: =VLOOKUP(B5,[1]Eproject!$A:$U,21,FALSE) -> 973507320 | F5: =VLOOKUP(B5,[1]Eproject!$A:$J,10,FALSE) -> Wang Zhigao | G5: =VLOOKUP(B5,[1]Eproject!$A:$P,16,FALSE) -> 00:00:00 | H5: =VLOOKUP(E5,'[1]actual cost'!$F:$G,2,FALSE) -> 33,800 | I5: =VLOOKUP(E5,'[1]actual cost'!$F:$H,3,FALSE) -> 23,800 | J5: =VLOOKUP(E5,'[1]actual cost'!$F:$I,4,FALSE) -> 17,020 | K5: 6,780 | L5: 23,800 | M5: 50.36%
A6: =VLOOKUP(B6,[1]Eproject!$A:$B,2,FALSE) -> CEP/E | B6: 15304 | C6: =VLOOKUP(B6,[1]Eproject!$A:$C,3,FALSE) -> MOC | D6: =VLOOKUP(B6,[1]Eproject!$A:$E,5,FALSE) -> Add a Filter at Outlet of P5311 | E6: =VLOOKUP(B6,[1]Eproject!$A:$U,21,FALSE) -> 973507099 | F6: =VLOOKUP(B6,[1]Eproject!$A:$J,10,FALSE) -> Li Jun | G6: =VLOOKUP(B6,[1]Eproject!$A:$P,16,FALSE) -> 00:00:00 | H6: =VLOOKUP(E6,'[1]actual cost'!$F:$G,2,FALSE) -> 23,800 | I6: =VLOOKUP(E6,'[1]actual cost'!$F:$H,3,FALSE) -> 23,800 | J6: =VLOOKUP(E6,'[1]actual cost'!$F:$I,4,FALSE) -> 7,200 | K6: 16,600 | L6: 23,800 | M6: 30.25%
A7: =VLOOKUP(B7,[1]Eproject!$A:$B,2,FALSE) -> CBP/B | B7: 15303 | C7: =VLOOKUP(B7,[1]Eproject!$A:$C,3,FALSE) -> MOC | D7: =VLOOKUP(B7,[1]Eproject!$A:$E,5,FALSE) -> Connect the Original and New Fuel Oil Line in BD | E7: =VLOOKUP(B7,[1]Eproject!$A:$U,21,FALSE) -> 973519560 | F7: =VLOOKUP(B7,[1]Eproject!$A:$J,10,FALSE) -> Wang Can | G7: =VLOOKUP(B7,[1]Eproject!$A:$P,16,FALSE) -> 00:00:00 | H7: =VLOOKUP(E7,'[1]actual cost'!$F:$G,2,FALSE) ->  | I7: =VLOOKUP(E7,'[1]actual cost'!$F:$H,3,FALSE) ->  | J7: =VLOOKUP(E7,'[1]actual cost'!$F:$I,4,FALSE) -> 
A8: =VLOOKUP(B8,[1]Eproject!$A:$B,2,FALSE) -> CEP/E | B8: 15302 | C8: =VLOOKUP(B8,[1]Eproject!$A:$C,3,FALSE) -> MOC | D8: =VLOOKUP(B8,[1]Eproject!$A:$E,5,FALSE) -> Add a Spring Hanger to T13017-1 | E8: =VLOOKUP(B8,[1]Eproject!$A:$U,21,FALSE) -> 973378059 | F8: =VLOOKUP(B8,[1]Eproject!$A:$J,10,FALSE) -> Gu Jingfeng | G8: =VLOOKUP(B8,[1]Eproject!$A:$P,16,FALSE) -> 00:00:00 | H8: =VLOOKUP(E8,'[1]actual cost'!$F:$G,2,FALSE) ->  | I8: =VLOOKUP(E8,'[1]actual cost'!$F:$H,3,FALSE) ->  | J8: =VLOOKUP(E8,'[1]actual cost'!$F:$I,4,FALSE) -> 
A9: =VLOOKUP(B9,[1]Eproject!$A:$B,2,FALSE) -> CBP/B | B9: 15299 | C9: =VLOOKUP(B9,[1]Eproject!$A:$C,3,FALSE) -> MOC | D9: =VLOOKUP(B9,[1]Eproject!$A:$E,5,FALSE) -> Redesign& Reinstall the Fuel Oil Line from BD to EU Piperack | E9: =VLOOKUP(B9,[1]Eproject!$A:$U,21,FALSE) -> 973529386 | F9: =VLOOKUP(B9,[1]Eproject!$A:$J,10,FALSE) -> Wang Can | G9: =VLOOKUP(B9,[1]Eproject!$A:$P,16,FALSE) -> 00:00:00 | H9: =VLOOKUP(E9,'[1]actual cost'!$F:$G,2,FALSE) ->  | I9: =VLOOKUP(E9,'[1]actual cost'!$F:$H,3,FALSE) ->  | J9: =VLOOKUP(E9,'[1]actual cost'!$F:$I,4,FALSE) -> 
A10: =VLOOKUP(B10,[1]Eproject!$A:$B,2,FALSE) -> CBP/S | B10: 15294 | C10: =VLOOKUP(B10,[1]Eproject!$A:$C,3,FALSE) -> MOC | D10: =VLOOKUP(B10,[1]Eproject!$A:$E,5,FALSE) -> Adding H2 Detectors for Coldbox's Leakage | E10: =VLOOKUP(B10,[1]Eproject!$A:$U,21,FALSE) -> 973495739 | F10: =VLOOKUP(B10,[1]Eproject!$A:$J,10,FALSE) -> Gong Feibao | G10: =VLOOKUP(B10,[1]Eproject!$A:$P,16,FALSE) -> 00:00:00 | H10: =VLOOKUP(E10,'[1]actual cost'!$F:$G,2,FALSE) -> 121,000 | I10: =VLOOKUP(E10,'[1]actual cost'!$F:$H,3,FALSE) -> 105,859 | J10: =VLOOKUP(E10,'[1]actual cost'!$F:$I,4,FALSE) -> 65,708 | K10: 40,151 | L10: 105,859 | M10: 54.30%
A11: =VLOOKUP(B11,[1]Eproject!$A:$B,2,FALSE) -> CEP/P | B11: 15282 | C11: =VLOOKUP(B11,[1]Eproject!$A:$C,3,FALSE) -> MOC | D11: =VLOOKUP(B11,[1]Eproject!$A:$E,5,FALSE) -> Add Liquid Waste tank | E11: =VLOOKUP(B11,[1]Eproject!$A:$U,21,FALSE) -> 973471450 | F11: =VLOOKUP(B11,[1]Eproject!$A:$J,10,FALSE) -> Gu Jingfeng | G11: =VLOOKUP(B11,[1]Eproject!$A:$P,16,FALSE) -> 00:00:00 | H11: =VLOOKUP(E11,'[1]actual cost'!$F:$G,2,FALSE) -> 39,050 | I11: =VLOOKUP(E11,'[1]actual cost'!$F:$H,3,FALSE) -> 0 | J11: =VLOOKUP(E11,'[1]actual cost'!$F:$I,4,FALSE) -> 6,600 | K11: 0 | L11: 6,600 | M11: 16.90%
A12: =VLOOKUP(B12,[1]Eproject!$A:$B,2,FALSE) -> COA/A | B12: 15280 | C12: =VLOOKUP(B12,[1]Eproject!$A:$C,3,FALSE) -> MOC | D12: =VLOOKUP(B12,[1]Eproject!$A:$E,5,FALSE) -> Add Local Pressure Gauge on Inlet P430 | E12: =VLOOKUP(B12,[1]Eproject!$A:$U,21,FALSE) -> 973470849 | F12: =VLOOKUP(B12,[1]Eproject!$A:$J,10,FALSE) -> Meng Yousheng | G12: =VLOOKUP(B12,[1]Eproject!$A:$P,16,FALSE) -> 00:00:00 | H12: =VLOOKUP(E12,'[1]actual cost'!$F:$G,2,FALSE) -> 15,000 | I12: =VLOOKUP(E12,'[1]actual cost'!$F:$H,3,FALSE) -> 9,400 | J12: =VLOOKUP(E12,'[1]actual cost'!$F:$I,4,FALSE) -> 2,750 | K12: 6,650 | L12: 9,400 | M12: 18.33%
A13: =VLOOKUP(B13,[1]Eproject!$A:$B,2,FALSE) -> CBP/C | B13: 15276 | C13: =VLOOKUP(B13,[1]Eproject!$A:$C,3,FALSE) -> MOC | D13: =VLOOKUP(B13,[1]Eproject!$A:$E,5,FALSE) -> Modify the Gas Sampler Type to Closed Loop Sampler at Prolysis Gasoline Unit(PGU) | E13: =VLOOKUP(B13,[1]Eproject!$A:$U,21,FALSE) -> 973482590 | F13: =VLOOKUP(B13,[1]Eproject!$A:$J,10,FALSE) -> Sun Aihong | G13: =VLOOKUP(B13,[1]Eproject!$A:$P,16,FALSE) -> 00:00:00 | H13: =VLOOKUP(E13,'[1]actual cost'!$F:$G,2,FALSE) -> 20,000 | I13: =VLOOKUP(E13,'[1]actual cost'!$F:$H,3,FALSE) -> 17,520 | J13: =VLOOKUP(E13,'[1]actual cost'!$F:$I,4,FALSE) -> 4,400 | K13: 13,120 | L13: 17,520 | M13: 22.00%
A14: =VLOOKUP(B14,[1]Eproject!$A:$B,2,FALSE) -> CBP/C | B14: 15275 | C14: =VLOOKUP(B14,[1]Eproject!$A:$C,3,FALSE) -> MOC | D14: =VLOOKUP(B14,[1]Eproject!$A:$E,5,FALSE) -> Modify the EBO Product Sampler Type to Closed Loop Sampler at Quench Section | E14: =VLOOKUP(B14,[1]Eproject!$A:$U,21,FALSE) -> 973482589 | F14: =VLOOKUP(B14,[1]Eproject!$A:$J,10,FALSE) -> Sun Aihong | G14: =VLOOKUP(B14,[1]Eproject!$A:$P,16,FALSE) -> 00:00:00 | H14: =VLOOKUP(E14,'[1]actual cost'!$F:$G,2,FALSE) -> 20,000 | I14: =VLOOKUP(E14,'[1]actual cost'!$F:$H,3,FALSE) -> 17,520 | J14: =VLOOKUP(E14,'[1]actual cost'!$F:$I,4,FALSE) -> 0 | K14: 17,520 | L14: 17,520 | M14: 0.00%
A15: =VLOOKUP(B15,[1]Eproject!$A:$B,2,FALSE) -> CTE | B15: 15271 | C15: =VLOOKUP(B15,[1]Eproject!$A:$C,3,FALSE) -> MOC | D15: =VLOOKUP(B15,[1]Eproject!$A:$E,5,FALSE) -> Modification of Road Lamp at North Gate on the Yangba raod. | E15: =VLOOKUP(B15,[1]Eproject!$A:$U,21,FALSE) -> 973487007 | F15: =VLOOKUP(B15,[1]Eproject!$A:$J,10,FALSE) -> Bian Jiacai | G15: =VLOOKUP(B15,[1]Eproject!$A:$P,16,FALSE) -> 00:00:00 | H15: =VLOOKUP(E15,'[1]actual cost'!$F:$G,2,FALSE) -> 119,789 | I15: =VLOOKUP(E15,'[1]actual cost'!$F:$H,3,FALSE) -> 75,265 | J15: =VLOOKUP(E15,'[1]actual cost'!$F:$I,4,FALSE) -> 5,500 | K15: 69,765 | L15: 75,265 | M15: 4.59%
A16: =VLOOKUP(B16,[1]Eproject!$A:$B,2,FALSE) -> CEP/E | B16: 15269 | C16: =VLOOKUP(B16,[1]Eproject!$A:$C,3,FALSE) -> MOC | D16: =VLOOKUP(B16,[1]Eproject!$A:$E,5,FALSE) -> EO Analyzer House Air Conditioning System Modification | E16: =VLOOKUP(B16,[1]Eproject!$A:$U,21,FALSE) -> 973454483 | F16: =VLOOKUP(B16,[1]Eproject!$A:$J,10,FALSE) -> Wang Wei | G16: =VLOOKUP(B16,[1]Eproject!$A:$P,16,FALSE) -> 00:00:00 | H16: =VLOOKUP(E16,'[1]actual cost'!$F:$G,2,FALSE) -> 680,000 | I16: =VLOOKUP(E16,'[1]actual cost'!$F:$H,3,FALSE) -> 339,750 | J16: =VLOOKUP(E16,'[1]actual cost'!$F:$I,4,FALSE) -> 4,400 | K16: 335,350 | L16: 339,750 | M16: 0.65%
A17: =VLOOKUP(B17,[1]Eproject!$A:$B,2,FALSE) -> COO/A | B17: 15261 | C17: =VLOOKUP(B17,[1]Eproject!$A:$C,3,FALSE) -> MOC | D17: =VLOOKUP(B17,[1]Eproject!$A:$E,5,FALSE) -> Add Drain Valves | E17: =VLOOKUP(B17,[1]Eproject!$A:$U,21,FALSE) -> 973437650 | F17: =VLOOKUP(B17,[1]Eproject!$A:$J,10,FALSE) -> Chen Yuxin | G17: =VLOOKUP(B17,[1]Eproject!$A:$P,16,FALSE) -> 2015-10-23 | H17: =VLOOKUP(E17,'[1]actual cost'!$F:$G,2,FALSE) -> 0 | I17: =VLOOKUP(E17,'[1]actual cost'!$F:$H,3,FALSE) -> 0 | J17: =VLOOKUP(E17,'[1]actual cost'!$F:$I,4,FALSE) -> 0 | K17: 0 | L17: 0
A18: =VLOOKUP(B18,[1]Eproject!$A:$B,2,FALSE) -> COO/A | B18: 15249 | C18: =VLOOKUP(B18,[1]Eproject!$A:$C,3,FALSE) -> MOC | D18: =VLOOKUP(B18,[1]Eproject!$A:$E,5,FALSE) -> Add a Set of Drain Valves and Sightglass on K4800A/B and K4992A/B with EHT | E18: =VLOOKUP(B18,[1]Eproject!$A:$U,21,FALSE) -> 973458234 | F18: =VLOOKUP(B18,[1]Eproject!$A:$J,10,FALSE) -> Li Shouqing | G18: =VLOOKUP(B18,[1]Eproject!$A:$P,16,FALSE) -> 00:00:00 | H18: =VLOOKUP(E18,'[1]actual cost'!$F:$G,2,FALSE) -> 150,720 | I18: =VLOOKUP(E18,'[1]actual cost'!$F:$H,3,FALSE) -> 122,883 | J18: =VLOOKUP(E18,'[1]actual cost'!$F:$I,4,FALSE) -> 25,300 | K18: 97,583 | L18: 122,883 | M18: 16.79%
A19: =VLOOKUP(B19,[1]Eproject!$A:$B,2,FALSE) -> COO/C | B19: 15244 | C19: =VLOOKUP(B19,[1]Eproject!$A:$C,3,FALSE) -> MOC | D19: =VLOOKUP(B19,[1]Eproject!$A:$E,5,FALSE) -> Modify the Cofferdam of Waste Oil IBCs | E19: =VLOOKUP(B19,[1]Eproject!$A:$U,21,FALSE) -> 973386824 | F19: =VLOOKUP(B19,[1]Eproject!$A:$J,10,FALSE) -> Xia Qun | G19: =VLOOKUP(B19,[1]Eproject!$A:$P,16,FALSE) -> 2015-10-20 | H19: =VLOOKUP(E19,'[1]actual cost'!$F:$G,2,FALSE) -> 27,825 | I19: =VLOOKUP(E19,'[1]actual cost'!$F:$H,3,FALSE) -> 27,705 | J19: =VLOOKUP(E19,'[1]actual cost'!$F:$I,4,FALSE) -> 14,314 | K19: 13,391 | L19: 27,705 | M19: 51.44%
A20: =VLOOKUP(B20,[1]Eproject!$A:$B,2,FALSE) -> CBP/P | B20: 15238 | C20: =VLOOKUP(B20,[1]Eproject!$A:$C,3,FALSE) -> MOC | D20: =VLOOKUP(B20,[1]Eproject!$A:$E,5,FALSE) -> Add Grid and Lock for U456-TR-001/002/003/004/005/006 | E20: =VLOOKUP(B20,[1]Eproject!$A:$U,21,FALSE) -> 973344599 | F20: =VLOOKUP(B20,[1]Eproject!$A:$J,10,FALSE) -> Wang Shicheng | G20: =VLOOKUP(B20,[1]Eproject!$A:$P,16,FALSE) -> 00:00:00 | H20: =VLOOKUP(E20,'[1]actual cost'!$F:$G,2,FALSE) -> 122,500 | I20: =VLOOKUP(E20,'[1]actual cost'!$F:$H,3,FALSE) -> 139,963 | J20: =VLOOKUP(E20,'[1]actual cost'!$F:$I,4,FALSE) -> 2,475 | K20: 137,488 | L20: 139,963 | M20: 2.02%
A21: =VLOOKUP(B21,[1]Eproject!$A:$B,2,FALSE) -> CBP/S | B21: 15235 | C21: =VLOOKUP(B21,[1]Eproject!$A:$C,3,FALSE) -> MOC | D21: =VLOOKUP(B21,[1]Eproject!$A:$E,5,FALSE) -> Add Temporary Piping to V1202 from P1201 Outlet | E21: =VLOOKUP(B21,[1]Eproject!$A:$U,21,FALSE) -> 973376659 | F21: =VLOOKUP(B21,[1]Eproject!$A:$J,10,FALSE) -> Wang Can | G21: =VLOOKUP(B21,[1]Eproject!$A:$P,16,FALSE) -> 2015-10-14 | H21: =VLOOKUP(E21,'[1]actual cost'!$F:$G,2,FALSE) -> 88,170 | I21: =VLOOKUP(E21,'[1]actual cost'!$F:$H,3,FALSE) -> 90,970 | J21: =VLOOKUP(E21,'[1]actual cost'!$F:$I,4,FALSE) -> 73,325 | K21: 17,644 | L21: 90,970 | M21: 83.16%
A22: =VLOOKUP(B22,[1]Eproject!$A:$B,2,FALSE) -> COO/C | B22: 15234 | C22: =VLOOKUP(B22,[1]Eproject!$A:$C,3,FALSE) -> MOC | D22: =VLOOKUP(B22,[1]Eproject!$A:$E,5,FALSE) -> Add a Cofferdam around P3812 | E22: =VLOOKUP(B22,[1]Eproject!$A:$U,21,FALSE) -> 973378581 | F22: =VLOOKUP(B22,[1]Eproject!$A:$J,10,FALSE) -> Xia Qun | G22: =VLOOKUP(B22,[1]Eproject!$A:$P,16,FALSE) -> 2015-11-27 | H22: =VLOOKUP(E22,'[1]actual cost'!$F:$G,2,FALSE) -> 83,350 | I22: =VLOOKUP(E22,'[1]actual cost'!$F:$H,3,FALSE) -> 79,540 | J22: =VLOOKUP(E22,'[1]actual cost'!$F:$I,4,FALSE) -> 23,550 | K22: 55,990 | L22: 79,540 | M22: 28.25%
A23: =VLOOKUP(B23,[1]Eproject!$A:$B,2,FALSE) -> COO/C | B23: 15232 | C23: =VLOOKUP(B23,[1]Eproject!$A:$C,3,FALSE) -> MOC | D23: =VLOOKUP(B23,[1]Eproject!$A:$E,5,FALSE) -> Relocate the Hose Reel Box Beside P2200 | E23: =VLOOKUP(B23,[1]Eproject!$A:$U,21,FALSE) -> 973379392 | F23: =VLOOKUP(B23,[1]Eproject!$A:$J,10,FALSE) -> Zhang Fanwen | G23: =VLOOKUP(B23,[1]Eproject!$A:$P,16,FALSE) -> 2015-09-30 | H23: =VLOOKUP(E23,'[1]actual cost'!$F:$G,2,FALSE) -> 47,650 | I23: =VLOOKUP(E23,'[1]actual cost'!$F:$H,3,FALSE) -> 41,215 | J23: =VLOOKUP(E23,'[1]actual cost'!$F:$I,4,FALSE) -> 26,831 | K23: 14,384 | L23: 41,215 | M23: 56.31%
A24: =VLOOKUP(B24,[1]Eproject!$A:$B,2,FALSE) -> COO/C | B24: 15227 | C24: =VLOOKUP(B24,[1]Eproject!$A:$C,3,FALSE) -> MOC | D24: =VLOOKUP(B24,[1]Eproject!$A:$E,5,FALSE) -> Modification of PA HB/LB Loading System According Assessment | E24: =VLOOKUP(B24,[1]Eproject!$A:$U,21,FALSE) -> 973360623 | F24: =VLOOKUP(B24,[1]Eproject!$A:$J,10,FALSE) -> Xia Qun | G24: =VLOOKUP(B24,[1]Eproject!$A:$P,16,FALSE) -> 2015-10-20 | H24: =VLOOKUP(E24,'[1]actual cost'!$F:$G,2,FALSE) -> 180,000 | I24: =VLOOKUP(E24,'[1]actual cost'!$F:$H,3,FALSE) -> 129,784 | J24: =VLOOKUP(E24,'[1]actual cost'!$F:$I,4,FALSE) -> 86,451 | K24: 43,333 | L24: 129,784 | M24: 48.03%
A25: =VLOOKUP(B25,[1]Eproject!$A:$B,2,FALSE) -> CBP/M | B25: 15224 | C25: =VLOOKUP(B25,[1]Eproject!$A:$C,3,FALSE) -> MOC | D25: =VLOOKUP(B25,[1]Eproject!$A:$E,5,FALSE) -> Add a Pavement between EB/SM and BD/IB | E25: =VLOOKUP(B25,[1]Eproject!$A:$U,21,FALSE) -> 973319084 | F25: =VLOOKUP(B25,[1]Eproject!$A:$J,10,FALSE) -> Yan Jun | G25: =VLOOKUP(B25,[1]Eproject!$A:$P,16,FALSE) -> 2015-10-21 | H25: =VLOOKUP(E25,'[1]actual cost'!$F:$G,2,FALSE) -> 47,000 | I25: =VLOOKUP(E25,'[1]actual cost'!$F:$H,3,FALSE) -> 46,608 | J25: =VLOOKUP(E25,'[1]actual cost'!$F:$I,4,FALSE) -> 31,092 | K25: 15,516 | L25: 46,608 | M25: 66.15%
A26: =VLOOKUP(B26,[1]Eproject!$A:$B,2,FALSE) -> CBP/P | B26: 15222 | C26: =VLOOKUP(B26,[1]Eproject!$A:$C,3,FALSE) -> MOC | D26: =VLOOKUP(B26,[1]Eproject!$A:$E,5,FALSE) -> Anti-vibration for Inlet and Discharge Line of P6402C | E26: =VLOOKUP(B26,[1]Eproject!$A:$U,21,FALSE) -> 973488820 | F26: =VLOOKUP(B26,[1]Eproject!$A:$J,10,FALSE) -> Wang Can | G26: =VLOOKUP(B26,[1]Eproject!$A:$P,16,FALSE) -> 00:00:00 | H26: =VLOOKUP(E26,'[1]actual cost'!$F:$G,2,FALSE) -> 193,000 | I26: =VLOOKUP(E26,'[1]actual cost'!$F:$H,3,FALSE) -> 140,525 | J26: =VLOOKUP(E26,'[1]actual cost'!$F:$I,4,FALSE) -> 33,530 | K26: 106,995 | L26: 140,525 | M26: 17.37%
A27: =VLOOKUP(B27,[1]Eproject!$A:$B,2,FALSE) -> CBP/U | B27: 15221 | C27: =VLOOKUP(B27,[1]Eproject!$A:$C,3,FALSE) -> MOC | D27: =VLOOKUP(B27,[1]Eproject!$A:$E,5,FALSE) -> CBPU Modlify HPFW System into YBS | E27: =VLOOKUP(B27,[1]Eproject!$A:$U,21,FALSE) -> 973517510 | F27: =VLOOKUP(B27,[1]Eproject!$A:$J,10,FALSE) -> Zhang Fanwen | G27: =VLOOKUP(B27,[1]Eproject!$A:$P,16,FALSE) -> 00:00:00 | H27: =VLOOKUP(E27,'[1]actual cost'!$F:$G,2,FALSE) ->  | I27: =VLOOKUP(E27,'[1]actual cost'!$F:$H,3,FALSE) ->  | J27: =VLOOKUP(E27,'[1]actual cost'!$F:$I,4,FALSE) -> 
A28: =VLOOKUP(B28,[1]Eproject!$A:$B,2,FALSE) -> COO/C | B28: 15212 | C28: =VLOOKUP(B28,[1]Eproject!$A:$C,3,FALSE) -> MOC | D28: =VLOOKUP(B28,[1]Eproject!$A:$E,5,FALSE) -> Add a Sample Point at C2619 Off Gas Pipe | E28: =VLOOKUP(B28,[1]Eproject!$A:$U,21,FALSE) -> 973384528 | F28: =VLOOKUP(B28,[1]Eproject!$A:$J,10,FALSE) -> Li Shouqing | G28: =VLOOKUP(B28,[1]Eproject!$A:$P,16,FALSE) -> 00:00:00 | H28: =VLOOKUP(E28,'[1]actual cost'!$F:$G,2,FALSE) -> 198,990 | I28: =VLOOKUP(E28,'[1]actual cost'!$F:$H,3,FALSE) -> 138,990 | J28: =VLOOKUP(E28,'[1]actual cost'!$F:$I,4,FALSE) -> 0 | K28: 138,990 | L28: 138,990 | M28: 0.00%
A29: =VLOOKUP(B29,[1]Eproject!$A:$B,2,FALSE) -> CBL/T | B29: 15210 | C29: =VLOOKUP(B29,[1]Eproject!$A:$C,3,FALSE) -> MOC | D29: =VLOOKUP(B29,[1]Eproject!$A:$E,5,FALSE) -> Add Container for Maintenance & Instrument Storeroom near SCTF Control Building | E29: =VLOOKUP(B29,[1]Eproject!$A:$U,21,FALSE) -> 973371676 | F29: =VLOOKUP(B29,[1]Eproject!$A:$J,10,FALSE) -> Wang Shicheng | G29: =VLOOKUP(B29,[1]Eproject!$A:$P,16,FALSE) -> 2015-09-30 | H29: =VLOOKUP(E29,'[1]actual cost'!$F:$G,2,FALSE) -> 21,050 | I29: =VLOOKUP(E29,'[1]actual cost'!$F:$H,3,FALSE) -> 22,850 | J29: =VLOOKUP(E29,'[1]actual cost'!$F:$I,4,FALSE) -> 3,558 | K29: 19,292 | L29: 22,850 | M29: 16.90%
A30: =VLOOKUP(B30,[1]Eproject!$A:$B,2,FALSE) -> CBP/M | B30: 15208 | C30: =VLOOKUP(B30,[1]Eproject!$A:$C,3,FALSE) -> MOC | D30: =VLOOKUP(B30,[1]Eproject!$A:$E,5,FALSE) -> Leakage of the Roof of MCC of EB/SM Plant | E30: =VLOOKUP(B30,[1]Eproject!$A:$U,21,FALSE) -> 973314814 | F30: =VLOOKUP(B30,[1]Eproject!$A:$J,10,FALSE) -> Wang Shicheng | G30: =VLOOKUP(B30,[1]Eproject!$A:$P,16,FALSE) -> 00:00:00 | H30: =VLOOKUP(E30,'[1]actual cost'!$F:$G,2,FALSE) -> 0 | I30: =VLOOKUP(E30,'[1]actual cost'!$F:$H,3,FALSE) -> 0 | J30: =VLOOKUP(E30,'[1]actual cost'!$F:$I,4,FALSE) -> 0 | K30: 0 | L30: 0
A31: =VLOOKUP(B31,[1]Eproject!$A:$B,2,FALSE) -> COO/O | B31: 15205 | C31: =VLOOKUP(B31,[1]Eproject!$A:$C,3,FALSE) -> MOC | D31: =VLOOKUP(B31,[1]Eproject!$A:$E,5,FALSE) -> Reduce C3106 Level and Modify C3 BF3 Exhaust Pipeline in C3106 | E31: =VLOOKUP(B31,[1]Eproject!$A:$U,21,FALSE) -> 973347817 | F31: =VLOOKUP(B31,[1]Eproject!$A:$J,10,FALSE) -> Sun Yan | G31: =VLOOKUP(B31,[1]Eproject!$A:$P,16,FALSE) -> 00:00:00 | H31: =VLOOKUP(E31,'[1]actual cost'!$F:$G,2,FALSE) -> 96,550 | I31: =VLOOKUP(E31,'[1]actual cost'!$F:$H,3,FALSE) -> 90,795 | J31: =VLOOKUP(E31,'[1]actual cost'!$F:$I,4,FALSE) -> 53,467 | K31: 37,328 | L31: 90,795 | M31: 55.38%
A32: =VLOOKUP(B32,[1]Eproject!$A:$B,2,FALSE) -> CBL/O | B32: 15194 | C32: =VLOOKUP(B32,[1]Eproject!$A:$C,3,FALSE) -> MOC | D32: =VLOOKUP(B32,[1]Eproject!$A:$E,5,FALSE) -> Relocate the Venting Line of CMHL019B of A511 | E32: =VLOOKUP(B32,[1]Eproject!$A:$U,21,FALSE) -> 973525110 | F32: =VLOOKUP(B32,[1]Eproject!$A:$J,10,FALSE) -> Zhang Fanwen | G32: =VLOOKUP(B32,[1]Eproject!$A:$P,16,FALSE) -> 00:00:00 | H32: =VLOOKUP(E32,'[1]actual cost'!$F:$G,2,FALSE) ->  | I32: =VLOOKUP(E32,'[1]actual cost'!$F:$H,3,FALSE) ->  | J32: =VLOOKUP(E32,'[1]actual cost'!$F:$I,4,FALSE) -> 
A33: =VLOOKUP(B33,[1]Eproject!$A:$B,2,FALSE) -> CBP/P | B33: 15190 | C33: =VLOOKUP(B33,[1]Eproject!$A:$C,3,FALSE) -> MOC | D33: =VLOOKUP(B33,[1]Eproject!$A:$E,5,FALSE) -> Add Fence and Door for Waste Chemical Laydown | E33: =VLOOKUP(B33,[1]Eproject!$A:$U,21,FALSE) -> 973308117 | F33: =VLOOKUP(B33,[1]Eproject!$A:$J,10,FALSE) -> Xia Qun | G33: =VLOOKUP(B33,[1]Eproject!$A:$P,16,FALSE) -> 00:00:00 | H33: =VLOOKUP(E33,'[1]actual cost'!$F:$G,2,FALSE) -> 108,000 | I33: =VLOOKUP(E33,'[1]actual cost'!$F:$H,3,FALSE) -> 76,450 | J33: =VLOOKUP(E33,'[1]actual cost'!$F:$I,4,FALSE) -> 0 | K33: 76,450 | L33: 76,450 | M33: 0.00%
A34: =VLOOKUP(B34,[1]Eproject!$A:$B,2,FALSE) -> COO/O | B34: 15189 | C34: =VLOOKUP(B34,[1]Eproject!$A:$C,3,FALSE) -> MOC | D34: =VLOOKUP(B34,[1]Eproject!$A:$E,5,FALSE) -> Add Mannual Switch for Shutdown and Startup Fresh Air System of HVAC in Control Room or DCS | E34: =VLOOKUP(B34,[1]Eproject!$A:$U,21,FALSE) -> 973335860 | F34: =VLOOKUP(B34,[1]Eproject!$A:$J,10,FALSE) -> Gao Feng | G34: =VLOOKUP(B34,[1]Eproject!$A:$P,16,FALSE) -> 00:00:00 | H34: =VLOOKUP(E34,'[1]actual cost'!$F:$G,2,FALSE) -> 85,000 | I34: =VLOOKUP(E34,'[1]actual cost'!$F:$H,3,FALSE) -> 66,405 | J34: =VLOOKUP(E34,'[1]actual cost'!$F:$I,4,FALSE) -> 20,740 | K34: 45,665 | L34: 66,405 | M34: 24.40%
A35: =VLOOKUP(B35,[1]Eproject!$A:$B,2,FALSE) -> CBL/O | B35: 15187 | C35: =VLOOKUP(B35,[1]Eproject!$A:$C,3,FALSE) -> MOC | D35: =VLOOKUP(B35,[1]Eproject!$A:$E,5,FALSE) -> Add Temperature Control for 99% FA of Z3950 | E35: =VLOOKUP(B35,[1]Eproject!$A:$U,21,FALSE) -> 973421119 | F35: =VLOOKUP(B35,[1]Eproject!$A:$J,10,FALSE) -> Gong Feibao | G35: =VLOOKUP(B35,[1]Eproject!$A:$P,16,FALSE) -> 00:00:00 | H35: =VLOOKUP(E35,'[1]actual cost'!$F:$G,2,FALSE) -> 107,750 | I35: =VLOOKUP(E35,'[1]actual cost'!$F:$H,3,FALSE) -> 98,250 | J35: =VLOOKUP(E35,'[1]actual cost'!$F:$I,4,FALSE) -> 37,118 | K35: 61,132 | L35: 98,250 | M35: 34.45%
A36: =VLOOKUP(B36,[1]Eproject!$A:$B,2,FALSE) -> CBL/P | B36: 15181 | C36: =VLOOKUP(B36,[1]Eproject!$A:$C,3,FALSE) -> MOC | D36: =VLOOKUP(B36,[1]Eproject!$A:$E,5,FALSE) -> Move Switch of Fresh Air System to Control Room | E36: =VLOOKUP(B36,[1]Eproject!$A:$U,21,FALSE) -> 973353778 | F36: =VLOOKUP(B36,[1]Eproject!$A:$J,10,FALSE) -> Gao Feng | G36: =VLOOKUP(B36,[1]Eproject!$A:$P,16,FALSE) -> 2015-11-26 | H36: =VLOOKUP(E36,'[1]actual cost'!$F:$G,2,FALSE) -> 85,050 | I36: =VLOOKUP(E36,'[1]actual cost'!$F:$H,3,FALSE) -> 65,050 | J36: =VLOOKUP(E36,'[1]actual cost'!$F:$I,4,FALSE) -> 20,692 | K36: 44,358 | L36: 65,050 | M36: 24.33%
A37: =VLOOKUP(B37,[1]Eproject!$A:$B,2,FALSE) -> COA/S | B37: 15177 | C37: =VLOOKUP(B37,[1]Eproject!$A:$C,3,FALSE) -> MOC | D37: =VLOOKUP(B37,[1]Eproject!$A:$E,5,FALSE) -> Install New Platforms in the Production Building | E37: =VLOOKUP(B37,[1]Eproject!$A:$U,21,FALSE) -> 973485229 | F37: =VLOOKUP(B37,[1]Eproject!$A:$J,10,FALSE) -> Yu Yi | G37: =VLOOKUP(B37,[1]Eproject!$A:$P,16,FALSE) -> 00:00:00 | H37: =VLOOKUP(E37,'[1]actual cost'!$F:$G,2,FALSE) -> 411,548 | I37: =VLOOKUP(E37,'[1]actual cost'!$F:$H,3,FALSE) -> 220,075 | J37: =VLOOKUP(E37,'[1]actual cost'!$F:$I,4,FALSE) -> 5,500 | K37: 214,575 | L37: 220,075 | M37: 1.34%
A38: =VLOOKUP(B38,[1]Eproject!$A:$B,2,FALSE) -> CEP/E | B38: 15175 | C38: =VLOOKUP(B38,[1]Eproject!$A:$C,3,FALSE) -> MOC | D38: =VLOOKUP(B38,[1]Eproject!$A:$E,5,FALSE) -> Add a Balance Line between the V5150&V5152 | E38: =VLOOKUP(B38,[1]Eproject!$A:$U,21,FALSE) -> 973458544 | F38: =VLOOKUP(B38,[1]Eproject!$A:$J,10,FALSE) -> Gu Jingfeng | G38: =VLOOKUP(B38,[1]Eproject!$A:$P,16,FALSE) -> 00:00:00 | H38: =VLOOKUP(E38,'[1]actual cost'!$F:$G,2,FALSE) -> 117,500 | I38: =VLOOKUP(E38,'[1]actual cost'!$F:$H,3,FALSE) -> 96,300 | J38: =VLOOKUP(E38,'[1]actual cost'!$F:$I,4,FALSE) -> 14,245 | K38: 82,055 | L38: 96,300 | M38: 12.12%
A39: =VLOOKUP(B39,[1]Eproject!$A:$B,2,FALSE) -> COA/A | B39: 15173 | C39: =VLOOKUP(B39,[1]Eproject!$A:$C,3,FALSE) -> MOC | D39: =VLOOKUP(B39,[1]Eproject!$A:$E,5,FALSE) -> Modification for Heat Tracing of Melted Salt Pipeline | E39: =VLOOKUP(B39,[1]Eproject!$A:$U,21,FALSE) -> 973470745 | F39: =VLOOKUP(B39,[1]Eproject!$A:$J,10,FALSE) -> Xu Jin | G39: =VLOOKUP(B39,[1]Eproject!$A:$P,16,FALSE) -> 00:00:00 | H39: =VLOOKUP(E39,'[1]actual cost'!$F:$G,2,FALSE) -> 265,000 | I39: =VLOOKUP(E39,'[1]actual cost'!$F:$H,3,FALSE) -> 135,900 | J39: =VLOOKUP(E39,'[1]actual cost'!$F:$I,4,FALSE) -> 6,200 | K39: 129,700 | L39: 135,900 | M39: 2.34%
A40: =VLOOKUP(B40,[1]Eproject!$A:$B,2,FALSE) -> CTM | B40: 15170 | C40: =VLOOKUP(B40,[1]Eproject!$A:$C,3,FALSE) -> MOC | D40: =VLOOKUP(B40,[1]Eproject!$A:$E,5,FALSE) -> YBS Warehouse Covered Work Site Zone Increase | E40: =VLOOKUP(B40,[1]Eproject!$A:$U,21,FALSE) -> 973371675 | F40: =VLOOKUP(B40,[1]Eproject!$A:$J,10,FALSE) -> Yu Yi | G40: =VLOOKUP(B40,[1]Eproject!$A:$P,16,FALSE) -> 00:00:00 | H40: =VLOOKUP(E40,'[1]actual cost'!$F:$G,2,FALSE) -> 439,000 | I40: =VLOOKUP(E40,'[1]actual cost'!$F:$H,3,FALSE) -> 311,968 | J40: =VLOOKUP(E40,'[1]actual cost'!$F:$I,4,FALSE) -> 42,571 | K40: 269,396 | L40: 311,968 | M40: 9.70%
A41: =VLOOKUP(B41,[1]Eproject!$A:$B,2,FALSE) -> CBP/C | B41: 15165 | C41: =VLOOKUP(B41,[1]Eproject!$A:$C,3,FALSE) -> MOC | D41: =VLOOKUP(B41,[1]Eproject!$A:$E,5,FALSE) -> Replace the Air Condition of the Switch Room D-110 | E41: =VLOOKUP(B41,[1]Eproject!$A:$U,21,FALSE) -> 973327841 | F41: =VLOOKUP(B41,[1]Eproject!$A:$J,10,FALSE) -> Wang Shicheng | G41: =VLOOKUP(B41,[1]Eproject!$A:$P,16,FALSE) -> 2015-10-23 | H41: =VLOOKUP(E41,'[1]actual cost'!$F:$G,2,FALSE) -> 26,000 | I41: =VLOOKUP(E41,'[1]actual cost'!$F:$H,3,FALSE) -> 23,920 | J41: =VLOOKUP(E41,'[1]actual cost'!$F:$I,4,FALSE) -> 10,827 | K41: 13,093 | L41: 23,920 | M41: 41.64%
A42: =VLOOKUP(B42,[1]Eproject!$A:$B,2,FALSE) -> COO/O | B42: 15162 | C42: =VLOOKUP(B42,[1]Eproject!$A:$C,3,FALSE) -> MOC | D42: =VLOOKUP(B42,[1]Eproject!$A:$E,5,FALSE) -> Move the Flammable Gas Cylinder from Laboratory to Cylinder Room and Install Introduction of Pipeline | E42: =VLOOKUP(B42,[1]Eproject!$A:$U,21,FALSE) -> 973364287 | F42: =VLOOKUP(B42,[1]Eproject!$A:$J,10,FALSE) -> Liu Xiaoli | G42: =VLOOKUP(B42,[1]Eproject!$A:$P,16,FALSE) -> 2015-10-20 | H42: =VLOOKUP(E42,'[1]actual cost'!$F:$G,2,FALSE) -> 28,810 | I42: =VLOOKUP(E42,'[1]actual cost'!$F:$H,3,FALSE) -> 27,761 | J42: =VLOOKUP(E42,'[1]actual cost'!$F:$I,4,FALSE) -> 17,951 | K42: 9,810 | L42: 27,761 | M42: 62.31%
A43: =VLOOKUP(B43,[1]Eproject!$A:$B,2,FALSE) -> CBP/S | B43: 15161 | C43: =VLOOKUP(B43,[1]Eproject!$A:$C,3,FALSE) -> MOC | D43: =VLOOKUP(B43,[1]Eproject!$A:$E,5,FALSE) -> Add 2 Footpath near U1621 and Z1901 | E43: =VLOOKUP(B43,[1]Eproject!$A:$U,21,FALSE) -> 973379812 | F43: =VLOOKUP(B43,[1]Eproject!$A:$J,10,FALSE) -> Yan Jun | G43: =VLOOKUP(B43,[1]Eproject!$A:$P,16,FALSE) -> 2015-09-30 | H43: =VLOOKUP(E43,'[1]actual cost'!$F:$G,2,FALSE) -> 45,000 | I43: =VLOOKUP(E43,'[1]actual cost'!$F:$H,3,FALSE) -> 42,717 | J43: =VLOOKUP(E43,'[1]actual cost'!$F:$I,4,FALSE) -> 28,611 | K43: 14,106 | L43: 42,717 | M43: 63.58%
A44: =VLOOKUP(B44,[1]Eproject!$A:$B,2,FALSE) -> CEP/P | B44: 15158 | C44: =VLOOKUP(B44,[1]Eproject!$A:$C,3,FALSE) -> MOC | D44: =VLOOKUP(B44,[1]Eproject!$A:$E,5,FALSE) -> Add HVAC for B150 Workshop | E44: =VLOOKUP(B44,[1]Eproject!$A:$U,21,FALSE) -> 973388920 | F44: =VLOOKUP(B44,[1]Eproject!$A:$J,10,FALSE) -> Gao Feng | G44: =VLOOKUP(B44,[1]Eproject!$A:$P,16,FALSE) -> 2015-12-03 | H44: =VLOOKUP(E44,'[1]actual cost'!$F:$G,2,FALSE) -> 106,075 | I44: =VLOOKUP(E44,'[1]actual cost'!$F:$H,3,FALSE) -> 96,575 | J44: =VLOOKUP(E44,'[1]actual cost'!$F:$I,4,FALSE) -> 41,331 | K44: 55,244 | L44: 96,575 | M44: 38.96%
A45: =VLOOKUP(B45,[1]Eproject!$A:$B,2,FALSE) -> COA/E | B45: 15157 | C45: =VLOOKUP(B45,[1]Eproject!$A:$C,3,FALSE) -> MOC | D45: =VLOOKUP(B45,[1]Eproject!$A:$E,5,FALSE) -> Install a Piperack Layout for AE | E45: =VLOOKUP(B45,[1]Eproject!$A:$U,21,FALSE) -> 973334427 | F45: =VLOOKUP(B45,[1]Eproject!$A:$J,10,FALSE) -> Yu Yi | G45: =VLOOKUP(B45,[1]Eproject!$A:$P,16,FALSE) -> 2015-09-14 | H45: =VLOOKUP(E45,'[1]actual cost'!$F:$G,2,FALSE) -> 34,500 | I45: =VLOOKUP(E45,'[1]actual cost'!$F:$H,3,FALSE) -> 33,078 | J45: =VLOOKUP(E45,'[1]actual cost'!$F:$I,4,FALSE) -> 30,389 | K45: 2,689 | L45: 33,078 | M45: 88.09%
A46: =VLOOKUP(B46,[1]Eproject!$A:$B,2,FALSE) -> COA/E | B46: 15151 | C46: =VLOOKUP(B46,[1]Eproject!$A:$C,3,FALSE) -> MOC | D46: =VLOOKUP(B46,[1]Eproject!$A:$E,5,FALSE) -> Modified the Steel Beam above V6650 | E46: =VLOOKUP(B46,[1]Eproject!$A:$U,21,FALSE) -> 973487180 | F46: =VLOOKUP(B46,[1]Eproject!$A:$J,10,FALSE) -> Yu Yi | G46: =VLOOKUP(B46,[1]Eproject!$A:$P,16,FALSE) -> 00:00:00 | H46: =VLOOKUP(E46,'[1]actual cost'!$F:$G,2,FALSE) -> 111,379 | I46: =VLOOKUP(E46,'[1]actual cost'!$F:$H,3,FALSE) -> 73,700 | J46: =VLOOKUP(E46,'[1]actual cost'!$F:$I,4,FALSE) -> 2,200 | K46: 71,500 | L46: 73,700 | M46: 1.98%
A47: =VLOOKUP(B47,[1]Eproject!$A:$B,2,FALSE) -> COA/L | B47: 15150 | C47: =VLOOKUP(B47,[1]Eproject!$A:$C,3,FALSE) -> MOC | D47: =VLOOKUP(B47,[1]Eproject!$A:$E,5,FALSE) -> Add an Anti Dropping Device for A455 Loading Station | E47: =VLOOKUP(B47,[1]Eproject!$A:$U,21,FALSE) -> 973487181 | F47: =VLOOKUP(B47,[1]Eproject!$A:$J,10,FALSE) -> Yu Yi | G47: =VLOOKUP(B47,[1]Eproject!$A:$P,16,FALSE) -> 00:00:00 | H47: =VLOOKUP(E47,'[1]actual cost'!$F:$G,2,FALSE) -> 131,145 | I47: =VLOOKUP(E47,'[1]actual cost'!$F:$H,3,FALSE) -> 79,750 | J47: =VLOOKUP(E47,'[1]actual cost'!$F:$I,4,FALSE) -> 4,400 | K47: 75,350 | L47: 79,750 | M47: 3.36%
A48: =VLOOKUP(B48,[1]Eproject!$A:$B,2,FALSE) -> CBL/O | B48: 15148 | C48: =VLOOKUP(B48,[1]Eproject!$A:$C,3,FALSE) -> MOC | D48: =VLOOKUP(B48,[1]Eproject!$A:$E,5,FALSE) -> Relocate the Vent Pipeline of Manhole of L309 | E48: =VLOOKUP(B48,[1]Eproject!$A:$U,21,FALSE) -> 973308295 | F48: =VLOOKUP(B48,[1]Eproject!$A:$J,10,FALSE) -> Zhang Fanwen | G48: =VLOOKUP(B48,[1]Eproject!$A:$P,16,FALSE) -> 2015-10-30 | H48: =VLOOKUP(E48,'[1]actual cost'!$F:$G,2,FALSE) -> 125,250 | I48: =VLOOKUP(E48,'[1]actual cost'!$F:$H,3,FALSE) -> 102,365 | J48: =VLOOKUP(E48,'[1]actual cost'!$F:$I,4,FALSE) -> 86,990 | K48: 15,375 | L48: 102,365 | M48: 69.45%
A49: =VLOOKUP(B49,[1]Eproject!$A:$B,2,FALSE) -> CBL/O | B49: 15145 | C49: =VLOOKUP(B49,[1]Eproject!$A:$C,3,FALSE) -> MOC | D49: =VLOOKUP(B49,[1]Eproject!$A:$E,5,FALSE) -> Add HVAC Control Button in C701 | E49: =VLOOKUP(B49,[1]Eproject!$A:$U,21,FALSE) -> 973353779 | F49: =VLOOKUP(B49,[1]Eproject!$A:$J,10,FALSE) -> Gao Feng | G49: =VLOOKUP(B49,[1]Eproject!$A:$P,16,FALSE) -> 2015-11-26 | H49: =VLOOKUP(E49,'[1]actual cost'!$F:$G,2,FALSE) -> 81,050 | I49: =VLOOKUP(E49,'[1]actual cost'!$F:$H,3,FALSE) -> 86,376 | J49: =VLOOKUP(E49,'[1]actual cost'!$F:$I,4,FALSE) -> 54,883 | K49: 31,493 | L49: 86,376 | M49: 67.72%
A50: =VLOOKUP(B50,[1]Eproject!$A:$B,2,FALSE) -> CBP/M | B50: 15136 | C50: =VLOOKUP(B50,[1]Eproject!$A:$C,3,FALSE) -> MOC | D50: =VLOOKUP(B50,[1]Eproject!$A:$E,5,FALSE) -> Relocation for Flowmeter F85012 of Production Waste Water | E50: =VLOOKUP(B50,[1]Eproject!$A:$U,21,FALSE) -> 973290387 | F50: =VLOOKUP(B50,[1]Eproject!$A:$J,10,FALSE) -> Zhang Fanwen | G50: =VLOOKUP(B50,[1]Eproject!$A:$P,16,FALSE) -> 2015-11-28 | H50: =VLOOKUP(E50,'[1]actual cost'!$F:$G,2,FALSE) -> 102,100 | I50: =VLOOKUP(E50,'[1]actual cost'!$F:$H,3,FALSE) -> 34,100 | J50: =VLOOKUP(E50,'[1]actual cost'!$F:$I,4,FALSE) -> 19,070 | K50: 15,030 | L50: 34,100 | M50: 18.68%
A51: =VLOOKUP(B51,[1]Eproject!$A:$B,2,FALSE) -> COO/A | B51: 15135 | C51: =VLOOKUP(B51,[1]Eproject!$A:$C,3,FALSE) -> MOC | D51: =VLOOKUP(B51,[1]Eproject!$A:$E,5,FALSE) -> Decrease Viabration of Pipeline from Tower C3100 to C3300 | E51: =VLOOKUP(B51,[1]Eproject!$A:$U,21,FALSE) -> 973304632 | F51: =VLOOKUP(B51,[1]Eproject!$A:$J,10,FALSE) -> Wang Can | G51: =VLOOKUP(B51,[1]Eproject!$A:$P,16,FALSE) -> 00:00:00 | H51: =VLOOKUP(E51,'[1]actual cost'!$F:$G,2,FALSE) -> 40,000 | I51: =VLOOKUP(E51,'[1]actual cost'!$F:$H,3,FALSE) -> 36,000 | J51: =VLOOKUP(E51,'[1]actual cost'!$F:$I,4,FALSE) -> 45,170 | K51: 0 | L51: 45,170 | M51: 112.93%
A52: =VLOOKUP(B52,[1]Eproject!$A:$B,2,FALSE) -> CEP/E | B52: 15131 | C52: =VLOOKUP(B52,[1]Eproject!$A:$C,3,FALSE) -> MOC | D52: =VLOOKUP(B52,[1]Eproject!$A:$E,5,FALSE) -> Modify Storage Place for Empty Containers | E52: =VLOOKUP(B52,[1]Eproject!$A:$U,21,FALSE) -> 973288013 | F52: =VLOOKUP(B52,[1]Eproject!$A:$J,10,FALSE) -> Yan Jun | G52: =VLOOKUP(B52,[1]Eproject!$A:$P,16,FALSE) -> 2015-12-03 | H52: =VLOOKUP(E52,'[1]actual cost'!$F:$G,2,FALSE) -> 261,000 | I52: =VLOOKUP(E52,'[1]actual cost'!$F:$H,3,FALSE) -> 235,930 | J52: =VLOOKUP(E52,'[1]actual cost'!$F:$I,4,FALSE) -> 179,207 | K52: 56,723 | L52: 235,930 | M52: 68.66%
A53: =VLOOKUP(B53,[1]Eproject!$A:$B,2,FALSE) -> CBL/O | B53: 15129 | C53: =VLOOKUP(B53,[1]Eproject!$A:$C,3,FALSE) -> MOC | D53: =VLOOKUP(B53,[1]Eproject!$A:$E,5,FALSE) -> Modification of Power Room of A800 | E53: =VLOOKUP(B53,[1]Eproject!$A:$U,21,FALSE) -> 973390465 | F53: =VLOOKUP(B53,[1]Eproject!$A:$J,10,FALSE) -> Hu Xiao | G53: =VLOOKUP(B53,[1]Eproject!$A:$P,16,FALSE) -> 00:00:00 | H53: =VLOOKUP(E53,'[1]actual cost'!$F:$G,2,FALSE) -> 125,000 | I53: =VLOOKUP(E53,'[1]actual cost'!$F:$H,3,FALSE) -> 75,874 | J53: =VLOOKUP(E53,'[1]actual cost'!$F:$I,4,FALSE) -> 42,491 | K53: 33,383 | L53: 75,874 | M53: 33.99%
A54: =VLOOKUP(B54,[1]Eproject!$A:$B,2,FALSE) -> COA/A | B54: 15127 | C54: =VLOOKUP(B54,[1]Eproject!$A:$C,3,FALSE) -> MOC | D54: =VLOOKUP(B54,[1]Eproject!$A:$E,5,FALSE) -> Add Tie-in Point for WW Header | E54: =VLOOKUP(B54,[1]Eproject!$A:$U,21,FALSE) -> 973250501 | F54: =VLOOKUP(B54,[1]Eproject!$A:$J,10,FALSE) -> Meng Yousheng | G54: =VLOOKUP(B54,[1]Eproject!$A:$P,16,FALSE) -> 00:00:00 | H54: =VLOOKUP(E54,'[1]actual cost'!$F:$G,2,FALSE) -> 15,000 | I54: =VLOOKUP(E54,'[1]actual cost'!$F:$H,3,FALSE) -> 11,000 | J54: =VLOOKUP(E54,'[1]actual cost'!$F:$I,4,FALSE) -> 11,620 | K54: 0 | L54: 11,620 | M54: 77.47%
A55: =VLOOKUP(B55,[1]Eproject!$A:$B,2,FALSE) -> COA/A | B55: 15126 | C55: =VLOOKUP(B55,[1]Eproject!$A:$C,3,FALSE) -> MOC | D55: =VLOOKUP(B55,[1]Eproject!$A:$E,5,FALSE) -> Modification for E541 Drain Line | E55: =VLOOKUP(B55,[1]Eproject!$A:$U,21,FALSE) -> 973250500 | F55: =VLOOKUP(B55,[1]Eproject!$A:$J,10,FALSE) -> Meng Yousheng | G55: =VLOOKUP(B55,[1]Eproject!$A:$P,16,FALSE) -> 00:00:00 | H55: =VLOOKUP(E55,'[1]actual cost'!$F:$G,2,FALSE) -> 25,000 | I55: =VLOOKUP(E55,'[1]actual cost'!$F:$H,3,FALSE) -> 20,900 | J55: =VLOOKUP(E55,'[1]actual cost'!$F:$I,4,FALSE) -> 17,400 | K55: 3,500 | L55: 20,900 | M55: 69.60%
A56: =VLOOKUP(B56,[1]Eproject!$A:$B,2,FALSE) -> CEP/E | B56: 15123 | C56: =VLOOKUP(B56,[1]Eproject!$A:$C,3,FALSE) -> MOC | D56: =VLOOKUP(B56,[1]Eproject!$A:$E,5,FALSE) -> Add a Production Water Pipeline to TOC Pond | E56: =VLOOKUP(B56,[1]Eproject!$A:$U,21,FALSE) -> 973239639 | F56: =VLOOKUP(B56,[1]Eproject!$A:$J,10,FALSE) -> Li Jun | G56: =VLOOKUP(B56,[1]Eproject!$A:$P,16,FALSE) -> 00:00:00 | H56: =VLOOKUP(E56,'[1]actual cost'!$F:$G,2,FALSE) -> 41,000 | I56: =VLOOKUP(E56,'[1]actual cost'!$F:$H,3,FALSE) -> 40,700 | J56: =VLOOKUP(E56,'[1]actual cost'!$F:$I,4,FALSE) -> 42,330 | K56: 0 | L56: 42,330 | M56: 103.24%
A57: =VLOOKUP(B57,[1]Eproject!$A:$B,2,FALSE) -> COA/L | B57: 15120 | C57: =VLOOKUP(B57,[1]Eproject!$A:$C,3,FALSE) -> MOC | D57: =VLOOKUP(B57,[1]Eproject!$A:$E,5,FALSE) -> Add Driver Room for A400 | E57: =VLOOKUP(B57,[1]Eproject!$A:$U,21,FALSE) -> 973427927 | F57: =VLOOKUP(B57,[1]Eproject!$A:$J,10,FALSE) -> Yu Yi | G57: =VLOOKUP(B57,[1]Eproject!$A:$P,16,FALSE) -> 00:00:00 | H57: =VLOOKUP(E57,'[1]actual cost'!$F:$G,2,FALSE) -> 220,000 | I57: =VLOOKUP(E57,'[1]actual cost'!$F:$H,3,FALSE) -> 151,335 | J57: =VLOOKUP(E57,'[1]actual cost'!$F:$I,4,FALSE) -> 17,875 | K57: 133,460 | L57: 151,335 | M57: 8.13%
A58: =VLOOKUP(B58,[1]Eproject!$A:$B,2,FALSE) -> CBP/C | B58: 15119 | C58: =VLOOKUP(B58,[1]Eproject!$A:$C,3,FALSE) -> MOC | D58: =VLOOKUP(B58,[1]Eproject!$A:$E,5,FALSE) -> Add a Work Platform for the Filter F-230 | E58: =VLOOKUP(B58,[1]Eproject!$A:$U,21,FALSE) -> 973378580 | F58: =VLOOKUP(B58,[1]Eproject!$A:$J,10,FALSE) -> Wang Shicheng | G58: =VLOOKUP(B58,[1]Eproject!$A:$P,16,FALSE) -> 2015-12-31 | H58: =VLOOKUP(E58,'[1]actual cost'!$F:$G,2,FALSE) -> 51,425 | I58: =VLOOKUP(E58,'[1]actual cost'!$F:$H,3,FALSE) -> 51,425 | J58: =VLOOKUP(E58,'[1]actual cost'!$F:$I,4,FALSE) -> 31,725 | K58: 19,700 | L58: 51,425 | M58: 61.69%
A59: =VLOOKUP(B59,[1]Eproject!$A:$B,2,FALSE) -> CBL/P | B59: 15118 | C59: =VLOOKUP(B59,[1]Eproject!$A:$C,3,FALSE) -> MOC | D59: =VLOOKUP(B59,[1]Eproject!$A:$E,5,FALSE) -> Modification for SLOP Piping of Safety Valve of Battery Limit | E59: =VLOOKUP(B59,[1]Eproject!$A:$U,21,FALSE) -> 973366108 | F59: =VLOOKUP(B59,[1]Eproject!$A:$J,10,FALSE) -> Zhang Fanwen | G59: =VLOOKUP(B59,[1]Eproject!$A:$P,16,FALSE) -> 2015-12-28 | H59: =VLOOKUP(E59,'[1]actual cost'!$F:$G,2,FALSE) -> 127,720 | I59: =VLOOKUP(E59,'[1]actual cost'!$F:$H,3,FALSE) -> 117,974 | J59: =VLOOKUP(E59,'[1]actual cost'!$F:$I,4,FALSE) -> 55,735 | K59: 62,239 | L59: 117,974 | M59: 43.64%
A60: =VLOOKUP(B60,[1]Eproject!$A:$B,2,FALSE) -> CEP/E | B60: 15115 | C60: =VLOOKUP(B60,[1]Eproject!$A:$C,3,FALSE) -> MOC | D60: =VLOOKUP(B60,[1]Eproject!$A:$E,5,FALSE) -> Extend Local Trench at Unloading Station | E60: =VLOOKUP(B60,[1]Eproject!$A:$U,21,FALSE) -> 973516439 | F60: =VLOOKUP(B60,[1]Eproject!$A:$J,10,FALSE) -> Yan Jun | G60: =VLOOKUP(B60,[1]Eproject!$A:$P,16,FALSE) -> 00:00:00 | H60: =VLOOKUP(E60,'[1]actual cost'!$F:$G,2,FALSE) ->  | I60: =VLOOKUP(E60,'[1]actual cost'!$F:$H,3,FALSE) ->  | J60: =VLOOKUP(E60,'[1]actual cost'!$F:$I,4,FALSE) -> 
A61: =VLOOKUP(B61,[1]Eproject!$A:$B,2,FALSE) -> COA/A | B61: 15113 | C61: =VLOOKUP(B61,[1]Eproject!$A:$C,3,FALSE) -> MOC | D61: =VLOOKUP(B61,[1]Eproject!$A:$E,5,FALSE) -> CTM/A Build Spare Parts Storage | E61: =VLOOKUP(B61,[1]Eproject!$A:$U,21,FALSE) -> 973371671 | F61: =VLOOKUP(B61,[1]Eproject!$A:$J,10,FALSE) -> Yu Yi | G61: =VLOOKUP(B61,[1]Eproject!$A:$P,16,FALSE) -> 2015-12-30 | H61: =VLOOKUP(E61,'[1]actual cost'!$F:$G,2,FALSE) -> 116,000 | I61: =VLOOKUP(E61,'[1]actual cost'!$F:$H,3,FALSE) -> 117,389 | J61: =VLOOKUP(E61,'[1]actual cost'!$F:$I,4,FALSE) -> 7,150 | K61: 110,239 | L61: 117,389 | M61: 6.16%
A62: =VLOOKUP(B62,[1]Eproject!$A:$B,2,FALSE) -> CBP/C | B62: 15110 | C62: =VLOOKUP(B62,[1]Eproject!$A:$C,3,FALSE) -> MOC | D62: =VLOOKUP(B62,[1]Eproject!$A:$E,5,FALSE) -> Move the Smoking Room to Outside the Control Building | E62: =VLOOKUP(B62,[1]Eproject!$A:$U,21,FALSE) -> 973389727 | F62: =VLOOKUP(B62,[1]Eproject!$A:$J,10,FALSE) -> Wang Shicheng | G62: =VLOOKUP(B62,[1]Eproject!$A:$P,16,FALSE) -> 00:00:00 | H62: =VLOOKUP(E62,'[1]actual cost'!$F:$G,2,FALSE) -> 50,675 | I62: =VLOOKUP(E62,'[1]actual cost'!$F:$H,3,FALSE) -> 51,101 | J62: =VLOOKUP(E62,'[1]actual cost'!$F:$I,4,FALSE) -> 42,089 | K62: 9,012 | L62: 51,101 | M62: 83.06%
A63: =VLOOKUP(B63,[1]Eproject!$A:$B,2,FALSE) -> COO/C | B63: 15106 | C63: =VLOOKUP(B63,[1]Eproject!$A:$C,3,FALSE) -> MOC | D63: =VLOOKUP(B63,[1]Eproject!$A:$E,5,FALSE) -> Revamp T3810 to Store DMA | E63: =VLOOKUP(B63,[1]Eproject!$A:$U,21,FALSE) -> 973240379 | F63: =VLOOKUP(B63,[1]Eproject!$A:$J,10,FALSE) -> Liu Xiaoli | G63: =VLOOKUP(B63,[1]Eproject!$A:$P,16,FALSE) -> 00:00:00 | H63: =VLOOKUP(E63,'[1]actual cost'!$F:$G,2,FALSE) -> 18,500 | I63: =VLOOKUP(E63,'[1]actual cost'!$F:$H,3,FALSE) -> 18,500 | J63: =VLOOKUP(E63,'[1]actual cost'!$F:$I,4,FALSE) -> 12,385 | K63: 6,115 | L63: 18,500 | M63: 66.95%
A64: =VLOOKUP(B64,[1]Eproject!$A:$B,2,FALSE) -> COA/A | B64: 15105 | C64: =VLOOKUP(B64,[1]Eproject!$A:$C,3,FALSE) -> MOC | D64: =VLOOKUP(B64,[1]Eproject!$A:$E,5,FALSE) -> Build Garbage Station at GAA Plant | E64: =VLOOKUP(B64,[1]Eproject!$A:$U,21,FALSE) -> 973246059 | F64: =VLOOKUP(B64,[1]Eproject!$A:$J,10,FALSE) -> Xia Qun | G64: =VLOOKUP(B64,[1]Eproject!$A:$P,16,FALSE) -> 00:00:00 | H64: =VLOOKUP(E64,'[1]actual cost'!$F:$G,2,FALSE) -> 327,500 | I64: =VLOOKUP(E64,'[1]actual cost'!$F:$H,3,FALSE) -> 332,678 | J64: =VLOOKUP(E64,'[1]actual cost'!$F:$I,4,FALSE) -> 52,179 | K64: 280,499 | L64: 332,678 | M64: 15.93%
A65: =VLOOKUP(B65,[1]Eproject!$A:$B,2,FALSE) -> COA/E | B65: 15101 | C65: =VLOOKUP(B65,[1]Eproject!$A:$C,3,FALSE) -> MOC | D65: =VLOOKUP(B65,[1]Eproject!$A:$E,5,FALSE) -> Re-install Deluge Valve for T9610 | E65: =VLOOKUP(B65,[1]Eproject!$A:$U,21,FALSE) -> 973389266 | F65: =VLOOKUP(B65,[1]Eproject!$A:$J,10,FALSE) -> Zhang Fanwen | G65: =VLOOKUP(B65,[1]Eproject!$A:$P,16,FALSE) -> 00:00:00 | H65: =VLOOKUP(E65,'[1]actual cost'!$F:$G,2,FALSE) -> 127,600 | I65: =VLOOKUP(E65,'[1]actual cost'!$F:$H,3,FALSE) -> 107,600 | J65: =VLOOKUP(E65,'[1]actual cost'!$F:$I,4,FALSE) -> 14,300 | K65: 93,300 | L65: 107,600 | M65: 11.21%
A66: =VLOOKUP(B66,[1]Eproject!$A:$B,2,FALSE) -> CBP/C | B66: 15099 | C66: =VLOOKUP(B66,[1]Eproject!$A:$C,3,FALSE) -> MOC | D66: =VLOOKUP(B66,[1]Eproject!$A:$E,5,FALSE) -> Modify Work Platform at the Quench Section | E66: =VLOOKUP(B66,[1]Eproject!$A:$U,21,FALSE) -> 973377859 | F66: =VLOOKUP(B66,[1]Eproject!$A:$J,10,FALSE) -> Wang Shicheng | G66: =VLOOKUP(B66,[1]Eproject!$A:$P,16,FALSE) -> 2015-12-31 | H66: =VLOOKUP(E66,'[1]actual cost'!$F:$G,2,FALSE) -> 23,825 | I66: =VLOOKUP(E66,'[1]actual cost'!$F:$H,3,FALSE) -> 23,825 | J66: =VLOOKUP(E66,'[1]actual cost'!$F:$I,4,FALSE) -> 20,335 | K66: 3,490 | L66: 23,825 | M66: 85.35%
A67: =VLOOKUP(B67,[1]Eproject!$A:$B,2,FALSE) -> COO/C | B67: 15098 | C67: =VLOOKUP(B67,[1]Eproject!$A:$C,3,FALSE) -> MOC | D67: =VLOOKUP(B67,[1]Eproject!$A:$E,5,FALSE) -> Improve Ventilation Condition of DCS Engineering Room | E67: =VLOOKUP(B67,[1]Eproject!$A:$U,21,FALSE) -> 973245543 | F67: =VLOOKUP(B67,[1]Eproject!$A:$J,10,FALSE) -> Yu Yi | G67: =VLOOKUP(B67,[1]Eproject!$A:$P,16,FALSE) -> 2015-07-30 | H67: =VLOOKUP(E67,'[1]actual cost'!$F:$G,2,FALSE) -> 28,600 | I67: =VLOOKUP(E67,'[1]actual cost'!$F:$H,3,FALSE) -> 22,300 | J67: =VLOOKUP(E67,'[1]actual cost'!$F:$I,4,FALSE) -> 2,866 | K67: 19,434 | L67: 22,300 | M67: 10.02%
A68: =VLOOKUP(B68,[1]Eproject!$A:$B,2,FALSE) -> COA/E | B68: 15094 | C68: =VLOOKUP(B68,[1]Eproject!$A:$C,3,FALSE) -> MOC | D68: =VLOOKUP(B68,[1]Eproject!$A:$E,5,FALSE) -> Add a Sluice Valve at the Rain Trench from the DMA3 Pit to Rain Total Pit | E68: =VLOOKUP(B68,[1]Eproject!$A:$U,21,FALSE) -> 973330990 | F68: =VLOOKUP(B68,[1]Eproject!$A:$J,10,FALSE) -> Zhang Fanwen | G68: =VLOOKUP(B68,[1]Eproject!$A:$P,16,FALSE) -> 00:00:00 | H68: =VLOOKUP(E68,'[1]actual cost'!$F:$G,2,FALSE) -> 95,060 | I68: =VLOOKUP(E68,'[1]actual cost'!$F:$H,3,FALSE) -> 88,035 | J68: =VLOOKUP(E68,'[1]actual cost'!$F:$I,4,FALSE) -> 48,283 | K68: =IF(J68>I68,0,I68-J68) -> 39,752 | L68: =J68+K68 -> 88,035 | M68: =J68/H68 -> 50.79%
A69: =VLOOKUP(B69,[1]Eproject!$A:$B,2,FALSE) -> CTE | B69: 15092 | C69: =VLOOKUP(B69,[1]Eproject!$A:$C,3,FALSE) -> MOC | D69: =VLOOKUP(B69,[1]Eproject!$A:$E,5,FALSE) -> Modification for Taffic Facilities | E69: =VLOOKUP(B69,[1]Eproject!$A:$U,21,FALSE) -> 973245545 | F69: =VLOOKUP(B69,[1]Eproject!$A:$J,10,FALSE) -> Yu Yi | G69: =VLOOKUP(B69,[1]Eproject!$A:$P,16,FALSE) -> 00:00:00 | H69: =VLOOKUP(E69,'[1]actual cost'!$F:$G,2,FALSE) -> 499,000 | I69: =VLOOKUP(E69,'[1]actual cost'!$F:$H,3,FALSE) -> 462,800 | J69: =VLOOKUP(E69,'[1]actual cost'!$F:$I,4,FALSE) -> 15,950 | K69: 446,850 | L69: 462,800 | M69: 3.20%
A70: =VLOOKUP(B70,[1]Eproject!$A:$B,2,FALSE) -> COA/S | B70: 15090 | C70: =VLOOKUP(B70,[1]Eproject!$A:$C,3,FALSE) -> MOC | D70: =VLOOKUP(B70,[1]Eproject!$A:$E,5,FALSE) -> Extend and Modify the Ditch in Truck Loading Station | E70: =VLOOKUP(B70,[1]Eproject!$A:$U,21,FALSE) -> 973460235 | F70: =VLOOKUP(B70,[1]Eproject!$A:$J,10,FALSE) -> Yu Yi | G70: =VLOOKUP(B70,[1]Eproject!$A:$P,16,FALSE) -> 00:00:00 | H70: =VLOOKUP(E70,'[1]actual cost'!$F:$G,2,FALSE) -> 149,000 | I70: =VLOOKUP(E70,'[1]actual cost'!$F:$H,3,FALSE) -> 66,000 | J70: =VLOOKUP(E70,'[1]actual cost'!$F:$I,4,FALSE) -> 2,750 | K70: 63,250 | L70: 66,000 | M70: 1.85%
A71: =VLOOKUP(B71,[1]Eproject!$A:$B,2,FALSE) -> COA/E | B71: 15084 | C71: =VLOOKUP(B71,[1]Eproject!$A:$C,3,FALSE) -> MOC | D71: =VLOOKUP(B71,[1]Eproject!$A:$E,5,FALSE) -> Add Jacket for T9668 Circulate Pipe | E71: =VLOOKUP(B71,[1]Eproject!$A:$U,21,FALSE) -> 973268793 | F71: =VLOOKUP(B71,[1]Eproject!$A:$J,10,FALSE) -> Wang Can | G71: =VLOOKUP(B71,[1]Eproject!$A:$P,16,FALSE) -> 00:00:00 | H71: =VLOOKUP(E71,'[1]actual cost'!$F:$G,2,FALSE) -> 195,000 | I71: =VLOOKUP(E71,'[1]actual cost'!$F:$H,3,FALSE) -> 152,580 | J71: =VLOOKUP(E71,'[1]actual cost'!$F:$I,4,FALSE) -> 80,156 | K71: 72,424 | L71: 152,580 | M71: 41.11%
A72: =VLOOKUP(B72,[1]Eproject!$A:$B,2,FALSE) -> CTS | B72: 15078 | C72: =VLOOKUP(B72,[1]Eproject!$A:$C,3,FALSE) -> MOC | D72: =VLOOKUP(B72,[1]Eproject!$A:$E,5,FALSE) -> B655 C1 Lab Item of Feed Additive | E72: =VLOOKUP(B72,[1]Eproject!$A:$U,21,FALSE) -> 973209930 | F72: =VLOOKUP(B72,[1]Eproject!$A:$J,10,FALSE) -> Liu Xiaoli | G72: =VLOOKUP(B72,[1]Eproject!$A:$P,16,FALSE) -> 2015-06-08 | H72: =VLOOKUP(E72,'[1]actual cost'!$F:$G,2,FALSE) -> 150,000 | I72: =VLOOKUP(E72,'[1]actual cost'!$F:$H,3,FALSE) -> 3,283 | J72: =VLOOKUP(E72,'[1]actual cost'!$F:$I,4,FALSE) -> 74,272 | K72: 0 | L72: 74,272 | M72: 49.51%
A73: =VLOOKUP(B73,[1]Eproject!$A:$B,2,FALSE) -> CTE | B73: 15075 | C73: =VLOOKUP(B73,[1]Eproject!$A:$C,3,FALSE) -> MOC | D73: =VLOOKUP(B73,[1]Eproject!$A:$E,5,FALSE) -> Fire Fighting Water Pipe Modification for YBS Admin Building | E73: =VLOOKUP(B73,[1]Eproject!$A:$U,21,FALSE) -> 973219082 | F73: =VLOOKUP(B73,[1]Eproject!$A:$J,10,FALSE) -> Zhang Fanwen | G73: =VLOOKUP(B73,[1]Eproject!$A:$P,16,FALSE) -> 2015-08-19 | H73: =VLOOKUP(E73,'[1]actual cost'!$F:$G,2,FALSE) -> 281,000 | I73: =VLOOKUP(E73,'[1]actual cost'!$F:$H,3,FALSE) -> 308,864 | J73: =VLOOKUP(E73,'[1]actual cost'!$F:$I,4,FALSE) -> 194,116 | K73: 114,749 | L73: 308,864 | M73: 69.08%
A74: =VLOOKUP(B74,[1]Eproject!$A:$B,2,FALSE) -> CEP/P | B74: 15073 | C74: =VLOOKUP(B74,[1]Eproject!$A:$C,3,FALSE) -> MOC | D74: =VLOOKUP(B74,[1]Eproject!$A:$E,5,FALSE) -> Add a 4" Tie-in on the VAM Pipe from CLTF to LDPE | E74: =VLOOKUP(B74,[1]Eproject!$A:$U,21,FALSE) -> 973302646 | F74: =VLOOKUP(B74,[1]Eproject!$A:$J,10,FALSE) -> Gu Jingfeng | G74: =VLOOKUP(B74,[1]Eproject!$A:$P,16,FALSE) -> 00:00:00 | H74: =VLOOKUP(E74,'[1]actual cost'!$F:$G,2,FALSE) -> 105,850 | I74: =VLOOKUP(E74,'[1]actual cost'!$F:$H,3,FALSE) -> 90,850 | J74: =VLOOKUP(E74,'[1]actual cost'!$F:$I,4,FALSE) -> 58,940 | K74: 31,910 | L74: 90,850 | M74: 55.68%
A75: =VLOOKUP(B75,[1]Eproject!$A:$B,2,FALSE) -> COO/A | B75: 15070 | C75: =VLOOKUP(B75,[1]Eproject!$A:$C,3,FALSE) -> MOC | D75: =VLOOKUP(B75,[1]Eproject!$A:$E,5,FALSE) -> Optimization of Gas-Liquid Separation Facilities for Off Gas 1, Off Gas 2, Off Gas3 in ACN | E75: =VLOOKUP(B75,[1]Eproject!$A:$U,21,FALSE) -> 973190332 | F75: =VLOOKUP(B75,[1]Eproject!$A:$J,10,FALSE) -> Liu Duo | G75: =VLOOKUP(B75,[1]Eproject!$A:$P,16,FALSE) -> 2015-05-05 | H75: =VLOOKUP(E75,'[1]actual cost'!$F:$G,2,FALSE) -> 65,570 | I75: =VLOOKUP(E75,'[1]actual cost'!$F:$H,3,FALSE) -> 63,570 | J75: =VLOOKUP(E75,'[1]actual cost'!$F:$I,4,FALSE) -> 48,970 | K75: 14,600 | L75: 63,570 | M75: 74.68%
A76: =VLOOKUP(B76,[1]Eproject!$A:$B,2,FALSE) -> COO/O | B76: 15069 | C76: =VLOOKUP(B76,[1]Eproject!$A:$C,3,FALSE) -> MOC | D76: =VLOOKUP(B76,[1]Eproject!$A:$E,5,FALSE) -> The Modification of P1810A/B Input Valve | E76: =VLOOKUP(B76,[1]Eproject!$A:$U,21,FALSE) -> 973171709 | F76: =VLOOKUP(B76,[1]Eproject!$A:$J,10,FALSE) -> Yu Xiya | G76: =VLOOKUP(B76,[1]Eproject!$A:$P,16,FALSE) -> 2015-05-07 | H76: =VLOOKUP(E76,'[1]actual cost'!$F:$G,2,FALSE) -> 42,000 | I76: =VLOOKUP(E76,'[1]actual cost'!$F:$H,3,FALSE) -> 47,371 | J76: =VLOOKUP(E76,'[1]actual cost'!$F:$I,4,FALSE) -> 24,558 | K76: 22,813 | L76: 47,371 | M76: 58.47%
A77: =VLOOKUP(B77,[1]Eproject!$A:$B,2,FALSE) -> CBL/T | B77: 15067 | C77: =VLOOKUP(B77,[1]Eproject!$A:$C,3,FALSE) -> MOC | D77: =VLOOKUP(B77,[1]Eproject!$A:$E,5,FALSE) -> Lead the Fire Alarm Signal of STT101 to STT301 | E77: =VLOOKUP(B77,[1]Eproject!$A:$U,21,FALSE) -> 973275980 | F77: =VLOOKUP(B77,[1]Eproject!$A:$J,10,FALSE) -> Bian Jiacai | G77: =VLOOKUP(B77,[1]Eproject!$A:$P,16,FALSE) -> 00:00:00 | H77: =VLOOKUP(E77,'[1]actual cost'!$F:$G,2,FALSE) -> 123,000 | I77: =VLOOKUP(E77,'[1]actual cost'!$F:$H,3,FALSE) -> 78,710 | J77: =VLOOKUP(E77,'[1]actual cost'!$F:$I,4,FALSE) -> 34,422 | K77: 44,288 | L77: 78,710 | M77: 27.99%
A78: =VLOOKUP(B78,[1]Eproject!$A:$B,2,FALSE) -> COA/A | B78: 15065 | C78: =VLOOKUP(B78,[1]Eproject!$A:$C,3,FALSE) -> MOC | D78: =VLOOKUP(B78,[1]Eproject!$A:$E,5,FALSE) -> Extending E340 Platform | E78: =VLOOKUP(B78,[1]Eproject!$A:$U,21,FALSE) -> 973352580 | F78: =VLOOKUP(B78,[1]Eproject!$A:$J,10,FALSE) -> Yu Yi | G78: =VLOOKUP(B78,[1]Eproject!$A:$P,16,FALSE) -> 2015-11-25 | H78: =VLOOKUP(E78,'[1]actual cost'!$F:$G,2,FALSE) -> 167,000 | I78: =VLOOKUP(E78,'[1]actual cost'!$F:$H,3,FALSE) -> 105,611 | J78: =VLOOKUP(E78,'[1]actual cost'!$F:$I,4,FALSE) -> 29,264 | K78: 76,347 | L78: 105,611 | M78: 17.52%
A79: =VLOOKUP(B79,[1]Eproject!$A:$B,2,FALSE) -> COA/L | B79: 15059 | C79: =VLOOKUP(B79,[1]Eproject!$A:$C,3,FALSE) -> MOC | D79: =VLOOKUP(B79,[1]Eproject!$A:$E,5,FALSE) -> Extend the Rainproof Shed of D620 Loading Station | E79: =VLOOKUP(B79,[1]Eproject!$A:$U,21,FALSE) -> 973244161 | F79: =VLOOKUP(B79,[1]Eproject!$A:$J,10,FALSE) -> Yu Yi | G79: =VLOOKUP(B79,[1]Eproject!$A:$P,16,FALSE) -> 2015-11-28 | H79: =VLOOKUP(E79,'[1]actual cost'!$F:$G,2,FALSE) -> 278,000 | I79: =VLOOKUP(E79,'[1]actual cost'!$F:$H,3,FALSE) -> 199,583 | J79: =VLOOKUP(E79,'[1]actual cost'!$F:$I,4,FALSE) -> 68,317 | K79: 131,266 | L79: 199,583 | M79: 24.57%
A80: =VLOOKUP(B80,[1]Eproject!$A:$B,2,FALSE) -> COO/C | B80: 15049 | C80: =VLOOKUP(B80,[1]Eproject!$A:$C,3,FALSE) -> MOC | D80: =VLOOKUP(B80,[1]Eproject!$A:$E,5,FALSE) -> Demolishing K1200 for PA Expansion Project | E80: =VLOOKUP(B80,[1]Eproject!$A:$U,21,FALSE) -> 972970641 | F80: =VLOOKUP(B80,[1]Eproject!$A:$J,10,FALSE) -> Yuan Jinhua | G80: =VLOOKUP(B80,[1]Eproject!$A:$P,16,FALSE) -> 00:00:00 | H80: =VLOOKUP(E80,'[1]actual cost'!$F:$G,2,FALSE) -> 2,403,600 | I80: =VLOOKUP(E80,'[1]actual cost'!$F:$H,3,FALSE) -> 3,600 | J80: =VLOOKUP(E80,'[1]actual cost'!$F:$I,4,FALSE) -> 0 | K80: 3,600 | L80: 3,600 | M80: 0.00%
A81: =VLOOKUP(B81,[1]Eproject!$A:$B,2,FALSE) -> COO/C | B81: 15046 | C81: =VLOOKUP(B81,[1]Eproject!$A:$C,3,FALSE) -> MOC | D81: =VLOOKUP(B81,[1]Eproject!$A:$E,5,FALSE) -> Install Card Registration Device | E81: =VLOOKUP(B81,[1]Eproject!$A:$U,21,FALSE) -> 973120684 | F81: =VLOOKUP(B81,[1]Eproject!$A:$J,10,FALSE) -> Yan Yicheng | G81: =VLOOKUP(B81,[1]Eproject!$A:$P,16,FALSE) -> 2015-03-30 | H81: =VLOOKUP(E81,'[1]actual cost'!$F:$G,2,FALSE) -> 79,188 | I81: =VLOOKUP(E81,'[1]actual cost'!$F:$H,3,FALSE) -> 49,188 | J81: =VLOOKUP(E81,'[1]actual cost'!$F:$I,4,FALSE) -> 48,355 | K81: 833 | L81: 49,188 | M81: 61.06%
A82: =VLOOKUP(B82,[1]Eproject!$A:$B,2,FALSE) -> COA/A | B82: 15045 | C82: =VLOOKUP(B82,[1]Eproject!$A:$C,3,FALSE) -> MOC | D82: =VLOOKUP(B82,[1]Eproject!$A:$E,5,FALSE) -> Install Platforms for Salt Pump | E82: =VLOOKUP(B82,[1]Eproject!$A:$U,21,FALSE) -> 973227191 | F82: =VLOOKUP(B82,[1]Eproject!$A:$J,10,FALSE) -> Yu Yi | G82: =VLOOKUP(B82,[1]Eproject!$A:$P,16,FALSE) -> 00:00:00 | H82: =VLOOKUP(E82,'[1]actual cost'!$F:$G,2,FALSE) -> 460,000 | I82: =VLOOKUP(E82,'[1]actual cost'!$F:$H,3,FALSE) -> 345,080 | J82: =VLOOKUP(E82,'[1]actual cost'!$F:$I,4,FALSE) -> 57,735 | K82: 287,345 | L82: 345,080 | M82: 12.55%
A83: =VLOOKUP(B83,[1]Eproject!$A:$B,2,FALSE) -> COO/C | B83: 15044 | C83: =VLOOKUP(B83,[1]Eproject!$A:$C,3,FALSE) -> MOC | D83: =VLOOKUP(B83,[1]Eproject!$A:$E,5,FALSE) -> Alter Arrestors' Location on PA Off Gas Lines | E83: =VLOOKUP(B83,[1]Eproject!$A:$U,21,FALSE) -> 973126954 | F83: =VLOOKUP(B83,[1]Eproject!$A:$J,10,FALSE) -> Yuan Jinhua | G83: =VLOOKUP(B83,[1]Eproject!$A:$P,16,FALSE) -> 2015-03-30 | H83: =VLOOKUP(E83,'[1]actual cost'!$F:$G,2,FALSE) -> 15,790 | I83: =VLOOKUP(E83,'[1]actual cost'!$F:$H,3,FALSE) -> 25,790 | J83: =VLOOKUP(E83,'[1]actual cost'!$F:$I,4,FALSE) -> 18,545 | K83: 7,245 | L83: 25,790 | M83: 117.45%
A84: =VLOOKUP(B84,[1]Eproject!$A:$B,2,FALSE) -> CEP/L | B84: 15043 | C84: =VLOOKUP(B84,[1]Eproject!$A:$C,3,FALSE) -> MOC | D84: =VLOOKUP(B84,[1]Eproject!$A:$E,5,FALSE) -> Revamp the Gound of A915 with Epoxy Resin | E84: =VLOOKUP(B84,[1]Eproject!$A:$U,21,FALSE) -> 973143414 | F84: =VLOOKUP(B84,[1]Eproject!$A:$J,10,FALSE) -> Xia Qun | G84: =VLOOKUP(B84,[1]Eproject!$A:$P,16,FALSE) -> 2015-09-30 | H84: =VLOOKUP(E84,'[1]actual cost'!$F:$G,2,FALSE) -> 658,000 | I84: =VLOOKUP(E84,'[1]actual cost'!$F:$H,3,FALSE) -> 584,225 | J84: =VLOOKUP(E84,'[1]actual cost'!$F:$I,4,FALSE) -> 509,101 | K84: 75,124 | L84: 584,225 | M84: 77.37%
A85: =VLOOKUP(B85,[1]Eproject!$A:$B,2,FALSE) -> COO/C | B85: 15018 | C85: =VLOOKUP(B85,[1]Eproject!$A:$C,3,FALSE) -> MOC | D85: =VLOOKUP(B85,[1]Eproject!$A:$E,5,FALSE) -> Revamp Valves and Pipe Connections of Utility Station in C1 Complex | E85: =VLOOKUP(B85,[1]Eproject!$A:$U,21,FALSE) -> 973358700 | F85: =VLOOKUP(B85,[1]Eproject!$A:$J,10,FALSE) -> Yuan Jinhua | G85: =VLOOKUP(B85,[1]Eproject!$A:$P,16,FALSE) -> 00:00:00 | H85: =VLOOKUP(E85,'[1]actual cost'!$F:$G,2,FALSE) -> 18,550 | I85: =VLOOKUP(E85,'[1]actual cost'!$F:$H,3,FALSE) -> 18,550 | J85: =VLOOKUP(E85,'[1]actual cost'!$F:$I,4,FALSE) -> 5,205 | K85: 13,345 | L85: 18,550 | M85: 28.06%
A86: =VLOOKUP(B86,[1]Eproject!$A:$B,2,FALSE) -> COO/C | B86: 15017 | C86: =VLOOKUP(B86,[1]Eproject!$A:$C,3,FALSE) -> MOC | D86: =VLOOKUP(B86,[1]Eproject!$A:$E,5,FALSE) -> Revamp HVAC System in C1 Control Building | E86: =VLOOKUP(B86,[1]Eproject!$A:$U,21,FALSE) -> 973160155 | F86: =VLOOKUP(B86,[1]Eproject!$A:$J,10,FALSE) -> Gao Feng | G86: =VLOOKUP(B86,[1]Eproject!$A:$P,16,FALSE) -> 2015-09-18 | H86: =VLOOKUP(E86,'[1]actual cost'!$F:$G,2,FALSE) -> 501,000 | I86: =VLOOKUP(E86,'[1]actual cost'!$F:$H,3,FALSE) -> 168,100 | J86: =VLOOKUP(E86,'[1]actual cost'!$F:$I,4,FALSE) -> 156,395 | K86: 11,705 | L86: 168,100 | M86: 31.22%
A87: =VLOOKUP(B87,[1]Eproject!$A:$B,2,FALSE) -> CEP/P | B87: 15013 | C87: =VLOOKUP(B87,[1]Eproject!$A:$C,3,FALSE) -> MOC | D87: =VLOOKUP(B87,[1]Eproject!$A:$E,5,FALSE) -> Add Two Steam Traps for the P11807 MP Steam | E87: =VLOOKUP(B87,[1]Eproject!$A:$U,21,FALSE) -> 973160145 | F87: =VLOOKUP(B87,[1]Eproject!$A:$J,10,FALSE) -> Gu Jingfeng | G87: =VLOOKUP(B87,[1]Eproject!$A:$P,16,FALSE) -> 2015-09-15 | H87: =VLOOKUP(E87,'[1]actual cost'!$F:$G,2,FALSE) -> 121,000 | I87: =VLOOKUP(E87,'[1]actual cost'!$F:$H,3,FALSE) -> 129,806 | J87: =VLOOKUP(E87,'[1]actual cost'!$F:$I,4,FALSE) -> 90,074 | K87: 39,732 | L87: 129,806 | M87: 74.44%
A88: =VLOOKUP(B88,[1]Eproject!$A:$B,2,FALSE) -> CBP/S | B88: 15012 | C88: =VLOOKUP(B88,[1]Eproject!$A:$C,3,FALSE) -> MOC | D88: =VLOOKUP(B88,[1]Eproject!$A:$E,5,FALSE) -> Add New Water Source for Air Coolers E1741's Sprayers | E88: =VLOOKUP(B88,[1]Eproject!$A:$U,21,FALSE) -> 973333837 | F88: =VLOOKUP(B88,[1]Eproject!$A:$J,10,FALSE) -> Chen Chen | G88: =VLOOKUP(B88,[1]Eproject!$A:$P,16,FALSE) -> 00:00:00 | H88: =VLOOKUP(E88,'[1]actual cost'!$F:$G,2,FALSE) -> 195,400 | I88: =VLOOKUP(E88,'[1]actual cost'!$F:$H,3,FALSE) -> 136,400 | J88: =VLOOKUP(E88,'[1]actual cost'!$F:$I,4,FALSE) -> 2,750 | K88: 133,650 | L88: 136,400 | M88: 1.41%
A89: =VLOOKUP(B89,[1]Eproject!$A:$B,2,FALSE) -> COO/O | B89: 15008 | C89: =VLOOKUP(B89,[1]Eproject!$A:$C,3,FALSE) -> MOC | D89: =VLOOKUP(B89,[1]Eproject!$A:$E,5,FALSE) -> Upgrade Open Items According to the Process Safety Review Requirements | E89: =VLOOKUP(B89,[1]Eproject!$A:$U,21,FALSE) -> 973049116 | F89: =VLOOKUP(B89,[1]Eproject!$A:$J,10,FALSE) -> Gong Feibao | G89: =VLOOKUP(B89,[1]Eproject!$A:$P,16,FALSE) -> 2015-09-22 | H89: =VLOOKUP(E89,'[1]actual cost'!$F:$G,2,FALSE) -> 17,100 | I89: =VLOOKUP(E89,'[1]actual cost'!$F:$H,3,FALSE) -> 17,100 | J89: =VLOOKUP(E89,'[1]actual cost'!$F:$I,4,FALSE) -> 20,690 | K89: 0 | L89: 20,690 | M89: 120.99%
A90: =VLOOKUP(B90,[1]Eproject!$A:$B,2,FALSE) -> CBL/P | B90: 15006 | C90: =VLOOKUP(B90,[1]Eproject!$A:$C,3,FALSE) -> MOC | D90: =VLOOKUP(B90,[1]Eproject!$A:$E,5,FALSE) -> Revamp HVAC System in CLTF Control Building | E90: =VLOOKUP(B90,[1]Eproject!$A:$U,21,FALSE) -> 973181190 | F90: =VLOOKUP(B90,[1]Eproject!$A:$J,10,FALSE) -> Gao Feng | G90: =VLOOKUP(B90,[1]Eproject!$A:$P,16,FALSE) -> 2015-11-26 | H90: =VLOOKUP(E90,'[1]actual cost'!$F:$G,2,FALSE) -> 364,000 | I90: =VLOOKUP(E90,'[1]actual cost'!$F:$H,3,FALSE) -> 164,601 | J90: =VLOOKUP(E90,'[1]actual cost'!$F:$I,4,FALSE) -> 77,816 | K90: 86,785 | L90: 164,601 | M90: 21.38%
A91: =VLOOKUP(B91,[1]Eproject!$A:$B,2,FALSE) -> COO/C | B91: 15005 | C91: =VLOOKUP(B91,[1]Eproject!$A:$C,3,FALSE) -> MOC | D91: =VLOOKUP(B91,[1]Eproject!$A:$E,5,FALSE) -> The Revamping of Smoking Room in C1 Plant | E91: =VLOOKUP(B91,[1]Eproject!$A:$U,21,FALSE) -> 973203335 | F91: =VLOOKUP(B91,[1]Eproject!$A:$J,10,FALSE) -> Gao Feng | G91: =VLOOKUP(B91,[1]Eproject!$A:$P,16,FALSE) -> 2015-10-12 | H91: =VLOOKUP(E91,'[1]actual cost'!$F:$G,2,FALSE) -> 89,000 | I91: =VLOOKUP(E91,'[1]actual cost'!$F:$H,3,FALSE) -> 95,770 | J91: =VLOOKUP(E91,'[1]actual cost'!$F:$I,4,FALSE) -> 78,587 | K91: 17,183 | L91: 95,770 | M91: 88.30%
A92: =VLOOKUP(B92,[1]Eproject!$A:$B,2,FALSE) -> CBP/P | B92: 14322 | C92: =VLOOKUP(B92,[1]Eproject!$A:$C,3,FALSE) -> MOC | D92: =VLOOKUP(B92,[1]Eproject!$A:$E,5,FALSE) -> Revamp HVAC System in PP Control Building and Adm. Building | E92: =VLOOKUP(B92,[1]Eproject!$A:$U,21,FALSE) -> 973189552 | F92: =VLOOKUP(B92,[1]Eproject!$A:$J,10,FALSE) -> Gao Feng | G92: =VLOOKUP(B92,[1]Eproject!$A:$P,16,FALSE) -> 2015-09-25 | H92: =VLOOKUP(E92,'[1]actual cost'!$F:$G,2,FALSE) -> 705,000 | I92: =VLOOKUP(E92,'[1]actual cost'!$F:$H,3,FALSE) -> 429,318 | J92: =VLOOKUP(E92,'[1]actual cost'!$F:$I,4,FALSE) -> 339,749 | K92: 89,568 | L92: 429,318 | M92: 48.19%
A93: =VLOOKUP(B93,[1]Eproject!$A:$B,2,FALSE) -> CBP/M | B93: 14319 | C93: =VLOOKUP(B93,[1]Eproject!$A:$C,3,FALSE) -> MOC | D93: =VLOOKUP(B93,[1]Eproject!$A:$E,5,FALSE) -> Revamping the Ground of Concocting Room of Cooling Water Dosing System | E93: =VLOOKUP(B93,[1]Eproject!$A:$U,21,FALSE) -> 973035133 | F93: =VLOOKUP(B93,[1]Eproject!$A:$J,10,FALSE) -> Gao Feng | G93: =VLOOKUP(B93,[1]Eproject!$A:$P,16,FALSE) -> 2015-06-12 | H93: =VLOOKUP(E93,'[1]actual cost'!$F:$G,2,FALSE) -> 198,975 | I93: =VLOOKUP(E93,'[1]actual cost'!$F:$H,3,FALSE) -> 191,500 | J93: =VLOOKUP(E93,'[1]actual cost'!$F:$I,4,FALSE) -> 145,282 | K93: 46,218 | L93: 191,500 | M93: 73.02%
A94: =VLOOKUP(B94,[1]Eproject!$A:$B,2,FALSE) -> COO/C | B94: 14301 | C94: =VLOOKUP(B94,[1]Eproject!$A:$C,3,FALSE) -> MOC | D94: =VLOOKUP(B94,[1]Eproject!$A:$E,5,FALSE) -> Add Some Manual Valves in DMA Plant | E94: =VLOOKUP(B94,[1]Eproject!$A:$U,21,FALSE) -> 973043163 | F94: =VLOOKUP(B94,[1]Eproject!$A:$J,10,FALSE) -> Li Shouqing | G94: =VLOOKUP(B94,[1]Eproject!$A:$P,16,FALSE) -> 00:00:00 | H94: =VLOOKUP(E94,'[1]actual cost'!$F:$G,2,FALSE) -> 186,705 | I94: =VLOOKUP(E94,'[1]actual cost'!$F:$H,3,FALSE) -> 98,105 | J94: =VLOOKUP(E94,'[1]actual cost'!$F:$I,4,FALSE) -> 154,289 | K94: 0 | L94: 154,289 | M94: 82.64%
A95: =VLOOKUP(B95,[1]Eproject!$A:$B,2,FALSE) -> CBP/M | B95: 14299 | C95: =VLOOKUP(B95,[1]Eproject!$A:$C,3,FALSE) -> MOC | D95: =VLOOKUP(B95,[1]Eproject!$A:$E,5,FALSE) -> Revamping Dry Gas Seal System | E95: =VLOOKUP(B95,[1]Eproject!$A:$U,21,FALSE) -> 973357432 | F95: =VLOOKUP(B95,[1]Eproject!$A:$J,10,FALSE) -> Chu Chao | G95: =VLOOKUP(B95,[1]Eproject!$A:$P,16,FALSE) -> 2015-05-31 | H95: =VLOOKUP(E95,'[1]actual cost'!$F:$G,2,FALSE) -> 91,900 | I95: =VLOOKUP(E95,'[1]actual cost'!$F:$H,3,FALSE) -> 265,135 | J95: =VLOOKUP(E95,'[1]actual cost'!$F:$I,4,FALSE) -> 91,242 | K95: 173,894 | L95: 265,135 | M95: 99.28%
A96: =VLOOKUP(B96,[1]Eproject!$A:$B,2,FALSE) -> CBL/T | B96: 14295 | C96: =VLOOKUP(B96,[1]Eproject!$A:$C,3,FALSE) -> MOC | D96: =VLOOKUP(B96,[1]Eproject!$A:$E,5,FALSE) -> Relocate the Fire-fighting Monitor WM-L202 | E96: =VLOOKUP(B96,[1]Eproject!$A:$U,21,FALSE) -> 973331498 | F96: =VLOOKUP(B96,[1]Eproject!$A:$J,10,FALSE) -> Zhang Fanwen | G96: =VLOOKUP(B96,[1]Eproject!$A:$P,16,FALSE) -> 2015-12-02 | H96: =VLOOKUP(E96,'[1]actual cost'!$F:$G,2,FALSE) -> 97,450 | I96: =VLOOKUP(E96,'[1]actual cost'!$F:$H,3,FALSE) -> 96,528 | J96: =VLOOKUP(E96,'[1]actual cost'!$F:$I,4,FALSE) -> 60,646 | K96: 35,882 | L96: 96,528 | M96: 62.23%
A97: =VLOOKUP(B97,[1]Eproject!$A:$B,2,FALSE) -> CEP/L | B97: 14289 | C97: =VLOOKUP(B97,[1]Eproject!$A:$C,3,FALSE) -> MOC | D97: =VLOOKUP(B97,[1]Eproject!$A:$E,5,FALSE) -> Add Leakage Detectors for Packing Line | E97: =VLOOKUP(B97,[1]Eproject!$A:$U,21,FALSE) -> 973211318 | F97: =VLOOKUP(B97,[1]Eproject!$A:$J,10,FALSE) -> Zhou Yanduo | G97: =VLOOKUP(B97,[1]Eproject!$A:$P,16,FALSE) -> 2015-12-04 | H97: =VLOOKUP(E97,'[1]actual cost'!$F:$G,2,FALSE) -> 371,000 | I97: =VLOOKUP(E97,'[1]actual cost'!$F:$H,3,FALSE) -> 317,850 | J97: =VLOOKUP(E97,'[1]actual cost'!$F:$I,4,FALSE) -> 327,308 | K97: 0 | L97: 327,308 | M97: 88.22%
A98: =VLOOKUP(B98,[1]Eproject!$A:$B,2,FALSE) -> CEP/E | B98: 14283 | C98: =VLOOKUP(B98,[1]Eproject!$A:$C,3,FALSE) -> MOC | D98: =VLOOKUP(B98,[1]Eproject!$A:$E,5,FALSE) -> Seperate 2-PH and DEG Safety Valve Discharge Lines | E98: =VLOOKUP(B98,[1]Eproject!$A:$U,21,FALSE) -> 972922028 | F98: =VLOOKUP(B98,[1]Eproject!$A:$J,10,FALSE) -> Wang Zhigao | G98: =VLOOKUP(B98,[1]Eproject!$A:$P,16,FALSE) -> 2015-05-13 | H98: =VLOOKUP(E98,'[1]actual cost'!$F:$G,2,FALSE) -> 50,000 | I98: =VLOOKUP(E98,'[1]actual cost'!$F:$H,3,FALSE) -> 46,200 | J98: =VLOOKUP(E98,'[1]actual cost'!$F:$I,4,FALSE) -> 48,190 | K98: 0 | L98: 48,190 | M98: 96.38%
A99: =VLOOKUP(B99,[1]Eproject!$A:$B,2,FALSE) -> CBP/C | B99: 14280 | C99: =VLOOKUP(B99,[1]Eproject!$A:$C,3,FALSE) -> MOC | D99: =VLOOKUP(B99,[1]Eproject!$A:$E,5,FALSE) -> Add Site Lighting Sysyem in Start-up Boiler Section | E99: =VLOOKUP(B99,[1]Eproject!$A:$U,21,FALSE) -> 973286478 | F99: =VLOOKUP(B99,[1]Eproject!$A:$J,10,FALSE) -> Hu Xiao | G99: =VLOOKUP(B99,[1]Eproject!$A:$P,16,FALSE) -> 2015-11-30 | H99: =VLOOKUP(E99,'[1]actual cost'!$F:$G,2,FALSE) -> 147,000 | I99: =VLOOKUP(E99,'[1]actual cost'!$F:$H,3,FALSE) -> 103,931 | J99: =VLOOKUP(E99,'[1]actual cost'!$F:$I,4,FALSE) -> 110,908 | K99: 0 | L99: 110,908 | M99: 75.45%
A100: =VLOOKUP(B100,[1]Eproject!$A:$B,2,FALSE) -> CBP/U | B100: 14269 | C100: =VLOOKUP(B100,[1]Eproject!$A:$C,3,FALSE) -> MOC | D100: =VLOOKUP(B100,[1]Eproject!$A:$E,5,FALSE) -> Modify the impeller of P8701 | E100: =VLOOKUP(B100,[1]Eproject!$A:$U,21,FALSE) -> 973343789 | F100: =VLOOKUP(B100,[1]Eproject!$A:$J,10,FALSE) -> Chen Yuxin | G100: =VLOOKUP(B100,[1]Eproject!$A:$P,16,FALSE) -> 00:00:00 | H100: =VLOOKUP(E100,'[1]actual cost'!$F:$G,2,FALSE) -> 199,180 | I100: =VLOOKUP(E100,'[1]actual cost'!$F:$H,3,FALSE) -> 174,278 | J100: =VLOOKUP(E100,'[1]actual cost'!$F:$I,4,FALSE) -> 48,805 | K100: 125,473 | L100: 174,278 | M100: 24.50%
A101: =VLOOKUP(B101,[1]Eproject!$A:$B,2,FALSE) -> CBP/U | B101: 14268 | C101: =VLOOKUP(B101,[1]Eproject!$A:$C,3,FALSE) -> MOC | D101: =VLOOKUP(B101,[1]Eproject!$A:$E,5,FALSE) -> The Top Flatform of Co-incinerator Expand | E101: =VLOOKUP(B101,[1]Eproject!$A:$U,21,FALSE) -> 973113995 | F101: =VLOOKUP(B101,[1]Eproject!$A:$J,10,FALSE) -> Yu Yi | G101: =VLOOKUP(B101,[1]Eproject!$A:$P,16,FALSE) -> 2015-06-19 | H101: =VLOOKUP(E101,'[1]actual cost'!$F:$G,2,FALSE) -> 224,000 | I101: =VLOOKUP(E101,'[1]actual cost'!$F:$H,3,FALSE) -> 217,878 | J101: =VLOOKUP(E101,'[1]actual cost'!$F:$I,4,FALSE) -> 146,325 | K101: 71,553 | L101: 217,878 | M101: 65.32%
A102: =VLOOKUP(B102,[1]Eproject!$A:$B,2,FALSE) -> CEP/E | B102: 14266 | C102: =VLOOKUP(B102,[1]Eproject!$A:$C,3,FALSE) -> MOC | D102: =VLOOKUP(B102,[1]Eproject!$A:$E,5,FALSE) -> Change Work Liquid of Z3770-8 from DMW to CW | E102: =VLOOKUP(B102,[1]Eproject!$A:$U,21,FALSE) -> 972956291 | F102: =VLOOKUP(B102,[1]Eproject!$A:$J,10,FALSE) -> Wang Zhigao | G102: =VLOOKUP(B102,[1]Eproject!$A:$P,16,FALSE) -> 2015-05-13 | H102: =VLOOKUP(E102,'[1]actual cost'!$F:$G,2,FALSE) -> 35,000 | I102: =VLOOKUP(E102,'[1]actual cost'!$F:$H,3,FALSE) -> 33,120 | J102: =VLOOKUP(E102,'[1]actual cost'!$F:$I,4,FALSE) -> 32,963 | K102: 157 | L102: 33,120 | M102: 94.18%
A103: =VLOOKUP(B103,[1]Eproject!$A:$B,2,FALSE) -> CEP/E | B103: 14265 | C103: =VLOOKUP(B103,[1]Eproject!$A:$C,3,FALSE) -> MOC | D103: =VLOOKUP(B103,[1]Eproject!$A:$E,5,FALSE) -> Add a Flowmeter on NG to EOEG Flare Pilot Burner | E103: =VLOOKUP(B103,[1]Eproject!$A:$U,21,FALSE) -> 972956292 | F103: =VLOOKUP(B103,[1]Eproject!$A:$J,10,FALSE) -> Wang Zhigao | G103: =VLOOKUP(B103,[1]Eproject!$A:$P,16,FALSE) -> 2015-05-13 | H103: =VLOOKUP(E103,'[1]actual cost'!$F:$G,2,FALSE) -> 40,000 | I103: =VLOOKUP(E103,'[1]actual cost'!$F:$H,3,FALSE) -> 38,770 | J103: =VLOOKUP(E103,'[1]actual cost'!$F:$I,4,FALSE) -> 42,120 | K103: 0 | L103: 42,120 | M103: 105.30%
A104: =VLOOKUP(B104,[1]Eproject!$A:$B,2,FALSE) -> CBL/T | B104: 14264 | C104: =VLOOKUP(B104,[1]Eproject!$A:$C,3,FALSE) -> MOC | D104: =VLOOKUP(B104,[1]Eproject!$A:$E,5,FALSE) -> Add a Container as a Lounge Room at Loading&Unloading Station in SCTF | E104: =VLOOKUP(B104,[1]Eproject!$A:$U,21,FALSE) -> 973270047 | F104: =VLOOKUP(B104,[1]Eproject!$A:$J,10,FALSE) -> Wang Shicheng | G104: =VLOOKUP(B104,[1]Eproject!$A:$P,16,FALSE) -> 2015-11-16 | H104: =VLOOKUP(E104,'[1]actual cost'!$F:$G,2,FALSE) -> 110,625 | I104: =VLOOKUP(E104,'[1]actual cost'!$F:$H,3,FALSE) -> 121,159 | J104: =VLOOKUP(E104,'[1]actual cost'!$F:$I,4,FALSE) -> 133,864 | K104: 0 | L104: 133,864 | M104: 121.01%
A105: =VLOOKUP(B105,[1]Eproject!$A:$B,2,FALSE) -> CBP/C | B105: 14263 | C105: =VLOOKUP(B105,[1]Eproject!$A:$C,3,FALSE) -> MOC | D105: =VLOOKUP(B105,[1]Eproject!$A:$E,5,FALSE) -> Change the Pipe Size of Second Burner of Fuel Gas from 3" to 4" | E105: =VLOOKUP(B105,[1]Eproject!$A:$U,21,FALSE) -> 973168953 | F105: =VLOOKUP(B105,[1]Eproject!$A:$J,10,FALSE) -> Chen Chen | G105: =VLOOKUP(B105,[1]Eproject!$A:$P,16,FALSE) -> 2015-10-30 | H105: =VLOOKUP(E105,'[1]actual cost'!$F:$G,2,FALSE) -> 262,200 | I105: =VLOOKUP(E105,'[1]actual cost'!$F:$H,3,FALSE) -> 172,380 | J105: =VLOOKUP(E105,'[1]actual cost'!$F:$I,4,FALSE) -> 160,798 | K105: 11,582 | L105: 172,380 | M105: 61.33%
A106: =VLOOKUP(B106,[1]Eproject!$A:$B,2,FALSE) -> COO/A | B106: 14247 | C106: =VLOOKUP(B106,[1]Eproject!$A:$C,3,FALSE) -> MOC | D106: =VLOOKUP(B106,[1]Eproject!$A:$E,5,FALSE) -> Add Water Cooler and Inducer for Pumps P2400/P2500/P2600 | E106: =VLOOKUP(B106,[1]Eproject!$A:$U,21,FALSE) -> 972922251 | F106: =VLOOKUP(B106,[1]Eproject!$A:$J,10,FALSE) -> Liu Duo | G106: =VLOOKUP(B106,[1]Eproject!$A:$P,16,FALSE) -> 2015-05-25 | H106: =VLOOKUP(E106,'[1]actual cost'!$F:$G,2,FALSE) -> 273,200 | I106: =VLOOKUP(E106,'[1]actual cost'!$F:$H,3,FALSE) -> 34,375 | J106: =VLOOKUP(E106,'[1]actual cost'!$F:$I,4,FALSE) -> 384,748 | K106: 0 | L106: 384,748 | M106: 140.83%
A107: =VLOOKUP(B107,[1]Eproject!$A:$B,2,FALSE) -> CTS/U | B107: 14246 | C107: =VLOOKUP(B107,[1]Eproject!$A:$C,3,FALSE) -> MOC | D107: =VLOOKUP(B107,[1]Eproject!$A:$E,5,FALSE) -> Move the Tie-in to SAP HP Steam in TAR | E107: =VLOOKUP(B107,[1]Eproject!$A:$U,21,FALSE) -> 972924061 | F107: =VLOOKUP(B107,[1]Eproject!$A:$J,10,FALSE) -> Yu Xiya | G107: =VLOOKUP(B107,[1]Eproject!$A:$P,16,FALSE) -> 2015-05-07 | H107: =VLOOKUP(E107,'[1]actual cost'!$F:$G,2,FALSE) -> 230,000 | I107: =VLOOKUP(E107,'[1]actual cost'!$F:$H,3,FALSE) -> 235,720 | J107: =VLOOKUP(E107,'[1]actual cost'!$F:$I,4,FALSE) -> 329,170 | K107: 0 | L107: 329,170 | M107: 143.12%
A108: =VLOOKUP(B108,[1]Eproject!$A:$B,2,FALSE) -> COA/A | B108: 14233 | C108: =VLOOKUP(B108,[1]Eproject!$A:$C,3,FALSE) -> MOC | D108: =VLOOKUP(B108,[1]Eproject!$A:$E,5,FALSE) -> Extend the Waterproof of Stabilizer Preparation Station | E108: =VLOOKUP(B108,[1]Eproject!$A:$U,21,FALSE) -> 973236661 | F108: =VLOOKUP(B108,[1]Eproject!$A:$J,10,FALSE) -> Yu Yi | G108: =VLOOKUP(B108,[1]Eproject!$A:$P,16,FALSE) -> 00:00:00 | H108: =VLOOKUP(E108,'[1]actual cost'!$F:$G,2,FALSE) -> 186,000 | I108: =VLOOKUP(E108,'[1]actual cost'!$F:$H,3,FALSE) -> 153,570 | J108: =VLOOKUP(E108,'[1]actual cost'!$F:$I,4,FALSE) -> 57,843 | K108: 95,727 | L108: 153,570 | M108: 31.10%
A109: =VLOOKUP(B109,[1]Eproject!$A:$B,2,FALSE) -> CEP/P | B109: 14228 | C109: =VLOOKUP(B109,[1]Eproject!$A:$C,3,FALSE) -> MOC | D109: =VLOOKUP(B109,[1]Eproject!$A:$E,5,FALSE) -> Modify Pellet CW Exchanger to Parallel Mode | E109: =VLOOKUP(B109,[1]Eproject!$A:$U,21,FALSE) -> 972895397 | F109: =VLOOKUP(B109,[1]Eproject!$A:$J,10,FALSE) -> Gu Jingfeng | G109: =VLOOKUP(B109,[1]Eproject!$A:$P,16,FALSE) -> 2015-07-29 | H109: =VLOOKUP(E109,'[1]actual cost'!$F:$G,2,FALSE) -> 219,000 | I109: =VLOOKUP(E109,'[1]actual cost'!$F:$H,3,FALSE) -> 196,900 | J109: =VLOOKUP(E109,'[1]actual cost'!$F:$I,4,FALSE) -> 216,369 | K109: 0 | L109: 216,369 | M109: 98.80%
A110: =VLOOKUP(B110,[1]Eproject!$A:$B,2,FALSE) -> CEP/L | B110: 14225 | C110: =VLOOKUP(B110,[1]Eproject!$A:$C,3,FALSE) -> MOC | D110: =VLOOKUP(B110,[1]Eproject!$A:$E,5,FALSE) -> Repaving the Concrete Ground in PS Warehouse | E110: =VLOOKUP(B110,[1]Eproject!$A:$U,21,FALSE) -> 973191611 | F110: =VLOOKUP(B110,[1]Eproject!$A:$J,10,FALSE) -> Gao Feng | G110: =VLOOKUP(B110,[1]Eproject!$A:$P,16,FALSE) -> 2015-10-29 | H110: =VLOOKUP(E110,'[1]actual cost'!$F:$G,2,FALSE) -> 1,294,000 | I110: =VLOOKUP(E110,'[1]actual cost'!$F:$H,3,FALSE) -> 1,152,068 | J110: =VLOOKUP(E110,'[1]actual cost'!$F:$I,4,FALSE) -> 79,149 | K110: 1,072,919 | L110: 1,152,068 | M110: 6.12%
A111: =VLOOKUP(B111,[1]Eproject!$A:$B,2,FALSE) -> COA/S | B111: 14224 | C111: =VLOOKUP(B111,[1]Eproject!$A:$C,3,FALSE) -> MOC | D111: =VLOOKUP(B111,[1]Eproject!$A:$E,5,FALSE) -> Modification for Potable Water Line | E111: =VLOOKUP(B111,[1]Eproject!$A:$U,21,FALSE) -> 972927197 | F111: =VLOOKUP(B111,[1]Eproject!$A:$J,10,FALSE) -> Xu Jin | G111: =VLOOKUP(B111,[1]Eproject!$A:$P,16,FALSE) -> 2015-08-07 | H111: =VLOOKUP(E111,'[1]actual cost'!$F:$G,2,FALSE) -> 230,000 | I111: =VLOOKUP(E111,'[1]actual cost'!$F:$H,3,FALSE) -> 204,624 | J111: =VLOOKUP(E111,'[1]actual cost'!$F:$I,4,FALSE) -> 173,913 | K111: 30,712 | L111: 204,624 | M111: 75.61%
A112: =VLOOKUP(B112,[1]Eproject!$A:$B,2,FALSE) -> CBP/B | B112: 14221 | C112: =VLOOKUP(B112,[1]Eproject!$A:$C,3,FALSE) -> MOC | D112: =VLOOKUP(B112,[1]Eproject!$A:$E,5,FALSE) -> Replace the FV-1503 with a More Suitable Control Valve | E112: =VLOOKUP(B112,[1]Eproject!$A:$U,21,FALSE) -> 973256493 | F112: =VLOOKUP(B112,[1]Eproject!$A:$J,10,FALSE) -> Gong Feibao | G112: =VLOOKUP(B112,[1]Eproject!$A:$P,16,FALSE) -> 00:00:00 | H112: =VLOOKUP(E112,'[1]actual cost'!$F:$G,2,FALSE) -> 179,248 | I112: =VLOOKUP(E112,'[1]actual cost'!$F:$H,3,FALSE) -> 120,172 | J112: =VLOOKUP(E112,'[1]actual cost'!$F:$I,4,FALSE) -> 51,635 | K112: 68,537 | L112: 120,172 | M112: 28.81%
A113: =VLOOKUP(B113,[1]Eproject!$A:$B,2,FALSE) -> CEP/S | B113: 14220 | C113: =VLOOKUP(B113,[1]Eproject!$A:$C,3,FALSE) -> MOC | D113: =VLOOKUP(B113,[1]Eproject!$A:$E,5,FALSE) -> Replace the Push Button of Electric Motor in CEP/S | E113: =VLOOKUP(B113,[1]Eproject!$A:$U,21,FALSE) -> 973025628 | F113: =VLOOKUP(B113,[1]Eproject!$A:$J,10,FALSE) -> Xu Zheng | G113: =VLOOKUP(B113,[1]Eproject!$A:$P,16,FALSE) -> 00:00:00 | H113: =VLOOKUP(E113,'[1]actual cost'!$F:$G,2,FALSE) -> 366,540 | I113: =VLOOKUP(E113,'[1]actual cost'!$F:$H,3,FALSE) -> 155,540 | J113: =VLOOKUP(E113,'[1]actual cost'!$F:$I,4,FALSE) -> 164,287 | K113: 0 | L113: 164,287 | M113: 44.82%
A114: =VLOOKUP(B114,[1]Eproject!$A:$B,2,FALSE) -> CBP/C | B114: 14216 | C114: =VLOOKUP(B114,[1]Eproject!$A:$C,3,FALSE) -> MOC | D114: =VLOOKUP(B114,[1]Eproject!$A:$E,5,FALSE) -> Add Safe Passage between the Work Platform in PGU Section | E114: =VLOOKUP(B114,[1]Eproject!$A:$U,21,FALSE) -> 973152182 | F114: =VLOOKUP(B114,[1]Eproject!$A:$J,10,FALSE) -> Wang Shicheng | G114: =VLOOKUP(B114,[1]Eproject!$A:$P,16,FALSE) -> 2015-09-21 | H114: =VLOOKUP(E114,'[1]actual cost'!$F:$G,2,FALSE) -> 100,000 | I114: =VLOOKUP(E114,'[1]actual cost'!$F:$H,3,FALSE) -> 78,974 | J114: =VLOOKUP(E114,'[1]actual cost'!$F:$I,4,FALSE) -> 62,113 | K114: 16,861 | L114: 78,974 | M114: 62.11%
A115: =VLOOKUP(B115,[1]Eproject!$A:$B,2,FALSE) -> CBP/C | B115: 14215 | C115: =VLOOKUP(B115,[1]Eproject!$A:$C,3,FALSE) -> MOC | D115: =VLOOKUP(B115,[1]Eproject!$A:$E,5,FALSE) -> Add Work Platform nearby the Flow Meters | E115: =VLOOKUP(B115,[1]Eproject!$A:$U,21,FALSE) -> 973152181 | F115: =VLOOKUP(B115,[1]Eproject!$A:$J,10,FALSE) -> Wang Shicheng | G115: =VLOOKUP(B115,[1]Eproject!$A:$P,16,FALSE) -> 2015-09-21 | H115: =VLOOKUP(E115,'[1]actual cost'!$F:$G,2,FALSE) -> 160,000 | I115: =VLOOKUP(E115,'[1]actual cost'!$F:$H,3,FALSE) -> 132,712 | J115: =VLOOKUP(E115,'[1]actual cost'!$F:$I,4,FALSE) -> 126,187 | K115: 6,525 | L115: 132,712 | M115: 78.87%
A116: =VLOOKUP(B116,[1]Eproject!$A:$B,2,FALSE) -> CBL/O | B116: 14213 | C116: =VLOOKUP(B116,[1]Eproject!$A:$C,3,FALSE) -> MOC | D116: =VLOOKUP(B116,[1]Eproject!$A:$E,5,FALSE) -> Add 3 Wall-fans on the Wall of A605 PALD Drum filling Workshop | E116: =VLOOKUP(B116,[1]Eproject!$A:$U,21,FALSE) -> 972877642 | F116: =VLOOKUP(B116,[1]Eproject!$A:$J,10,FALSE) -> Yu Yi | G116: =VLOOKUP(B116,[1]Eproject!$A:$P,16,FALSE) -> 2015-07-21 | H116: =VLOOKUP(E116,'[1]actual cost'!$F:$G,2,FALSE) -> 261,000 | I116: =VLOOKUP(E116,'[1]actual cost'!$F:$H,3,FALSE) -> 233,111 | J116: =VLOOKUP(E116,'[1]actual cost'!$F:$I,4,FALSE) -> 257,308 | K116: 0 | L116: 257,308 | M116: 98.59%
A117: =VLOOKUP(B117,[1]Eproject!$A:$B,2,FALSE) -> CBP/C | B117: 14212 | C117: =VLOOKUP(B117,[1]Eproject!$A:$C,3,FALSE) -> MOC | D117: =VLOOKUP(B117,[1]Eproject!$A:$E,5,FALSE) -> Add N2 and Blowdown Pipe from SCTF to 274 Steel Structure Yixi Road | E117: =VLOOKUP(B117,[1]Eproject!$A:$U,21,FALSE) -> 972827264 | F117: =VLOOKUP(B117,[1]Eproject!$A:$J,10,FALSE) -> Chen Chen | G117: =VLOOKUP(B117,[1]Eproject!$A:$P,16,FALSE) -> 2015-05-09 | H117: =VLOOKUP(E117,'[1]actual cost'!$F:$G,2,FALSE) -> 558,000 | I117: =VLOOKUP(E117,'[1]actual cost'!$F:$H,3,FALSE) -> 537,821 | J117: =VLOOKUP(E117,'[1]actual cost'!$F:$I,4,FALSE) -> 637,737 | K117: 0 | L117: 637,737 | M117: 114.29%
A118: =VLOOKUP(B118,[1]Eproject!$A:$B,2,FALSE) -> CAP/A | B118: 14209 | C118: =VLOOKUP(B118,[1]Eproject!$A:$C,3,FALSE) -> MOC | D118: =VLOOKUP(B118,[1]Eproject!$A:$E,5,FALSE) -> Modification for F450B/F455A and Add Filters for T9514/16 | E118: =VLOOKUP(B118,[1]Eproject!$A:$U,21,FALSE) -> 972793548 | F118: =VLOOKUP(B118,[1]Eproject!$A:$J,10,FALSE) -> Zhu Jianxin | G118: =VLOOKUP(B118,[1]Eproject!$A:$P,16,FALSE) -> 2015-04-30 | H118: =VLOOKUP(E118,'[1]actual cost'!$F:$G,2,FALSE) -> 700,000 | I118: =VLOOKUP(E118,'[1]actual cost'!$F:$H,3,FALSE) -> 360,540 | J118: =VLOOKUP(E118,'[1]actual cost'!$F:$I,4,FALSE) -> 631,157 | K118: 0 | L118: 631,157 | M118: 90.17%
A119: =VLOOKUP(B119,[1]Eproject!$A:$B,2,FALSE) -> CCP/A | B119: 14201 | C119: =VLOOKUP(B119,[1]Eproject!$A:$C,3,FALSE) -> MOC | D119: =VLOOKUP(B119,[1]Eproject!$A:$E,5,FALSE) -> Move Mass Flowmeter F23002 from the 2nd Floor to the 1st Floor | E119: =VLOOKUP(B119,[1]Eproject!$A:$U,21,FALSE) -> 972887482 | F119: =VLOOKUP(B119,[1]Eproject!$A:$J,10,FALSE) -> Liu Duo | G119: =VLOOKUP(B119,[1]Eproject!$A:$P,16,FALSE) -> 2015-05-06 | H119: =VLOOKUP(E119,'[1]actual cost'!$F:$G,2,FALSE) -> 70,000 | I119: =VLOOKUP(E119,'[1]actual cost'!$F:$H,3,FALSE) -> 21,000 | J119: =VLOOKUP(E119,'[1]actual cost'!$F:$I,4,FALSE) -> 38,518 | K119: 0 | L119: 38,518 | M119: 55.03%
A120: =VLOOKUP(B120,[1]Eproject!$A:$B,2,FALSE) -> CEP/P | B120: 14196 | C120: =VLOOKUP(B120,[1]Eproject!$A:$C,3,FALSE) -> MOC | D120: =VLOOKUP(B120,[1]Eproject!$A:$E,5,FALSE) -> Add the Vibration Signal into DCS System for K11501&K21501 | E120: =VLOOKUP(B120,[1]Eproject!$A:$U,21,FALSE) -> 972760217 | F120: =VLOOKUP(B120,[1]Eproject!$A:$J,10,FALSE) -> Shen Liying | G120: =VLOOKUP(B120,[1]Eproject!$A:$P,16,FALSE) -> 2015-02-06 | H120: =VLOOKUP(E120,'[1]actual cost'!$F:$G,2,FALSE) -> 415,000 | I120: =VLOOKUP(E120,'[1]actual cost'!$F:$H,3,FALSE) -> 197,310 | J120: =VLOOKUP(E120,'[1]actual cost'!$F:$I,4,FALSE) -> 552,197 | K120: 0 | L120: 552,197 | M120: 133.06%
A121: =VLOOKUP(B121,[1]Eproject!$A:$B,2,FALSE) -> CBP/S | B121: 14195 | C121: =VLOOKUP(B121,[1]Eproject!$A:$C,3,FALSE) -> MOC | D121: =VLOOKUP(B121,[1]Eproject!$A:$E,5,FALSE) -> Add Polished Condensate Makeup Line to U1621 & U1861 | E121: =VLOOKUP(B121,[1]Eproject!$A:$U,21,FALSE) -> 973041189 | F121: =VLOOKUP(B121,[1]Eproject!$A:$J,10,FALSE) -> Wang Can | G121: =VLOOKUP(B121,[1]Eproject!$A:$P,16,FALSE) -> 00:00:00 | H121: =VLOOKUP(E121,'[1]actual cost'!$F:$G,2,FALSE) -> 198,950 | I121: =VLOOKUP(E121,'[1]actual cost'!$F:$H,3,FALSE) -> 153,903 | J121: =VLOOKUP(E121,'[1]actual cost'!$F:$I,4,FALSE) -> 47,519 | K121: 106,384 | L121: 153,903 | M121: 23.88%
A122: =VLOOKUP(B122,[1]Eproject!$A:$B,2,FALSE) -> CEP/E | B122: 14189 | C122: =VLOOKUP(B122,[1]Eproject!$A:$C,3,FALSE) -> MOC | D122: =VLOOKUP(B122,[1]Eproject!$A:$E,5,FALSE) -> EOEG Cable Tray Replacement | E122: =VLOOKUP(B122,[1]Eproject!$A:$U,21,FALSE) -> 972743165 | F122: =VLOOKUP(B122,[1]Eproject!$A:$J,10,FALSE) -> Hao Yongyong | G122: =VLOOKUP(B122,[1]Eproject!$A:$P,16,FALSE) -> 2015-05-07 | H122: =VLOOKUP(E122,'[1]actual cost'!$F:$G,2,FALSE) -> 1,550,000 | I122: =VLOOKUP(E122,'[1]actual cost'!$F:$H,3,FALSE) -> 1,638,570 | J122: =VLOOKUP(E122,'[1]actual cost'!$F:$I,4,FALSE) -> 1,588,540 | K122: 50,030 | L122: 1,638,570 | M122: 102.49%
A123: =VLOOKUP(B123,[1]Eproject!$A:$B,2,FALSE) -> CAP/E | B123: 14128 | C123: =VLOOKUP(B123,[1]Eproject!$A:$C,3,FALSE) -> MOC | D123: =VLOOKUP(B123,[1]Eproject!$A:$E,5,FALSE) -> Change T9668 Waste Water Tank to DMA3 Heavies Tank | E123: =VLOOKUP(B123,[1]Eproject!$A:$U,21,FALSE) -> 972684047 | F123: =VLOOKUP(B123,[1]Eproject!$A:$J,10,FALSE) -> Xu Jin | G123: =VLOOKUP(B123,[1]Eproject!$A:$P,16,FALSE) -> 2014-09-04 | H123: =VLOOKUP(E123,'[1]actual cost'!$F:$G,2,FALSE) -> 400,000 | I123: =VLOOKUP(E123,'[1]actual cost'!$F:$H,3,FALSE) -> 414,458 | J123: =VLOOKUP(E123,'[1]actual cost'!$F:$I,4,FALSE) -> 467,881 | K123: 0 | L123: 467,881 | M123: 116.97%
A124: =VLOOKUP(B124,[1]Eproject!$A:$B,2,FALSE) -> CBP/S | B124: 14120 | C124: =VLOOKUP(B124,[1]Eproject!$A:$C,3,FALSE) -> MOC | D124: =VLOOKUP(B124,[1]Eproject!$A:$E,5,FALSE) -> Add Silencer for Venting Line of External CO2 | E124: =VLOOKUP(B124,[1]Eproject!$A:$U,21,FALSE) -> 972586402 | F124: =VLOOKUP(B124,[1]Eproject!$A:$J,10,FALSE) -> Gu Jingfeng | G124: =VLOOKUP(B124,[1]Eproject!$A:$P,16,FALSE) -> 2015-07-24 | H124: =VLOOKUP(E124,'[1]actual cost'!$F:$G,2,FALSE) -> 82,700 | I124: =VLOOKUP(E124,'[1]actual cost'!$F:$H,3,FALSE) -> 114,576 | J124: =VLOOKUP(E124,'[1]actual cost'!$F:$I,4,FALSE) -> 98,779 | K124: 15,797 | L124: 114,576 | M124: 119.44%
A125: =VLOOKUP(B125,[1]Eproject!$A:$B,2,FALSE) -> CBP/C | B125: 14119 | C125: =VLOOKUP(B125,[1]Eproject!$A:$C,3,FALSE) -> MOC | D125: =VLOOKUP(B125,[1]Eproject!$A:$E,5,FALSE) -> Add New Pipeline to Transport Liquid LPG from STT1120 to the Furnace | E125: =VLOOKUP(B125,[1]Eproject!$A:$U,21,FALSE) -> 972722696 | F125: =VLOOKUP(B125,[1]Eproject!$A:$J,10,FALSE) -> Sun Aihong | G125: =VLOOKUP(B125,[1]Eproject!$A:$P,16,FALSE) -> 2014-10-20 | H125: =VLOOKUP(E125,'[1]actual cost'!$F:$G,2,FALSE) -> 390,000 | I125: =VLOOKUP(E125,'[1]actual cost'!$F:$H,3,FALSE) -> 622,734 | J125: =VLOOKUP(E125,'[1]actual cost'!$F:$I,4,FALSE) -> 643,699 | K125: 0 | L125: 643,699 | M125: 165.05%
A126: =VLOOKUP(B126,[1]Eproject!$A:$B,2,FALSE) -> CBP/A | B126: 14109 | C126: =VLOOKUP(B126,[1]Eproject!$A:$C,3,FALSE) -> MOC | D126: =VLOOKUP(B126,[1]Eproject!$A:$E,5,FALSE) -> Add a Steam Trap for 520-E-204 | E126: =VLOOKUP(B126,[1]Eproject!$A:$U,21,FALSE) -> 972670911 | F126: =VLOOKUP(B126,[1]Eproject!$A:$J,10,FALSE) -> Wang Can | G126: =VLOOKUP(B126,[1]Eproject!$A:$P,16,FALSE) -> 2015-05-09 | H126: =VLOOKUP(E126,'[1]actual cost'!$F:$G,2,FALSE) -> 162,000 | I126: =VLOOKUP(E126,'[1]actual cost'!$F:$H,3,FALSE) -> 122,399 | J126: =VLOOKUP(E126,'[1]actual cost'!$F:$I,4,FALSE) -> 162,804 | K126: 0 | L126: 162,804 | M126: 100.50%
A127: =VLOOKUP(B127,[1]Eproject!$A:$B,2,FALSE) -> CBP/C | B127: 14073 | C127: =VLOOKUP(B127,[1]Eproject!$A:$C,3,FALSE) -> MOC | D127: =VLOOKUP(B127,[1]Eproject!$A:$E,5,FALSE) -> Move Control Valve FV2408 to the Inlet Nozzle of V910 | E127: =VLOOKUP(B127,[1]Eproject!$A:$U,21,FALSE) -> 972702734 | F127: =VLOOKUP(B127,[1]Eproject!$A:$J,10,FALSE) -> Wang Can | G127: =VLOOKUP(B127,[1]Eproject!$A:$P,16,FALSE) -> 2015-05-09 | H127: =VLOOKUP(E127,'[1]actual cost'!$F:$G,2,FALSE) -> 147,725 | I127: =VLOOKUP(E127,'[1]actual cost'!$F:$H,3,FALSE) -> 107,469 | J127: =VLOOKUP(E127,'[1]actual cost'!$F:$I,4,FALSE) -> 151,650 | K127: 0 | L127: 151,650 | M127: 102.66%
A128: =VLOOKUP(B128,[1]Eproject!$A:$B,2,FALSE) -> CBP/A | B128: 14069 | C128: =VLOOKUP(B128,[1]Eproject!$A:$C,3,FALSE) -> MOC | D128: =VLOOKUP(B128,[1]Eproject!$A:$E,5,FALSE) -> Add a Bypass Line from AEU Pit Drum to PGU Off-spec Drum | E128: =VLOOKUP(B128,[1]Eproject!$A:$U,21,FALSE) -> 972731699 | F128: =VLOOKUP(B128,[1]Eproject!$A:$J,10,FALSE) -> Chen Chen | G128: =VLOOKUP(B128,[1]Eproject!$A:$P,16,FALSE) -> 2014-10-17 | H128: =VLOOKUP(E128,'[1]actual cost'!$F:$G,2,FALSE) -> 191,000 | I128: =VLOOKUP(E128,'[1]actual cost'!$F:$H,3,FALSE) -> 220,150 | J128: =VLOOKUP(E128,'[1]actual cost'!$F:$I,4,FALSE) -> 268,709 | K128: 0 | L128: 268,709 | M128: 140.69%
A129: =VLOOKUP(B129,[1]Eproject!$A:$B,2,FALSE) -> CBP/M | B129: 14065 | C129: =VLOOKUP(B129,[1]Eproject!$A:$C,3,FALSE) -> MOC | D129: =VLOOKUP(B129,[1]Eproject!$A:$E,5,FALSE) -> Replace Butterfly Valves for Cooling Water Tower | E129: =VLOOKUP(B129,[1]Eproject!$A:$U,21,FALSE) -> 972676906 | F129: =VLOOKUP(B129,[1]Eproject!$A:$J,10,FALSE) -> Sun Aihong | G129: =VLOOKUP(B129,[1]Eproject!$A:$P,16,FALSE) -> 2015-04-30 | H129: =VLOOKUP(E129,'[1]actual cost'!$F:$G,2,FALSE) -> 487,000 | I129: =VLOOKUP(E129,'[1]actual cost'!$F:$H,3,FALSE) -> 544,005 | J129: =VLOOKUP(E129,'[1]actual cost'!$F:$I,4,FALSE) -> 404,481 | K129: 139,524 | L129: 544,005 | M129: 83.06%
A130: =VLOOKUP(B130,[1]Eproject!$A:$B,2,FALSE) -> CBP/B | B130: 14061 | C130: =VLOOKUP(B130,[1]Eproject!$A:$C,3,FALSE) -> MOC | D130: =VLOOKUP(B130,[1]Eproject!$A:$E,5,FALSE) -> Add a Support for E1604 | E130: =VLOOKUP(B130,[1]Eproject!$A:$U,21,FALSE) -> 972631740 | F130: =VLOOKUP(B130,[1]Eproject!$A:$J,10,FALSE) -> Ding Juntao | G130: =VLOOKUP(B130,[1]Eproject!$A:$P,16,FALSE) -> 2015-04-25 | H130: =VLOOKUP(E130,'[1]actual cost'!$F:$G,2,FALSE) -> 155,550 | I130: =VLOOKUP(E130,'[1]actual cost'!$F:$H,3,FALSE) -> 82,550 | J130: =VLOOKUP(E130,'[1]actual cost'!$F:$I,4,FALSE) -> 29,480 | K130: 53,070 | L130: 82,550 | M130: 18.95%
A131: =VLOOKUP(B131,[1]Eproject!$A:$B,2,FALSE) -> CBP/C | B131: 14059 | C131: =VLOOKUP(B131,[1]Eproject!$A:$C,3,FALSE) -> MOC | D131: =VLOOKUP(B131,[1]Eproject!$A:$E,5,FALSE) -> Add a Flowmeter on Continuous Blowdown Pipeline of H109 | E131: =VLOOKUP(B131,[1]Eproject!$A:$U,21,FALSE) -> 972651625 | F131: =VLOOKUP(B131,[1]Eproject!$A:$J,10,FALSE) -> Wang Can | G131: =VLOOKUP(B131,[1]Eproject!$A:$P,16,FALSE) -> 2015-05-09 | H131: =VLOOKUP(E131,'[1]actual cost'!$F:$G,2,FALSE) -> 190,000 | I131: =VLOOKUP(E131,'[1]actual cost'!$F:$H,3,FALSE) -> 156,462 | J131: =VLOOKUP(E131,'[1]actual cost'!$F:$I,4,FALSE) -> 192,172 | K131: 0 | L131: 192,172 | M131: 101.14%
A132: =VLOOKUP(B132,[1]Eproject!$A:$B,2,FALSE) -> CTS/P | B132: 14044 | C132: =VLOOKUP(B132,[1]Eproject!$A:$C,3,FALSE) -> MOC | D132: =VLOOKUP(B132,[1]Eproject!$A:$E,5,FALSE) -> Modify Filter ST6503 | E132: =VLOOKUP(B132,[1]Eproject!$A:$U,21,FALSE) -> 972785185 | F132: =VLOOKUP(B132,[1]Eproject!$A:$J,10,FALSE) -> Chen Yangwei | G132: =VLOOKUP(B132,[1]Eproject!$A:$P,16,FALSE) -> 2015-05-06 | H132: =VLOOKUP(E132,'[1]actual cost'!$F:$G,2,FALSE) -> 239,925 | I132: =VLOOKUP(E132,'[1]actual cost'!$F:$H,3,FALSE) -> 141,419 | J132: =VLOOKUP(E132,'[1]actual cost'!$F:$I,4,FALSE) -> 412,801 | K132: =IF(J132>I132,0,I132-J132) -> 0 | L132: =J132+K132 -> 412,801 | M132: =J132/H132 -> 172.05%
A133: =VLOOKUP(B133,[1]Eproject!$A:$B,2,FALSE) -> CBP/M | B133: 14040 | C133: =VLOOKUP(B133,[1]Eproject!$A:$C,3,FALSE) -> MOC | D133: =VLOOKUP(B133,[1]Eproject!$A:$E,5,FALSE) -> Modify Discharge Temperature Interlock System of H2301 | E133: =VLOOKUP(B133,[1]Eproject!$A:$U,21,FALSE) -> 972732621 | F133: =VLOOKUP(B133,[1]Eproject!$A:$J,10,FALSE) -> Gong Feibao | G133: =VLOOKUP(B133,[1]Eproject!$A:$P,16,FALSE) -> 2015-04-29 | H133: =VLOOKUP(E133,'[1]actual cost'!$F:$G,2,FALSE) -> 405,000 | I133: =VLOOKUP(E133,'[1]actual cost'!$F:$H,3,FALSE) -> 218,064 | J133: =VLOOKUP(E133,'[1]actual cost'!$F:$I,4,FALSE) -> 187,377 | K133: 30,687 | L133: 218,064 | M133: 46.27%
A134: =VLOOKUP(B134,[1]Eproject!$A:$B,2,FALSE) -> CBP/M | B134: 14036 | C134: =VLOOKUP(B134,[1]Eproject!$A:$C,3,FALSE) -> MOC | D134: =VLOOKUP(B134,[1]Eproject!$A:$E,5,FALSE) -> Adding Two Flammable Gas Detectors in CWR Pipe | E134: =VLOOKUP(B134,[1]Eproject!$A:$U,21,FALSE) -> 972937929 | F134: =VLOOKUP(B134,[1]Eproject!$A:$J,10,FALSE) -> Gong Feibao | G134: =VLOOKUP(B134,[1]Eproject!$A:$P,16,FALSE) -> 2015-11-04 | H134: =VLOOKUP(E134,'[1]actual cost'!$F:$G,2,FALSE) -> 291,000 | I134: =VLOOKUP(E134,'[1]actual cost'!$F:$H,3,FALSE) -> 259,141 | J134: =VLOOKUP(E134,'[1]actual cost'!$F:$I,4,FALSE) -> 282,095 | K134: 0 | L134: 282,095 | M134: 96.94%
A135: =VLOOKUP(B135,[1]Eproject!$A:$B,2,FALSE) -> CBP/C | B135: 14028 | C135: =VLOOKUP(B135,[1]Eproject!$A:$C,3,FALSE) -> MOC | D135: =VLOOKUP(B135,[1]Eproject!$A:$E,5,FALSE) -> Modification of Flare Obstacle Lighting and Ignition System for EU | E135: =VLOOKUP(B135,[1]Eproject!$A:$U,21,FALSE) -> 972802859 | F135: =VLOOKUP(B135,[1]Eproject!$A:$J,10,FALSE) -> Tong Shaojian | G135: =VLOOKUP(B135,[1]Eproject!$A:$P,16,FALSE) -> 00:00:00 | H135: =VLOOKUP(E135,'[1]actual cost'!$F:$G,2,FALSE) -> 2,500,000 | I135: =VLOOKUP(E135,'[1]actual cost'!$F:$H,3,FALSE) -> 193,191 | J135: =VLOOKUP(E135,'[1]actual cost'!$F:$I,4,FALSE) -> 2,453,340 | K135: 0 | L135: 2,453,340 | M135: 98.13%
A136: =VLOOKUP(B136,[1]Eproject!$A:$B,2,FALSE) -> CBP/C | B136: 14024 | C136: =VLOOKUP(B136,[1]Eproject!$A:$C,3,FALSE) -> MOC | D136: =VLOOKUP(B136,[1]Eproject!$A:$E,5,FALSE) -> Change Temporary Tie to Permanent Type for the Lines from Wison and E930 | E136: =VLOOKUP(B136,[1]Eproject!$A:$U,21,FALSE) -> 972319739 | F136: =VLOOKUP(B136,[1]Eproject!$A:$J,10,FALSE) -> Qiu Zhufeng | G136: =VLOOKUP(B136,[1]Eproject!$A:$P,16,FALSE) -> 2015-05-09 | H136: =VLOOKUP(E136,'[1]actual cost'!$F:$G,2,FALSE) -> 135,000 | I136: =VLOOKUP(E136,'[1]actual cost'!$F:$H,3,FALSE) -> 68,675 | J136: =VLOOKUP(E136,'[1]actual cost'!$F:$I,4,FALSE) -> 79,377 | K136: 0 | L136: 79,377 | M136: 58.80%
A137: =VLOOKUP(B137,[1]Eproject!$A:$B,2,FALSE) -> CBP/C | B137: 14022 | C137: =VLOOKUP(B137,[1]Eproject!$A:$C,3,FALSE) -> MOC | D137: =VLOOKUP(B137,[1]Eproject!$A:$E,5,FALSE) -> Add a Pipeline from Seal Oil Drainer to 330-V-310 | E137: =VLOOKUP(B137,[1]Eproject!$A:$U,21,FALSE) -> 972320940 | F137: =VLOOKUP(B137,[1]Eproject!$A:$J,10,FALSE) -> Qiu Zhufeng | G137: =VLOOKUP(B137,[1]Eproject!$A:$P,16,FALSE) -> 2015-05-09 | H137: =VLOOKUP(E137,'[1]actual cost'!$F:$G,2,FALSE) -> 139,000 | I137: =VLOOKUP(E137,'[1]actual cost'!$F:$H,3,FALSE) -> 71,475 | J137: =VLOOKUP(E137,'[1]actual cost'!$F:$I,4,FALSE) -> 67,618 | K137: 3,857 | L137: 71,475 | M137: 48.65%
A138: =VLOOKUP(B138,[1]Eproject!$A:$B,2,FALSE) -> CBP/B | B138: 14020 | C138: =VLOOKUP(B138,[1]Eproject!$A:$C,3,FALSE) -> MOC | D138: =VLOOKUP(B138,[1]Eproject!$A:$E,5,FALSE) -> Add Silencer in Steam Venting Line of V514 | E138: =VLOOKUP(B138,[1]Eproject!$A:$U,21,FALSE) -> 972377375 | F138: =VLOOKUP(B138,[1]Eproject!$A:$J,10,FALSE) -> Chen Chen | G138: =VLOOKUP(B138,[1]Eproject!$A:$P,16,FALSE) -> 2015-04-25 | H138: =VLOOKUP(E138,'[1]actual cost'!$F:$G,2,FALSE) -> 121,000 | I138: =VLOOKUP(E138,'[1]actual cost'!$F:$H,3,FALSE) -> 119,278 | J138: =VLOOKUP(E138,'[1]actual cost'!$F:$I,4,FALSE) -> 144,464 | K138: 0 | L138: 144,464 | M138: 119.39%
A139: =VLOOKUP(B139,[1]Eproject!$A:$B,2,FALSE) -> CBP/B | B139: 14017 | C139: =VLOOKUP(B139,[1]Eproject!$A:$C,3,FALSE) -> MOC | D139: =VLOOKUP(B139,[1]Eproject!$A:$E,5,FALSE) -> Add a Basket Filter on Outlet Line of P404A/B | E139: =VLOOKUP(B139,[1]Eproject!$A:$U,21,FALSE) -> 972576812 | F139: =VLOOKUP(B139,[1]Eproject!$A:$J,10,FALSE) -> Wang Can | G139: =VLOOKUP(B139,[1]Eproject!$A:$P,16,FALSE) -> 2015-05-04 | H139: =VLOOKUP(E139,'[1]actual cost'!$F:$G,2,FALSE) -> 176,000 | I139: =VLOOKUP(E139,'[1]actual cost'!$F:$H,3,FALSE) -> 99,660 | J139: =VLOOKUP(E139,'[1]actual cost'!$F:$I,4,FALSE) -> 150,682 | K139: 0 | L139: 150,682 | M139: 85.61%
A140: =VLOOKUP(B140,[1]Eproject!$A:$B,2,FALSE) -> CBP/C | B140: 13246 | C140: =VLOOKUP(B140,[1]Eproject!$A:$C,3,FALSE) -> MOC | D140: =VLOOKUP(B140,[1]Eproject!$A:$E,5,FALSE) -> Add Filters for IA Header | E140: =VLOOKUP(B140,[1]Eproject!$A:$U,21,FALSE) -> 971989443 | F140: =VLOOKUP(B140,[1]Eproject!$A:$J,10,FALSE) -> Wang Can | G140: =VLOOKUP(B140,[1]Eproject!$A:$P,16,FALSE) -> 2015-05-04 | H140: =VLOOKUP(E140,'[1]actual cost'!$F:$G,2,FALSE) -> 271,000 | I140: =VLOOKUP(E140,'[1]actual cost'!$F:$H,3,FALSE) -> 196,037 | J140: =VLOOKUP(E140,'[1]actual cost'!$F:$I,4,FALSE) -> 297,744 | K140: 0 | L140: 297,744 | M140: 109.87%
A141: =VLOOKUP(B141,[1]Eproject!$A:$B,2,FALSE) -> COA/A | B141: 13216 | C141: =VLOOKUP(B141,[1]Eproject!$A:$C,3,FALSE) -> MOC | D141: =VLOOKUP(B141,[1]Eproject!$A:$E,5,FALSE) -> Install the Deep Pipes in CAA Tanks for Restab System | E141: =VLOOKUP(B141,[1]Eproject!$A:$U,21,FALSE) -> 971848268 | F141: =VLOOKUP(B141,[1]Eproject!$A:$J,10,FALSE) -> Li Xingming | G141: =VLOOKUP(B141,[1]Eproject!$A:$P,16,FALSE) -> 00:00:00 | H141: =VLOOKUP(E141,'[1]actual cost'!$F:$G,2,FALSE) -> 26,400 | I141: =VLOOKUP(E141,'[1]actual cost'!$F:$H,3,FALSE) -> 26,400 | J141: =VLOOKUP(E141,'[1]actual cost'!$F:$I,4,FALSE) -> 27,500 | K141: 0 | L141: 27,500 | M141: 104.17%
A142: =VLOOKUP(B142,[1]Eproject!$A:$B,2,FALSE) -> CBP/B | B142: 13052 | C142: =VLOOKUP(B142,[1]Eproject!$A:$C,3,FALSE) -> MOC | D142: =VLOOKUP(B142,[1]Eproject!$A:$E,5,FALSE) -> Add One Pipeline from C1200 to EU C220 for Recycling Offgas | E142: =VLOOKUP(B142,[1]Eproject!$A:$U,21,FALSE) -> 971877174 | F142: =VLOOKUP(B142,[1]Eproject!$A:$J,10,FALSE) -> Sun Aihong | G142: =VLOOKUP(B142,[1]Eproject!$A:$P,16,FALSE) -> 2014-05-30 | H142: =VLOOKUP(E142,'[1]actual cost'!$F:$G,2,FALSE) -> 437,100 | I142: =VLOOKUP(E142,'[1]actual cost'!$F:$H,3,FALSE) -> 491,174 | J142: =VLOOKUP(E142,'[1]actual cost'!$F:$I,4,FALSE) -> 528,057 | K142: 0 | L142: 528,057 | M142: 120.81%
